Workbook

Sheet Title Sheet
C4: An Economic Evaluation of the Use of Copper in Reducing the Rate of Healthcare Associated Infections in the UK
C13: The purpose of this model is to calculate the number and associated costs of Healthcare Associated Infections in different clinical settings and to evaluate the benefits of a copper intervention on key touch surfaces compared to non-copper items. It then calculates the Return on Investment (ROI) and indicates other tangible benefits. These assumptions are based on a new build or planned renovation so installation costs (which would be similar) have therefore not been considered. The model should be navigated using the buttons on the left hand side of the screen to go to sections for model Inputs, Calculations and Results and at the top of the page to move to screens within these sections. It should be noted that the main areas for users are the Inputs and Results sections of the model. Cells within the model are colour coded as follows:
C18: Green background cells
C21: Red text
C24: Comments
C27: v.042013.2.1

Sheet References
C4: Model Inputs
C10: Baseline infection rates | D10: Source | E10: Link
C11: E. Coli | D11: Quarterly Epidemiological Commentary: Mandatory MRSA, MSSA and E. coli bacteraemia, and C. difficile infection data (up to January–March 2012). Health protection agency. June 2012 | E11: http://www.hpa.org.uk/webc/HPAwebFile/HPAweb_C/1317135985134
C12: Enterobacter aerogenes | D12: Klebsiella, Enterobacter, Serratia, and Citrobacter bacteraemia, England, Wales, and Northern Ireland: 2006-2010. Health protection agency | E12: http://www.hpa.org.uk/hpr/archives/2012/hpr4212_klbsll.pdf
C13: MRSA | D13: Epidemiology, clinical and laboratory characteristics of Staphylococcus aureus bacteraemia in a university hospital in UK. I. Das et al. Journal of Hospital Infection (2007) 65, 117-123
C14: Pseudomonas aeruginosa | D14: Pseudomonas spp. and Stenotrophomonas maltophilia bacteraemia in England, Wales, and Northern Ireland, 2007 to 2011. Health protection agency | E14: http://www.hpa.org.uk/webc/HPAwebFile/HPAweb_C/1317135098542
C15: Staphilococus aureus | D15: Epidemiology, clinical and laboratory characteristics of Staphylococcus aureus bacteraemia in a university hospital in UK. I. Das et al. Journal of Hospital Infection (2007) 65, 117-123
C16: Vancomycin-resistant enterococcus faecalis (VRE) | D16: European survey of vancomycin-resistant enterococci in at-risk hospital wards and in vitro susceptibility testing of ramoplanin against these isolates. Goossens et al. Journal of Antimicrobial Chemotherapy (2003) 51, Suppl. S3, iii5–iii12
C17: All healthcare associated infections | D17: Prevalence of healthcare-associated infection in Scottish intensive care units. Cairns et al. Journal of Hospital Infection. 76 (2010) 308-310 | E17: http://www.ncbi.nlm.nih.gov/pubmed/20970880
D18: English National Point Prevalence Survey on Healthcare-associated Infections and Antimicrobial Use, 2011. Health Protection Agency | E18: http://www.hpa.org.uk/Publications/InfectiousDiseases/AntimicrobialAndHealthcareAssociatedInfections/1205HCAIEnglishPPSforhcaiandamu2011prelim/
C19: Effectiveness
C20: Reduced contamination in a ward setting | D20: The Antimicrobial Efficacy of Copper Alloy Furnishing in the Clinical Environment: A Crossover Study. Kapranan et al. Infection Control and Hospital Epidemiology 2012;33(1):3-9 | E20: http://www.jstor.org/stable/10.1086/663644
C21: Reduced risk of HCAI in an ICU setting | D21: Risk Mitigation of Hospital Acquired Infections Through the Use of Antimicrobial Copper Surfaces. Schmidt et al BMC Proceedings 2011, 5 (Suppl 6):O53 (Oral presentation delivered at 1st WHO International Conference on Prevention and Infection Control, June 29-July 2, 2011, Geneva, Switzerland) | E21: http://www.biomedcentral.com/1753-6561/5/S6/O53
D22: Cassandra D. Salgado, MD; Kent A. Sepkowitz, MD; Joseph F. John, MD; J. Robert Cantey, MD; Hubert H. Attaway, MS; Katherine D. Freeman, Dr PH; Peter A. Sharpe, MBA; Harold T. Michels, PhD; Michael G. Schmidt, PhD. Copper Surfaces Reduced the Rate of Healthcare-Acquired Infections in the Intensive Care Unit. Infection Control and Hospital Epidemiology 2013;34 | E22: http://www.jstor.org/stable/10.1086/670207
C23: Costs
C24: Cost of an additional day in hospital due to infection | D24: International Programme for Resource Use in Critical Care (IPOC) — a methodology and initial results of cost and provision in four European countries. Negrini et al. Acta Anaesthesiologica Scandinavica 2006; 50: 72-79 | E24: http://www.ncbi.nlm.nih.gov/pubmed/16451154
C25: QALY
C26: Surgical site infection | D26: Lee, Bruce Y, Staphylococcus aureus vaccine for orthopedic patients: an economic model and analysis., Vaccine 2010-Mar-11; 28(12):2465-71 | E26: http://www.ncbi.nlm.nih.gov/pubmed/20064479
C27: Length of stay
C28: ICU | D28: Review for the NHS Executive of Adult Critical Care Services: An International Perspective. Department of Health | E28: http://www.wales.nhs.uk/sites3/Documents/530/adult%20critical%20care-%20international%20perspective.pdf
B186: 1

Sheet Inputs
C4: Model Inputs
C9: The purpose of this sheet is to set up the model for the appropriate hospital setting. The typical number of patients and any predictions for increases or decreases over time should be entered in the cells shaded in green. Whether or not copper items will be introduced to general wards, ICU or single rooms can be selected in the drop down menu and the name of the pathogen in the model can be entered in the appropriate green shaded cell .
C13: Number of beds in unit | D13: 20
C14: Average length of stay in ICU (days) | D14: 5.7
C15: Average length of stay ward/single room (days) | D15: 3
C16: Calculated number of patients per year (Cohort) | D16: =IF(E74=1,ROUNDDOWN(D13*365/D14,-2),ROUNDDOWN(D13*365/D15,-2)) -> 1200
C17: Yearly change in number of patients | D17: 0
C19: Setting
C22: Infection to be included in the model: | D22: All Healthcare Associated Infections
C24: Currency:
C30: Green background cells
C33: Red text
C36: Comments
C38: =MID(CELL("filename"),SEARCH("[",CELL("filename"))+1,SEARCH("]",CELL("filename"))-SEARCH("[",CELL("filename"))-1) -> YHEC-model-hcai-economic-evaluation.xlsm
C40: v.042013.2.1
C62: Selected pathogens
C65: E. Coli | E65: FALSE | F65: =IF(E65=TRUE,1,0) -> 0
C66: Enterobacter aerogenes | E66: FALSE | F66: =IF(E66=TRUE,1,0) -> 0
C67: MRSA | E67: FALSE | F67: 0
C68: Pseudomonas aeruginosa | E68: FALSE | F68: 0
C69: Staphilococus Aureus | E69: FALSE | F69: 0
C70: Vancomycin-resistant Enterococcus faecalis (VRE) | E70: FALSE | F70: 0
C71: All Hospital Acquired Infections | E71: TRUE | F71: 1
C72: selected setting
C74: ICU | E74: 1 | F74: =VLOOKUP(E74,F78:G80,2) -> ICU
C75: Ward
C76: Single room
F78: 1 | G78: ICU
F79: 2 | G79: Ward
F80: 3 | G80: Single room
C99: selected setting | E99: 3
C101: Copper objects travel out of room
C102: Copper bed rails, other objects travel out of room
C103: Copper objects never travel out of room
C113: E. Coli
C114: Enterobacter aerogenes
C115: MRSA
C116: Pseudomonas aeruginosa
C117: Staphilococus aureus
C118: Vancomycin-resistant enterococcus faecalis (VRE)
C133: GBP Pounds (£) | D133: 1
C134: Euro (€)
C135: US Dollar ($)

Sheet Effectiveness
C4: Model Inputs
C9: The following infection rates are taken from published papers. To change to hospital specific rates, the rate and the time period in months over which the infections occurred should be entered into the appropriate cells and 'user defined data' should be selected in the drop down menu. A new monthly rate will automatically be calculated.
AG11: E. Coli
D12: Monthly infection rate | AG12: Enterobacter aerogenes
D13: ICU | G13: Ward | J13: Single room | AG13: MRSA
D14: Rate | E14: Time period (months) | F14: Monthly rate | G14: Rate | H14: Time period (months) | I14: Monthly rate | J14: Rate | K14: Time period (months) | L14: Monthly rate | AG14: Pseudomonas aeruginosa
C15: E. Coli | D15: =61/100000 -> 0.00061 | E15: 10 | F15: =D15/E15 -> 6.1e-05 | I15: =IFERROR(0,G15/H15) -> 0 | L15: =IFERROR(0,J15/K15) -> 0 | AG15: Staphilococus Aureus
C16: Enterobacter aerogenes | D16: =0.58/100000 -> 5.8e-06 | E16: 12 | F16: =D16/E16 -> 4.833333333e-07 | I16: =IFERROR(0,G16/H16) -> 0 | L16: =IFERROR(0,J16/K16) -> 0 | AG16: Vancomycin-resistant Enterococcus faecalis (VRE)
C17: MRSA | D17: =(37/10000)*0.59 -> 0.002183 | E17: 14 | F17: 0.0001559285714 | I17: 0 | L17: 0 | AG17: All Hospital Acquired Infections
C18: Pseudomonas aeruginosa | D18: =5.5/100000 -> 5.5e-05 | E18: 12 | F18: 4.583333333e-06 | I18: 0 | L18: 0
C19: Staphilococus aureus | D19: =(37/10000)*0.41 -> 0.001517 | E19: 14 | F19: 0.0001083571429 | I19: 0 | L19: 0
C20: Vancomycin-resistant enterococcus faecalis (VRE) | D20: 0.104 | E20: 12 | F20: 0.008666666667 | I20: 0 | L20: 0
C21: All healthcare associated infections | D21: =IF($C$180=1,D22,IF($C$180=2,D23,D24)) -> 0.271 | E21: =IF($C$180=1,E22,IF($C$180=2,E23,E24)) -> 12 | F21: 0.02258333333 | G21: =IF(G24="","",G24) ->  | H21: =IF(H24="","",H24) ->  | I21: =IFERROR(G21/H21,"") ->  | J21: =IF(J24="","",J24) ->  | K21: =IF(K24="","",K24) ->  | L21: =IFERROR(J21/K21,"") -> 
C22: Cairns et al. 2010 | D22: 0.271 | E22: 12 | F22: 0.02258333333
C23: Health Protection Agency 2011 | D23: 0.234 | E23: 12 | F23: 0.0195
C24: User defined data | F24: =IFERROR(D24/E24,"") -> 
C26: Reduction in infections* | D26: 0.2
C27: *Rates from Salgado (2013) showed a reduction of 58.1% for the copper arm versus non-copper arm. A conservative assumption of a reduction of 20% has been used as default in the model.
C32: Green background cells
C35: Red text
C38: Comments
C52: 58-111
A57: .
C58: Percentage healthy
C59: - copper | D59: =1-(SUM(E105:E110)) -> 1
C60: - baseline | D60: =1-(SUM(D105:D110)) -> 1
C61: E. Coli | D61: =1/F105 -> 1
C62: Enterobacter aerogenes | D62: =1/F106 -> 1
C63: MRSA | D63: 1
C64: Pseudomonas aeruginosa | D64: 1
C65: Staphilococus Aureus | D65: 1
C66: Vancomycin-resistant Enterococcus faecalis (VRE) | D66: 1
C67: All Hospital Acquired Infections | D67: 1
B73: 1
B74: 2 | D74: =Results!F12 -> 94.09594096 | J74: =Results!D59 -> 1
B75: 3 | C75: 0 | D75: Cost increasing | F75: =D26 -> 0.2 | I75: 0 | L75: =D26 -> 0.2
B76: 4 | C76: 0.05 | D76: 376.3837638 | F76: =F75 -> 0.2 | I76: 0.05 | J76: 4 | L76: =L75 -> 0.2
B77: 5 | C77: 0.1 | D77: 188.1918819 | F77: =F76 -> 0.2 | I77: 0.1 | J77: 2 | L77: =L76 -> 0.2
B78: 6 | C78: 0.15 | D78: 125.4612546 | F78: 0.2 | I78: 0.15 | J78: 2 | L78: 0.2
B79: 7 | C79: 0.2 | D79: 94.09594096 | F79: 0.2 | I79: 0.2 | J79: 1 | L79: 0.2
B80: 8 | C80: 0.25 | D80: 75.27675277 | F80: 0.2 | I80: 0.25 | J80: 1 | L80: 0.2
B81: 9 | C81: 0.3 | D81: 62.73062731 | F81: 0.2 | I81: 0.3 | J81: 1 | L81: 0.2
B82: 10 | C82: 0.35 | D82: 53.76910912 | F82: 0.2 | I82: 0.35 | J82: 1 | L82: 0.2
C83: 0.4 | D83: 47.04797048 | F83: 0.2 | I83: 0.4 | J83: 1 | L83: 0.2
C84: 0.45 | D84: 41.8204182 | F84: 0.2 | I84: 0.45 | J84: 1 | L84: 0.2
C85: 0.5 | D85: 37.63837638 | F85: 0.2 | I85: 0.5 | J85: 1 | L85: 0.2
C86: 0.55 | D86: 34.2167058 | F86: 0.2 | I86: 0.55 | J86: 1 | L86: 0.2
C87: 0.6 | D87: 31.36531365 | F87: 0.2 | I87: 0.6 | J87: 1 | L87: 0.2
C88: 0.65 | D88: 28.95259722 | F88: 0.2 | I88: 0.65 | J88: 1 | L88: 0.2
C89: 0.7 | D89: 26.88455456 | F89: 0.2 | I89: 0.7 | J89: 1 | L89: 0.2
C90: 0.75 | D90: 25.09225092 | F90: 0.2 | I90: 0.75 | J90: 1 | L90: 0.2
C91: 0.8 | D91: 23.52398524 | F91: 0.2 | I91: 0.8 | J91: 1 | L91: 0.2
C92: 0.85 | D92: 22.1402214 | F92: 0.2 | I92: 0.85 | J92: 1 | L92: 0.2
C93: 0.9 | D93: 20.9102091 | F93: 0.2 | I93: 0.9 | J93: 1 | L93: 0.2
C94: 0.95 | D94: 19.80967178 | F94: 0.2 | I94: 0.95 | J94: 1 | L94: 0.2
C95: 1 | D95: 18.81918819 | F95: 0.2 | I95: 1 | J95: 1 | L95: 0.2
C96: =D26 -> 0.2 | D96: =Results!F12 -> 94.09594096 | I96: =D26 -> 0.2 | J96: =Results!D59 -> 1
C101: Rates used
D103: Infection rate | F103: Length of infection (months)
D104: Baseline | E104: Copper
C105: E. Coli | D105: =IF(Inputs!$E$74=1,F15*Inputs!F65,IF(Inputs!$E$74=2,I15*Inputs!F65,IF(Inputs!$E$74=3,L15*Inputs!F65))) -> 0 | E105: =D105*(1-$D$26) -> 0 | F105: 1
C106: Enterobacter aerogenes | D106: =IF(Inputs!$E$74=1,F16*Inputs!F66,IF(Inputs!$E$74=2,I16*Inputs!F66,IF(Inputs!$E$74=3,L16*Inputs!F66))) -> 0 | E106: =D106*(1-$D$26) -> 0 | F106: 1
C107: MRSA | D107: =IF(Inputs!$E$74=1,F17*Inputs!F67,IF(Inputs!$E$74=2,I17*Inputs!F67,IF(Inputs!$E$74=3,L17*Inputs!F67))) -> 0 | E107: 0 | F107: 1
C108: Pseudomonas aeruginosa | D108: =IF(Inputs!$E$74=1,F18*Inputs!F68,IF(Inputs!$E$74=2,I18*Inputs!F68,IF(Inputs!$E$74=3,L18*Inputs!F68))) -> 0 | E108: 0 | F108: 1
C109: Staphilococus aureus | D109: =IF(Inputs!$E$74=1,F19*Inputs!F69,IF(Inputs!$E$74=2,I19*Inputs!F69,IF(Inputs!$E$74=3,L19*Inputs!F69))) -> 0 | E109: 0 | F109: 1
C110: Vancomycin-resistant enterococcus faecalis (VRE) | D110: =IF(Inputs!$E$74=1,F20*Inputs!F70,IF(Inputs!$E$74=2,I20*Inputs!F70,IF(Inputs!$E$74=3,L20*Inputs!F70))) -> 0 | E110: 0 | F110: 1
C111: Any hospital acquired infections | D111: =IF(Inputs!$E$74=1,F21*Inputs!F71,IF(Inputs!$E$74=2,I21*Inputs!F71,IF(Inputs!$E$74=3,L21*Inputs!F71))) -> 0.02258333333 | E111: 0.01806666667 | F111: 1
A112: .
E121: =Inputs!$D$133 -> 1
A176: .
C177: Cairns 2010
C178: HPA 2011
C179: User defined data
C180: 1
C184: 1
A185: .

Sheet Cost Inputs
C4: Model Inputs
C10: This sheet is used to calculate the cost of an infection and the copper intervention. Costs included are the unit cost for one additional day the patient will stay in hospital due to acquiring an infection and further GP and outpatient costs after leaving hospital. (The number of excess hospital days, GP visits and outpatient visits that a patient may need are entered in the Resource Use sheet.) The default costs for equipment are for those used in the Salgado study. Optional copper items can also be added but it should be noted that this only adds to the cost of the copper intervention as the model is unable to take into account any additional benefit given the clinical evidence currently available.
E14: Unit cost | U14: Total per event
C15: Cost of an additional day in hospital due to infection | E15: 1000 | T15: E. Coli | U15: =$E$15*'Resource Use'!D15+$E$16*'Resource Use'!E15+$E$17*'Resource Use'!F15 -> 5000
C16: Visit to general practitioner | E16: 0 | T16: Enterobacter aerogenes | U16: =$E$15*'Resource Use'!D16+$E$16*'Resource Use'!E16+$E$17*'Resource Use'!F16 -> 4000
C17: Outpatient | E17: 0 | T17: MRSA | U17: =$E$15*'Resource Use'!D17+$E$16*'Resource Use'!E17+$E$17*'Resource Use'!F17 -> 8000
T18: Pseudomonas aeruginosa | U18: =$E$15*'Resource Use'!D18+$E$16*'Resource Use'!E18+$E$17*'Resource Use'!F18 -> 5000
C19: Cost of equipment | T19: Staphilococus aureus | U19: =$E$15*'Resource Use'!D19+$E$16*'Resource Use'!E19+$E$17*'Resource Use'!F19 -> 2000
D20: Unit Cost | F20: Number required | G20: Total cost | T20: Vancomycin-resistant enterococcus faecalis (VRE) | U20: =$E$15*'Resource Use'!D20+$E$16*'Resource Use'!E20+$E$17*'Resource Use'!F20 -> 3000
D21: Copper | E21: Baseline | G21: Copper | H21: Baseline | T21: All hospital acquired infections | U21: =$E$15*'Resource Use'!D21+$E$16*'Resource Use'!E21+$E$17*'Resource Use'!F21 -> 6000
C22: Bed rails sets | D22: 4000 | E22: 3000 | F22: =Inputs!$D$13 -> 20 | G22: =F22*D22 -> 80000 | H22: =E22*F22 -> 60000
C23: Overbed tray table | D23: 300 | E23: 150 | F23: =Inputs!$D$13 -> 20 | G23: 6000 | H23: =E23*F23 -> 3000
C24: Chair | D24: 350 | E24: 250 | F24: =Inputs!$D$13 -> 20 | G24: 7000 | H24: 5000
C25: Call button | D25: 50 | E25: 20 | F25: =Inputs!$D$13 -> 20 | G25: 1000 | H25: 400
C26: Data device | D26: 250 | E26: 100 | F26: =Inputs!$D$13 -> 20 | G26: 5000 | H26: 2000
C27: IV pole | D27: 300 | E27: 200 | F27: =Inputs!$D$13 -> 20 | G27: 6000 | H27: 4000
C28: Optional copper items
C29: Grab rails | G29: =IF(E127=1,F29*D29,"") ->  | H29: =IF(E127=1,F29*E29,"") -> 
C30: Lever handle set
C31: Push plates set
C32: Cistern handle
C33: Tap set
C34: Other 1
C35: Other 2
C36: Other 3
C37: Other 4
C38: Other 5
C39: Other 6
C41: Green background cells
C43: Red text
C45: Comments
A126: .
C127: Grab Rails | D127: FALSE | E127: =IF(D127=TRUE,1,0) -> 0
C128: Lever handle set | D128: FALSE | E128: =IF(D128=TRUE,1,0) -> 0
C129: Push plates set | D129: FALSE | E129: 0
C130: Cistern handle | D130: FALSE | E130: 0
C131: Tap set | D131: FALSE | E131: 0
C132: Other 1 | D132: FALSE | E132: 0
C133: Other 2 | D133: FALSE | E133: 0
C134: Other 3 | D134: FALSE | E134: 0
C135: Other 4 | D135: FALSE | E135: 0
C136: Other 5 | D136: FALSE | E136: 0
C137: Other 6 | D137: FALSE | E137: 0
A138: .

Sheet Resource Use
C4: Model Inputs
C9: This sheet is used to enter the resources a patient will use as a result of acquiring an infection. These are extra days in hospital and subsequent visits to a GP and/or an outpatient visit. These resources are assumptions and should be changed to reflect local care pathways
C12: Resource use for an event
D14: Extra days in hospital | E14: General practitioner visit | F14: Follow up outpatient visit
C15: E. Coli | D15: 5 | E15: 1 | F15: 1
C16: Enterobacter aerogenes | D16: 4 | E16: 1 | F16: 1
C17: MRSA | D17: 8 | E17: 1 | F17: 1
C18: Pseudomonas aeruginosa | D18: 5 | E18: 1 | F18: 1
C19: Staphilococus aureus | D19: 2 | E19: 1 | F19: 1
C20: Vancomycin-resistant enterococcus faecalis (VRE) | D20: 3 | E20: 1 | F20: 1
C21: =Inputs!D22 -> All Healthcare Associated Infections | D21: 6 | E21: 1 | F21: 1
C28: Green background cells
C31: Red text
C34: Comments

Sheet Calculations
C4: Calculations
C11: Month | D11: Cohort | E11: E. Coli | F11: Enterobacter aerogenes | G11: Methicillin-resistant Staphylococcus aureus (MRSA) | H11: Pseudomonas aeruginosa | I11: Staphilococus aureus | J11: Vancomycin-resistant enterococcus faecalis (VRE) | K11: =Inputs!D22 -> All Healthcare Associated Infections | L11: All infections | N11: Cumulative infections | P11: The calculations pages show the number of infections each month and a cumulative figure. These pages are purely for transparency of the model and are for information only.
C12: 0 | D12: =Inputs!$D$16 -> 1200 | E12: 0 | F12: 0 | G12: 0 | H12: 0 | I12: 0 | J12: 0 | K12: 0 | L12: =SUM(E12:K12) -> 0 | N12: =L12 -> 0
C13: 1 | D13: =Inputs!$D$16 -> 1200 | E13: =IF(Inputs!$F$71=1,0,D13*Effectiveness!$E$105+E12*(1-Effectiveness!$D$61)) -> 0 | F13: =IF(Inputs!$F$71=1,0,D13*Effectiveness!$E$106+F12*(1-Effectiveness!$D$62)) -> 0 | G13: =IF(Inputs!$F$71=1,0,D13*Effectiveness!$E$107+G12*(1-Effectiveness!$D$63)) -> 0 | H13: =IF(Inputs!$F$71=1,0,D13*Effectiveness!$E$108+H12*(1-Effectiveness!$D$64)) -> 0 | I13: =IF(Inputs!$F$71=1,0,D13*Effectiveness!$E$109+I12*(1-Effectiveness!$D$65)) -> 0 | J13: =IF(Inputs!$F$71=1,0,D13*Effectiveness!$E$110+J12*(1-Effectiveness!$D$66)) -> 0 | K13: =D13*Effectiveness!$E$111+K12*(1-Effectiveness!$D$67) -> 21.68 | L13: =SUM(E13:K13) -> 21.68 | N13: =L13+N12 -> 21.68
C14: 2 | D14: =Inputs!$D$16 -> 1200 | E14: =IF(Inputs!$F$71=1,0,D14*Effectiveness!$E$105+E13*(1-Effectiveness!$D$61)) -> 0 | F14: =IF(Inputs!$F$71=1,0,D14*Effectiveness!$E$106+F13*(1-Effectiveness!$D$62)) -> 0 | G14: =IF(Inputs!$F$71=1,0,D14*Effectiveness!$E$107+G13*(1-Effectiveness!$D$63)) -> 0 | H14: =IF(Inputs!$F$71=1,0,D14*Effectiveness!$E$108+H13*(1-Effectiveness!$D$64)) -> 0 | I14: =IF(Inputs!$F$71=1,0,D14*Effectiveness!$E$109+I13*(1-Effectiveness!$D$65)) -> 0 | J14: =IF(Inputs!$F$71=1,0,D14*Effectiveness!$E$110+J13*(1-Effectiveness!$D$66)) -> 0 | K14: =D14*Effectiveness!$E$111+K13*(1-Effectiveness!$D$67) -> 21.68 | L14: 21.68 | N14: =L14+N13 -> 43.36
C15: 3 | D15: =Inputs!$D$16 -> 1200 | E15: =IF(Inputs!$F$71=1,0,D15*Effectiveness!$E$105+E14*(1-Effectiveness!$D$61)) -> 0 | F15: =IF(Inputs!$F$71=1,0,D15*Effectiveness!$E$106+F14*(1-Effectiveness!$D$62)) -> 0 | G15: =IF(Inputs!$F$71=1,0,D15*Effectiveness!$E$107+G14*(1-Effectiveness!$D$63)) -> 0 | H15: =IF(Inputs!$F$71=1,0,D15*Effectiveness!$E$108+H14*(1-Effectiveness!$D$64)) -> 0 | I15: =IF(Inputs!$F$71=1,0,D15*Effectiveness!$E$109+I14*(1-Effectiveness!$D$65)) -> 0 | J15: =IF(Inputs!$F$71=1,0,D15*Effectiveness!$E$110+J14*(1-Effectiveness!$D$66)) -> 0 | K15: =D15*Effectiveness!$E$111+K14*(1-Effectiveness!$D$67) -> 21.68 | L15: =SUM(E15:K15) -> 21.68 | N15: =L15+N14 -> 65.04
C16: 4 | D16: =Inputs!$D$16 -> 1200 | E16: =IF(Inputs!$F$71=1,0,D16*Effectiveness!$E$105+E15*(1-Effectiveness!$D$61)) -> 0 | F16: =IF(Inputs!$F$71=1,0,D16*Effectiveness!$E$106+F15*(1-Effectiveness!$D$62)) -> 0 | G16: =IF(Inputs!$F$71=1,0,D16*Effectiveness!$E$107+G15*(1-Effectiveness!$D$63)) -> 0 | H16: =IF(Inputs!$F$71=1,0,D16*Effectiveness!$E$108+H15*(1-Effectiveness!$D$64)) -> 0 | I16: =IF(Inputs!$F$71=1,0,D16*Effectiveness!$E$109+I15*(1-Effectiveness!$D$65)) -> 0 | J16: =IF(Inputs!$F$71=1,0,D16*Effectiveness!$E$110+J15*(1-Effectiveness!$D$66)) -> 0 | K16: =D16*Effectiveness!$E$111+K15*(1-Effectiveness!$D$67) -> 21.68 | L16: 21.68 | N16: 86.72
C17: 5 | D17: =Inputs!$D$16 -> 1200 | E17: =IF(Inputs!$F$71=1,0,D17*Effectiveness!$E$105+E16*(1-Effectiveness!$D$61)) -> 0 | F17: =IF(Inputs!$F$71=1,0,D17*Effectiveness!$E$106+F16*(1-Effectiveness!$D$62)) -> 0 | G17: =IF(Inputs!$F$71=1,0,D17*Effectiveness!$E$107+G16*(1-Effectiveness!$D$63)) -> 0 | H17: =IF(Inputs!$F$71=1,0,D17*Effectiveness!$E$108+H16*(1-Effectiveness!$D$64)) -> 0 | I17: =IF(Inputs!$F$71=1,0,D17*Effectiveness!$E$109+I16*(1-Effectiveness!$D$65)) -> 0 | J17: =IF(Inputs!$F$71=1,0,D17*Effectiveness!$E$110+J16*(1-Effectiveness!$D$66)) -> 0 | K17: =D17*Effectiveness!$E$111+K16*(1-Effectiveness!$D$67) -> 21.68 | L17: 21.68 | N17: 108.4
C18: 6 | D18: =Inputs!$D$16 -> 1200 | E18: =IF(Inputs!$F$71=1,0,D18*Effectiveness!$E$105+E17*(1-Effectiveness!$D$61)) -> 0 | F18: =IF(Inputs!$F$71=1,0,D18*Effectiveness!$E$106+F17*(1-Effectiveness!$D$62)) -> 0 | G18: =IF(Inputs!$F$71=1,0,D18*Effectiveness!$E$107+G17*(1-Effectiveness!$D$63)) -> 0 | H18: =IF(Inputs!$F$71=1,0,D18*Effectiveness!$E$108+H17*(1-Effectiveness!$D$64)) -> 0 | I18: =IF(Inputs!$F$71=1,0,D18*Effectiveness!$E$109+I17*(1-Effectiveness!$D$65)) -> 0 | J18: =IF(Inputs!$F$71=1,0,D18*Effectiveness!$E$110+J17*(1-Effectiveness!$D$66)) -> 0 | K18: =D18*Effectiveness!$E$111+K17*(1-Effectiveness!$D$67) -> 21.68 | L18: 21.68 | N18: 130.08
C19: 7 | D19: =Inputs!$D$16 -> 1200 | E19: =IF(Inputs!$F$71=1,0,D19*Effectiveness!$E$105+E18*(1-Effectiveness!$D$61)) -> 0 | F19: =IF(Inputs!$F$71=1,0,D19*Effectiveness!$E$106+F18*(1-Effectiveness!$D$62)) -> 0 | G19: =IF(Inputs!$F$71=1,0,D19*Effectiveness!$E$107+G18*(1-Effectiveness!$D$63)) -> 0 | H19: =IF(Inputs!$F$71=1,0,D19*Effectiveness!$E$108+H18*(1-Effectiveness!$D$64)) -> 0 | I19: =IF(Inputs!$F$71=1,0,D19*Effectiveness!$E$109+I18*(1-Effectiveness!$D$65)) -> 0 | J19: =IF(Inputs!$F$71=1,0,D19*Effectiveness!$E$110+J18*(1-Effectiveness!$D$66)) -> 0 | K19: =D19*Effectiveness!$E$111+K18*(1-Effectiveness!$D$67) -> 21.68 | L19: 21.68 | N19: 151.76
C20: 8 | D20: =Inputs!$D$16 -> 1200 | E20: =IF(Inputs!$F$71=1,0,D20*Effectiveness!$E$105+E19*(1-Effectiveness!$D$61)) -> 0 | F20: =IF(Inputs!$F$71=1,0,D20*Effectiveness!$E$106+F19*(1-Effectiveness!$D$62)) -> 0 | G20: =IF(Inputs!$F$71=1,0,D20*Effectiveness!$E$107+G19*(1-Effectiveness!$D$63)) -> 0 | H20: =IF(Inputs!$F$71=1,0,D20*Effectiveness!$E$108+H19*(1-Effectiveness!$D$64)) -> 0 | I20: =IF(Inputs!$F$71=1,0,D20*Effectiveness!$E$109+I19*(1-Effectiveness!$D$65)) -> 0 | J20: =IF(Inputs!$F$71=1,0,D20*Effectiveness!$E$110+J19*(1-Effectiveness!$D$66)) -> 0 | K20: =D20*Effectiveness!$E$111+K19*(1-Effectiveness!$D$67) -> 21.68 | L20: 21.68 | N20: 173.44
C21: 9 | D21: =Inputs!$D$16 -> 1200 | E21: =IF(Inputs!$F$71=1,0,D21*Effectiveness!$E$105+E20*(1-Effectiveness!$D$61)) -> 0 | F21: =IF(Inputs!$F$71=1,0,D21*Effectiveness!$E$106+F20*(1-Effectiveness!$D$62)) -> 0 | G21: =IF(Inputs!$F$71=1,0,D21*Effectiveness!$E$107+G20*(1-Effectiveness!$D$63)) -> 0 | H21: =IF(Inputs!$F$71=1,0,D21*Effectiveness!$E$108+H20*(1-Effectiveness!$D$64)) -> 0 | I21: =IF(Inputs!$F$71=1,0,D21*Effectiveness!$E$109+I20*(1-Effectiveness!$D$65)) -> 0 | J21: =IF(Inputs!$F$71=1,0,D21*Effectiveness!$E$110+J20*(1-Effectiveness!$D$66)) -> 0 | K21: =D21*Effectiveness!$E$111+K20*(1-Effectiveness!$D$67) -> 21.68 | L21: 21.68 | N21: 195.12
C22: 10 | D22: =Inputs!$D$16 -> 1200 | E22: =IF(Inputs!$F$71=1,0,D22*Effectiveness!$E$105+E21*(1-Effectiveness!$D$61)) -> 0 | F22: =IF(Inputs!$F$71=1,0,D22*Effectiveness!$E$106+F21*(1-Effectiveness!$D$62)) -> 0 | G22: =IF(Inputs!$F$71=1,0,D22*Effectiveness!$E$107+G21*(1-Effectiveness!$D$63)) -> 0 | H22: =IF(Inputs!$F$71=1,0,D22*Effectiveness!$E$108+H21*(1-Effectiveness!$D$64)) -> 0 | I22: =IF(Inputs!$F$71=1,0,D22*Effectiveness!$E$109+I21*(1-Effectiveness!$D$65)) -> 0 | J22: =IF(Inputs!$F$71=1,0,D22*Effectiveness!$E$110+J21*(1-Effectiveness!$D$66)) -> 0 | K22: =D22*Effectiveness!$E$111+K21*(1-Effectiveness!$D$67) -> 21.68 | L22: =SUM(E22:K22) -> 21.68 | N22: 216.8
C23: 11 | D23: =Inputs!$D$16 -> 1200 | E23: =IF(Inputs!$F$71=1,0,D23*Effectiveness!$E$105+E22*(1-Effectiveness!$D$61)) -> 0 | F23: =IF(Inputs!$F$71=1,0,D23*Effectiveness!$E$106+F22*(1-Effectiveness!$D$62)) -> 0 | G23: =IF(Inputs!$F$71=1,0,D23*Effectiveness!$E$107+G22*(1-Effectiveness!$D$63)) -> 0 | H23: =IF(Inputs!$F$71=1,0,D23*Effectiveness!$E$108+H22*(1-Effectiveness!$D$64)) -> 0 | I23: =IF(Inputs!$F$71=1,0,D23*Effectiveness!$E$109+I22*(1-Effectiveness!$D$65)) -> 0 | J23: =IF(Inputs!$F$71=1,0,D23*Effectiveness!$E$110+J22*(1-Effectiveness!$D$66)) -> 0 | K23: =D23*Effectiveness!$E$111+K22*(1-Effectiveness!$D$67) -> 21.68 | L23: 21.68 | N23: =L23+N22 -> 238.48
C24: 12 | D24: =Inputs!$D$16 -> 1200 | E24: =IF(Inputs!$F$71=1,0,D24*Effectiveness!$E$105+E23*(1-Effectiveness!$D$61)) -> 0 | F24: =IF(Inputs!$F$71=1,0,D24*Effectiveness!$E$106+F23*(1-Effectiveness!$D$62)) -> 0 | G24: =IF(Inputs!$F$71=1,0,D24*Effectiveness!$E$107+G23*(1-Effectiveness!$D$63)) -> 0 | H24: =IF(Inputs!$F$71=1,0,D24*Effectiveness!$E$108+H23*(1-Effectiveness!$D$64)) -> 0 | I24: =IF(Inputs!$F$71=1,0,D24*Effectiveness!$E$109+I23*(1-Effectiveness!$D$65)) -> 0 | J24: =IF(Inputs!$F$71=1,0,D24*Effectiveness!$E$110+J23*(1-Effectiveness!$D$66)) -> 0 | K24: =D24*Effectiveness!$E$111+K23*(1-Effectiveness!$D$67) -> 21.68 | L24: 21.68 | N24: 260.16 | O24: 1
C25: 13 | D25: =D24*(1+Inputs!$D$17) -> 1200 | E25: =IF(Inputs!$F$71=1,0,D25*Effectiveness!$E$105+E24*(1-Effectiveness!$D$61)) -> 0 | F25: =IF(Inputs!$F$71=1,0,D25*Effectiveness!$E$106+F24*(1-Effectiveness!$D$62)) -> 0 | G25: =IF(Inputs!$F$71=1,0,D25*Effectiveness!$E$107+G24*(1-Effectiveness!$D$63)) -> 0 | H25: =IF(Inputs!$F$71=1,0,D25*Effectiveness!$E$108+H24*(1-Effectiveness!$D$64)) -> 0 | I25: =IF(Inputs!$F$71=1,0,D25*Effectiveness!$E$109+I24*(1-Effectiveness!$D$65)) -> 0 | J25: =IF(Inputs!$F$71=1,0,D25*Effectiveness!$E$110+J24*(1-Effectiveness!$D$66)) -> 0 | K25: =D25*Effectiveness!$E$111+K24*(1-Effectiveness!$D$67) -> 21.68 | L25: 21.68 | N25: 281.84
C26: 14 | D26: =D25 -> 1200 | E26: =IF(Inputs!$F$71=1,0,D26*Effectiveness!$E$105+E25*(1-Effectiveness!$D$61)) -> 0 | F26: =IF(Inputs!$F$71=1,0,D26*Effectiveness!$E$106+F25*(1-Effectiveness!$D$62)) -> 0 | G26: =IF(Inputs!$F$71=1,0,D26*Effectiveness!$E$107+G25*(1-Effectiveness!$D$63)) -> 0 | H26: =IF(Inputs!$F$71=1,0,D26*Effectiveness!$E$108+H25*(1-Effectiveness!$D$64)) -> 0 | I26: =IF(Inputs!$F$71=1,0,D26*Effectiveness!$E$109+I25*(1-Effectiveness!$D$65)) -> 0 | J26: =IF(Inputs!$F$71=1,0,D26*Effectiveness!$E$110+J25*(1-Effectiveness!$D$66)) -> 0 | K26: =D26*Effectiveness!$E$111+K25*(1-Effectiveness!$D$67) -> 21.68 | L26: 21.68 | N26: 303.52
C27: 15 | D27: =D26 -> 1200 | E27: =IF(Inputs!$F$71=1,0,D27*Effectiveness!$E$105+E26*(1-Effectiveness!$D$61)) -> 0 | F27: =IF(Inputs!$F$71=1,0,D27*Effectiveness!$E$106+F26*(1-Effectiveness!$D$62)) -> 0 | G27: =IF(Inputs!$F$71=1,0,D27*Effectiveness!$E$107+G26*(1-Effectiveness!$D$63)) -> 0 | H27: =IF(Inputs!$F$71=1,0,D27*Effectiveness!$E$108+H26*(1-Effectiveness!$D$64)) -> 0 | I27: =IF(Inputs!$F$71=1,0,D27*Effectiveness!$E$109+I26*(1-Effectiveness!$D$65)) -> 0 | J27: =IF(Inputs!$F$71=1,0,D27*Effectiveness!$E$110+J26*(1-Effectiveness!$D$66)) -> 0 | K27: =D27*Effectiveness!$E$111+K26*(1-Effectiveness!$D$67) -> 21.68 | L27: 21.68 | N27: 325.2
C28: 16 | D28: 1200 | E28: =IF(Inputs!$F$71=1,0,D28*Effectiveness!$E$105+E27*(1-Effectiveness!$D$61)) -> 0 | F28: =IF(Inputs!$F$71=1,0,D28*Effectiveness!$E$106+F27*(1-Effectiveness!$D$62)) -> 0 | G28: =IF(Inputs!$F$71=1,0,D28*Effectiveness!$E$107+G27*(1-Effectiveness!$D$63)) -> 0 | H28: =IF(Inputs!$F$71=1,0,D28*Effectiveness!$E$108+H27*(1-Effectiveness!$D$64)) -> 0 | I28: =IF(Inputs!$F$71=1,0,D28*Effectiveness!$E$109+I27*(1-Effectiveness!$D$65)) -> 0 | J28: =IF(Inputs!$F$71=1,0,D28*Effectiveness!$E$110+J27*(1-Effectiveness!$D$66)) -> 0 | K28: =D28*Effectiveness!$E$111+K27*(1-Effectiveness!$D$67) -> 21.68 | L28: 21.68 | N28: 346.88
C29: 17 | D29: 1200 | E29: =IF(Inputs!$F$71=1,0,D29*Effectiveness!$E$105+E28*(1-Effectiveness!$D$61)) -> 0 | F29: =IF(Inputs!$F$71=1,0,D29*Effectiveness!$E$106+F28*(1-Effectiveness!$D$62)) -> 0 | G29: =IF(Inputs!$F$71=1,0,D29*Effectiveness!$E$107+G28*(1-Effectiveness!$D$63)) -> 0 | H29: =IF(Inputs!$F$71=1,0,D29*Effectiveness!$E$108+H28*(1-Effectiveness!$D$64)) -> 0 | I29: =IF(Inputs!$F$71=1,0,D29*Effectiveness!$E$109+I28*(1-Effectiveness!$D$65)) -> 0 | J29: =IF(Inputs!$F$71=1,0,D29*Effectiveness!$E$110+J28*(1-Effectiveness!$D$66)) -> 0 | K29: =D29*Effectiveness!$E$111+K28*(1-Effectiveness!$D$67) -> 21.68 | L29: 21.68 | N29: 368.56
C30: 18 | D30: 1200 | E30: =IF(Inputs!$F$71=1,0,D30*Effectiveness!$E$105+E29*(1-Effectiveness!$D$61)) -> 0 | F30: =IF(Inputs!$F$71=1,0,D30*Effectiveness!$E$106+F29*(1-Effectiveness!$D$62)) -> 0 | G30: =IF(Inputs!$F$71=1,0,D30*Effectiveness!$E$107+G29*(1-Effectiveness!$D$63)) -> 0 | H30: =IF(Inputs!$F$71=1,0,D30*Effectiveness!$E$108+H29*(1-Effectiveness!$D$64)) -> 0 | I30: =IF(Inputs!$F$71=1,0,D30*Effectiveness!$E$109+I29*(1-Effectiveness!$D$65)) -> 0 | J30: =IF(Inputs!$F$71=1,0,D30*Effectiveness!$E$110+J29*(1-Effectiveness!$D$66)) -> 0 | K30: =D30*Effectiveness!$E$111+K29*(1-Effectiveness!$D$67) -> 21.68 | L30: 21.68 | N30: 390.24
C31: 19 | D31: 1200 | E31: =IF(Inputs!$F$71=1,0,D31*Effectiveness!$E$105+E30*(1-Effectiveness!$D$61)) -> 0 | F31: =IF(Inputs!$F$71=1,0,D31*Effectiveness!$E$106+F30*(1-Effectiveness!$D$62)) -> 0 | G31: =IF(Inputs!$F$71=1,0,D31*Effectiveness!$E$107+G30*(1-Effectiveness!$D$63)) -> 0 | H31: =IF(Inputs!$F$71=1,0,D31*Effectiveness!$E$108+H30*(1-Effectiveness!$D$64)) -> 0 | I31: =IF(Inputs!$F$71=1,0,D31*Effectiveness!$E$109+I30*(1-Effectiveness!$D$65)) -> 0 | J31: =IF(Inputs!$F$71=1,0,D31*Effectiveness!$E$110+J30*(1-Effectiveness!$D$66)) -> 0 | K31: =D31*Effectiveness!$E$111+K30*(1-Effectiveness!$D$67) -> 21.68 | L31: 21.68 | N31: 411.92
C32: 20 | D32: 1200 | E32: =IF(Inputs!$F$71=1,0,D32*Effectiveness!$E$105+E31*(1-Effectiveness!$D$61)) -> 0 | F32: =IF(Inputs!$F$71=1,0,D32*Effectiveness!$E$106+F31*(1-Effectiveness!$D$62)) -> 0 | G32: =IF(Inputs!$F$71=1,0,D32*Effectiveness!$E$107+G31*(1-Effectiveness!$D$63)) -> 0 | H32: =IF(Inputs!$F$71=1,0,D32*Effectiveness!$E$108+H31*(1-Effectiveness!$D$64)) -> 0 | I32: =IF(Inputs!$F$71=1,0,D32*Effectiveness!$E$109+I31*(1-Effectiveness!$D$65)) -> 0 | J32: =IF(Inputs!$F$71=1,0,D32*Effectiveness!$E$110+J31*(1-Effectiveness!$D$66)) -> 0 | K32: =D32*Effectiveness!$E$111+K31*(1-Effectiveness!$D$67) -> 21.68 | L32: 21.68 | N32: 433.6
C33: 21 | D33: 1200 | E33: =IF(Inputs!$F$71=1,0,D33*Effectiveness!$E$105+E32*(1-Effectiveness!$D$61)) -> 0 | F33: =IF(Inputs!$F$71=1,0,D33*Effectiveness!$E$106+F32*(1-Effectiveness!$D$62)) -> 0 | G33: =IF(Inputs!$F$71=1,0,D33*Effectiveness!$E$107+G32*(1-Effectiveness!$D$63)) -> 0 | H33: =IF(Inputs!$F$71=1,0,D33*Effectiveness!$E$108+H32*(1-Effectiveness!$D$64)) -> 0 | I33: =IF(Inputs!$F$71=1,0,D33*Effectiveness!$E$109+I32*(1-Effectiveness!$D$65)) -> 0 | J33: =IF(Inputs!$F$71=1,0,D33*Effectiveness!$E$110+J32*(1-Effectiveness!$D$66)) -> 0 | K33: =D33*Effectiveness!$E$111+K32*(1-Effectiveness!$D$67) -> 21.68 | L33: 21.68 | N33: 455.28
C34: 22 | D34: 1200 | E34: =IF(Inputs!$F$71=1,0,D34*Effectiveness!$E$105+E33*(1-Effectiveness!$D$61)) -> 0 | F34: =IF(Inputs!$F$71=1,0,D34*Effectiveness!$E$106+F33*(1-Effectiveness!$D$62)) -> 0 | G34: =IF(Inputs!$F$71=1,0,D34*Effectiveness!$E$107+G33*(1-Effectiveness!$D$63)) -> 0 | H34: =IF(Inputs!$F$71=1,0,D34*Effectiveness!$E$108+H33*(1-Effectiveness!$D$64)) -> 0 | I34: =IF(Inputs!$F$71=1,0,D34*Effectiveness!$E$109+I33*(1-Effectiveness!$D$65)) -> 0 | J34: =IF(Inputs!$F$71=1,0,D34*Effectiveness!$E$110+J33*(1-Effectiveness!$D$66)) -> 0 | K34: =D34*Effectiveness!$E$111+K33*(1-Effectiveness!$D$67) -> 21.68 | L34: 21.68 | N34: 476.96
C35: 23 | D35: 1200 | E35: =IF(Inputs!$F$71=1,0,D35*Effectiveness!$E$105+E34*(1-Effectiveness!$D$61)) -> 0 | F35: =IF(Inputs!$F$71=1,0,D35*Effectiveness!$E$106+F34*(1-Effectiveness!$D$62)) -> 0 | G35: =IF(Inputs!$F$71=1,0,D35*Effectiveness!$E$107+G34*(1-Effectiveness!$D$63)) -> 0 | H35: =IF(Inputs!$F$71=1,0,D35*Effectiveness!$E$108+H34*(1-Effectiveness!$D$64)) -> 0 | I35: =IF(Inputs!$F$71=1,0,D35*Effectiveness!$E$109+I34*(1-Effectiveness!$D$65)) -> 0 | J35: =IF(Inputs!$F$71=1,0,D35*Effectiveness!$E$110+J34*(1-Effectiveness!$D$66)) -> 0 | K35: =D35*Effectiveness!$E$111+K34*(1-Effectiveness!$D$67) -> 21.68 | L35: 21.68 | N35: 498.64
C36: 24 | D36: 1200 | E36: =IF(Inputs!$F$71=1,0,D36*Effectiveness!$E$105+E35*(1-Effectiveness!$D$61)) -> 0 | F36: =IF(Inputs!$F$71=1,0,D36*Effectiveness!$E$106+F35*(1-Effectiveness!$D$62)) -> 0 | G36: =IF(Inputs!$F$71=1,0,D36*Effectiveness!$E$107+G35*(1-Effectiveness!$D$63)) -> 0 | H36: =IF(Inputs!$F$71=1,0,D36*Effectiveness!$E$108+H35*(1-Effectiveness!$D$64)) -> 0 | I36: =IF(Inputs!$F$71=1,0,D36*Effectiveness!$E$109+I35*(1-Effectiveness!$D$65)) -> 0 | J36: =IF(Inputs!$F$71=1,0,D36*Effectiveness!$E$110+J35*(1-Effectiveness!$D$66)) -> 0 | K36: =D36*Effectiveness!$E$111+K35*(1-Effectiveness!$D$67) -> 21.68 | L36: 21.68 | N36: 520.32 | O36: 2
C37: 25 | D37: =D36*(1+Inputs!$D$17) -> 1200 | E37: =IF(Inputs!$F$71=1,0,D37*Effectiveness!$E$105+E36*(1-Effectiveness!$D$61)) -> 0 | F37: =IF(Inputs!$F$71=1,0,D37*Effectiveness!$E$106+F36*(1-Effectiveness!$D$62)) -> 0 | G37: =IF(Inputs!$F$71=1,0,D37*Effectiveness!$E$107+G36*(1-Effectiveness!$D$63)) -> 0 | H37: =IF(Inputs!$F$71=1,0,D37*Effectiveness!$E$108+H36*(1-Effectiveness!$D$64)) -> 0 | I37: =IF(Inputs!$F$71=1,0,D37*Effectiveness!$E$109+I36*(1-Effectiveness!$D$65)) -> 0 | J37: =IF(Inputs!$F$71=1,0,D37*Effectiveness!$E$110+J36*(1-Effectiveness!$D$66)) -> 0 | K37: =D37*Effectiveness!$E$111+K36*(1-Effectiveness!$D$67) -> 21.68 | L37: 21.68 | N37: 542
C38: 26 | D38: =D37 -> 1200 | E38: =IF(Inputs!$F$71=1,0,D38*Effectiveness!$E$105+E37*(1-Effectiveness!$D$61)) -> 0 | F38: =IF(Inputs!$F$71=1,0,D38*Effectiveness!$E$106+F37*(1-Effectiveness!$D$62)) -> 0 | G38: =IF(Inputs!$F$71=1,0,D38*Effectiveness!$E$107+G37*(1-Effectiveness!$D$63)) -> 0 | H38: =IF(Inputs!$F$71=1,0,D38*Effectiveness!$E$108+H37*(1-Effectiveness!$D$64)) -> 0 | I38: =IF(Inputs!$F$71=1,0,D38*Effectiveness!$E$109+I37*(1-Effectiveness!$D$65)) -> 0 | J38: =IF(Inputs!$F$71=1,0,D38*Effectiveness!$E$110+J37*(1-Effectiveness!$D$66)) -> 0 | K38: =D38*Effectiveness!$E$111+K37*(1-Effectiveness!$D$67) -> 21.68 | L38: 21.68 | N38: 563.68
C39: 27 | D39: =D38 -> 1200 | E39: =IF(Inputs!$F$71=1,0,D39*Effectiveness!$E$105+E38*(1-Effectiveness!$D$61)) -> 0 | F39: =IF(Inputs!$F$71=1,0,D39*Effectiveness!$E$106+F38*(1-Effectiveness!$D$62)) -> 0 | G39: =IF(Inputs!$F$71=1,0,D39*Effectiveness!$E$107+G38*(1-Effectiveness!$D$63)) -> 0 | H39: =IF(Inputs!$F$71=1,0,D39*Effectiveness!$E$108+H38*(1-Effectiveness!$D$64)) -> 0 | I39: =IF(Inputs!$F$71=1,0,D39*Effectiveness!$E$109+I38*(1-Effectiveness!$D$65)) -> 0 | J39: =IF(Inputs!$F$71=1,0,D39*Effectiveness!$E$110+J38*(1-Effectiveness!$D$66)) -> 0 | K39: =D39*Effectiveness!$E$111+K38*(1-Effectiveness!$D$67) -> 21.68 | L39: 21.68 | N39: 585.36
C40: 28 | D40: 1200 | E40: =IF(Inputs!$F$71=1,0,D40*Effectiveness!$E$105+E39*(1-Effectiveness!$D$61)) -> 0 | F40: =IF(Inputs!$F$71=1,0,D40*Effectiveness!$E$106+F39*(1-Effectiveness!$D$62)) -> 0 | G40: =IF(Inputs!$F$71=1,0,D40*Effectiveness!$E$107+G39*(1-Effectiveness!$D$63)) -> 0 | H40: =IF(Inputs!$F$71=1,0,D40*Effectiveness!$E$108+H39*(1-Effectiveness!$D$64)) -> 0 | I40: =IF(Inputs!$F$71=1,0,D40*Effectiveness!$E$109+I39*(1-Effectiveness!$D$65)) -> 0 | J40: =IF(Inputs!$F$71=1,0,D40*Effectiveness!$E$110+J39*(1-Effectiveness!$D$66)) -> 0 | K40: =D40*Effectiveness!$E$111+K39*(1-Effectiveness!$D$67) -> 21.68 | L40: 21.68 | N40: 607.04
C41: 29 | D41: 1200 | E41: =IF(Inputs!$F$71=1,0,D41*Effectiveness!$E$105+E40*(1-Effectiveness!$D$61)) -> 0 | F41: =IF(Inputs!$F$71=1,0,D41*Effectiveness!$E$106+F40*(1-Effectiveness!$D$62)) -> 0 | G41: =IF(Inputs!$F$71=1,0,D41*Effectiveness!$E$107+G40*(1-Effectiveness!$D$63)) -> 0 | H41: =IF(Inputs!$F$71=1,0,D41*Effectiveness!$E$108+H40*(1-Effectiveness!$D$64)) -> 0 | I41: =IF(Inputs!$F$71=1,0,D41*Effectiveness!$E$109+I40*(1-Effectiveness!$D$65)) -> 0 | J41: =IF(Inputs!$F$71=1,0,D41*Effectiveness!$E$110+J40*(1-Effectiveness!$D$66)) -> 0 | K41: =D41*Effectiveness!$E$111+K40*(1-Effectiveness!$D$67) -> 21.68 | L41: 21.68 | N41: 628.72
C42: 30 | D42: 1200 | E42: =IF(Inputs!$F$71=1,0,D42*Effectiveness!$E$105+E41*(1-Effectiveness!$D$61)) -> 0 | F42: =IF(Inputs!$F$71=1,0,D42*Effectiveness!$E$106+F41*(1-Effectiveness!$D$62)) -> 0 | G42: =IF(Inputs!$F$71=1,0,D42*Effectiveness!$E$107+G41*(1-Effectiveness!$D$63)) -> 0 | H42: =IF(Inputs!$F$71=1,0,D42*Effectiveness!$E$108+H41*(1-Effectiveness!$D$64)) -> 0 | I42: =IF(Inputs!$F$71=1,0,D42*Effectiveness!$E$109+I41*(1-Effectiveness!$D$65)) -> 0 | J42: =IF(Inputs!$F$71=1,0,D42*Effectiveness!$E$110+J41*(1-Effectiveness!$D$66)) -> 0 | K42: =D42*Effectiveness!$E$111+K41*(1-Effectiveness!$D$67) -> 21.68 | L42: 21.68 | N42: 650.4
C43: 31 | D43: 1200 | E43: =IF(Inputs!$F$71=1,0,D43*Effectiveness!$E$105+E42*(1-Effectiveness!$D$61)) -> 0 | F43: =IF(Inputs!$F$71=1,0,D43*Effectiveness!$E$106+F42*(1-Effectiveness!$D$62)) -> 0 | G43: =IF(Inputs!$F$71=1,0,D43*Effectiveness!$E$107+G42*(1-Effectiveness!$D$63)) -> 0 | H43: =IF(Inputs!$F$71=1,0,D43*Effectiveness!$E$108+H42*(1-Effectiveness!$D$64)) -> 0 | I43: =IF(Inputs!$F$71=1,0,D43*Effectiveness!$E$109+I42*(1-Effectiveness!$D$65)) -> 0 | J43: =IF(Inputs!$F$71=1,0,D43*Effectiveness!$E$110+J42*(1-Effectiveness!$D$66)) -> 0 | K43: =D43*Effectiveness!$E$111+K42*(1-Effectiveness!$D$67) -> 21.68 | L43: 21.68 | N43: 672.08
C44: 32 | D44: 1200 | E44: =IF(Inputs!$F$71=1,0,D44*Effectiveness!$E$105+E43*(1-Effectiveness!$D$61)) -> 0 | F44: =IF(Inputs!$F$71=1,0,D44*Effectiveness!$E$106+F43*(1-Effectiveness!$D$62)) -> 0 | G44: =IF(Inputs!$F$71=1,0,D44*Effectiveness!$E$107+G43*(1-Effectiveness!$D$63)) -> 0 | H44: =IF(Inputs!$F$71=1,0,D44*Effectiveness!$E$108+H43*(1-Effectiveness!$D$64)) -> 0 | I44: =IF(Inputs!$F$71=1,0,D44*Effectiveness!$E$109+I43*(1-Effectiveness!$D$65)) -> 0 | J44: =IF(Inputs!$F$71=1,0,D44*Effectiveness!$E$110+J43*(1-Effectiveness!$D$66)) -> 0 | K44: =D44*Effectiveness!$E$111+K43*(1-Effectiveness!$D$67) -> 21.68 | L44: 21.68 | N44: 693.76
C45: 33 | D45: 1200 | E45: =IF(Inputs!$F$71=1,0,D45*Effectiveness!$E$105+E44*(1-Effectiveness!$D$61)) -> 0 | F45: =IF(Inputs!$F$71=1,0,D45*Effectiveness!$E$106+F44*(1-Effectiveness!$D$62)) -> 0 | G45: =IF(Inputs!$F$71=1,0,D45*Effectiveness!$E$107+G44*(1-Effectiveness!$D$63)) -> 0 | H45: =IF(Inputs!$F$71=1,0,D45*Effectiveness!$E$108+H44*(1-Effectiveness!$D$64)) -> 0 | I45: =IF(Inputs!$F$71=1,0,D45*Effectiveness!$E$109+I44*(1-Effectiveness!$D$65)) -> 0 | J45: =IF(Inputs!$F$71=1,0,D45*Effectiveness!$E$110+J44*(1-Effectiveness!$D$66)) -> 0 | K45: =D45*Effectiveness!$E$111+K44*(1-Effectiveness!$D$67) -> 21.68 | L45: 21.68 | N45: 715.44
C46: 34 | D46: 1200 | E46: =IF(Inputs!$F$71=1,0,D46*Effectiveness!$E$105+E45*(1-Effectiveness!$D$61)) -> 0 | F46: =IF(Inputs!$F$71=1,0,D46*Effectiveness!$E$106+F45*(1-Effectiveness!$D$62)) -> 0 | G46: =IF(Inputs!$F$71=1,0,D46*Effectiveness!$E$107+G45*(1-Effectiveness!$D$63)) -> 0 | H46: =IF(Inputs!$F$71=1,0,D46*Effectiveness!$E$108+H45*(1-Effectiveness!$D$64)) -> 0 | I46: =IF(Inputs!$F$71=1,0,D46*Effectiveness!$E$109+I45*(1-Effectiveness!$D$65)) -> 0 | J46: =IF(Inputs!$F$71=1,0,D46*Effectiveness!$E$110+J45*(1-Effectiveness!$D$66)) -> 0 | K46: =D46*Effectiveness!$E$111+K45*(1-Effectiveness!$D$67) -> 21.68 | L46: 21.68 | N46: 737.12
C47: 35 | D47: 1200 | E47: =IF(Inputs!$F$71=1,0,D47*Effectiveness!$E$105+E46*(1-Effectiveness!$D$61)) -> 0 | F47: =IF(Inputs!$F$71=1,0,D47*Effectiveness!$E$106+F46*(1-Effectiveness!$D$62)) -> 0 | G47: =IF(Inputs!$F$71=1,0,D47*Effectiveness!$E$107+G46*(1-Effectiveness!$D$63)) -> 0 | H47: =IF(Inputs!$F$71=1,0,D47*Effectiveness!$E$108+H46*(1-Effectiveness!$D$64)) -> 0 | I47: =IF(Inputs!$F$71=1,0,D47*Effectiveness!$E$109+I46*(1-Effectiveness!$D$65)) -> 0 | J47: =IF(Inputs!$F$71=1,0,D47*Effectiveness!$E$110+J46*(1-Effectiveness!$D$66)) -> 0 | K47: =D47*Effectiveness!$E$111+K46*(1-Effectiveness!$D$67) -> 21.68 | L47: 21.68 | N47: 758.8
C48: 36 | D48: 1200 | E48: =IF(Inputs!$F$71=1,0,D48*Effectiveness!$E$105+E47*(1-Effectiveness!$D$61)) -> 0 | F48: =IF(Inputs!$F$71=1,0,D48*Effectiveness!$E$106+F47*(1-Effectiveness!$D$62)) -> 0 | G48: =IF(Inputs!$F$71=1,0,D48*Effectiveness!$E$107+G47*(1-Effectiveness!$D$63)) -> 0 | H48: =IF(Inputs!$F$71=1,0,D48*Effectiveness!$E$108+H47*(1-Effectiveness!$D$64)) -> 0 | I48: =IF(Inputs!$F$71=1,0,D48*Effectiveness!$E$109+I47*(1-Effectiveness!$D$65)) -> 0 | J48: =IF(Inputs!$F$71=1,0,D48*Effectiveness!$E$110+J47*(1-Effectiveness!$D$66)) -> 0 | K48: =D48*Effectiveness!$E$111+K47*(1-Effectiveness!$D$67) -> 21.68 | L48: 21.68 | N48: 780.48 | O48: 3
C49: 37 | D49: =D48*(1+Inputs!$D$17) -> 1200 | E49: =IF(Inputs!$F$71=1,0,D49*Effectiveness!$E$105+E48*(1-Effectiveness!$D$61)) -> 0 | F49: =IF(Inputs!$F$71=1,0,D49*Effectiveness!$E$106+F48*(1-Effectiveness!$D$62)) -> 0 | G49: =IF(Inputs!$F$71=1,0,D49*Effectiveness!$E$107+G48*(1-Effectiveness!$D$63)) -> 0 | H49: =IF(Inputs!$F$71=1,0,D49*Effectiveness!$E$108+H48*(1-Effectiveness!$D$64)) -> 0 | I49: =IF(Inputs!$F$71=1,0,D49*Effectiveness!$E$109+I48*(1-Effectiveness!$D$65)) -> 0 | J49: =IF(Inputs!$F$71=1,0,D49*Effectiveness!$E$110+J48*(1-Effectiveness!$D$66)) -> 0 | K49: =D49*Effectiveness!$E$111+K48*(1-Effectiveness!$D$67) -> 21.68 | L49: 21.68 | N49: 802.16
C50: 38 | D50: =D49 -> 1200 | E50: =IF(Inputs!$F$71=1,0,D50*Effectiveness!$E$105+E49*(1-Effectiveness!$D$61)) -> 0 | F50: =IF(Inputs!$F$71=1,0,D50*Effectiveness!$E$106+F49*(1-Effectiveness!$D$62)) -> 0 | G50: =IF(Inputs!$F$71=1,0,D50*Effectiveness!$E$107+G49*(1-Effectiveness!$D$63)) -> 0 | H50: =IF(Inputs!$F$71=1,0,D50*Effectiveness!$E$108+H49*(1-Effectiveness!$D$64)) -> 0 | I50: =IF(Inputs!$F$71=1,0,D50*Effectiveness!$E$109+I49*(1-Effectiveness!$D$65)) -> 0 | J50: =IF(Inputs!$F$71=1,0,D50*Effectiveness!$E$110+J49*(1-Effectiveness!$D$66)) -> 0 | K50: =D50*Effectiveness!$E$111+K49*(1-Effectiveness!$D$67) -> 21.68 | L50: 21.68 | N50: 823.84
C51: 39 | D51: =D50 -> 1200 | E51: =IF(Inputs!$F$71=1,0,D51*Effectiveness!$E$105+E50*(1-Effectiveness!$D$61)) -> 0 | F51: =IF(Inputs!$F$71=1,0,D51*Effectiveness!$E$106+F50*(1-Effectiveness!$D$62)) -> 0 | G51: =IF(Inputs!$F$71=1,0,D51*Effectiveness!$E$107+G50*(1-Effectiveness!$D$63)) -> 0 | H51: =IF(Inputs!$F$71=1,0,D51*Effectiveness!$E$108+H50*(1-Effectiveness!$D$64)) -> 0 | I51: =IF(Inputs!$F$71=1,0,D51*Effectiveness!$E$109+I50*(1-Effectiveness!$D$65)) -> 0 | J51: =IF(Inputs!$F$71=1,0,D51*Effectiveness!$E$110+J50*(1-Effectiveness!$D$66)) -> 0 | K51: =D51*Effectiveness!$E$111+K50*(1-Effectiveness!$D$67) -> 21.68 | L51: 21.68 | N51: 845.52
C52: 40 | D52: 1200 | E52: =IF(Inputs!$F$71=1,0,D52*Effectiveness!$E$105+E51*(1-Effectiveness!$D$61)) -> 0 | F52: =IF(Inputs!$F$71=1,0,D52*Effectiveness!$E$106+F51*(1-Effectiveness!$D$62)) -> 0 | G52: =IF(Inputs!$F$71=1,0,D52*Effectiveness!$E$107+G51*(1-Effectiveness!$D$63)) -> 0 | H52: =IF(Inputs!$F$71=1,0,D52*Effectiveness!$E$108+H51*(1-Effectiveness!$D$64)) -> 0 | I52: =IF(Inputs!$F$71=1,0,D52*Effectiveness!$E$109+I51*(1-Effectiveness!$D$65)) -> 0 | J52: =IF(Inputs!$F$71=1,0,D52*Effectiveness!$E$110+J51*(1-Effectiveness!$D$66)) -> 0 | K52: =D52*Effectiveness!$E$111+K51*(1-Effectiveness!$D$67) -> 21.68 | L52: 21.68 | N52: 867.2
C53: 41 | D53: 1200 | E53: =IF(Inputs!$F$71=1,0,D53*Effectiveness!$E$105+E52*(1-Effectiveness!$D$61)) -> 0 | F53: =IF(Inputs!$F$71=1,0,D53*Effectiveness!$E$106+F52*(1-Effectiveness!$D$62)) -> 0 | G53: =IF(Inputs!$F$71=1,0,D53*Effectiveness!$E$107+G52*(1-Effectiveness!$D$63)) -> 0 | H53: =IF(Inputs!$F$71=1,0,D53*Effectiveness!$E$108+H52*(1-Effectiveness!$D$64)) -> 0 | I53: =IF(Inputs!$F$71=1,0,D53*Effectiveness!$E$109+I52*(1-Effectiveness!$D$65)) -> 0 | J53: =IF(Inputs!$F$71=1,0,D53*Effectiveness!$E$110+J52*(1-Effectiveness!$D$66)) -> 0 | K53: =D53*Effectiveness!$E$111+K52*(1-Effectiveness!$D$67) -> 21.68 | L53: 21.68 | N53: 888.88
C54: 42 | D54: 1200 | E54: =IF(Inputs!$F$71=1,0,D54*Effectiveness!$E$105+E53*(1-Effectiveness!$D$61)) -> 0 | F54: =IF(Inputs!$F$71=1,0,D54*Effectiveness!$E$106+F53*(1-Effectiveness!$D$62)) -> 0 | G54: =IF(Inputs!$F$71=1,0,D54*Effectiveness!$E$107+G53*(1-Effectiveness!$D$63)) -> 0 | H54: =IF(Inputs!$F$71=1,0,D54*Effectiveness!$E$108+H53*(1-Effectiveness!$D$64)) -> 0 | I54: =IF(Inputs!$F$71=1,0,D54*Effectiveness!$E$109+I53*(1-Effectiveness!$D$65)) -> 0 | J54: =IF(Inputs!$F$71=1,0,D54*Effectiveness!$E$110+J53*(1-Effectiveness!$D$66)) -> 0 | K54: =D54*Effectiveness!$E$111+K53*(1-Effectiveness!$D$67) -> 21.68 | L54: 21.68 | N54: 910.56
C55: 43 | D55: 1200 | E55: =IF(Inputs!$F$71=1,0,D55*Effectiveness!$E$105+E54*(1-Effectiveness!$D$61)) -> 0 | F55: =IF(Inputs!$F$71=1,0,D55*Effectiveness!$E$106+F54*(1-Effectiveness!$D$62)) -> 0 | G55: =IF(Inputs!$F$71=1,0,D55*Effectiveness!$E$107+G54*(1-Effectiveness!$D$63)) -> 0 | H55: =IF(Inputs!$F$71=1,0,D55*Effectiveness!$E$108+H54*(1-Effectiveness!$D$64)) -> 0 | I55: =IF(Inputs!$F$71=1,0,D55*Effectiveness!$E$109+I54*(1-Effectiveness!$D$65)) -> 0 | J55: =IF(Inputs!$F$71=1,0,D55*Effectiveness!$E$110+J54*(1-Effectiveness!$D$66)) -> 0 | K55: =D55*Effectiveness!$E$111+K54*(1-Effectiveness!$D$67) -> 21.68 | L55: 21.68 | N55: 932.24
C56: 44 | D56: 1200 | E56: =IF(Inputs!$F$71=1,0,D56*Effectiveness!$E$105+E55*(1-Effectiveness!$D$61)) -> 0 | F56: =IF(Inputs!$F$71=1,0,D56*Effectiveness!$E$106+F55*(1-Effectiveness!$D$62)) -> 0 | G56: =IF(Inputs!$F$71=1,0,D56*Effectiveness!$E$107+G55*(1-Effectiveness!$D$63)) -> 0 | H56: =IF(Inputs!$F$71=1,0,D56*Effectiveness!$E$108+H55*(1-Effectiveness!$D$64)) -> 0 | I56: =IF(Inputs!$F$71=1,0,D56*Effectiveness!$E$109+I55*(1-Effectiveness!$D$65)) -> 0 | J56: =IF(Inputs!$F$71=1,0,D56*Effectiveness!$E$110+J55*(1-Effectiveness!$D$66)) -> 0 | K56: =D56*Effectiveness!$E$111+K55*(1-Effectiveness!$D$67) -> 21.68 | L56: 21.68 | N56: 953.92
C57: 45 | D57: 1200 | E57: =IF(Inputs!$F$71=1,0,D57*Effectiveness!$E$105+E56*(1-Effectiveness!$D$61)) -> 0 | F57: =IF(Inputs!$F$71=1,0,D57*Effectiveness!$E$106+F56*(1-Effectiveness!$D$62)) -> 0 | G57: =IF(Inputs!$F$71=1,0,D57*Effectiveness!$E$107+G56*(1-Effectiveness!$D$63)) -> 0 | H57: =IF(Inputs!$F$71=1,0,D57*Effectiveness!$E$108+H56*(1-Effectiveness!$D$64)) -> 0 | I57: =IF(Inputs!$F$71=1,0,D57*Effectiveness!$E$109+I56*(1-Effectiveness!$D$65)) -> 0 | J57: =IF(Inputs!$F$71=1,0,D57*Effectiveness!$E$110+J56*(1-Effectiveness!$D$66)) -> 0 | K57: =D57*Effectiveness!$E$111+K56*(1-Effectiveness!$D$67) -> 21.68 | L57: 21.68 | N57: 975.6
C58: 46 | D58: 1200 | E58: =IF(Inputs!$F$71=1,0,D58*Effectiveness!$E$105+E57*(1-Effectiveness!$D$61)) -> 0 | F58: =IF(Inputs!$F$71=1,0,D58*Effectiveness!$E$106+F57*(1-Effectiveness!$D$62)) -> 0 | G58: =IF(Inputs!$F$71=1,0,D58*Effectiveness!$E$107+G57*(1-Effectiveness!$D$63)) -> 0 | H58: =IF(Inputs!$F$71=1,0,D58*Effectiveness!$E$108+H57*(1-Effectiveness!$D$64)) -> 0 | I58: =IF(Inputs!$F$71=1,0,D58*Effectiveness!$E$109+I57*(1-Effectiveness!$D$65)) -> 0 | J58: =IF(Inputs!$F$71=1,0,D58*Effectiveness!$E$110+J57*(1-Effectiveness!$D$66)) -> 0 | K58: =D58*Effectiveness!$E$111+K57*(1-Effectiveness!$D$67) -> 21.68 | L58: 21.68 | N58: 997.28
C59: 47 | D59: 1200 | E59: =IF(Inputs!$F$71=1,0,D59*Effectiveness!$E$105+E58*(1-Effectiveness!$D$61)) -> 0 | F59: =IF(Inputs!$F$71=1,0,D59*Effectiveness!$E$106+F58*(1-Effectiveness!$D$62)) -> 0 | G59: =IF(Inputs!$F$71=1,0,D59*Effectiveness!$E$107+G58*(1-Effectiveness!$D$63)) -> 0 | H59: =IF(Inputs!$F$71=1,0,D59*Effectiveness!$E$108+H58*(1-Effectiveness!$D$64)) -> 0 | I59: =IF(Inputs!$F$71=1,0,D59*Effectiveness!$E$109+I58*(1-Effectiveness!$D$65)) -> 0 | J59: =IF(Inputs!$F$71=1,0,D59*Effectiveness!$E$110+J58*(1-Effectiveness!$D$66)) -> 0 | K59: =D59*Effectiveness!$E$111+K58*(1-Effectiveness!$D$67) -> 21.68 | L59: 21.68 | N59: 1018.96
C60: 48 | D60: 1200 | E60: =IF(Inputs!$F$71=1,0,D60*Effectiveness!$E$105+E59*(1-Effectiveness!$D$61)) -> 0 | F60: =IF(Inputs!$F$71=1,0,D60*Effectiveness!$E$106+F59*(1-Effectiveness!$D$62)) -> 0 | G60: =IF(Inputs!$F$71=1,0,D60*Effectiveness!$E$107+G59*(1-Effectiveness!$D$63)) -> 0 | H60: =IF(Inputs!$F$71=1,0,D60*Effectiveness!$E$108+H59*(1-Effectiveness!$D$64)) -> 0 | I60: =IF(Inputs!$F$71=1,0,D60*Effectiveness!$E$109+I59*(1-Effectiveness!$D$65)) -> 0 | J60: =IF(Inputs!$F$71=1,0,D60*Effectiveness!$E$110+J59*(1-Effectiveness!$D$66)) -> 0 | K60: =D60*Effectiveness!$E$111+K59*(1-Effectiveness!$D$67) -> 21.68 | L60: 21.68 | N60: 1040.64 | O60: 4
C61: 49 | D61: =D60*(1+Inputs!$D$17) -> 1200 | E61: =IF(Inputs!$F$71=1,0,D61*Effectiveness!$E$105+E60*(1-Effectiveness!$D$61)) -> 0 | F61: =IF(Inputs!$F$71=1,0,D61*Effectiveness!$E$106+F60*(1-Effectiveness!$D$62)) -> 0 | G61: =IF(Inputs!$F$71=1,0,D61*Effectiveness!$E$107+G60*(1-Effectiveness!$D$63)) -> 0 | H61: =IF(Inputs!$F$71=1,0,D61*Effectiveness!$E$108+H60*(1-Effectiveness!$D$64)) -> 0 | I61: =IF(Inputs!$F$71=1,0,D61*Effectiveness!$E$109+I60*(1-Effectiveness!$D$65)) -> 0 | J61: =IF(Inputs!$F$71=1,0,D61*Effectiveness!$E$110+J60*(1-Effectiveness!$D$66)) -> 0 | K61: =D61*Effectiveness!$E$111+K60*(1-Effectiveness!$D$67) -> 21.68 | L61: 21.68 | N61: 1062.32
C62: 50 | D62: =D61 -> 1200 | E62: =IF(Inputs!$F$71=1,0,D62*Effectiveness!$E$105+E61*(1-Effectiveness!$D$61)) -> 0 | F62: =IF(Inputs!$F$71=1,0,D62*Effectiveness!$E$106+F61*(1-Effectiveness!$D$62)) -> 0 | G62: =IF(Inputs!$F$71=1,0,D62*Effectiveness!$E$107+G61*(1-Effectiveness!$D$63)) -> 0 | H62: =IF(Inputs!$F$71=1,0,D62*Effectiveness!$E$108+H61*(1-Effectiveness!$D$64)) -> 0 | I62: =IF(Inputs!$F$71=1,0,D62*Effectiveness!$E$109+I61*(1-Effectiveness!$D$65)) -> 0 | J62: =IF(Inputs!$F$71=1,0,D62*Effectiveness!$E$110+J61*(1-Effectiveness!$D$66)) -> 0 | K62: =D62*Effectiveness!$E$111+K61*(1-Effectiveness!$D$67) -> 21.68 | L62: 21.68 | N62: 1084
C63: 51 | D63: =D62 -> 1200 | E63: =IF(Inputs!$F$71=1,0,D63*Effectiveness!$E$105+E62*(1-Effectiveness!$D$61)) -> 0 | F63: =IF(Inputs!$F$71=1,0,D63*Effectiveness!$E$106+F62*(1-Effectiveness!$D$62)) -> 0 | G63: =IF(Inputs!$F$71=1,0,D63*Effectiveness!$E$107+G62*(1-Effectiveness!$D$63)) -> 0 | H63: =IF(Inputs!$F$71=1,0,D63*Effectiveness!$E$108+H62*(1-Effectiveness!$D$64)) -> 0 | I63: =IF(Inputs!$F$71=1,0,D63*Effectiveness!$E$109+I62*(1-Effectiveness!$D$65)) -> 0 | J63: =IF(Inputs!$F$71=1,0,D63*Effectiveness!$E$110+J62*(1-Effectiveness!$D$66)) -> 0 | K63: =D63*Effectiveness!$E$111+K62*(1-Effectiveness!$D$67) -> 21.68 | L63: 21.68 | N63: 1105.68
C64: 52 | D64: 1200 | E64: =IF(Inputs!$F$71=1,0,D64*Effectiveness!$E$105+E63*(1-Effectiveness!$D$61)) -> 0 | F64: =IF(Inputs!$F$71=1,0,D64*Effectiveness!$E$106+F63*(1-Effectiveness!$D$62)) -> 0 | G64: =IF(Inputs!$F$71=1,0,D64*Effectiveness!$E$107+G63*(1-Effectiveness!$D$63)) -> 0 | H64: =IF(Inputs!$F$71=1,0,D64*Effectiveness!$E$108+H63*(1-Effectiveness!$D$64)) -> 0 | I64: =IF(Inputs!$F$71=1,0,D64*Effectiveness!$E$109+I63*(1-Effectiveness!$D$65)) -> 0 | J64: =IF(Inputs!$F$71=1,0,D64*Effectiveness!$E$110+J63*(1-Effectiveness!$D$66)) -> 0 | K64: =D64*Effectiveness!$E$111+K63*(1-Effectiveness!$D$67) -> 21.68 | L64: 21.68 | N64: 1127.36
C65: 53 | D65: 1200 | E65: =IF(Inputs!$F$71=1,0,D65*Effectiveness!$E$105+E64*(1-Effectiveness!$D$61)) -> 0 | F65: =IF(Inputs!$F$71=1,0,D65*Effectiveness!$E$106+F64*(1-Effectiveness!$D$62)) -> 0 | G65: =IF(Inputs!$F$71=1,0,D65*Effectiveness!$E$107+G64*(1-Effectiveness!$D$63)) -> 0 | H65: =IF(Inputs!$F$71=1,0,D65*Effectiveness!$E$108+H64*(1-Effectiveness!$D$64)) -> 0 | I65: =IF(Inputs!$F$71=1,0,D65*Effectiveness!$E$109+I64*(1-Effectiveness!$D$65)) -> 0 | J65: =IF(Inputs!$F$71=1,0,D65*Effectiveness!$E$110+J64*(1-Effectiveness!$D$66)) -> 0 | K65: =D65*Effectiveness!$E$111+K64*(1-Effectiveness!$D$67) -> 21.68 | L65: 21.68 | N65: 1149.04
C66: 54 | D66: 1200 | E66: =IF(Inputs!$F$71=1,0,D66*Effectiveness!$E$105+E65*(1-Effectiveness!$D$61)) -> 0 | F66: =IF(Inputs!$F$71=1,0,D66*Effectiveness!$E$106+F65*(1-Effectiveness!$D$62)) -> 0 | G66: =IF(Inputs!$F$71=1,0,D66*Effectiveness!$E$107+G65*(1-Effectiveness!$D$63)) -> 0 | H66: =IF(Inputs!$F$71=1,0,D66*Effectiveness!$E$108+H65*(1-Effectiveness!$D$64)) -> 0 | I66: =IF(Inputs!$F$71=1,0,D66*Effectiveness!$E$109+I65*(1-Effectiveness!$D$65)) -> 0 | J66: =IF(Inputs!$F$71=1,0,D66*Effectiveness!$E$110+J65*(1-Effectiveness!$D$66)) -> 0 | K66: =D66*Effectiveness!$E$111+K65*(1-Effectiveness!$D$67) -> 21.68 | L66: 21.68 | N66: 1170.72
C67: 55 | D67: 1200 | E67: =IF(Inputs!$F$71=1,0,D67*Effectiveness!$E$105+E66*(1-Effectiveness!$D$61)) -> 0 | F67: =IF(Inputs!$F$71=1,0,D67*Effectiveness!$E$106+F66*(1-Effectiveness!$D$62)) -> 0 | G67: =IF(Inputs!$F$71=1,0,D67*Effectiveness!$E$107+G66*(1-Effectiveness!$D$63)) -> 0 | H67: =IF(Inputs!$F$71=1,0,D67*Effectiveness!$E$108+H66*(1-Effectiveness!$D$64)) -> 0 | I67: =IF(Inputs!$F$71=1,0,D67*Effectiveness!$E$109+I66*(1-Effectiveness!$D$65)) -> 0 | J67: =IF(Inputs!$F$71=1,0,D67*Effectiveness!$E$110+J66*(1-Effectiveness!$D$66)) -> 0 | K67: =D67*Effectiveness!$E$111+K66*(1-Effectiveness!$D$67) -> 21.68 | L67: 21.68 | N67: 1192.4
C68: 56 | D68: 1200 | E68: =IF(Inputs!$F$71=1,0,D68*Effectiveness!$E$105+E67*(1-Effectiveness!$D$61)) -> 0 | F68: =IF(Inputs!$F$71=1,0,D68*Effectiveness!$E$106+F67*(1-Effectiveness!$D$62)) -> 0 | G68: =IF(Inputs!$F$71=1,0,D68*Effectiveness!$E$107+G67*(1-Effectiveness!$D$63)) -> 0 | H68: =IF(Inputs!$F$71=1,0,D68*Effectiveness!$E$108+H67*(1-Effectiveness!$D$64)) -> 0 | I68: =IF(Inputs!$F$71=1,0,D68*Effectiveness!$E$109+I67*(1-Effectiveness!$D$65)) -> 0 | J68: =IF(Inputs!$F$71=1,0,D68*Effectiveness!$E$110+J67*(1-Effectiveness!$D$66)) -> 0 | K68: =D68*Effectiveness!$E$111+K67*(1-Effectiveness!$D$67) -> 21.68 | L68: 21.68 | N68: 1214.08
C69: 57 | D69: 1200 | E69: =IF(Inputs!$F$71=1,0,D69*Effectiveness!$E$105+E68*(1-Effectiveness!$D$61)) -> 0 | F69: =IF(Inputs!$F$71=1,0,D69*Effectiveness!$E$106+F68*(1-Effectiveness!$D$62)) -> 0 | G69: =IF(Inputs!$F$71=1,0,D69*Effectiveness!$E$107+G68*(1-Effectiveness!$D$63)) -> 0 | H69: =IF(Inputs!$F$71=1,0,D69*Effectiveness!$E$108+H68*(1-Effectiveness!$D$64)) -> 0 | I69: =IF(Inputs!$F$71=1,0,D69*Effectiveness!$E$109+I68*(1-Effectiveness!$D$65)) -> 0 | J69: =IF(Inputs!$F$71=1,0,D69*Effectiveness!$E$110+J68*(1-Effectiveness!$D$66)) -> 0 | K69: =D69*Effectiveness!$E$111+K68*(1-Effectiveness!$D$67) -> 21.68 | L69: 21.68 | N69: 1235.76
C70: 58 | D70: 1200 | E70: =IF(Inputs!$F$71=1,0,D70*Effectiveness!$E$105+E69*(1-Effectiveness!$D$61)) -> 0 | F70: =IF(Inputs!$F$71=1,0,D70*Effectiveness!$E$106+F69*(1-Effectiveness!$D$62)) -> 0 | G70: =IF(Inputs!$F$71=1,0,D70*Effectiveness!$E$107+G69*(1-Effectiveness!$D$63)) -> 0 | H70: =IF(Inputs!$F$71=1,0,D70*Effectiveness!$E$108+H69*(1-Effectiveness!$D$64)) -> 0 | I70: =IF(Inputs!$F$71=1,0,D70*Effectiveness!$E$109+I69*(1-Effectiveness!$D$65)) -> 0 | J70: =IF(Inputs!$F$71=1,0,D70*Effectiveness!$E$110+J69*(1-Effectiveness!$D$66)) -> 0 | K70: =D70*Effectiveness!$E$111+K69*(1-Effectiveness!$D$67) -> 21.68 | L70: 21.68 | N70: 1257.44
C71: 59 | D71: 1200 | E71: =IF(Inputs!$F$71=1,0,D71*Effectiveness!$E$105+E70*(1-Effectiveness!$D$61)) -> 0 | F71: =IF(Inputs!$F$71=1,0,D71*Effectiveness!$E$106+F70*(1-Effectiveness!$D$62)) -> 0 | G71: =IF(Inputs!$F$71=1,0,D71*Effectiveness!$E$107+G70*(1-Effectiveness!$D$63)) -> 0 | H71: =IF(Inputs!$F$71=1,0,D71*Effectiveness!$E$108+H70*(1-Effectiveness!$D$64)) -> 0 | I71: =IF(Inputs!$F$71=1,0,D71*Effectiveness!$E$109+I70*(1-Effectiveness!$D$65)) -> 0 | J71: =IF(Inputs!$F$71=1,0,D71*Effectiveness!$E$110+J70*(1-Effectiveness!$D$66)) -> 0 | K71: =D71*Effectiveness!$E$111+K70*(1-Effectiveness!$D$67) -> 21.68 | L71: 21.68 | N71: 1279.12
C72: 60 | D72: 1200 | E72: =IF(Inputs!$F$71=1,0,D72*Effectiveness!$E$105+E71*(1-Effectiveness!$D$61)) -> 0 | F72: =IF(Inputs!$F$71=1,0,D72*Effectiveness!$E$106+F71*(1-Effectiveness!$D$62)) -> 0 | G72: =IF(Inputs!$F$71=1,0,D72*Effectiveness!$E$107+G71*(1-Effectiveness!$D$63)) -> 0 | H72: =IF(Inputs!$F$71=1,0,D72*Effectiveness!$E$108+H71*(1-Effectiveness!$D$64)) -> 0 | I72: =IF(Inputs!$F$71=1,0,D72*Effectiveness!$E$109+I71*(1-Effectiveness!$D$65)) -> 0 | J72: =IF(Inputs!$F$71=1,0,D72*Effectiveness!$E$110+J71*(1-Effectiveness!$D$66)) -> 0 | K72: =D72*Effectiveness!$E$111+K71*(1-Effectiveness!$D$67) -> 21.68 | L72: 21.68 | N72: 1300.8 | O72: 5
C73: 61 | D73: =D72*(1+Inputs!$D$17) -> 1200 | E73: =IF(Inputs!$F$71=1,0,D73*Effectiveness!$E$105+E72*(1-Effectiveness!$D$61)) -> 0 | F73: =IF(Inputs!$F$71=1,0,D73*Effectiveness!$E$106+F72*(1-Effectiveness!$D$62)) -> 0 | G73: =IF(Inputs!$F$71=1,0,D73*Effectiveness!$E$107+G72*(1-Effectiveness!$D$63)) -> 0 | H73: =IF(Inputs!$F$71=1,0,D73*Effectiveness!$E$108+H72*(1-Effectiveness!$D$64)) -> 0 | I73: =IF(Inputs!$F$71=1,0,D73*Effectiveness!$E$109+I72*(1-Effectiveness!$D$65)) -> 0 | J73: =IF(Inputs!$F$71=1,0,D73*Effectiveness!$E$110+J72*(1-Effectiveness!$D$66)) -> 0 | K73: =D73*Effectiveness!$E$111+K72*(1-Effectiveness!$D$67) -> 21.68 | L73: 21.68 | N73: 1322.48
C74: 62 | D74: =D73 -> 1200 | E74: =IF(Inputs!$F$71=1,0,D74*Effectiveness!$E$105+E73*(1-Effectiveness!$D$61)) -> 0 | F74: =IF(Inputs!$F$71=1,0,D74*Effectiveness!$E$106+F73*(1-Effectiveness!$D$62)) -> 0 | G74: =IF(Inputs!$F$71=1,0,D74*Effectiveness!$E$107+G73*(1-Effectiveness!$D$63)) -> 0 | H74: =IF(Inputs!$F$71=1,0,D74*Effectiveness!$E$108+H73*(1-Effectiveness!$D$64)) -> 0 | I74: =IF(Inputs!$F$71=1,0,D74*Effectiveness!$E$109+I73*(1-Effectiveness!$D$65)) -> 0 | J74: =IF(Inputs!$F$71=1,0,D74*Effectiveness!$E$110+J73*(1-Effectiveness!$D$66)) -> 0 | K74: =D74*Effectiveness!$E$111+K73*(1-Effectiveness!$D$67) -> 21.68 | L74: 21.68 | N74: 1344.16
C75: 63 | D75: =D74 -> 1200 | E75: =IF(Inputs!$F$71=1,0,D75*Effectiveness!$E$105+E74*(1-Effectiveness!$D$61)) -> 0 | F75: =IF(Inputs!$F$71=1,0,D75*Effectiveness!$E$106+F74*(1-Effectiveness!$D$62)) -> 0 | G75: =IF(Inputs!$F$71=1,0,D75*Effectiveness!$E$107+G74*(1-Effectiveness!$D$63)) -> 0 | H75: =IF(Inputs!$F$71=1,0,D75*Effectiveness!$E$108+H74*(1-Effectiveness!$D$64)) -> 0 | I75: =IF(Inputs!$F$71=1,0,D75*Effectiveness!$E$109+I74*(1-Effectiveness!$D$65)) -> 0 | J75: =IF(Inputs!$F$71=1,0,D75*Effectiveness!$E$110+J74*(1-Effectiveness!$D$66)) -> 0 | K75: =D75*Effectiveness!$E$111+K74*(1-Effectiveness!$D$67) -> 21.68 | L75: 21.68 | N75: 1365.84
C76: 64 | D76: 1200 | E76: =IF(Inputs!$F$71=1,0,D76*Effectiveness!$E$105+E75*(1-Effectiveness!$D$61)) -> 0 | F76: =IF(Inputs!$F$71=1,0,D76*Effectiveness!$E$106+F75*(1-Effectiveness!$D$62)) -> 0 | G76: =IF(Inputs!$F$71=1,0,D76*Effectiveness!$E$107+G75*(1-Effectiveness!$D$63)) -> 0 | H76: =IF(Inputs!$F$71=1,0,D76*Effectiveness!$E$108+H75*(1-Effectiveness!$D$64)) -> 0 | I76: =IF(Inputs!$F$71=1,0,D76*Effectiveness!$E$109+I75*(1-Effectiveness!$D$65)) -> 0 | J76: =IF(Inputs!$F$71=1,0,D76*Effectiveness!$E$110+J75*(1-Effectiveness!$D$66)) -> 0 | K76: =D76*Effectiveness!$E$111+K75*(1-Effectiveness!$D$67) -> 21.68 | L76: 21.68 | N76: 1387.52
C77: 65 | D77: 1200 | E77: =IF(Inputs!$F$71=1,0,D77*Effectiveness!$E$105+E76*(1-Effectiveness!$D$61)) -> 0 | F77: =IF(Inputs!$F$71=1,0,D77*Effectiveness!$E$106+F76*(1-Effectiveness!$D$62)) -> 0 | G77: =IF(Inputs!$F$71=1,0,D77*Effectiveness!$E$107+G76*(1-Effectiveness!$D$63)) -> 0 | H77: =IF(Inputs!$F$71=1,0,D77*Effectiveness!$E$108+H76*(1-Effectiveness!$D$64)) -> 0 | I77: =IF(Inputs!$F$71=1,0,D77*Effectiveness!$E$109+I76*(1-Effectiveness!$D$65)) -> 0 | J77: =IF(Inputs!$F$71=1,0,D77*Effectiveness!$E$110+J76*(1-Effectiveness!$D$66)) -> 0 | K77: =D77*Effectiveness!$E$111+K76*(1-Effectiveness!$D$67) -> 21.68 | L77: =SUM(E77:K77) -> 21.68 | N77: 1409.2
C78: 66 | D78: 1200 | E78: =IF(Inputs!$F$71=1,0,D78*Effectiveness!$E$105+E77*(1-Effectiveness!$D$61)) -> 0 | F78: =IF(Inputs!$F$71=1,0,D78*Effectiveness!$E$106+F77*(1-Effectiveness!$D$62)) -> 0 | G78: =IF(Inputs!$F$71=1,0,D78*Effectiveness!$E$107+G77*(1-Effectiveness!$D$63)) -> 0 | H78: =IF(Inputs!$F$71=1,0,D78*Effectiveness!$E$108+H77*(1-Effectiveness!$D$64)) -> 0 | I78: =IF(Inputs!$F$71=1,0,D78*Effectiveness!$E$109+I77*(1-Effectiveness!$D$65)) -> 0 | J78: =IF(Inputs!$F$71=1,0,D78*Effectiveness!$E$110+J77*(1-Effectiveness!$D$66)) -> 0 | K78: =D78*Effectiveness!$E$111+K77*(1-Effectiveness!$D$67) -> 21.68 | L78: 21.68 | N78: =L78+N77 -> 1430.88
C79: 67 | D79: 1200 | E79: =IF(Inputs!$F$71=1,0,D79*Effectiveness!$E$105+E78*(1-Effectiveness!$D$61)) -> 0 | F79: =IF(Inputs!$F$71=1,0,D79*Effectiveness!$E$106+F78*(1-Effectiveness!$D$62)) -> 0 | G79: =IF(Inputs!$F$71=1,0,D79*Effectiveness!$E$107+G78*(1-Effectiveness!$D$63)) -> 0 | H79: =IF(Inputs!$F$71=1,0,D79*Effectiveness!$E$108+H78*(1-Effectiveness!$D$64)) -> 0 | I79: =IF(Inputs!$F$71=1,0,D79*Effectiveness!$E$109+I78*(1-Effectiveness!$D$65)) -> 0 | J79: =IF(Inputs!$F$71=1,0,D79*Effectiveness!$E$110+J78*(1-Effectiveness!$D$66)) -> 0 | K79: =D79*Effectiveness!$E$111+K78*(1-Effectiveness!$D$67) -> 21.68 | L79: 21.68 | N79: 1452.56
C80: 68 | D80: 1200 | E80: =IF(Inputs!$F$71=1,0,D80*Effectiveness!$E$105+E79*(1-Effectiveness!$D$61)) -> 0 | F80: =IF(Inputs!$F$71=1,0,D80*Effectiveness!$E$106+F79*(1-Effectiveness!$D$62)) -> 0 | G80: =IF(Inputs!$F$71=1,0,D80*Effectiveness!$E$107+G79*(1-Effectiveness!$D$63)) -> 0 | H80: =IF(Inputs!$F$71=1,0,D80*Effectiveness!$E$108+H79*(1-Effectiveness!$D$64)) -> 0 | I80: =IF(Inputs!$F$71=1,0,D80*Effectiveness!$E$109+I79*(1-Effectiveness!$D$65)) -> 0 | J80: =IF(Inputs!$F$71=1,0,D80*Effectiveness!$E$110+J79*(1-Effectiveness!$D$66)) -> 0 | K80: =D80*Effectiveness!$E$111+K79*(1-Effectiveness!$D$67) -> 21.68 | L80: 21.68 | N80: 1474.24
C81: 69 | D81: 1200 | E81: =IF(Inputs!$F$71=1,0,D81*Effectiveness!$E$105+E80*(1-Effectiveness!$D$61)) -> 0 | F81: =IF(Inputs!$F$71=1,0,D81*Effectiveness!$E$106+F80*(1-Effectiveness!$D$62)) -> 0 | G81: =IF(Inputs!$F$71=1,0,D81*Effectiveness!$E$107+G80*(1-Effectiveness!$D$63)) -> 0 | H81: =IF(Inputs!$F$71=1,0,D81*Effectiveness!$E$108+H80*(1-Effectiveness!$D$64)) -> 0 | I81: =IF(Inputs!$F$71=1,0,D81*Effectiveness!$E$109+I80*(1-Effectiveness!$D$65)) -> 0 | J81: =IF(Inputs!$F$71=1,0,D81*Effectiveness!$E$110+J80*(1-Effectiveness!$D$66)) -> 0 | K81: =D81*Effectiveness!$E$111+K80*(1-Effectiveness!$D$67) -> 21.68 | L81: 21.68 | N81: 1495.92
C82: 70 | D82: 1200 | E82: =IF(Inputs!$F$71=1,0,D82*Effectiveness!$E$105+E81*(1-Effectiveness!$D$61)) -> 0 | F82: =IF(Inputs!$F$71=1,0,D82*Effectiveness!$E$106+F81*(1-Effectiveness!$D$62)) -> 0 | G82: =IF(Inputs!$F$71=1,0,D82*Effectiveness!$E$107+G81*(1-Effectiveness!$D$63)) -> 0 | H82: =IF(Inputs!$F$71=1,0,D82*Effectiveness!$E$108+H81*(1-Effectiveness!$D$64)) -> 0 | I82: =IF(Inputs!$F$71=1,0,D82*Effectiveness!$E$109+I81*(1-Effectiveness!$D$65)) -> 0 | J82: =IF(Inputs!$F$71=1,0,D82*Effectiveness!$E$110+J81*(1-Effectiveness!$D$66)) -> 0 | K82: =D82*Effectiveness!$E$111+K81*(1-Effectiveness!$D$67) -> 21.68 | L82: 21.68 | N82: 1517.6
C83: 71 | D83: 1200 | E83: =IF(Inputs!$F$71=1,0,D83*Effectiveness!$E$105+E82*(1-Effectiveness!$D$61)) -> 0 | F83: =IF(Inputs!$F$71=1,0,D83*Effectiveness!$E$106+F82*(1-Effectiveness!$D$62)) -> 0 | G83: =IF(Inputs!$F$71=1,0,D83*Effectiveness!$E$107+G82*(1-Effectiveness!$D$63)) -> 0 | H83: =IF(Inputs!$F$71=1,0,D83*Effectiveness!$E$108+H82*(1-Effectiveness!$D$64)) -> 0 | I83: =IF(Inputs!$F$71=1,0,D83*Effectiveness!$E$109+I82*(1-Effectiveness!$D$65)) -> 0 | J83: =IF(Inputs!$F$71=1,0,D83*Effectiveness!$E$110+J82*(1-Effectiveness!$D$66)) -> 0 | K83: =D83*Effectiveness!$E$111+K82*(1-Effectiveness!$D$67) -> 21.68 | L83: 21.68 | N83: 1539.28
C84: 72 | D84: 1200 | E84: =IF(Inputs!$F$71=1,0,D84*Effectiveness!$E$105+E83*(1-Effectiveness!$D$61)) -> 0 | F84: =IF(Inputs!$F$71=1,0,D84*Effectiveness!$E$106+F83*(1-Effectiveness!$D$62)) -> 0 | G84: =IF(Inputs!$F$71=1,0,D84*Effectiveness!$E$107+G83*(1-Effectiveness!$D$63)) -> 0 | H84: =IF(Inputs!$F$71=1,0,D84*Effectiveness!$E$108+H83*(1-Effectiveness!$D$64)) -> 0 | I84: =IF(Inputs!$F$71=1,0,D84*Effectiveness!$E$109+I83*(1-Effectiveness!$D$65)) -> 0 | J84: =IF(Inputs!$F$71=1,0,D84*Effectiveness!$E$110+J83*(1-Effectiveness!$D$66)) -> 0 | K84: =D84*Effectiveness!$E$111+K83*(1-Effectiveness!$D$67) -> 21.68 | L84: 21.68 | N84: 1560.96 | O84: 6
C85: 73 | D85: =D84*(1+Inputs!$D$17) -> 1200 | E85: =IF(Inputs!$F$71=1,0,D85*Effectiveness!$E$105+E84*(1-Effectiveness!$D$61)) -> 0 | F85: =IF(Inputs!$F$71=1,0,D85*Effectiveness!$E$106+F84*(1-Effectiveness!$D$62)) -> 0 | G85: =IF(Inputs!$F$71=1,0,D85*Effectiveness!$E$107+G84*(1-Effectiveness!$D$63)) -> 0 | H85: =IF(Inputs!$F$71=1,0,D85*Effectiveness!$E$108+H84*(1-Effectiveness!$D$64)) -> 0 | I85: =IF(Inputs!$F$71=1,0,D85*Effectiveness!$E$109+I84*(1-Effectiveness!$D$65)) -> 0 | J85: =IF(Inputs!$F$71=1,0,D85*Effectiveness!$E$110+J84*(1-Effectiveness!$D$66)) -> 0 | K85: =D85*Effectiveness!$E$111+K84*(1-Effectiveness!$D$67) -> 21.68 | L85: 21.68 | N85: 1582.64
C86: 74 | D86: =D85 -> 1200 | E86: =IF(Inputs!$F$71=1,0,D86*Effectiveness!$E$105+E85*(1-Effectiveness!$D$61)) -> 0 | F86: =IF(Inputs!$F$71=1,0,D86*Effectiveness!$E$106+F85*(1-Effectiveness!$D$62)) -> 0 | G86: =IF(Inputs!$F$71=1,0,D86*Effectiveness!$E$107+G85*(1-Effectiveness!$D$63)) -> 0 | H86: =IF(Inputs!$F$71=1,0,D86*Effectiveness!$E$108+H85*(1-Effectiveness!$D$64)) -> 0 | I86: =IF(Inputs!$F$71=1,0,D86*Effectiveness!$E$109+I85*(1-Effectiveness!$D$65)) -> 0 | J86: =IF(Inputs!$F$71=1,0,D86*Effectiveness!$E$110+J85*(1-Effectiveness!$D$66)) -> 0 | K86: =D86*Effectiveness!$E$111+K85*(1-Effectiveness!$D$67) -> 21.68 | L86: 21.68 | N86: 1604.32
C87: 75 | D87: =D86 -> 1200 | E87: =IF(Inputs!$F$71=1,0,D87*Effectiveness!$E$105+E86*(1-Effectiveness!$D$61)) -> 0 | F87: =IF(Inputs!$F$71=1,0,D87*Effectiveness!$E$106+F86*(1-Effectiveness!$D$62)) -> 0 | G87: =IF(Inputs!$F$71=1,0,D87*Effectiveness!$E$107+G86*(1-Effectiveness!$D$63)) -> 0 | H87: =IF(Inputs!$F$71=1,0,D87*Effectiveness!$E$108+H86*(1-Effectiveness!$D$64)) -> 0 | I87: =IF(Inputs!$F$71=1,0,D87*Effectiveness!$E$109+I86*(1-Effectiveness!$D$65)) -> 0 | J87: =IF(Inputs!$F$71=1,0,D87*Effectiveness!$E$110+J86*(1-Effectiveness!$D$66)) -> 0 | K87: =D87*Effectiveness!$E$111+K86*(1-Effectiveness!$D$67) -> 21.68 | L87: 21.68 | N87: 1626
C88: 76 | D88: 1200 | E88: =IF(Inputs!$F$71=1,0,D88*Effectiveness!$E$105+E87*(1-Effectiveness!$D$61)) -> 0 | F88: =IF(Inputs!$F$71=1,0,D88*Effectiveness!$E$106+F87*(1-Effectiveness!$D$62)) -> 0 | G88: =IF(Inputs!$F$71=1,0,D88*Effectiveness!$E$107+G87*(1-Effectiveness!$D$63)) -> 0 | H88: =IF(Inputs!$F$71=1,0,D88*Effectiveness!$E$108+H87*(1-Effectiveness!$D$64)) -> 0 | I88: =IF(Inputs!$F$71=1,0,D88*Effectiveness!$E$109+I87*(1-Effectiveness!$D$65)) -> 0 | J88: =IF(Inputs!$F$71=1,0,D88*Effectiveness!$E$110+J87*(1-Effectiveness!$D$66)) -> 0 | K88: =D88*Effectiveness!$E$111+K87*(1-Effectiveness!$D$67) -> 21.68 | L88: 21.68 | N88: 1647.68
C89: 77 | D89: 1200 | E89: =IF(Inputs!$F$71=1,0,D89*Effectiveness!$E$105+E88*(1-Effectiveness!$D$61)) -> 0 | F89: =IF(Inputs!$F$71=1,0,D89*Effectiveness!$E$106+F88*(1-Effectiveness!$D$62)) -> 0 | G89: =IF(Inputs!$F$71=1,0,D89*Effectiveness!$E$107+G88*(1-Effectiveness!$D$63)) -> 0 | H89: =IF(Inputs!$F$71=1,0,D89*Effectiveness!$E$108+H88*(1-Effectiveness!$D$64)) -> 0 | I89: =IF(Inputs!$F$71=1,0,D89*Effectiveness!$E$109+I88*(1-Effectiveness!$D$65)) -> 0 | J89: =IF(Inputs!$F$71=1,0,D89*Effectiveness!$E$110+J88*(1-Effectiveness!$D$66)) -> 0 | K89: =D89*Effectiveness!$E$111+K88*(1-Effectiveness!$D$67) -> 21.68 | L89: 21.68 | N89: 1669.36
C90: 78 | D90: 1200 | E90: =IF(Inputs!$F$71=1,0,D90*Effectiveness!$E$105+E89*(1-Effectiveness!$D$61)) -> 0 | F90: =IF(Inputs!$F$71=1,0,D90*Effectiveness!$E$106+F89*(1-Effectiveness!$D$62)) -> 0 | G90: =IF(Inputs!$F$71=1,0,D90*Effectiveness!$E$107+G89*(1-Effectiveness!$D$63)) -> 0 | H90: =IF(Inputs!$F$71=1,0,D90*Effectiveness!$E$108+H89*(1-Effectiveness!$D$64)) -> 0 | I90: =IF(Inputs!$F$71=1,0,D90*Effectiveness!$E$109+I89*(1-Effectiveness!$D$65)) -> 0 | J90: =IF(Inputs!$F$71=1,0,D90*Effectiveness!$E$110+J89*(1-Effectiveness!$D$66)) -> 0 | K90: =D90*Effectiveness!$E$111+K89*(1-Effectiveness!$D$67) -> 21.68 | L90: 21.68 | N90: 1691.04
C91: 79 | D91: 1200 | E91: =IF(Inputs!$F$71=1,0,D91*Effectiveness!$E$105+E90*(1-Effectiveness!$D$61)) -> 0 | F91: =IF(Inputs!$F$71=1,0,D91*Effectiveness!$E$106+F90*(1-Effectiveness!$D$62)) -> 0 | G91: =IF(Inputs!$F$71=1,0,D91*Effectiveness!$E$107+G90*(1-Effectiveness!$D$63)) -> 0 | H91: =IF(Inputs!$F$71=1,0,D91*Effectiveness!$E$108+H90*(1-Effectiveness!$D$64)) -> 0 | I91: =IF(Inputs!$F$71=1,0,D91*Effectiveness!$E$109+I90*(1-Effectiveness!$D$65)) -> 0 | J91: =IF(Inputs!$F$71=1,0,D91*Effectiveness!$E$110+J90*(1-Effectiveness!$D$66)) -> 0 | K91: =D91*Effectiveness!$E$111+K90*(1-Effectiveness!$D$67) -> 21.68 | L91: 21.68 | N91: 1712.72
C92: 80 | D92: 1200 | E92: =IF(Inputs!$F$71=1,0,D92*Effectiveness!$E$105+E91*(1-Effectiveness!$D$61)) -> 0 | F92: =IF(Inputs!$F$71=1,0,D92*Effectiveness!$E$106+F91*(1-Effectiveness!$D$62)) -> 0 | G92: =IF(Inputs!$F$71=1,0,D92*Effectiveness!$E$107+G91*(1-Effectiveness!$D$63)) -> 0 | H92: =IF(Inputs!$F$71=1,0,D92*Effectiveness!$E$108+H91*(1-Effectiveness!$D$64)) -> 0 | I92: =IF(Inputs!$F$71=1,0,D92*Effectiveness!$E$109+I91*(1-Effectiveness!$D$65)) -> 0 | J92: =IF(Inputs!$F$71=1,0,D92*Effectiveness!$E$110+J91*(1-Effectiveness!$D$66)) -> 0 | K92: =D92*Effectiveness!$E$111+K91*(1-Effectiveness!$D$67) -> 21.68 | L92: 21.68 | N92: 1734.4
C93: 81 | D93: 1200 | E93: =IF(Inputs!$F$71=1,0,D93*Effectiveness!$E$105+E92*(1-Effectiveness!$D$61)) -> 0 | F93: =IF(Inputs!$F$71=1,0,D93*Effectiveness!$E$106+F92*(1-Effectiveness!$D$62)) -> 0 | G93: =IF(Inputs!$F$71=1,0,D93*Effectiveness!$E$107+G92*(1-Effectiveness!$D$63)) -> 0 | H93: =IF(Inputs!$F$71=1,0,D93*Effectiveness!$E$108+H92*(1-Effectiveness!$D$64)) -> 0 | I93: =IF(Inputs!$F$71=1,0,D93*Effectiveness!$E$109+I92*(1-Effectiveness!$D$65)) -> 0 | J93: =IF(Inputs!$F$71=1,0,D93*Effectiveness!$E$110+J92*(1-Effectiveness!$D$66)) -> 0 | K93: =D93*Effectiveness!$E$111+K92*(1-Effectiveness!$D$67) -> 21.68 | L93: 21.68 | N93: 1756.08
C94: 82 | D94: 1200 | E94: =IF(Inputs!$F$71=1,0,D94*Effectiveness!$E$105+E93*(1-Effectiveness!$D$61)) -> 0 | F94: =IF(Inputs!$F$71=1,0,D94*Effectiveness!$E$106+F93*(1-Effectiveness!$D$62)) -> 0 | G94: =IF(Inputs!$F$71=1,0,D94*Effectiveness!$E$107+G93*(1-Effectiveness!$D$63)) -> 0 | H94: =IF(Inputs!$F$71=1,0,D94*Effectiveness!$E$108+H93*(1-Effectiveness!$D$64)) -> 0 | I94: =IF(Inputs!$F$71=1,0,D94*Effectiveness!$E$109+I93*(1-Effectiveness!$D$65)) -> 0 | J94: =IF(Inputs!$F$71=1,0,D94*Effectiveness!$E$110+J93*(1-Effectiveness!$D$66)) -> 0 | K94: =D94*Effectiveness!$E$111+K93*(1-Effectiveness!$D$67) -> 21.68 | L94: 21.68 | N94: 1777.76
C95: 83 | D95: 1200 | E95: =IF(Inputs!$F$71=1,0,D95*Effectiveness!$E$105+E94*(1-Effectiveness!$D$61)) -> 0 | F95: =IF(Inputs!$F$71=1,0,D95*Effectiveness!$E$106+F94*(1-Effectiveness!$D$62)) -> 0 | G95: =IF(Inputs!$F$71=1,0,D95*Effectiveness!$E$107+G94*(1-Effectiveness!$D$63)) -> 0 | H95: =IF(Inputs!$F$71=1,0,D95*Effectiveness!$E$108+H94*(1-Effectiveness!$D$64)) -> 0 | I95: =IF(Inputs!$F$71=1,0,D95*Effectiveness!$E$109+I94*(1-Effectiveness!$D$65)) -> 0 | J95: =IF(Inputs!$F$71=1,0,D95*Effectiveness!$E$110+J94*(1-Effectiveness!$D$66)) -> 0 | K95: =D95*Effectiveness!$E$111+K94*(1-Effectiveness!$D$67) -> 21.68 | L95: 21.68 | N95: 1799.44
C96: 84 | D96: 1200 | E96: =IF(Inputs!$F$71=1,0,D96*Effectiveness!$E$105+E95*(1-Effectiveness!$D$61)) -> 0 | F96: =IF(Inputs!$F$71=1,0,D96*Effectiveness!$E$106+F95*(1-Effectiveness!$D$62)) -> 0 | G96: =IF(Inputs!$F$71=1,0,D96*Effectiveness!$E$107+G95*(1-Effectiveness!$D$63)) -> 0 | H96: =IF(Inputs!$F$71=1,0,D96*Effectiveness!$E$108+H95*(1-Effectiveness!$D$64)) -> 0 | I96: =IF(Inputs!$F$71=1,0,D96*Effectiveness!$E$109+I95*(1-Effectiveness!$D$65)) -> 0 | J96: =IF(Inputs!$F$71=1,0,D96*Effectiveness!$E$110+J95*(1-Effectiveness!$D$66)) -> 0 | K96: =D96*Effectiveness!$E$111+K95*(1-Effectiveness!$D$67) -> 21.68 | L96: 21.68 | N96: 1821.12 | O96: 7
C97: 85 | D97: =D96*(1+Inputs!$D$17) -> 1200 | E97: =IF(Inputs!$F$71=1,0,D97*Effectiveness!$E$105+E96*(1-Effectiveness!$D$61)) -> 0 | F97: =IF(Inputs!$F$71=1,0,D97*Effectiveness!$E$106+F96*(1-Effectiveness!$D$62)) -> 0 | G97: =IF(Inputs!$F$71=1,0,D97*Effectiveness!$E$107+G96*(1-Effectiveness!$D$63)) -> 0 | H97: =IF(Inputs!$F$71=1,0,D97*Effectiveness!$E$108+H96*(1-Effectiveness!$D$64)) -> 0 | I97: =IF(Inputs!$F$71=1,0,D97*Effectiveness!$E$109+I96*(1-Effectiveness!$D$65)) -> 0 | J97: =IF(Inputs!$F$71=1,0,D97*Effectiveness!$E$110+J96*(1-Effectiveness!$D$66)) -> 0 | K97: =D97*Effectiveness!$E$111+K96*(1-Effectiveness!$D$67) -> 21.68 | L97: 21.68 | N97: 1842.8
C98: 86 | D98: =D97 -> 1200 | E98: =IF(Inputs!$F$71=1,0,D98*Effectiveness!$E$105+E97*(1-Effectiveness!$D$61)) -> 0 | F98: =IF(Inputs!$F$71=1,0,D98*Effectiveness!$E$106+F97*(1-Effectiveness!$D$62)) -> 0 | G98: =IF(Inputs!$F$71=1,0,D98*Effectiveness!$E$107+G97*(1-Effectiveness!$D$63)) -> 0 | H98: =IF(Inputs!$F$71=1,0,D98*Effectiveness!$E$108+H97*(1-Effectiveness!$D$64)) -> 0 | I98: =IF(Inputs!$F$71=1,0,D98*Effectiveness!$E$109+I97*(1-Effectiveness!$D$65)) -> 0 | J98: =IF(Inputs!$F$71=1,0,D98*Effectiveness!$E$110+J97*(1-Effectiveness!$D$66)) -> 0 | K98: =D98*Effectiveness!$E$111+K97*(1-Effectiveness!$D$67) -> 21.68 | L98: 21.68 | N98: 1864.48
C99: 87 | D99: =D98 -> 1200 | E99: =IF(Inputs!$F$71=1,0,D99*Effectiveness!$E$105+E98*(1-Effectiveness!$D$61)) -> 0 | F99: =IF(Inputs!$F$71=1,0,D99*Effectiveness!$E$106+F98*(1-Effectiveness!$D$62)) -> 0 | G99: =IF(Inputs!$F$71=1,0,D99*Effectiveness!$E$107+G98*(1-Effectiveness!$D$63)) -> 0 | H99: =IF(Inputs!$F$71=1,0,D99*Effectiveness!$E$108+H98*(1-Effectiveness!$D$64)) -> 0 | I99: =IF(Inputs!$F$71=1,0,D99*Effectiveness!$E$109+I98*(1-Effectiveness!$D$65)) -> 0 | J99: =IF(Inputs!$F$71=1,0,D99*Effectiveness!$E$110+J98*(1-Effectiveness!$D$66)) -> 0 | K99: =D99*Effectiveness!$E$111+K98*(1-Effectiveness!$D$67) -> 21.68 | L99: 21.68 | N99: 1886.16
C100: 88 | D100: 1200 | E100: =IF(Inputs!$F$71=1,0,D100*Effectiveness!$E$105+E99*(1-Effectiveness!$D$61)) -> 0 | F100: =IF(Inputs!$F$71=1,0,D100*Effectiveness!$E$106+F99*(1-Effectiveness!$D$62)) -> 0 | G100: =IF(Inputs!$F$71=1,0,D100*Effectiveness!$E$107+G99*(1-Effectiveness!$D$63)) -> 0 | H100: =IF(Inputs!$F$71=1,0,D100*Effectiveness!$E$108+H99*(1-Effectiveness!$D$64)) -> 0 | I100: =IF(Inputs!$F$71=1,0,D100*Effectiveness!$E$109+I99*(1-Effectiveness!$D$65)) -> 0 | J100: =IF(Inputs!$F$71=1,0,D100*Effectiveness!$E$110+J99*(1-Effectiveness!$D$66)) -> 0 | K100: =D100*Effectiveness!$E$111+K99*(1-Effectiveness!$D$67) -> 21.68 | L100: 21.68 | N100: 1907.84
C101: 89 | D101: 1200 | E101: =IF(Inputs!$F$71=1,0,D101*Effectiveness!$E$105+E100*(1-Effectiveness!$D$61)) -> 0 | F101: =IF(Inputs!$F$71=1,0,D101*Effectiveness!$E$106+F100*(1-Effectiveness!$D$62)) -> 0 | G101: =IF(Inputs!$F$71=1,0,D101*Effectiveness!$E$107+G100*(1-Effectiveness!$D$63)) -> 0 | H101: =IF(Inputs!$F$71=1,0,D101*Effectiveness!$E$108+H100*(1-Effectiveness!$D$64)) -> 0 | I101: =IF(Inputs!$F$71=1,0,D101*Effectiveness!$E$109+I100*(1-Effectiveness!$D$65)) -> 0 | J101: =IF(Inputs!$F$71=1,0,D101*Effectiveness!$E$110+J100*(1-Effectiveness!$D$66)) -> 0 | K101: =D101*Effectiveness!$E$111+K100*(1-Effectiveness!$D$67) -> 21.68 | L101: 21.68 | N101: 1929.52
C102: 90 | D102: 1200 | E102: =IF(Inputs!$F$71=1,0,D102*Effectiveness!$E$105+E101*(1-Effectiveness!$D$61)) -> 0 | F102: =IF(Inputs!$F$71=1,0,D102*Effectiveness!$E$106+F101*(1-Effectiveness!$D$62)) -> 0 | G102: =IF(Inputs!$F$71=1,0,D102*Effectiveness!$E$107+G101*(1-Effectiveness!$D$63)) -> 0 | H102: =IF(Inputs!$F$71=1,0,D102*Effectiveness!$E$108+H101*(1-Effectiveness!$D$64)) -> 0 | I102: =IF(Inputs!$F$71=1,0,D102*Effectiveness!$E$109+I101*(1-Effectiveness!$D$65)) -> 0 | J102: =IF(Inputs!$F$71=1,0,D102*Effectiveness!$E$110+J101*(1-Effectiveness!$D$66)) -> 0 | K102: =D102*Effectiveness!$E$111+K101*(1-Effectiveness!$D$67) -> 21.68 | L102: 21.68 | N102: 1951.2
C103: 91 | D103: 1200 | E103: =IF(Inputs!$F$71=1,0,D103*Effectiveness!$E$105+E102*(1-Effectiveness!$D$61)) -> 0 | F103: =IF(Inputs!$F$71=1,0,D103*Effectiveness!$E$106+F102*(1-Effectiveness!$D$62)) -> 0 | G103: =IF(Inputs!$F$71=1,0,D103*Effectiveness!$E$107+G102*(1-Effectiveness!$D$63)) -> 0 | H103: =IF(Inputs!$F$71=1,0,D103*Effectiveness!$E$108+H102*(1-Effectiveness!$D$64)) -> 0 | I103: =IF(Inputs!$F$71=1,0,D103*Effectiveness!$E$109+I102*(1-Effectiveness!$D$65)) -> 0 | J103: =IF(Inputs!$F$71=1,0,D103*Effectiveness!$E$110+J102*(1-Effectiveness!$D$66)) -> 0 | K103: =D103*Effectiveness!$E$111+K102*(1-Effectiveness!$D$67) -> 21.68 | L103: 21.68 | N103: 1972.88
C104: 92 | D104: 1200 | E104: =IF(Inputs!$F$71=1,0,D104*Effectiveness!$E$105+E103*(1-Effectiveness!$D$61)) -> 0 | F104: =IF(Inputs!$F$71=1,0,D104*Effectiveness!$E$106+F103*(1-Effectiveness!$D$62)) -> 0 | G104: =IF(Inputs!$F$71=1,0,D104*Effectiveness!$E$107+G103*(1-Effectiveness!$D$63)) -> 0 | H104: =IF(Inputs!$F$71=1,0,D104*Effectiveness!$E$108+H103*(1-Effectiveness!$D$64)) -> 0 | I104: =IF(Inputs!$F$71=1,0,D104*Effectiveness!$E$109+I103*(1-Effectiveness!$D$65)) -> 0 | J104: =IF(Inputs!$F$71=1,0,D104*Effectiveness!$E$110+J103*(1-Effectiveness!$D$66)) -> 0 | K104: =D104*Effectiveness!$E$111+K103*(1-Effectiveness!$D$67) -> 21.68 | L104: 21.68 | N104: 1994.56
C105: 93 | D105: 1200 | E105: =IF(Inputs!$F$71=1,0,D105*Effectiveness!$E$105+E104*(1-Effectiveness!$D$61)) -> 0 | F105: =IF(Inputs!$F$71=1,0,D105*Effectiveness!$E$106+F104*(1-Effectiveness!$D$62)) -> 0 | G105: =IF(Inputs!$F$71=1,0,D105*Effectiveness!$E$107+G104*(1-Effectiveness!$D$63)) -> 0 | H105: =IF(Inputs!$F$71=1,0,D105*Effectiveness!$E$108+H104*(1-Effectiveness!$D$64)) -> 0 | I105: =IF(Inputs!$F$71=1,0,D105*Effectiveness!$E$109+I104*(1-Effectiveness!$D$65)) -> 0 | J105: =IF(Inputs!$F$71=1,0,D105*Effectiveness!$E$110+J104*(1-Effectiveness!$D$66)) -> 0 | K105: =D105*Effectiveness!$E$111+K104*(1-Effectiveness!$D$67) -> 21.68 | L105: 21.68 | N105: 2016.24
C106: 94 | D106: 1200 | E106: =IF(Inputs!$F$71=1,0,D106*Effectiveness!$E$105+E105*(1-Effectiveness!$D$61)) -> 0 | F106: =IF(Inputs!$F$71=1,0,D106*Effectiveness!$E$106+F105*(1-Effectiveness!$D$62)) -> 0 | G106: =IF(Inputs!$F$71=1,0,D106*Effectiveness!$E$107+G105*(1-Effectiveness!$D$63)) -> 0 | H106: =IF(Inputs!$F$71=1,0,D106*Effectiveness!$E$108+H105*(1-Effectiveness!$D$64)) -> 0 | I106: =IF(Inputs!$F$71=1,0,D106*Effectiveness!$E$109+I105*(1-Effectiveness!$D$65)) -> 0 | J106: =IF(Inputs!$F$71=1,0,D106*Effectiveness!$E$110+J105*(1-Effectiveness!$D$66)) -> 0 | K106: =D106*Effectiveness!$E$111+K105*(1-Effectiveness!$D$67) -> 21.68 | L106: 21.68 | N106: 2037.92
C107: 95 | D107: 1200 | E107: =IF(Inputs!$F$71=1,0,D107*Effectiveness!$E$105+E106*(1-Effectiveness!$D$61)) -> 0 | F107: =IF(Inputs!$F$71=1,0,D107*Effectiveness!$E$106+F106*(1-Effectiveness!$D$62)) -> 0 | G107: =IF(Inputs!$F$71=1,0,D107*Effectiveness!$E$107+G106*(1-Effectiveness!$D$63)) -> 0 | H107: =IF(Inputs!$F$71=1,0,D107*Effectiveness!$E$108+H106*(1-Effectiveness!$D$64)) -> 0 | I107: =IF(Inputs!$F$71=1,0,D107*Effectiveness!$E$109+I106*(1-Effectiveness!$D$65)) -> 0 | J107: =IF(Inputs!$F$71=1,0,D107*Effectiveness!$E$110+J106*(1-Effectiveness!$D$66)) -> 0 | K107: =D107*Effectiveness!$E$111+K106*(1-Effectiveness!$D$67) -> 21.68 | L107: 21.68 | N107: 2059.6
C108: 96 | D108: 1200 | E108: =IF(Inputs!$F$71=1,0,D108*Effectiveness!$E$105+E107*(1-Effectiveness!$D$61)) -> 0 | F108: =IF(Inputs!$F$71=1,0,D108*Effectiveness!$E$106+F107*(1-Effectiveness!$D$62)) -> 0 | G108: =IF(Inputs!$F$71=1,0,D108*Effectiveness!$E$107+G107*(1-Effectiveness!$D$63)) -> 0 | H108: =IF(Inputs!$F$71=1,0,D108*Effectiveness!$E$108+H107*(1-Effectiveness!$D$64)) -> 0 | I108: =IF(Inputs!$F$71=1,0,D108*Effectiveness!$E$109+I107*(1-Effectiveness!$D$65)) -> 0 | J108: =IF(Inputs!$F$71=1,0,D108*Effectiveness!$E$110+J107*(1-Effectiveness!$D$66)) -> 0 | K108: =D108*Effectiveness!$E$111+K107*(1-Effectiveness!$D$67) -> 21.68 | L108: 21.68 | N108: 2081.28 | O108: 8
C109: 97 | D109: =D108*(1+Inputs!$D$17) -> 1200 | E109: =IF(Inputs!$F$71=1,0,D109*Effectiveness!$E$105+E108*(1-Effectiveness!$D$61)) -> 0 | F109: =IF(Inputs!$F$71=1,0,D109*Effectiveness!$E$106+F108*(1-Effectiveness!$D$62)) -> 0 | G109: =IF(Inputs!$F$71=1,0,D109*Effectiveness!$E$107+G108*(1-Effectiveness!$D$63)) -> 0 | H109: =IF(Inputs!$F$71=1,0,D109*Effectiveness!$E$108+H108*(1-Effectiveness!$D$64)) -> 0 | I109: =IF(Inputs!$F$71=1,0,D109*Effectiveness!$E$109+I108*(1-Effectiveness!$D$65)) -> 0 | J109: =IF(Inputs!$F$71=1,0,D109*Effectiveness!$E$110+J108*(1-Effectiveness!$D$66)) -> 0 | K109: =D109*Effectiveness!$E$111+K108*(1-Effectiveness!$D$67) -> 21.68 | L109: 21.68 | N109: 2102.96
C110: 98 | D110: =D109 -> 1200 | E110: =IF(Inputs!$F$71=1,0,D110*Effectiveness!$E$105+E109*(1-Effectiveness!$D$61)) -> 0 | F110: =IF(Inputs!$F$71=1,0,D110*Effectiveness!$E$106+F109*(1-Effectiveness!$D$62)) -> 0 | G110: =IF(Inputs!$F$71=1,0,D110*Effectiveness!$E$107+G109*(1-Effectiveness!$D$63)) -> 0 | H110: =IF(Inputs!$F$71=1,0,D110*Effectiveness!$E$108+H109*(1-Effectiveness!$D$64)) -> 0 | I110: =IF(Inputs!$F$71=1,0,D110*Effectiveness!$E$109+I109*(1-Effectiveness!$D$65)) -> 0 | J110: =IF(Inputs!$F$71=1,0,D110*Effectiveness!$E$110+J109*(1-Effectiveness!$D$66)) -> 0 | K110: =D110*Effectiveness!$E$111+K109*(1-Effectiveness!$D$67) -> 21.68 | L110: 21.68 | N110: 2124.64
C111: 99 | D111: =D110 -> 1200 | E111: =IF(Inputs!$F$71=1,0,D111*Effectiveness!$E$105+E110*(1-Effectiveness!$D$61)) -> 0 | F111: =IF(Inputs!$F$71=1,0,D111*Effectiveness!$E$106+F110*(1-Effectiveness!$D$62)) -> 0 | G111: =IF(Inputs!$F$71=1,0,D111*Effectiveness!$E$107+G110*(1-Effectiveness!$D$63)) -> 0 | H111: =IF(Inputs!$F$71=1,0,D111*Effectiveness!$E$108+H110*(1-Effectiveness!$D$64)) -> 0 | I111: =IF(Inputs!$F$71=1,0,D111*Effectiveness!$E$109+I110*(1-Effectiveness!$D$65)) -> 0 | J111: =IF(Inputs!$F$71=1,0,D111*Effectiveness!$E$110+J110*(1-Effectiveness!$D$66)) -> 0 | K111: =D111*Effectiveness!$E$111+K110*(1-Effectiveness!$D$67) -> 21.68 | L111: 21.68 | N111: 2146.32
C112: 100 | D112: 1200 | E112: =IF(Inputs!$F$71=1,0,D112*Effectiveness!$E$105+E111*(1-Effectiveness!$D$61)) -> 0 | F112: =IF(Inputs!$F$71=1,0,D112*Effectiveness!$E$106+F111*(1-Effectiveness!$D$62)) -> 0 | G112: =IF(Inputs!$F$71=1,0,D112*Effectiveness!$E$107+G111*(1-Effectiveness!$D$63)) -> 0 | H112: =IF(Inputs!$F$71=1,0,D112*Effectiveness!$E$108+H111*(1-Effectiveness!$D$64)) -> 0 | I112: =IF(Inputs!$F$71=1,0,D112*Effectiveness!$E$109+I111*(1-Effectiveness!$D$65)) -> 0 | J112: =IF(Inputs!$F$71=1,0,D112*Effectiveness!$E$110+J111*(1-Effectiveness!$D$66)) -> 0 | K112: =D112*Effectiveness!$E$111+K111*(1-Effectiveness!$D$67) -> 21.68 | L112: 21.68 | N112: 2168
C113: 101 | D113: 1200 | E113: =IF(Inputs!$F$71=1,0,D113*Effectiveness!$E$105+E112*(1-Effectiveness!$D$61)) -> 0 | F113: =IF(Inputs!$F$71=1,0,D113*Effectiveness!$E$106+F112*(1-Effectiveness!$D$62)) -> 0 | G113: =IF(Inputs!$F$71=1,0,D113*Effectiveness!$E$107+G112*(1-Effectiveness!$D$63)) -> 0 | H113: =IF(Inputs!$F$71=1,0,D113*Effectiveness!$E$108+H112*(1-Effectiveness!$D$64)) -> 0 | I113: =IF(Inputs!$F$71=1,0,D113*Effectiveness!$E$109+I112*(1-Effectiveness!$D$65)) -> 0 | J113: =IF(Inputs!$F$71=1,0,D113*Effectiveness!$E$110+J112*(1-Effectiveness!$D$66)) -> 0 | K113: =D113*Effectiveness!$E$111+K112*(1-Effectiveness!$D$67) -> 21.68 | L113: 21.68 | N113: 2189.68
C114: 102 | D114: 1200 | E114: =IF(Inputs!$F$71=1,0,D114*Effectiveness!$E$105+E113*(1-Effectiveness!$D$61)) -> 0 | F114: =IF(Inputs!$F$71=1,0,D114*Effectiveness!$E$106+F113*(1-Effectiveness!$D$62)) -> 0 | G114: =IF(Inputs!$F$71=1,0,D114*Effectiveness!$E$107+G113*(1-Effectiveness!$D$63)) -> 0 | H114: =IF(Inputs!$F$71=1,0,D114*Effectiveness!$E$108+H113*(1-Effectiveness!$D$64)) -> 0 | I114: =IF(Inputs!$F$71=1,0,D114*Effectiveness!$E$109+I113*(1-Effectiveness!$D$65)) -> 0 | J114: =IF(Inputs!$F$71=1,0,D114*Effectiveness!$E$110+J113*(1-Effectiveness!$D$66)) -> 0 | K114: =D114*Effectiveness!$E$111+K113*(1-Effectiveness!$D$67) -> 21.68 | L114: 21.68 | N114: 2211.36
C115: 103 | D115: 1200 | E115: =IF(Inputs!$F$71=1,0,D115*Effectiveness!$E$105+E114*(1-Effectiveness!$D$61)) -> 0 | F115: =IF(Inputs!$F$71=1,0,D115*Effectiveness!$E$106+F114*(1-Effectiveness!$D$62)) -> 0 | G115: =IF(Inputs!$F$71=1,0,D115*Effectiveness!$E$107+G114*(1-Effectiveness!$D$63)) -> 0 | H115: =IF(Inputs!$F$71=1,0,D115*Effectiveness!$E$108+H114*(1-Effectiveness!$D$64)) -> 0 | I115: =IF(Inputs!$F$71=1,0,D115*Effectiveness!$E$109+I114*(1-Effectiveness!$D$65)) -> 0 | J115: =IF(Inputs!$F$71=1,0,D115*Effectiveness!$E$110+J114*(1-Effectiveness!$D$66)) -> 0 | K115: =D115*Effectiveness!$E$111+K114*(1-Effectiveness!$D$67) -> 21.68 | L115: 21.68 | N115: 2233.04
C116: 104 | D116: 1200 | E116: =IF(Inputs!$F$71=1,0,D116*Effectiveness!$E$105+E115*(1-Effectiveness!$D$61)) -> 0 | F116: =IF(Inputs!$F$71=1,0,D116*Effectiveness!$E$106+F115*(1-Effectiveness!$D$62)) -> 0 | G116: =IF(Inputs!$F$71=1,0,D116*Effectiveness!$E$107+G115*(1-Effectiveness!$D$63)) -> 0 | H116: =IF(Inputs!$F$71=1,0,D116*Effectiveness!$E$108+H115*(1-Effectiveness!$D$64)) -> 0 | I116: =IF(Inputs!$F$71=1,0,D116*Effectiveness!$E$109+I115*(1-Effectiveness!$D$65)) -> 0 | J116: =IF(Inputs!$F$71=1,0,D116*Effectiveness!$E$110+J115*(1-Effectiveness!$D$66)) -> 0 | K116: =D116*Effectiveness!$E$111+K115*(1-Effectiveness!$D$67) -> 21.68 | L116: 21.68 | N116: 2254.72
C117: 105 | D117: 1200 | E117: =IF(Inputs!$F$71=1,0,D117*Effectiveness!$E$105+E116*(1-Effectiveness!$D$61)) -> 0 | F117: =IF(Inputs!$F$71=1,0,D117*Effectiveness!$E$106+F116*(1-Effectiveness!$D$62)) -> 0 | G117: =IF(Inputs!$F$71=1,0,D117*Effectiveness!$E$107+G116*(1-Effectiveness!$D$63)) -> 0 | H117: =IF(Inputs!$F$71=1,0,D117*Effectiveness!$E$108+H116*(1-Effectiveness!$D$64)) -> 0 | I117: =IF(Inputs!$F$71=1,0,D117*Effectiveness!$E$109+I116*(1-Effectiveness!$D$65)) -> 0 | J117: =IF(Inputs!$F$71=1,0,D117*Effectiveness!$E$110+J116*(1-Effectiveness!$D$66)) -> 0 | K117: =D117*Effectiveness!$E$111+K116*(1-Effectiveness!$D$67) -> 21.68 | L117: 21.68 | N117: 2276.4
C118: 106 | D118: 1200 | E118: =IF(Inputs!$F$71=1,0,D118*Effectiveness!$E$105+E117*(1-Effectiveness!$D$61)) -> 0 | F118: =IF(Inputs!$F$71=1,0,D118*Effectiveness!$E$106+F117*(1-Effectiveness!$D$62)) -> 0 | G118: =IF(Inputs!$F$71=1,0,D118*Effectiveness!$E$107+G117*(1-Effectiveness!$D$63)) -> 0 | H118: =IF(Inputs!$F$71=1,0,D118*Effectiveness!$E$108+H117*(1-Effectiveness!$D$64)) -> 0 | I118: =IF(Inputs!$F$71=1,0,D118*Effectiveness!$E$109+I117*(1-Effectiveness!$D$65)) -> 0 | J118: =IF(Inputs!$F$71=1,0,D118*Effectiveness!$E$110+J117*(1-Effectiveness!$D$66)) -> 0 | K118: =D118*Effectiveness!$E$111+K117*(1-Effectiveness!$D$67) -> 21.68 | L118: 21.68 | N118: 2298.08
C119: 107 | D119: 1200 | E119: =IF(Inputs!$F$71=1,0,D119*Effectiveness!$E$105+E118*(1-Effectiveness!$D$61)) -> 0 | F119: =IF(Inputs!$F$71=1,0,D119*Effectiveness!$E$106+F118*(1-Effectiveness!$D$62)) -> 0 | G119: =IF(Inputs!$F$71=1,0,D119*Effectiveness!$E$107+G118*(1-Effectiveness!$D$63)) -> 0 | H119: =IF(Inputs!$F$71=1,0,D119*Effectiveness!$E$108+H118*(1-Effectiveness!$D$64)) -> 0 | I119: =IF(Inputs!$F$71=1,0,D119*Effectiveness!$E$109+I118*(1-Effectiveness!$D$65)) -> 0 | J119: =IF(Inputs!$F$71=1,0,D119*Effectiveness!$E$110+J118*(1-Effectiveness!$D$66)) -> 0 | K119: =D119*Effectiveness!$E$111+K118*(1-Effectiveness!$D$67) -> 21.68 | L119: 21.68 | N119: 2319.76
C120: 108 | D120: 1200 | E120: =IF(Inputs!$F$71=1,0,D120*Effectiveness!$E$105+E119*(1-Effectiveness!$D$61)) -> 0 | F120: =IF(Inputs!$F$71=1,0,D120*Effectiveness!$E$106+F119*(1-Effectiveness!$D$62)) -> 0 | G120: =IF(Inputs!$F$71=1,0,D120*Effectiveness!$E$107+G119*(1-Effectiveness!$D$63)) -> 0 | H120: =IF(Inputs!$F$71=1,0,D120*Effectiveness!$E$108+H119*(1-Effectiveness!$D$64)) -> 0 | I120: =IF(Inputs!$F$71=1,0,D120*Effectiveness!$E$109+I119*(1-Effectiveness!$D$65)) -> 0 | J120: =IF(Inputs!$F$71=1,0,D120*Effectiveness!$E$110+J119*(1-Effectiveness!$D$66)) -> 0 | K120: =D120*Effectiveness!$E$111+K119*(1-Effectiveness!$D$67) -> 21.68 | L120: 21.68 | N120: 2341.44 | O120: 9
C121: 109 | D121: =D120*(1+Inputs!$D$17) -> 1200 | E121: =IF(Inputs!$F$71=1,0,D121*Effectiveness!$E$105+E120*(1-Effectiveness!$D$61)) -> 0 | F121: =IF(Inputs!$F$71=1,0,D121*Effectiveness!$E$106+F120*(1-Effectiveness!$D$62)) -> 0 | G121: =IF(Inputs!$F$71=1,0,D121*Effectiveness!$E$107+G120*(1-Effectiveness!$D$63)) -> 0 | H121: =IF(Inputs!$F$71=1,0,D121*Effectiveness!$E$108+H120*(1-Effectiveness!$D$64)) -> 0 | I121: =IF(Inputs!$F$71=1,0,D121*Effectiveness!$E$109+I120*(1-Effectiveness!$D$65)) -> 0 | J121: =IF(Inputs!$F$71=1,0,D121*Effectiveness!$E$110+J120*(1-Effectiveness!$D$66)) -> 0 | K121: =D121*Effectiveness!$E$111+K120*(1-Effectiveness!$D$67) -> 21.68 | L121: 21.68 | N121: 2363.12
C122: 110 | D122: =D121 -> 1200 | E122: =IF(Inputs!$F$71=1,0,D122*Effectiveness!$E$105+E121*(1-Effectiveness!$D$61)) -> 0 | F122: =IF(Inputs!$F$71=1,0,D122*Effectiveness!$E$106+F121*(1-Effectiveness!$D$62)) -> 0 | G122: =IF(Inputs!$F$71=1,0,D122*Effectiveness!$E$107+G121*(1-Effectiveness!$D$63)) -> 0 | H122: =IF(Inputs!$F$71=1,0,D122*Effectiveness!$E$108+H121*(1-Effectiveness!$D$64)) -> 0 | I122: =IF(Inputs!$F$71=1,0,D122*Effectiveness!$E$109+I121*(1-Effectiveness!$D$65)) -> 0 | J122: =IF(Inputs!$F$71=1,0,D122*Effectiveness!$E$110+J121*(1-Effectiveness!$D$66)) -> 0 | K122: =D122*Effectiveness!$E$111+K121*(1-Effectiveness!$D$67) -> 21.68 | L122: 21.68 | N122: 2384.8
C123: 111 | D123: =D122 -> 1200 | E123: =IF(Inputs!$F$71=1,0,D123*Effectiveness!$E$105+E122*(1-Effectiveness!$D$61)) -> 0 | F123: =IF(Inputs!$F$71=1,0,D123*Effectiveness!$E$106+F122*(1-Effectiveness!$D$62)) -> 0 | G123: =IF(Inputs!$F$71=1,0,D123*Effectiveness!$E$107+G122*(1-Effectiveness!$D$63)) -> 0 | H123: =IF(Inputs!$F$71=1,0,D123*Effectiveness!$E$108+H122*(1-Effectiveness!$D$64)) -> 0 | I123: =IF(Inputs!$F$71=1,0,D123*Effectiveness!$E$109+I122*(1-Effectiveness!$D$65)) -> 0 | J123: =IF(Inputs!$F$71=1,0,D123*Effectiveness!$E$110+J122*(1-Effectiveness!$D$66)) -> 0 | K123: =D123*Effectiveness!$E$111+K122*(1-Effectiveness!$D$67) -> 21.68 | L123: 21.68 | N123: 2406.48
C124: 112 | D124: 1200 | E124: =IF(Inputs!$F$71=1,0,D124*Effectiveness!$E$105+E123*(1-Effectiveness!$D$61)) -> 0 | F124: =IF(Inputs!$F$71=1,0,D124*Effectiveness!$E$106+F123*(1-Effectiveness!$D$62)) -> 0 | G124: =IF(Inputs!$F$71=1,0,D124*Effectiveness!$E$107+G123*(1-Effectiveness!$D$63)) -> 0 | H124: =IF(Inputs!$F$71=1,0,D124*Effectiveness!$E$108+H123*(1-Effectiveness!$D$64)) -> 0 | I124: =IF(Inputs!$F$71=1,0,D124*Effectiveness!$E$109+I123*(1-Effectiveness!$D$65)) -> 0 | J124: =IF(Inputs!$F$71=1,0,D124*Effectiveness!$E$110+J123*(1-Effectiveness!$D$66)) -> 0 | K124: =D124*Effectiveness!$E$111+K123*(1-Effectiveness!$D$67) -> 21.68 | L124: 21.68 | N124: 2428.16
C125: 113 | D125: 1200 | E125: =IF(Inputs!$F$71=1,0,D125*Effectiveness!$E$105+E124*(1-Effectiveness!$D$61)) -> 0 | F125: =IF(Inputs!$F$71=1,0,D125*Effectiveness!$E$106+F124*(1-Effectiveness!$D$62)) -> 0 | G125: =IF(Inputs!$F$71=1,0,D125*Effectiveness!$E$107+G124*(1-Effectiveness!$D$63)) -> 0 | H125: =IF(Inputs!$F$71=1,0,D125*Effectiveness!$E$108+H124*(1-Effectiveness!$D$64)) -> 0 | I125: =IF(Inputs!$F$71=1,0,D125*Effectiveness!$E$109+I124*(1-Effectiveness!$D$65)) -> 0 | J125: =IF(Inputs!$F$71=1,0,D125*Effectiveness!$E$110+J124*(1-Effectiveness!$D$66)) -> 0 | K125: =D125*Effectiveness!$E$111+K124*(1-Effectiveness!$D$67) -> 21.68 | L125: 21.68 | N125: 2449.84
C126: 114 | D126: 1200 | E126: =IF(Inputs!$F$71=1,0,D126*Effectiveness!$E$105+E125*(1-Effectiveness!$D$61)) -> 0 | F126: =IF(Inputs!$F$71=1,0,D126*Effectiveness!$E$106+F125*(1-Effectiveness!$D$62)) -> 0 | G126: =IF(Inputs!$F$71=1,0,D126*Effectiveness!$E$107+G125*(1-Effectiveness!$D$63)) -> 0 | H126: =IF(Inputs!$F$71=1,0,D126*Effectiveness!$E$108+H125*(1-Effectiveness!$D$64)) -> 0 | I126: =IF(Inputs!$F$71=1,0,D126*Effectiveness!$E$109+I125*(1-Effectiveness!$D$65)) -> 0 | J126: =IF(Inputs!$F$71=1,0,D126*Effectiveness!$E$110+J125*(1-Effectiveness!$D$66)) -> 0 | K126: =D126*Effectiveness!$E$111+K125*(1-Effectiveness!$D$67) -> 21.68 | L126: 21.68 | N126: 2471.52
C127: 115 | D127: 1200 | E127: =IF(Inputs!$F$71=1,0,D127*Effectiveness!$E$105+E126*(1-Effectiveness!$D$61)) -> 0 | F127: =IF(Inputs!$F$71=1,0,D127*Effectiveness!$E$106+F126*(1-Effectiveness!$D$62)) -> 0 | G127: =IF(Inputs!$F$71=1,0,D127*Effectiveness!$E$107+G126*(1-Effectiveness!$D$63)) -> 0 | H127: =IF(Inputs!$F$71=1,0,D127*Effectiveness!$E$108+H126*(1-Effectiveness!$D$64)) -> 0 | I127: =IF(Inputs!$F$71=1,0,D127*Effectiveness!$E$109+I126*(1-Effectiveness!$D$65)) -> 0 | J127: =IF(Inputs!$F$71=1,0,D127*Effectiveness!$E$110+J126*(1-Effectiveness!$D$66)) -> 0 | K127: =D127*Effectiveness!$E$111+K126*(1-Effectiveness!$D$67) -> 21.68 | L127: 21.68 | N127: 2493.2
C128: 116 | D128: 1200 | E128: =IF(Inputs!$F$71=1,0,D128*Effectiveness!$E$105+E127*(1-Effectiveness!$D$61)) -> 0 | F128: =IF(Inputs!$F$71=1,0,D128*Effectiveness!$E$106+F127*(1-Effectiveness!$D$62)) -> 0 | G128: =IF(Inputs!$F$71=1,0,D128*Effectiveness!$E$107+G127*(1-Effectiveness!$D$63)) -> 0 | H128: =IF(Inputs!$F$71=1,0,D128*Effectiveness!$E$108+H127*(1-Effectiveness!$D$64)) -> 0 | I128: =IF(Inputs!$F$71=1,0,D128*Effectiveness!$E$109+I127*(1-Effectiveness!$D$65)) -> 0 | J128: =IF(Inputs!$F$71=1,0,D128*Effectiveness!$E$110+J127*(1-Effectiveness!$D$66)) -> 0 | K128: =D128*Effectiveness!$E$111+K127*(1-Effectiveness!$D$67) -> 21.68 | L128: 21.68 | N128: 2514.88
C129: 117 | D129: 1200 | E129: =IF(Inputs!$F$71=1,0,D129*Effectiveness!$E$105+E128*(1-Effectiveness!$D$61)) -> 0 | F129: =IF(Inputs!$F$71=1,0,D129*Effectiveness!$E$106+F128*(1-Effectiveness!$D$62)) -> 0 | G129: =IF(Inputs!$F$71=1,0,D129*Effectiveness!$E$107+G128*(1-Effectiveness!$D$63)) -> 0 | H129: =IF(Inputs!$F$71=1,0,D129*Effectiveness!$E$108+H128*(1-Effectiveness!$D$64)) -> 0 | I129: =IF(Inputs!$F$71=1,0,D129*Effectiveness!$E$109+I128*(1-Effectiveness!$D$65)) -> 0 | J129: =IF(Inputs!$F$71=1,0,D129*Effectiveness!$E$110+J128*(1-Effectiveness!$D$66)) -> 0 | K129: =D129*Effectiveness!$E$111+K128*(1-Effectiveness!$D$67) -> 21.68 | L129: 21.68 | N129: 2536.56
C130: 118 | D130: 1200 | E130: =IF(Inputs!$F$71=1,0,D130*Effectiveness!$E$105+E129*(1-Effectiveness!$D$61)) -> 0 | F130: =IF(Inputs!$F$71=1,0,D130*Effectiveness!$E$106+F129*(1-Effectiveness!$D$62)) -> 0 | G130: =IF(Inputs!$F$71=1,0,D130*Effectiveness!$E$107+G129*(1-Effectiveness!$D$63)) -> 0 | H130: =IF(Inputs!$F$71=1,0,D130*Effectiveness!$E$108+H129*(1-Effectiveness!$D$64)) -> 0 | I130: =IF(Inputs!$F$71=1,0,D130*Effectiveness!$E$109+I129*(1-Effectiveness!$D$65)) -> 0 | J130: =IF(Inputs!$F$71=1,0,D130*Effectiveness!$E$110+J129*(1-Effectiveness!$D$66)) -> 0 | K130: =D130*Effectiveness!$E$111+K129*(1-Effectiveness!$D$67) -> 21.68 | L130: 21.68 | N130: 2558.24
C131: 119 | D131: 1200 | E131: =IF(Inputs!$F$71=1,0,D131*Effectiveness!$E$105+E130*(1-Effectiveness!$D$61)) -> 0 | F131: =IF(Inputs!$F$71=1,0,D131*Effectiveness!$E$106+F130*(1-Effectiveness!$D$62)) -> 0 | G131: =IF(Inputs!$F$71=1,0,D131*Effectiveness!$E$107+G130*(1-Effectiveness!$D$63)) -> 0 | H131: =IF(Inputs!$F$71=1,0,D131*Effectiveness!$E$108+H130*(1-Effectiveness!$D$64)) -> 0 | I131: =IF(Inputs!$F$71=1,0,D131*Effectiveness!$E$109+I130*(1-Effectiveness!$D$65)) -> 0 | J131: =IF(Inputs!$F$71=1,0,D131*Effectiveness!$E$110+J130*(1-Effectiveness!$D$66)) -> 0 | K131: =D131*Effectiveness!$E$111+K130*(1-Effectiveness!$D$67) -> 21.68 | L131: 21.68 | N131: 2579.92
C132: 120 | D132: 1200 | E132: =IF(Inputs!$F$71=1,0,D132*Effectiveness!$E$105+E131*(1-Effectiveness!$D$61)) -> 0 | F132: =IF(Inputs!$F$71=1,0,D132*Effectiveness!$E$106+F131*(1-Effectiveness!$D$62)) -> 0 | G132: =IF(Inputs!$F$71=1,0,D132*Effectiveness!$E$107+G131*(1-Effectiveness!$D$63)) -> 0 | H132: =IF(Inputs!$F$71=1,0,D132*Effectiveness!$E$108+H131*(1-Effectiveness!$D$64)) -> 0 | I132: =IF(Inputs!$F$71=1,0,D132*Effectiveness!$E$109+I131*(1-Effectiveness!$D$65)) -> 0 | J132: =IF(Inputs!$F$71=1,0,D132*Effectiveness!$E$110+J131*(1-Effectiveness!$D$66)) -> 0 | K132: =D132*Effectiveness!$E$111+K131*(1-Effectiveness!$D$67) -> 21.68 | L132: 21.68 | N132: 2601.6 | O132: 10
C133: 121 | D133: =D132*(1+Inputs!$D$17) -> 1200 | E133: =IF(Inputs!$F$71=1,0,D133*Effectiveness!$E$105+E132*(1-Effectiveness!$D$61)) -> 0 | F133: =IF(Inputs!$F$71=1,0,D133*Effectiveness!$E$106+F132*(1-Effectiveness!$D$62)) -> 0 | G133: =IF(Inputs!$F$71=1,0,D133*Effectiveness!$E$107+G132*(1-Effectiveness!$D$63)) -> 0 | H133: =IF(Inputs!$F$71=1,0,D133*Effectiveness!$E$108+H132*(1-Effectiveness!$D$64)) -> 0 | I133: =IF(Inputs!$F$71=1,0,D133*Effectiveness!$E$109+I132*(1-Effectiveness!$D$65)) -> 0 | J133: =IF(Inputs!$F$71=1,0,D133*Effectiveness!$E$110+J132*(1-Effectiveness!$D$66)) -> 0 | K133: =D133*Effectiveness!$E$111+K132*(1-Effectiveness!$D$67) -> 21.68 | L133: 21.68 | N133: 2623.28
C134: 122 | D134: =D133 -> 1200 | E134: =IF(Inputs!$F$71=1,0,D134*Effectiveness!$E$105+E133*(1-Effectiveness!$D$61)) -> 0 | F134: =IF(Inputs!$F$71=1,0,D134*Effectiveness!$E$106+F133*(1-Effectiveness!$D$62)) -> 0 | G134: =IF(Inputs!$F$71=1,0,D134*Effectiveness!$E$107+G133*(1-Effectiveness!$D$63)) -> 0 | H134: =IF(Inputs!$F$71=1,0,D134*Effectiveness!$E$108+H133*(1-Effectiveness!$D$64)) -> 0 | I134: =IF(Inputs!$F$71=1,0,D134*Effectiveness!$E$109+I133*(1-Effectiveness!$D$65)) -> 0 | J134: =IF(Inputs!$F$71=1,0,D134*Effectiveness!$E$110+J133*(1-Effectiveness!$D$66)) -> 0 | K134: =D134*Effectiveness!$E$111+K133*(1-Effectiveness!$D$67) -> 21.68 | L134: 21.68 | N134: 2644.96
C135: 123 | D135: =D134 -> 1200 | E135: =IF(Inputs!$F$71=1,0,D135*Effectiveness!$E$105+E134*(1-Effectiveness!$D$61)) -> 0 | F135: =IF(Inputs!$F$71=1,0,D135*Effectiveness!$E$106+F134*(1-Effectiveness!$D$62)) -> 0 | G135: =IF(Inputs!$F$71=1,0,D135*Effectiveness!$E$107+G134*(1-Effectiveness!$D$63)) -> 0 | H135: =IF(Inputs!$F$71=1,0,D135*Effectiveness!$E$108+H134*(1-Effectiveness!$D$64)) -> 0 | I135: =IF(Inputs!$F$71=1,0,D135*Effectiveness!$E$109+I134*(1-Effectiveness!$D$65)) -> 0 | J135: =IF(Inputs!$F$71=1,0,D135*Effectiveness!$E$110+J134*(1-Effectiveness!$D$66)) -> 0 | K135: =D135*Effectiveness!$E$111+K134*(1-Effectiveness!$D$67) -> 21.68 | L135: 21.68 | N135: 2666.64
C136: 124 | D136: 1200 | E136: =IF(Inputs!$F$71=1,0,D136*Effectiveness!$E$105+E135*(1-Effectiveness!$D$61)) -> 0 | F136: =IF(Inputs!$F$71=1,0,D136*Effectiveness!$E$106+F135*(1-Effectiveness!$D$62)) -> 0 | G136: =IF(Inputs!$F$71=1,0,D136*Effectiveness!$E$107+G135*(1-Effectiveness!$D$63)) -> 0 | H136: =IF(Inputs!$F$71=1,0,D136*Effectiveness!$E$108+H135*(1-Effectiveness!$D$64)) -> 0 | I136: =IF(Inputs!$F$71=1,0,D136*Effectiveness!$E$109+I135*(1-Effectiveness!$D$65)) -> 0 | J136: =IF(Inputs!$F$71=1,0,D136*Effectiveness!$E$110+J135*(1-Effectiveness!$D$66)) -> 0 | K136: =D136*Effectiveness!$E$111+K135*(1-Effectiveness!$D$67) -> 21.68 | L136: 21.68 | N136: 2688.32
C137: 125 | D137: 1200 | E137: =IF(Inputs!$F$71=1,0,D137*Effectiveness!$E$105+E136*(1-Effectiveness!$D$61)) -> 0 | F137: =IF(Inputs!$F$71=1,0,D137*Effectiveness!$E$106+F136*(1-Effectiveness!$D$62)) -> 0 | G137: =IF(Inputs!$F$71=1,0,D137*Effectiveness!$E$107+G136*(1-Effectiveness!$D$63)) -> 0 | H137: =IF(Inputs!$F$71=1,0,D137*Effectiveness!$E$108+H136*(1-Effectiveness!$D$64)) -> 0 | I137: =IF(Inputs!$F$71=1,0,D137*Effectiveness!$E$109+I136*(1-Effectiveness!$D$65)) -> 0 | J137: =IF(Inputs!$F$71=1,0,D137*Effectiveness!$E$110+J136*(1-Effectiveness!$D$66)) -> 0 | K137: =D137*Effectiveness!$E$111+K136*(1-Effectiveness!$D$67) -> 21.68 | L137: 21.68 | N137: 2710
C138: 126 | D138: 1200 | E138: =IF(Inputs!$F$71=1,0,D138*Effectiveness!$E$105+E137*(1-Effectiveness!$D$61)) -> 0 | F138: =IF(Inputs!$F$71=1,0,D138*Effectiveness!$E$106+F137*(1-Effectiveness!$D$62)) -> 0 | G138: =IF(Inputs!$F$71=1,0,D138*Effectiveness!$E$107+G137*(1-Effectiveness!$D$63)) -> 0 | H138: =IF(Inputs!$F$71=1,0,D138*Effectiveness!$E$108+H137*(1-Effectiveness!$D$64)) -> 0 | I138: =IF(Inputs!$F$71=1,0,D138*Effectiveness!$E$109+I137*(1-Effectiveness!$D$65)) -> 0 | J138: =IF(Inputs!$F$71=1,0,D138*Effectiveness!$E$110+J137*(1-Effectiveness!$D$66)) -> 0 | K138: =D138*Effectiveness!$E$111+K137*(1-Effectiveness!$D$67) -> 21.68 | L138: 21.68 | N138: 2731.68
C139: 127 | D139: 1200 | E139: =IF(Inputs!$F$71=1,0,D139*Effectiveness!$E$105+E138*(1-Effectiveness!$D$61)) -> 0 | F139: =IF(Inputs!$F$71=1,0,D139*Effectiveness!$E$106+F138*(1-Effectiveness!$D$62)) -> 0 | G139: =IF(Inputs!$F$71=1,0,D139*Effectiveness!$E$107+G138*(1-Effectiveness!$D$63)) -> 0 | H139: =IF(Inputs!$F$71=1,0,D139*Effectiveness!$E$108+H138*(1-Effectiveness!$D$64)) -> 0 | I139: =IF(Inputs!$F$71=1,0,D139*Effectiveness!$E$109+I138*(1-Effectiveness!$D$65)) -> 0 | J139: =IF(Inputs!$F$71=1,0,D139*Effectiveness!$E$110+J138*(1-Effectiveness!$D$66)) -> 0 | K139: =D139*Effectiveness!$E$111+K138*(1-Effectiveness!$D$67) -> 21.68 | L139: 21.68 | N139: 2753.36
C140: 128 | D140: 1200 | E140: =IF(Inputs!$F$71=1,0,D140*Effectiveness!$E$105+E139*(1-Effectiveness!$D$61)) -> 0 | F140: =IF(Inputs!$F$71=1,0,D140*Effectiveness!$E$106+F139*(1-Effectiveness!$D$62)) -> 0 | G140: =IF(Inputs!$F$71=1,0,D140*Effectiveness!$E$107+G139*(1-Effectiveness!$D$63)) -> 0 | H140: =IF(Inputs!$F$71=1,0,D140*Effectiveness!$E$108+H139*(1-Effectiveness!$D$64)) -> 0 | I140: =IF(Inputs!$F$71=1,0,D140*Effectiveness!$E$109+I139*(1-Effectiveness!$D$65)) -> 0 | J140: =IF(Inputs!$F$71=1,0,D140*Effectiveness!$E$110+J139*(1-Effectiveness!$D$66)) -> 0 | K140: =D140*Effectiveness!$E$111+K139*(1-Effectiveness!$D$67) -> 21.68 | L140: 21.68 | N140: 2775.04
C141: 129 | D141: 1200 | E141: =IF(Inputs!$F$71=1,0,D141*Effectiveness!$E$105+E140*(1-Effectiveness!$D$61)) -> 0 | F141: =IF(Inputs!$F$71=1,0,D141*Effectiveness!$E$106+F140*(1-Effectiveness!$D$62)) -> 0 | G141: =IF(Inputs!$F$71=1,0,D141*Effectiveness!$E$107+G140*(1-Effectiveness!$D$63)) -> 0 | H141: =IF(Inputs!$F$71=1,0,D141*Effectiveness!$E$108+H140*(1-Effectiveness!$D$64)) -> 0 | I141: =IF(Inputs!$F$71=1,0,D141*Effectiveness!$E$109+I140*(1-Effectiveness!$D$65)) -> 0 | J141: =IF(Inputs!$F$71=1,0,D141*Effectiveness!$E$110+J140*(1-Effectiveness!$D$66)) -> 0 | K141: =D141*Effectiveness!$E$111+K140*(1-Effectiveness!$D$67) -> 21.68 | L141: =SUM(E141:K141) -> 21.68 | N141: 2796.72
C142: 130 | D142: 1200 | E142: =IF(Inputs!$F$71=1,0,D142*Effectiveness!$E$105+E141*(1-Effectiveness!$D$61)) -> 0 | F142: =IF(Inputs!$F$71=1,0,D142*Effectiveness!$E$106+F141*(1-Effectiveness!$D$62)) -> 0 | G142: =IF(Inputs!$F$71=1,0,D142*Effectiveness!$E$107+G141*(1-Effectiveness!$D$63)) -> 0 | H142: =IF(Inputs!$F$71=1,0,D142*Effectiveness!$E$108+H141*(1-Effectiveness!$D$64)) -> 0 | I142: =IF(Inputs!$F$71=1,0,D142*Effectiveness!$E$109+I141*(1-Effectiveness!$D$65)) -> 0 | J142: =IF(Inputs!$F$71=1,0,D142*Effectiveness!$E$110+J141*(1-Effectiveness!$D$66)) -> 0 | K142: =D142*Effectiveness!$E$111+K141*(1-Effectiveness!$D$67) -> 21.68 | L142: 21.68 | N142: =L142+N141 -> 2818.4
C143: 131 | D143: 1200 | E143: =IF(Inputs!$F$71=1,0,D143*Effectiveness!$E$105+E142*(1-Effectiveness!$D$61)) -> 0 | F143: =IF(Inputs!$F$71=1,0,D143*Effectiveness!$E$106+F142*(1-Effectiveness!$D$62)) -> 0 | G143: =IF(Inputs!$F$71=1,0,D143*Effectiveness!$E$107+G142*(1-Effectiveness!$D$63)) -> 0 | H143: =IF(Inputs!$F$71=1,0,D143*Effectiveness!$E$108+H142*(1-Effectiveness!$D$64)) -> 0 | I143: =IF(Inputs!$F$71=1,0,D143*Effectiveness!$E$109+I142*(1-Effectiveness!$D$65)) -> 0 | J143: =IF(Inputs!$F$71=1,0,D143*Effectiveness!$E$110+J142*(1-Effectiveness!$D$66)) -> 0 | K143: =D143*Effectiveness!$E$111+K142*(1-Effectiveness!$D$67) -> 21.68 | L143: 21.68 | N143: 2840.08
C144: 132 | D144: 1200 | E144: =IF(Inputs!$F$71=1,0,D144*Effectiveness!$E$105+E143*(1-Effectiveness!$D$61)) -> 0 | F144: =IF(Inputs!$F$71=1,0,D144*Effectiveness!$E$106+F143*(1-Effectiveness!$D$62)) -> 0 | G144: =IF(Inputs!$F$71=1,0,D144*Effectiveness!$E$107+G143*(1-Effectiveness!$D$63)) -> 0 | H144: =IF(Inputs!$F$71=1,0,D144*Effectiveness!$E$108+H143*(1-Effectiveness!$D$64)) -> 0 | I144: =IF(Inputs!$F$71=1,0,D144*Effectiveness!$E$109+I143*(1-Effectiveness!$D$65)) -> 0 | J144: =IF(Inputs!$F$71=1,0,D144*Effectiveness!$E$110+J143*(1-Effectiveness!$D$66)) -> 0 | K144: =D144*Effectiveness!$E$111+K143*(1-Effectiveness!$D$67) -> 21.68 | L144: 21.68 | N144: 2861.76 | O144: 11
C145: 133 | D145: =D144*(1+Inputs!$D$17) -> 1200 | E145: =IF(Inputs!$F$71=1,0,D145*Effectiveness!$E$105+E144*(1-Effectiveness!$D$61)) -> 0 | F145: =IF(Inputs!$F$71=1,0,D145*Effectiveness!$E$106+F144*(1-Effectiveness!$D$62)) -> 0 | G145: =IF(Inputs!$F$71=1,0,D145*Effectiveness!$E$107+G144*(1-Effectiveness!$D$63)) -> 0 | H145: =IF(Inputs!$F$71=1,0,D145*Effectiveness!$E$108+H144*(1-Effectiveness!$D$64)) -> 0 | I145: =IF(Inputs!$F$71=1,0,D145*Effectiveness!$E$109+I144*(1-Effectiveness!$D$65)) -> 0 | J145: =IF(Inputs!$F$71=1,0,D145*Effectiveness!$E$110+J144*(1-Effectiveness!$D$66)) -> 0 | K145: =D145*Effectiveness!$E$111+K144*(1-Effectiveness!$D$67) -> 21.68 | L145: 21.68 | N145: 2883.44
C146: 134 | D146: =D145 -> 1200 | E146: =IF(Inputs!$F$71=1,0,D146*Effectiveness!$E$105+E145*(1-Effectiveness!$D$61)) -> 0 | F146: =IF(Inputs!$F$71=1,0,D146*Effectiveness!$E$106+F145*(1-Effectiveness!$D$62)) -> 0 | G146: =IF(Inputs!$F$71=1,0,D146*Effectiveness!$E$107+G145*(1-Effectiveness!$D$63)) -> 0 | H146: =IF(Inputs!$F$71=1,0,D146*Effectiveness!$E$108+H145*(1-Effectiveness!$D$64)) -> 0 | I146: =IF(Inputs!$F$71=1,0,D146*Effectiveness!$E$109+I145*(1-Effectiveness!$D$65)) -> 0 | J146: =IF(Inputs!$F$71=1,0,D146*Effectiveness!$E$110+J145*(1-Effectiveness!$D$66)) -> 0 | K146: =D146*Effectiveness!$E$111+K145*(1-Effectiveness!$D$67) -> 21.68 | L146: 21.68 | N146: 2905.12
C147: 135 | D147: =D146 -> 1200 | E147: =IF(Inputs!$F$71=1,0,D147*Effectiveness!$E$105+E146*(1-Effectiveness!$D$61)) -> 0 | F147: =IF(Inputs!$F$71=1,0,D147*Effectiveness!$E$106+F146*(1-Effectiveness!$D$62)) -> 0 | G147: =IF(Inputs!$F$71=1,0,D147*Effectiveness!$E$107+G146*(1-Effectiveness!$D$63)) -> 0 | H147: =IF(Inputs!$F$71=1,0,D147*Effectiveness!$E$108+H146*(1-Effectiveness!$D$64)) -> 0 | I147: =IF(Inputs!$F$71=1,0,D147*Effectiveness!$E$109+I146*(1-Effectiveness!$D$65)) -> 0 | J147: =IF(Inputs!$F$71=1,0,D147*Effectiveness!$E$110+J146*(1-Effectiveness!$D$66)) -> 0 | K147: =D147*Effectiveness!$E$111+K146*(1-Effectiveness!$D$67) -> 21.68 | L147: 21.68 | N147: 2926.8
C148: 136 | D148: 1200 | E148: =IF(Inputs!$F$71=1,0,D148*Effectiveness!$E$105+E147*(1-Effectiveness!$D$61)) -> 0 | F148: =IF(Inputs!$F$71=1,0,D148*Effectiveness!$E$106+F147*(1-Effectiveness!$D$62)) -> 0 | G148: =IF(Inputs!$F$71=1,0,D148*Effectiveness!$E$107+G147*(1-Effectiveness!$D$63)) -> 0 | H148: =IF(Inputs!$F$71=1,0,D148*Effectiveness!$E$108+H147*(1-Effectiveness!$D$64)) -> 0 | I148: =IF(Inputs!$F$71=1,0,D148*Effectiveness!$E$109+I147*(1-Effectiveness!$D$65)) -> 0 | J148: =IF(Inputs!$F$71=1,0,D148*Effectiveness!$E$110+J147*(1-Effectiveness!$D$66)) -> 0 | K148: =D148*Effectiveness!$E$111+K147*(1-Effectiveness!$D$67) -> 21.68 | L148: 21.68 | N148: 2948.48
C149: 137 | D149: 1200 | E149: =IF(Inputs!$F$71=1,0,D149*Effectiveness!$E$105+E148*(1-Effectiveness!$D$61)) -> 0 | F149: =IF(Inputs!$F$71=1,0,D149*Effectiveness!$E$106+F148*(1-Effectiveness!$D$62)) -> 0 | G149: =IF(Inputs!$F$71=1,0,D149*Effectiveness!$E$107+G148*(1-Effectiveness!$D$63)) -> 0 | H149: =IF(Inputs!$F$71=1,0,D149*Effectiveness!$E$108+H148*(1-Effectiveness!$D$64)) -> 0 | I149: =IF(Inputs!$F$71=1,0,D149*Effectiveness!$E$109+I148*(1-Effectiveness!$D$65)) -> 0 | J149: =IF(Inputs!$F$71=1,0,D149*Effectiveness!$E$110+J148*(1-Effectiveness!$D$66)) -> 0 | K149: =D149*Effectiveness!$E$111+K148*(1-Effectiveness!$D$67) -> 21.68 | L149: 21.68 | N149: 2970.16
C150: 138 | D150: 1200 | E150: =IF(Inputs!$F$71=1,0,D150*Effectiveness!$E$105+E149*(1-Effectiveness!$D$61)) -> 0 | F150: =IF(Inputs!$F$71=1,0,D150*Effectiveness!$E$106+F149*(1-Effectiveness!$D$62)) -> 0 | G150: =IF(Inputs!$F$71=1,0,D150*Effectiveness!$E$107+G149*(1-Effectiveness!$D$63)) -> 0 | H150: =IF(Inputs!$F$71=1,0,D150*Effectiveness!$E$108+H149*(1-Effectiveness!$D$64)) -> 0 | I150: =IF(Inputs!$F$71=1,0,D150*Effectiveness!$E$109+I149*(1-Effectiveness!$D$65)) -> 0 | J150: =IF(Inputs!$F$71=1,0,D150*Effectiveness!$E$110+J149*(1-Effectiveness!$D$66)) -> 0 | K150: =D150*Effectiveness!$E$111+K149*(1-Effectiveness!$D$67) -> 21.68 | L150: 21.68 | N150: 2991.84
C151: 139 | D151: 1200 | E151: =IF(Inputs!$F$71=1,0,D151*Effectiveness!$E$105+E150*(1-Effectiveness!$D$61)) -> 0 | F151: =IF(Inputs!$F$71=1,0,D151*Effectiveness!$E$106+F150*(1-Effectiveness!$D$62)) -> 0 | G151: =IF(Inputs!$F$71=1,0,D151*Effectiveness!$E$107+G150*(1-Effectiveness!$D$63)) -> 0 | H151: =IF(Inputs!$F$71=1,0,D151*Effectiveness!$E$108+H150*(1-Effectiveness!$D$64)) -> 0 | I151: =IF(Inputs!$F$71=1,0,D151*Effectiveness!$E$109+I150*(1-Effectiveness!$D$65)) -> 0 | J151: =IF(Inputs!$F$71=1,0,D151*Effectiveness!$E$110+J150*(1-Effectiveness!$D$66)) -> 0 | K151: =D151*Effectiveness!$E$111+K150*(1-Effectiveness!$D$67) -> 21.68 | L151: 21.68 | N151: 3013.52
C152: 140 | D152: 1200 | E152: =IF(Inputs!$F$71=1,0,D152*Effectiveness!$E$105+E151*(1-Effectiveness!$D$61)) -> 0 | F152: =IF(Inputs!$F$71=1,0,D152*Effectiveness!$E$106+F151*(1-Effectiveness!$D$62)) -> 0 | G152: =IF(Inputs!$F$71=1,0,D152*Effectiveness!$E$107+G151*(1-Effectiveness!$D$63)) -> 0 | H152: =IF(Inputs!$F$71=1,0,D152*Effectiveness!$E$108+H151*(1-Effectiveness!$D$64)) -> 0 | I152: =IF(Inputs!$F$71=1,0,D152*Effectiveness!$E$109+I151*(1-Effectiveness!$D$65)) -> 0 | J152: =IF(Inputs!$F$71=1,0,D152*Effectiveness!$E$110+J151*(1-Effectiveness!$D$66)) -> 0 | K152: =D152*Effectiveness!$E$111+K151*(1-Effectiveness!$D$67) -> 21.68 | L152: 21.68 | N152: 3035.2
C153: 141 | D153: 1200 | E153: =IF(Inputs!$F$71=1,0,D153*Effectiveness!$E$105+E152*(1-Effectiveness!$D$61)) -> 0 | F153: =IF(Inputs!$F$71=1,0,D153*Effectiveness!$E$106+F152*(1-Effectiveness!$D$62)) -> 0 | G153: =IF(Inputs!$F$71=1,0,D153*Effectiveness!$E$107+G152*(1-Effectiveness!$D$63)) -> 0 | H153: =IF(Inputs!$F$71=1,0,D153*Effectiveness!$E$108+H152*(1-Effectiveness!$D$64)) -> 0 | I153: =IF(Inputs!$F$71=1,0,D153*Effectiveness!$E$109+I152*(1-Effectiveness!$D$65)) -> 0 | J153: =IF(Inputs!$F$71=1,0,D153*Effectiveness!$E$110+J152*(1-Effectiveness!$D$66)) -> 0 | K153: =D153*Effectiveness!$E$111+K152*(1-Effectiveness!$D$67) -> 21.68 | L153: 21.68 | N153: 3056.88
C154: 142 | D154: 1200 | E154: =IF(Inputs!$F$71=1,0,D154*Effectiveness!$E$105+E153*(1-Effectiveness!$D$61)) -> 0 | F154: =IF(Inputs!$F$71=1,0,D154*Effectiveness!$E$106+F153*(1-Effectiveness!$D$62)) -> 0 | G154: =IF(Inputs!$F$71=1,0,D154*Effectiveness!$E$107+G153*(1-Effectiveness!$D$63)) -> 0 | H154: =IF(Inputs!$F$71=1,0,D154*Effectiveness!$E$108+H153*(1-Effectiveness!$D$64)) -> 0 | I154: =IF(Inputs!$F$71=1,0,D154*Effectiveness!$E$109+I153*(1-Effectiveness!$D$65)) -> 0 | J154: =IF(Inputs!$F$71=1,0,D154*Effectiveness!$E$110+J153*(1-Effectiveness!$D$66)) -> 0 | K154: =D154*Effectiveness!$E$111+K153*(1-Effectiveness!$D$67) -> 21.68 | L154: 21.68 | N154: 3078.56
C155: 143 | D155: 1200 | E155: =IF(Inputs!$F$71=1,0,D155*Effectiveness!$E$105+E154*(1-Effectiveness!$D$61)) -> 0 | F155: =IF(Inputs!$F$71=1,0,D155*Effectiveness!$E$106+F154*(1-Effectiveness!$D$62)) -> 0 | G155: =IF(Inputs!$F$71=1,0,D155*Effectiveness!$E$107+G154*(1-Effectiveness!$D$63)) -> 0 | H155: =IF(Inputs!$F$71=1,0,D155*Effectiveness!$E$108+H154*(1-Effectiveness!$D$64)) -> 0 | I155: =IF(Inputs!$F$71=1,0,D155*Effectiveness!$E$109+I154*(1-Effectiveness!$D$65)) -> 0 | J155: =IF(Inputs!$F$71=1,0,D155*Effectiveness!$E$110+J154*(1-Effectiveness!$D$66)) -> 0 | K155: =D155*Effectiveness!$E$111+K154*(1-Effectiveness!$D$67) -> 21.68 | L155: 21.68 | N155: 3100.24
C156: 144 | D156: 1200 | E156: =IF(Inputs!$F$71=1,0,D156*Effectiveness!$E$105+E155*(1-Effectiveness!$D$61)) -> 0 | F156: =IF(Inputs!$F$71=1,0,D156*Effectiveness!$E$106+F155*(1-Effectiveness!$D$62)) -> 0 | G156: =IF(Inputs!$F$71=1,0,D156*Effectiveness!$E$107+G155*(1-Effectiveness!$D$63)) -> 0 | H156: =IF(Inputs!$F$71=1,0,D156*Effectiveness!$E$108+H155*(1-Effectiveness!$D$64)) -> 0 | I156: =IF(Inputs!$F$71=1,0,D156*Effectiveness!$E$109+I155*(1-Effectiveness!$D$65)) -> 0 | J156: =IF(Inputs!$F$71=1,0,D156*Effectiveness!$E$110+J155*(1-Effectiveness!$D$66)) -> 0 | K156: =D156*Effectiveness!$E$111+K155*(1-Effectiveness!$D$67) -> 21.68 | L156: 21.68 | N156: 3121.92 | O156: 12
C157: 145 | D157: =D156*(1+Inputs!$D$17) -> 1200 | E157: =IF(Inputs!$F$71=1,0,D157*Effectiveness!$E$105+E156*(1-Effectiveness!$D$61)) -> 0 | F157: =IF(Inputs!$F$71=1,0,D157*Effectiveness!$E$106+F156*(1-Effectiveness!$D$62)) -> 0 | G157: =IF(Inputs!$F$71=1,0,D157*Effectiveness!$E$107+G156*(1-Effectiveness!$D$63)) -> 0 | H157: =IF(Inputs!$F$71=1,0,D157*Effectiveness!$E$108+H156*(1-Effectiveness!$D$64)) -> 0 | I157: =IF(Inputs!$F$71=1,0,D157*Effectiveness!$E$109+I156*(1-Effectiveness!$D$65)) -> 0 | J157: =IF(Inputs!$F$71=1,0,D157*Effectiveness!$E$110+J156*(1-Effectiveness!$D$66)) -> 0 | K157: =D157*Effectiveness!$E$111+K156*(1-Effectiveness!$D$67) -> 21.68 | L157: 21.68 | N157: 3143.6
C158: 146 | D158: =D157 -> 1200 | E158: =IF(Inputs!$F$71=1,0,D158*Effectiveness!$E$105+E157*(1-Effectiveness!$D$61)) -> 0 | F158: =IF(Inputs!$F$71=1,0,D158*Effectiveness!$E$106+F157*(1-Effectiveness!$D$62)) -> 0 | G158: =IF(Inputs!$F$71=1,0,D158*Effectiveness!$E$107+G157*(1-Effectiveness!$D$63)) -> 0 | H158: =IF(Inputs!$F$71=1,0,D158*Effectiveness!$E$108+H157*(1-Effectiveness!$D$64)) -> 0 | I158: =IF(Inputs!$F$71=1,0,D158*Effectiveness!$E$109+I157*(1-Effectiveness!$D$65)) -> 0 | J158: =IF(Inputs!$F$71=1,0,D158*Effectiveness!$E$110+J157*(1-Effectiveness!$D$66)) -> 0 | K158: =D158*Effectiveness!$E$111+K157*(1-Effectiveness!$D$67) -> 21.68 | L158: 21.68 | N158: 3165.28
C159: 147 | D159: =D158 -> 1200 | E159: =IF(Inputs!$F$71=1,0,D159*Effectiveness!$E$105+E158*(1-Effectiveness!$D$61)) -> 0 | F159: =IF(Inputs!$F$71=1,0,D159*Effectiveness!$E$106+F158*(1-Effectiveness!$D$62)) -> 0 | G159: =IF(Inputs!$F$71=1,0,D159*Effectiveness!$E$107+G158*(1-Effectiveness!$D$63)) -> 0 | H159: =IF(Inputs!$F$71=1,0,D159*Effectiveness!$E$108+H158*(1-Effectiveness!$D$64)) -> 0 | I159: =IF(Inputs!$F$71=1,0,D159*Effectiveness!$E$109+I158*(1-Effectiveness!$D$65)) -> 0 | J159: =IF(Inputs!$F$71=1,0,D159*Effectiveness!$E$110+J158*(1-Effectiveness!$D$66)) -> 0 | K159: =D159*Effectiveness!$E$111+K158*(1-Effectiveness!$D$67) -> 21.68 | L159: 21.68 | N159: 3186.96
C160: 148 | D160: 1200 | E160: =IF(Inputs!$F$71=1,0,D160*Effectiveness!$E$105+E159*(1-Effectiveness!$D$61)) -> 0 | F160: =IF(Inputs!$F$71=1,0,D160*Effectiveness!$E$106+F159*(1-Effectiveness!$D$62)) -> 0 | G160: =IF(Inputs!$F$71=1,0,D160*Effectiveness!$E$107+G159*(1-Effectiveness!$D$63)) -> 0 | H160: =IF(Inputs!$F$71=1,0,D160*Effectiveness!$E$108+H159*(1-Effectiveness!$D$64)) -> 0 | I160: =IF(Inputs!$F$71=1,0,D160*Effectiveness!$E$109+I159*(1-Effectiveness!$D$65)) -> 0 | J160: =IF(Inputs!$F$71=1,0,D160*Effectiveness!$E$110+J159*(1-Effectiveness!$D$66)) -> 0 | K160: =D160*Effectiveness!$E$111+K159*(1-Effectiveness!$D$67) -> 21.68 | L160: 21.68 | N160: 3208.64
C161: 149 | D161: 1200 | E161: =IF(Inputs!$F$71=1,0,D161*Effectiveness!$E$105+E160*(1-Effectiveness!$D$61)) -> 0 | F161: =IF(Inputs!$F$71=1,0,D161*Effectiveness!$E$106+F160*(1-Effectiveness!$D$62)) -> 0 | G161: =IF(Inputs!$F$71=1,0,D161*Effectiveness!$E$107+G160*(1-Effectiveness!$D$63)) -> 0 | H161: =IF(Inputs!$F$71=1,0,D161*Effectiveness!$E$108+H160*(1-Effectiveness!$D$64)) -> 0 | I161: =IF(Inputs!$F$71=1,0,D161*Effectiveness!$E$109+I160*(1-Effectiveness!$D$65)) -> 0 | J161: =IF(Inputs!$F$71=1,0,D161*Effectiveness!$E$110+J160*(1-Effectiveness!$D$66)) -> 0 | K161: =D161*Effectiveness!$E$111+K160*(1-Effectiveness!$D$67) -> 21.68 | L161: 21.68 | N161: 3230.32
C162: 150 | D162: 1200 | E162: =IF(Inputs!$F$71=1,0,D162*Effectiveness!$E$105+E161*(1-Effectiveness!$D$61)) -> 0 | F162: =IF(Inputs!$F$71=1,0,D162*Effectiveness!$E$106+F161*(1-Effectiveness!$D$62)) -> 0 | G162: =IF(Inputs!$F$71=1,0,D162*Effectiveness!$E$107+G161*(1-Effectiveness!$D$63)) -> 0 | H162: =IF(Inputs!$F$71=1,0,D162*Effectiveness!$E$108+H161*(1-Effectiveness!$D$64)) -> 0 | I162: =IF(Inputs!$F$71=1,0,D162*Effectiveness!$E$109+I161*(1-Effectiveness!$D$65)) -> 0 | J162: =IF(Inputs!$F$71=1,0,D162*Effectiveness!$E$110+J161*(1-Effectiveness!$D$66)) -> 0 | K162: =D162*Effectiveness!$E$111+K161*(1-Effectiveness!$D$67) -> 21.68 | L162: 21.68 | N162: 3252
C163: 151 | D163: 1200 | E163: =IF(Inputs!$F$71=1,0,D163*Effectiveness!$E$105+E162*(1-Effectiveness!$D$61)) -> 0 | F163: =IF(Inputs!$F$71=1,0,D163*Effectiveness!$E$106+F162*(1-Effectiveness!$D$62)) -> 0 | G163: =IF(Inputs!$F$71=1,0,D163*Effectiveness!$E$107+G162*(1-Effectiveness!$D$63)) -> 0 | H163: =IF(Inputs!$F$71=1,0,D163*Effectiveness!$E$108+H162*(1-Effectiveness!$D$64)) -> 0 | I163: =IF(Inputs!$F$71=1,0,D163*Effectiveness!$E$109+I162*(1-Effectiveness!$D$65)) -> 0 | J163: =IF(Inputs!$F$71=1,0,D163*Effectiveness!$E$110+J162*(1-Effectiveness!$D$66)) -> 0 | K163: =D163*Effectiveness!$E$111+K162*(1-Effectiveness!$D$67) -> 21.68 | L163: 21.68 | N163: 3273.68
C164: 152 | D164: 1200 | E164: =IF(Inputs!$F$71=1,0,D164*Effectiveness!$E$105+E163*(1-Effectiveness!$D$61)) -> 0 | F164: =IF(Inputs!$F$71=1,0,D164*Effectiveness!$E$106+F163*(1-Effectiveness!$D$62)) -> 0 | G164: =IF(Inputs!$F$71=1,0,D164*Effectiveness!$E$107+G163*(1-Effectiveness!$D$63)) -> 0 | H164: =IF(Inputs!$F$71=1,0,D164*Effectiveness!$E$108+H163*(1-Effectiveness!$D$64)) -> 0 | I164: =IF(Inputs!$F$71=1,0,D164*Effectiveness!$E$109+I163*(1-Effectiveness!$D$65)) -> 0 | J164: =IF(Inputs!$F$71=1,0,D164*Effectiveness!$E$110+J163*(1-Effectiveness!$D$66)) -> 0 | K164: =D164*Effectiveness!$E$111+K163*(1-Effectiveness!$D$67) -> 21.68 | L164: 21.68 | N164: 3295.36
C165: 153 | D165: 1200 | E165: =IF(Inputs!$F$71=1,0,D165*Effectiveness!$E$105+E164*(1-Effectiveness!$D$61)) -> 0 | F165: =IF(Inputs!$F$71=1,0,D165*Effectiveness!$E$106+F164*(1-Effectiveness!$D$62)) -> 0 | G165: =IF(Inputs!$F$71=1,0,D165*Effectiveness!$E$107+G164*(1-Effectiveness!$D$63)) -> 0 | H165: =IF(Inputs!$F$71=1,0,D165*Effectiveness!$E$108+H164*(1-Effectiveness!$D$64)) -> 0 | I165: =IF(Inputs!$F$71=1,0,D165*Effectiveness!$E$109+I164*(1-Effectiveness!$D$65)) -> 0 | J165: =IF(Inputs!$F$71=1,0,D165*Effectiveness!$E$110+J164*(1-Effectiveness!$D$66)) -> 0 | K165: =D165*Effectiveness!$E$111+K164*(1-Effectiveness!$D$67) -> 21.68 | L165: 21.68 | N165: 3317.04
C166: 154 | D166: 1200 | E166: =IF(Inputs!$F$71=1,0,D166*Effectiveness!$E$105+E165*(1-Effectiveness!$D$61)) -> 0 | F166: =IF(Inputs!$F$71=1,0,D166*Effectiveness!$E$106+F165*(1-Effectiveness!$D$62)) -> 0 | G166: =IF(Inputs!$F$71=1,0,D166*Effectiveness!$E$107+G165*(1-Effectiveness!$D$63)) -> 0 | H166: =IF(Inputs!$F$71=1,0,D166*Effectiveness!$E$108+H165*(1-Effectiveness!$D$64)) -> 0 | I166: =IF(Inputs!$F$71=1,0,D166*Effectiveness!$E$109+I165*(1-Effectiveness!$D$65)) -> 0 | J166: =IF(Inputs!$F$71=1,0,D166*Effectiveness!$E$110+J165*(1-Effectiveness!$D$66)) -> 0 | K166: =D166*Effectiveness!$E$111+K165*(1-Effectiveness!$D$67) -> 21.68 | L166: 21.68 | N166: 3338.72
C167: 155 | D167: 1200 | E167: =IF(Inputs!$F$71=1,0,D167*Effectiveness!$E$105+E166*(1-Effectiveness!$D$61)) -> 0 | F167: =IF(Inputs!$F$71=1,0,D167*Effectiveness!$E$106+F166*(1-Effectiveness!$D$62)) -> 0 | G167: =IF(Inputs!$F$71=1,0,D167*Effectiveness!$E$107+G166*(1-Effectiveness!$D$63)) -> 0 | H167: =IF(Inputs!$F$71=1,0,D167*Effectiveness!$E$108+H166*(1-Effectiveness!$D$64)) -> 0 | I167: =IF(Inputs!$F$71=1,0,D167*Effectiveness!$E$109+I166*(1-Effectiveness!$D$65)) -> 0 | J167: =IF(Inputs!$F$71=1,0,D167*Effectiveness!$E$110+J166*(1-Effectiveness!$D$66)) -> 0 | K167: =D167*Effectiveness!$E$111+K166*(1-Effectiveness!$D$67) -> 21.68 | L167: 21.68 | N167: 3360.4
C168: 156 | D168: 1200 | E168: =IF(Inputs!$F$71=1,0,D168*Effectiveness!$E$105+E167*(1-Effectiveness!$D$61)) -> 0 | F168: =IF(Inputs!$F$71=1,0,D168*Effectiveness!$E$106+F167*(1-Effectiveness!$D$62)) -> 0 | G168: =IF(Inputs!$F$71=1,0,D168*Effectiveness!$E$107+G167*(1-Effectiveness!$D$63)) -> 0 | H168: =IF(Inputs!$F$71=1,0,D168*Effectiveness!$E$108+H167*(1-Effectiveness!$D$64)) -> 0 | I168: =IF(Inputs!$F$71=1,0,D168*Effectiveness!$E$109+I167*(1-Effectiveness!$D$65)) -> 0 | J168: =IF(Inputs!$F$71=1,0,D168*Effectiveness!$E$110+J167*(1-Effectiveness!$D$66)) -> 0 | K168: =D168*Effectiveness!$E$111+K167*(1-Effectiveness!$D$67) -> 21.68 | L168: 21.68 | N168: 3382.08 | O168: 13
C169: 157 | D169: =D168*(1+Inputs!$D$17) -> 1200 | E169: =IF(Inputs!$F$71=1,0,D169*Effectiveness!$E$105+E168*(1-Effectiveness!$D$61)) -> 0 | F169: =IF(Inputs!$F$71=1,0,D169*Effectiveness!$E$106+F168*(1-Effectiveness!$D$62)) -> 0 | G169: =IF(Inputs!$F$71=1,0,D169*Effectiveness!$E$107+G168*(1-Effectiveness!$D$63)) -> 0 | H169: =IF(Inputs!$F$71=1,0,D169*Effectiveness!$E$108+H168*(1-Effectiveness!$D$64)) -> 0 | I169: =IF(Inputs!$F$71=1,0,D169*Effectiveness!$E$109+I168*(1-Effectiveness!$D$65)) -> 0 | J169: =IF(Inputs!$F$71=1,0,D169*Effectiveness!$E$110+J168*(1-Effectiveness!$D$66)) -> 0 | K169: =D169*Effectiveness!$E$111+K168*(1-Effectiveness!$D$67) -> 21.68 | L169: 21.68 | N169: 3403.76
C170: 158 | D170: =D169 -> 1200 | E170: =IF(Inputs!$F$71=1,0,D170*Effectiveness!$E$105+E169*(1-Effectiveness!$D$61)) -> 0 | F170: =IF(Inputs!$F$71=1,0,D170*Effectiveness!$E$106+F169*(1-Effectiveness!$D$62)) -> 0 | G170: =IF(Inputs!$F$71=1,0,D170*Effectiveness!$E$107+G169*(1-Effectiveness!$D$63)) -> 0 | H170: =IF(Inputs!$F$71=1,0,D170*Effectiveness!$E$108+H169*(1-Effectiveness!$D$64)) -> 0 | I170: =IF(Inputs!$F$71=1,0,D170*Effectiveness!$E$109+I169*(1-Effectiveness!$D$65)) -> 0 | J170: =IF(Inputs!$F$71=1,0,D170*Effectiveness!$E$110+J169*(1-Effectiveness!$D$66)) -> 0 | K170: =D170*Effectiveness!$E$111+K169*(1-Effectiveness!$D$67) -> 21.68 | L170: 21.68 | N170: 3425.44
C171: 159 | D171: =D170 -> 1200 | E171: =IF(Inputs!$F$71=1,0,D171*Effectiveness!$E$105+E170*(1-Effectiveness!$D$61)) -> 0 | F171: =IF(Inputs!$F$71=1,0,D171*Effectiveness!$E$106+F170*(1-Effectiveness!$D$62)) -> 0 | G171: =IF(Inputs!$F$71=1,0,D171*Effectiveness!$E$107+G170*(1-Effectiveness!$D$63)) -> 0 | H171: =IF(Inputs!$F$71=1,0,D171*Effectiveness!$E$108+H170*(1-Effectiveness!$D$64)) -> 0 | I171: =IF(Inputs!$F$71=1,0,D171*Effectiveness!$E$109+I170*(1-Effectiveness!$D$65)) -> 0 | J171: =IF(Inputs!$F$71=1,0,D171*Effectiveness!$E$110+J170*(1-Effectiveness!$D$66)) -> 0 | K171: =D171*Effectiveness!$E$111+K170*(1-Effectiveness!$D$67) -> 21.68 | L171: 21.68 | N171: 3447.12
C172: 160 | D172: 1200 | E172: =IF(Inputs!$F$71=1,0,D172*Effectiveness!$E$105+E171*(1-Effectiveness!$D$61)) -> 0 | F172: =IF(Inputs!$F$71=1,0,D172*Effectiveness!$E$106+F171*(1-Effectiveness!$D$62)) -> 0 | G172: =IF(Inputs!$F$71=1,0,D172*Effectiveness!$E$107+G171*(1-Effectiveness!$D$63)) -> 0 | H172: =IF(Inputs!$F$71=1,0,D172*Effectiveness!$E$108+H171*(1-Effectiveness!$D$64)) -> 0 | I172: =IF(Inputs!$F$71=1,0,D172*Effectiveness!$E$109+I171*(1-Effectiveness!$D$65)) -> 0 | J172: =IF(Inputs!$F$71=1,0,D172*Effectiveness!$E$110+J171*(1-Effectiveness!$D$66)) -> 0 | K172: =D172*Effectiveness!$E$111+K171*(1-Effectiveness!$D$67) -> 21.68 | L172: 21.68 | N172: 3468.8
C173: 161 | D173: 1200 | E173: =IF(Inputs!$F$71=1,0,D173*Effectiveness!$E$105+E172*(1-Effectiveness!$D$61)) -> 0 | F173: =IF(Inputs!$F$71=1,0,D173*Effectiveness!$E$106+F172*(1-Effectiveness!$D$62)) -> 0 | G173: =IF(Inputs!$F$71=1,0,D173*Effectiveness!$E$107+G172*(1-Effectiveness!$D$63)) -> 0 | H173: =IF(Inputs!$F$71=1,0,D173*Effectiveness!$E$108+H172*(1-Effectiveness!$D$64)) -> 0 | I173: =IF(Inputs!$F$71=1,0,D173*Effectiveness!$E$109+I172*(1-Effectiveness!$D$65)) -> 0 | J173: =IF(Inputs!$F$71=1,0,D173*Effectiveness!$E$110+J172*(1-Effectiveness!$D$66)) -> 0 | K173: =D173*Effectiveness!$E$111+K172*(1-Effectiveness!$D$67) -> 21.68 | L173: 21.68 | N173: 3490.48
C174: 162 | D174: 1200 | E174: =IF(Inputs!$F$71=1,0,D174*Effectiveness!$E$105+E173*(1-Effectiveness!$D$61)) -> 0 | F174: =IF(Inputs!$F$71=1,0,D174*Effectiveness!$E$106+F173*(1-Effectiveness!$D$62)) -> 0 | G174: =IF(Inputs!$F$71=1,0,D174*Effectiveness!$E$107+G173*(1-Effectiveness!$D$63)) -> 0 | H174: =IF(Inputs!$F$71=1,0,D174*Effectiveness!$E$108+H173*(1-Effectiveness!$D$64)) -> 0 | I174: =IF(Inputs!$F$71=1,0,D174*Effectiveness!$E$109+I173*(1-Effectiveness!$D$65)) -> 0 | J174: =IF(Inputs!$F$71=1,0,D174*Effectiveness!$E$110+J173*(1-Effectiveness!$D$66)) -> 0 | K174: =D174*Effectiveness!$E$111+K173*(1-Effectiveness!$D$67) -> 21.68 | L174: 21.68 | N174: 3512.16
C175: 163 | D175: 1200 | E175: =IF(Inputs!$F$71=1,0,D175*Effectiveness!$E$105+E174*(1-Effectiveness!$D$61)) -> 0 | F175: =IF(Inputs!$F$71=1,0,D175*Effectiveness!$E$106+F174*(1-Effectiveness!$D$62)) -> 0 | G175: =IF(Inputs!$F$71=1,0,D175*Effectiveness!$E$107+G174*(1-Effectiveness!$D$63)) -> 0 | H175: =IF(Inputs!$F$71=1,0,D175*Effectiveness!$E$108+H174*(1-Effectiveness!$D$64)) -> 0 | I175: =IF(Inputs!$F$71=1,0,D175*Effectiveness!$E$109+I174*(1-Effectiveness!$D$65)) -> 0 | J175: =IF(Inputs!$F$71=1,0,D175*Effectiveness!$E$110+J174*(1-Effectiveness!$D$66)) -> 0 | K175: =D175*Effectiveness!$E$111+K174*(1-Effectiveness!$D$67) -> 21.68 | L175: 21.68 | N175: 3533.84
C176: 164 | D176: 1200 | E176: =IF(Inputs!$F$71=1,0,D176*Effectiveness!$E$105+E175*(1-Effectiveness!$D$61)) -> 0 | F176: =IF(Inputs!$F$71=1,0,D176*Effectiveness!$E$106+F175*(1-Effectiveness!$D$62)) -> 0 | G176: =IF(Inputs!$F$71=1,0,D176*Effectiveness!$E$107+G175*(1-Effectiveness!$D$63)) -> 0 | H176: =IF(Inputs!$F$71=1,0,D176*Effectiveness!$E$108+H175*(1-Effectiveness!$D$64)) -> 0 | I176: =IF(Inputs!$F$71=1,0,D176*Effectiveness!$E$109+I175*(1-Effectiveness!$D$65)) -> 0 | J176: =IF(Inputs!$F$71=1,0,D176*Effectiveness!$E$110+J175*(1-Effectiveness!$D$66)) -> 0 | K176: =D176*Effectiveness!$E$111+K175*(1-Effectiveness!$D$67) -> 21.68 | L176: 21.68 | N176: 3555.52
C177: 165 | D177: 1200 | E177: =IF(Inputs!$F$71=1,0,D177*Effectiveness!$E$105+E176*(1-Effectiveness!$D$61)) -> 0 | F177: =IF(Inputs!$F$71=1,0,D177*Effectiveness!$E$106+F176*(1-Effectiveness!$D$62)) -> 0 | G177: =IF(Inputs!$F$71=1,0,D177*Effectiveness!$E$107+G176*(1-Effectiveness!$D$63)) -> 0 | H177: =IF(Inputs!$F$71=1,0,D177*Effectiveness!$E$108+H176*(1-Effectiveness!$D$64)) -> 0 | I177: =IF(Inputs!$F$71=1,0,D177*Effectiveness!$E$109+I176*(1-Effectiveness!$D$65)) -> 0 | J177: =IF(Inputs!$F$71=1,0,D177*Effectiveness!$E$110+J176*(1-Effectiveness!$D$66)) -> 0 | K177: =D177*Effectiveness!$E$111+K176*(1-Effectiveness!$D$67) -> 21.68 | L177: 21.68 | N177: 3577.2
C178: 166 | D178: 1200 | E178: =IF(Inputs!$F$71=1,0,D178*Effectiveness!$E$105+E177*(1-Effectiveness!$D$61)) -> 0 | F178: =IF(Inputs!$F$71=1,0,D178*Effectiveness!$E$106+F177*(1-Effectiveness!$D$62)) -> 0 | G178: =IF(Inputs!$F$71=1,0,D178*Effectiveness!$E$107+G177*(1-Effectiveness!$D$63)) -> 0 | H178: =IF(Inputs!$F$71=1,0,D178*Effectiveness!$E$108+H177*(1-Effectiveness!$D$64)) -> 0 | I178: =IF(Inputs!$F$71=1,0,D178*Effectiveness!$E$109+I177*(1-Effectiveness!$D$65)) -> 0 | J178: =IF(Inputs!$F$71=1,0,D178*Effectiveness!$E$110+J177*(1-Effectiveness!$D$66)) -> 0 | K178: =D178*Effectiveness!$E$111+K177*(1-Effectiveness!$D$67) -> 21.68 | L178: 21.68 | N178: 3598.88
C179: 167 | D179: 1200 | E179: =IF(Inputs!$F$71=1,0,D179*Effectiveness!$E$105+E178*(1-Effectiveness!$D$61)) -> 0 | F179: =IF(Inputs!$F$71=1,0,D179*Effectiveness!$E$106+F178*(1-Effectiveness!$D$62)) -> 0 | G179: =IF(Inputs!$F$71=1,0,D179*Effectiveness!$E$107+G178*(1-Effectiveness!$D$63)) -> 0 | H179: =IF(Inputs!$F$71=1,0,D179*Effectiveness!$E$108+H178*(1-Effectiveness!$D$64)) -> 0 | I179: =IF(Inputs!$F$71=1,0,D179*Effectiveness!$E$109+I178*(1-Effectiveness!$D$65)) -> 0 | J179: =IF(Inputs!$F$71=1,0,D179*Effectiveness!$E$110+J178*(1-Effectiveness!$D$66)) -> 0 | K179: =D179*Effectiveness!$E$111+K178*(1-Effectiveness!$D$67) -> 21.68 | L179: 21.68 | N179: 3620.56
C180: 168 | D180: 1200 | E180: =IF(Inputs!$F$71=1,0,D180*Effectiveness!$E$105+E179*(1-Effectiveness!$D$61)) -> 0 | F180: =IF(Inputs!$F$71=1,0,D180*Effectiveness!$E$106+F179*(1-Effectiveness!$D$62)) -> 0 | G180: =IF(Inputs!$F$71=1,0,D180*Effectiveness!$E$107+G179*(1-Effectiveness!$D$63)) -> 0 | H180: =IF(Inputs!$F$71=1,0,D180*Effectiveness!$E$108+H179*(1-Effectiveness!$D$64)) -> 0 | I180: =IF(Inputs!$F$71=1,0,D180*Effectiveness!$E$109+I179*(1-Effectiveness!$D$65)) -> 0 | J180: =IF(Inputs!$F$71=1,0,D180*Effectiveness!$E$110+J179*(1-Effectiveness!$D$66)) -> 0 | K180: =D180*Effectiveness!$E$111+K179*(1-Effectiveness!$D$67) -> 21.68 | L180: 21.68 | N180: 3642.24 | O180: 14
C181: 169 | D181: =D180*(1+Inputs!$D$17) -> 1200 | E181: =IF(Inputs!$F$71=1,0,D181*Effectiveness!$E$105+E180*(1-Effectiveness!$D$61)) -> 0 | F181: =IF(Inputs!$F$71=1,0,D181*Effectiveness!$E$106+F180*(1-Effectiveness!$D$62)) -> 0 | G181: =IF(Inputs!$F$71=1,0,D181*Effectiveness!$E$107+G180*(1-Effectiveness!$D$63)) -> 0 | H181: =IF(Inputs!$F$71=1,0,D181*Effectiveness!$E$108+H180*(1-Effectiveness!$D$64)) -> 0 | I181: =IF(Inputs!$F$71=1,0,D181*Effectiveness!$E$109+I180*(1-Effectiveness!$D$65)) -> 0 | J181: =IF(Inputs!$F$71=1,0,D181*Effectiveness!$E$110+J180*(1-Effectiveness!$D$66)) -> 0 | K181: =D181*Effectiveness!$E$111+K180*(1-Effectiveness!$D$67) -> 21.68 | L181: 21.68 | N181: 3663.92
C182: 170 | D182: =D181 -> 1200 | E182: =IF(Inputs!$F$71=1,0,D182*Effectiveness!$E$105+E181*(1-Effectiveness!$D$61)) -> 0 | F182: =IF(Inputs!$F$71=1,0,D182*Effectiveness!$E$106+F181*(1-Effectiveness!$D$62)) -> 0 | G182: =IF(Inputs!$F$71=1,0,D182*Effectiveness!$E$107+G181*(1-Effectiveness!$D$63)) -> 0 | H182: =IF(Inputs!$F$71=1,0,D182*Effectiveness!$E$108+H181*(1-Effectiveness!$D$64)) -> 0 | I182: =IF(Inputs!$F$71=1,0,D182*Effectiveness!$E$109+I181*(1-Effectiveness!$D$65)) -> 0 | J182: =IF(Inputs!$F$71=1,0,D182*Effectiveness!$E$110+J181*(1-Effectiveness!$D$66)) -> 0 | K182: =D182*Effectiveness!$E$111+K181*(1-Effectiveness!$D$67) -> 21.68 | L182: 21.68 | N182: 3685.6
C183: 171 | D183: =D182 -> 1200 | E183: =IF(Inputs!$F$71=1,0,D183*Effectiveness!$E$105+E182*(1-Effectiveness!$D$61)) -> 0 | F183: =IF(Inputs!$F$71=1,0,D183*Effectiveness!$E$106+F182*(1-Effectiveness!$D$62)) -> 0 | G183: =IF(Inputs!$F$71=1,0,D183*Effectiveness!$E$107+G182*(1-Effectiveness!$D$63)) -> 0 | H183: =IF(Inputs!$F$71=1,0,D183*Effectiveness!$E$108+H182*(1-Effectiveness!$D$64)) -> 0 | I183: =IF(Inputs!$F$71=1,0,D183*Effectiveness!$E$109+I182*(1-Effectiveness!$D$65)) -> 0 | J183: =IF(Inputs!$F$71=1,0,D183*Effectiveness!$E$110+J182*(1-Effectiveness!$D$66)) -> 0 | K183: =D183*Effectiveness!$E$111+K182*(1-Effectiveness!$D$67) -> 21.68 | L183: 21.68 | N183: 3707.28
C184: 172 | D184: 1200 | E184: =IF(Inputs!$F$71=1,0,D184*Effectiveness!$E$105+E183*(1-Effectiveness!$D$61)) -> 0 | F184: =IF(Inputs!$F$71=1,0,D184*Effectiveness!$E$106+F183*(1-Effectiveness!$D$62)) -> 0 | G184: =IF(Inputs!$F$71=1,0,D184*Effectiveness!$E$107+G183*(1-Effectiveness!$D$63)) -> 0 | H184: =IF(Inputs!$F$71=1,0,D184*Effectiveness!$E$108+H183*(1-Effectiveness!$D$64)) -> 0 | I184: =IF(Inputs!$F$71=1,0,D184*Effectiveness!$E$109+I183*(1-Effectiveness!$D$65)) -> 0 | J184: =IF(Inputs!$F$71=1,0,D184*Effectiveness!$E$110+J183*(1-Effectiveness!$D$66)) -> 0 | K184: =D184*Effectiveness!$E$111+K183*(1-Effectiveness!$D$67) -> 21.68 | L184: 21.68 | N184: 3728.96
C185: 173 | D185: 1200 | E185: =IF(Inputs!$F$71=1,0,D185*Effectiveness!$E$105+E184*(1-Effectiveness!$D$61)) -> 0 | F185: =IF(Inputs!$F$71=1,0,D185*Effectiveness!$E$106+F184*(1-Effectiveness!$D$62)) -> 0 | G185: =IF(Inputs!$F$71=1,0,D185*Effectiveness!$E$107+G184*(1-Effectiveness!$D$63)) -> 0 | H185: =IF(Inputs!$F$71=1,0,D185*Effectiveness!$E$108+H184*(1-Effectiveness!$D$64)) -> 0 | I185: =IF(Inputs!$F$71=1,0,D185*Effectiveness!$E$109+I184*(1-Effectiveness!$D$65)) -> 0 | J185: =IF(Inputs!$F$71=1,0,D185*Effectiveness!$E$110+J184*(1-Effectiveness!$D$66)) -> 0 | K185: =D185*Effectiveness!$E$111+K184*(1-Effectiveness!$D$67) -> 21.68 | L185: 21.68 | N185: 3750.64
C186: 174 | D186: 1200 | E186: =IF(Inputs!$F$71=1,0,D186*Effectiveness!$E$105+E185*(1-Effectiveness!$D$61)) -> 0 | F186: =IF(Inputs!$F$71=1,0,D186*Effectiveness!$E$106+F185*(1-Effectiveness!$D$62)) -> 0 | G186: =IF(Inputs!$F$71=1,0,D186*Effectiveness!$E$107+G185*(1-Effectiveness!$D$63)) -> 0 | H186: =IF(Inputs!$F$71=1,0,D186*Effectiveness!$E$108+H185*(1-Effectiveness!$D$64)) -> 0 | I186: =IF(Inputs!$F$71=1,0,D186*Effectiveness!$E$109+I185*(1-Effectiveness!$D$65)) -> 0 | J186: =IF(Inputs!$F$71=1,0,D186*Effectiveness!$E$110+J185*(1-Effectiveness!$D$66)) -> 0 | K186: =D186*Effectiveness!$E$111+K185*(1-Effectiveness!$D$67) -> 21.68 | L186: 21.68 | N186: 3772.32
C187: 175 | D187: 1200 | E187: =IF(Inputs!$F$71=1,0,D187*Effectiveness!$E$105+E186*(1-Effectiveness!$D$61)) -> 0 | F187: =IF(Inputs!$F$71=1,0,D187*Effectiveness!$E$106+F186*(1-Effectiveness!$D$62)) -> 0 | G187: =IF(Inputs!$F$71=1,0,D187*Effectiveness!$E$107+G186*(1-Effectiveness!$D$63)) -> 0 | H187: =IF(Inputs!$F$71=1,0,D187*Effectiveness!$E$108+H186*(1-Effectiveness!$D$64)) -> 0 | I187: =IF(Inputs!$F$71=1,0,D187*Effectiveness!$E$109+I186*(1-Effectiveness!$D$65)) -> 0 | J187: =IF(Inputs!$F$71=1,0,D187*Effectiveness!$E$110+J186*(1-Effectiveness!$D$66)) -> 0 | K187: =D187*Effectiveness!$E$111+K186*(1-Effectiveness!$D$67) -> 21.68 | L187: 21.68 | N187: 3794
C188: 176 | D188: 1200 | E188: =IF(Inputs!$F$71=1,0,D188*Effectiveness!$E$105+E187*(1-Effectiveness!$D$61)) -> 0 | F188: =IF(Inputs!$F$71=1,0,D188*Effectiveness!$E$106+F187*(1-Effectiveness!$D$62)) -> 0 | G188: =IF(Inputs!$F$71=1,0,D188*Effectiveness!$E$107+G187*(1-Effectiveness!$D$63)) -> 0 | H188: =IF(Inputs!$F$71=1,0,D188*Effectiveness!$E$108+H187*(1-Effectiveness!$D$64)) -> 0 | I188: =IF(Inputs!$F$71=1,0,D188*Effectiveness!$E$109+I187*(1-Effectiveness!$D$65)) -> 0 | J188: =IF(Inputs!$F$71=1,0,D188*Effectiveness!$E$110+J187*(1-Effectiveness!$D$66)) -> 0 | K188: =D188*Effectiveness!$E$111+K187*(1-Effectiveness!$D$67) -> 21.68 | L188: 21.68 | N188: 3815.68
C189: 177 | D189: 1200 | E189: =IF(Inputs!$F$71=1,0,D189*Effectiveness!$E$105+E188*(1-Effectiveness!$D$61)) -> 0 | F189: =IF(Inputs!$F$71=1,0,D189*Effectiveness!$E$106+F188*(1-Effectiveness!$D$62)) -> 0 | G189: =IF(Inputs!$F$71=1,0,D189*Effectiveness!$E$107+G188*(1-Effectiveness!$D$63)) -> 0 | H189: =IF(Inputs!$F$71=1,0,D189*Effectiveness!$E$108+H188*(1-Effectiveness!$D$64)) -> 0 | I189: =IF(Inputs!$F$71=1,0,D189*Effectiveness!$E$109+I188*(1-Effectiveness!$D$65)) -> 0 | J189: =IF(Inputs!$F$71=1,0,D189*Effectiveness!$E$110+J188*(1-Effectiveness!$D$66)) -> 0 | K189: =D189*Effectiveness!$E$111+K188*(1-Effectiveness!$D$67) -> 21.68 | L189: 21.68 | N189: 3837.36
C190: 178 | D190: 1200 | E190: =IF(Inputs!$F$71=1,0,D190*Effectiveness!$E$105+E189*(1-Effectiveness!$D$61)) -> 0 | F190: =IF(Inputs!$F$71=1,0,D190*Effectiveness!$E$106+F189*(1-Effectiveness!$D$62)) -> 0 | G190: =IF(Inputs!$F$71=1,0,D190*Effectiveness!$E$107+G189*(1-Effectiveness!$D$63)) -> 0 | H190: =IF(Inputs!$F$71=1,0,D190*Effectiveness!$E$108+H189*(1-Effectiveness!$D$64)) -> 0 | I190: =IF(Inputs!$F$71=1,0,D190*Effectiveness!$E$109+I189*(1-Effectiveness!$D$65)) -> 0 | J190: =IF(Inputs!$F$71=1,0,D190*Effectiveness!$E$110+J189*(1-Effectiveness!$D$66)) -> 0 | K190: =D190*Effectiveness!$E$111+K189*(1-Effectiveness!$D$67) -> 21.68 | L190: 21.68 | N190: 3859.04
C191: 179 | D191: 1200 | E191: =IF(Inputs!$F$71=1,0,D191*Effectiveness!$E$105+E190*(1-Effectiveness!$D$61)) -> 0 | F191: =IF(Inputs!$F$71=1,0,D191*Effectiveness!$E$106+F190*(1-Effectiveness!$D$62)) -> 0 | G191: =IF(Inputs!$F$71=1,0,D191*Effectiveness!$E$107+G190*(1-Effectiveness!$D$63)) -> 0 | H191: =IF(Inputs!$F$71=1,0,D191*Effectiveness!$E$108+H190*(1-Effectiveness!$D$64)) -> 0 | I191: =IF(Inputs!$F$71=1,0,D191*Effectiveness!$E$109+I190*(1-Effectiveness!$D$65)) -> 0 | J191: =IF(Inputs!$F$71=1,0,D191*Effectiveness!$E$110+J190*(1-Effectiveness!$D$66)) -> 0 | K191: =D191*Effectiveness!$E$111+K190*(1-Effectiveness!$D$67) -> 21.68 | L191: 21.68 | N191: 3880.72
C192: 180 | D192: 1200 | E192: =IF(Inputs!$F$71=1,0,D192*Effectiveness!$E$105+E191*(1-Effectiveness!$D$61)) -> 0 | F192: =IF(Inputs!$F$71=1,0,D192*Effectiveness!$E$106+F191*(1-Effectiveness!$D$62)) -> 0 | G192: =IF(Inputs!$F$71=1,0,D192*Effectiveness!$E$107+G191*(1-Effectiveness!$D$63)) -> 0 | H192: =IF(Inputs!$F$71=1,0,D192*Effectiveness!$E$108+H191*(1-Effectiveness!$D$64)) -> 0 | I192: =IF(Inputs!$F$71=1,0,D192*Effectiveness!$E$109+I191*(1-Effectiveness!$D$65)) -> 0 | J192: =IF(Inputs!$F$71=1,0,D192*Effectiveness!$E$110+J191*(1-Effectiveness!$D$66)) -> 0 | K192: =D192*Effectiveness!$E$111+K191*(1-Effectiveness!$D$67) -> 21.68 | L192: 21.68 | N192: 3902.4 | O192: 15

Sheet Comp Model
C4: Calculations
C11: Month | D11: Cohort | E11: E. Coli | F11: Enterobacter aerogenes | G11: Methicillin-resistant Staphylococcus aureus (MRSA) | H11: Pseudomonas aeruginosa | I11: Staphilococus aureus | J11: Vancomycin-resistant enterococcus faecalis (VRE) | K11: =Inputs!D22 -> All Healthcare Associated Infections | L11: All infections | N11: Cumulative infections | P11: The calculations pages show the number of infections each month and a cumulative figure. These pages are purely for transparency of the model and are for information only.
C12: 0 | D12: =Inputs!$D$16 -> 1200 | E12: 0 | F12: 0 | G12: 0 | H12: 0 | I12: 0 | J12: 0 | K12: 0 | L12: =SUM(E12:K12) -> 0 | N12: =L12 -> 0
C13: 1 | D13: =Inputs!$D$16 -> 1200 | E13: =IF(Inputs!$F$71=1,0,$D$12*Effectiveness!$D$105+E12*(1-Effectiveness!$D$61)) -> 0 | F13: =IF(Inputs!$F$71=1,0,$D$12*Effectiveness!$D$106+F12*(1-Effectiveness!$D$62)) -> 0 | G13: =IF(Inputs!$F$71=1,0,$D$12*Effectiveness!$D$107+G12*(1-Effectiveness!$D$63)) -> 0 | H13: =IF(Inputs!$F$71=1,0,$D$12*Effectiveness!$D$108+H12*(1-Effectiveness!$D$64)) -> 0 | I13: =IF(Inputs!$F$71=1,0,$D$12*Effectiveness!$D$109+I12*(1-Effectiveness!$D$65)) -> 0 | J13: =IF(Inputs!$F$71=1,0,$D$12*Effectiveness!$D$110+J12*(1-Effectiveness!$D$66)) -> 0 | K13: =D13*Effectiveness!$D$111+K12*(1-Effectiveness!$D$67) -> 27.1 | L13: =SUM(E13:K13) -> 27.1 | N13: =L13+N12 -> 27.1
C14: 2 | D14: =Inputs!$D$16 -> 1200 | E14: =IF(Inputs!$F$71=1,0,$D$12*Effectiveness!$D$105+E13*(1-Effectiveness!$D$61)) -> 0 | F14: =IF(Inputs!$F$71=1,0,$D$12*Effectiveness!$D$106+F13*(1-Effectiveness!$D$62)) -> 0 | G14: =IF(Inputs!$F$71=1,0,$D$12*Effectiveness!$D$107+G13*(1-Effectiveness!$D$63)) -> 0 | H14: =IF(Inputs!$F$71=1,0,$D$12*Effectiveness!$D$108+H13*(1-Effectiveness!$D$64)) -> 0 | I14: =IF(Inputs!$F$71=1,0,$D$12*Effectiveness!$D$109+I13*(1-Effectiveness!$D$65)) -> 0 | J14: =IF(Inputs!$F$71=1,0,$D$12*Effectiveness!$D$110+J13*(1-Effectiveness!$D$66)) -> 0 | K14: =D14*Effectiveness!$D$111+K13*(1-Effectiveness!$D$67) -> 27.1 | L14: 27.1 | N14: =L14+N13 -> 54.2
C15: 3 | D15: =Inputs!$D$16 -> 1200 | E15: =IF(Inputs!$F$71=1,0,$D$12*Effectiveness!$D$105+E14*(1-Effectiveness!$D$61)) -> 0 | F15: =IF(Inputs!$F$71=1,0,$D$12*Effectiveness!$D$106+F14*(1-Effectiveness!$D$62)) -> 0 | G15: =IF(Inputs!$F$71=1,0,$D$12*Effectiveness!$D$107+G14*(1-Effectiveness!$D$63)) -> 0 | H15: =IF(Inputs!$F$71=1,0,$D$12*Effectiveness!$D$108+H14*(1-Effectiveness!$D$64)) -> 0 | I15: =IF(Inputs!$F$71=1,0,$D$12*Effectiveness!$D$109+I14*(1-Effectiveness!$D$65)) -> 0 | J15: =IF(Inputs!$F$71=1,0,$D$12*Effectiveness!$D$110+J14*(1-Effectiveness!$D$66)) -> 0 | K15: =D15*Effectiveness!$D$111+K14*(1-Effectiveness!$D$67) -> 27.1 | L15: 27.1 | N15: 81.3
C16: 4 | D16: =Inputs!$D$16 -> 1200 | E16: =IF(Inputs!$F$71=1,0,$D$12*Effectiveness!$D$105+E15*(1-Effectiveness!$D$61)) -> 0 | F16: =IF(Inputs!$F$71=1,0,$D$12*Effectiveness!$D$106+F15*(1-Effectiveness!$D$62)) -> 0 | G16: =IF(Inputs!$F$71=1,0,$D$12*Effectiveness!$D$107+G15*(1-Effectiveness!$D$63)) -> 0 | H16: =IF(Inputs!$F$71=1,0,$D$12*Effectiveness!$D$108+H15*(1-Effectiveness!$D$64)) -> 0 | I16: =IF(Inputs!$F$71=1,0,$D$12*Effectiveness!$D$109+I15*(1-Effectiveness!$D$65)) -> 0 | J16: =IF(Inputs!$F$71=1,0,$D$12*Effectiveness!$D$110+J15*(1-Effectiveness!$D$66)) -> 0 | K16: =D16*Effectiveness!$D$111+K15*(1-Effectiveness!$D$67) -> 27.1 | L16: 27.1 | N16: 108.4
C17: 5 | D17: =Inputs!$D$16 -> 1200 | E17: =IF(Inputs!$F$71=1,0,$D$12*Effectiveness!$D$105+E16*(1-Effectiveness!$D$61)) -> 0 | F17: =IF(Inputs!$F$71=1,0,$D$12*Effectiveness!$D$106+F16*(1-Effectiveness!$D$62)) -> 0 | G17: =IF(Inputs!$F$71=1,0,$D$12*Effectiveness!$D$107+G16*(1-Effectiveness!$D$63)) -> 0 | H17: =IF(Inputs!$F$71=1,0,$D$12*Effectiveness!$D$108+H16*(1-Effectiveness!$D$64)) -> 0 | I17: =IF(Inputs!$F$71=1,0,$D$12*Effectiveness!$D$109+I16*(1-Effectiveness!$D$65)) -> 0 | J17: =IF(Inputs!$F$71=1,0,$D$12*Effectiveness!$D$110+J16*(1-Effectiveness!$D$66)) -> 0 | K17: =D17*Effectiveness!$D$111+K16*(1-Effectiveness!$D$67) -> 27.1 | L17: 27.1 | N17: 135.5
C18: 6 | D18: =Inputs!$D$16 -> 1200 | E18: =IF(Inputs!$F$71=1,0,$D$12*Effectiveness!$D$105+E17*(1-Effectiveness!$D$61)) -> 0 | F18: =IF(Inputs!$F$71=1,0,$D$12*Effectiveness!$D$106+F17*(1-Effectiveness!$D$62)) -> 0 | G18: =IF(Inputs!$F$71=1,0,$D$12*Effectiveness!$D$107+G17*(1-Effectiveness!$D$63)) -> 0 | H18: =IF(Inputs!$F$71=1,0,$D$12*Effectiveness!$D$108+H17*(1-Effectiveness!$D$64)) -> 0 | I18: =IF(Inputs!$F$71=1,0,$D$12*Effectiveness!$D$109+I17*(1-Effectiveness!$D$65)) -> 0 | J18: =IF(Inputs!$F$71=1,0,$D$12*Effectiveness!$D$110+J17*(1-Effectiveness!$D$66)) -> 0 | K18: =D18*Effectiveness!$D$111+K17*(1-Effectiveness!$D$67) -> 27.1 | L18: 27.1 | N18: 162.6
C19: 7 | D19: =Inputs!$D$16 -> 1200 | E19: =IF(Inputs!$F$71=1,0,$D$12*Effectiveness!$D$105+E18*(1-Effectiveness!$D$61)) -> 0 | F19: =IF(Inputs!$F$71=1,0,$D$12*Effectiveness!$D$106+F18*(1-Effectiveness!$D$62)) -> 0 | G19: =IF(Inputs!$F$71=1,0,$D$12*Effectiveness!$D$107+G18*(1-Effectiveness!$D$63)) -> 0 | H19: =IF(Inputs!$F$71=1,0,$D$12*Effectiveness!$D$108+H18*(1-Effectiveness!$D$64)) -> 0 | I19: =IF(Inputs!$F$71=1,0,$D$12*Effectiveness!$D$109+I18*(1-Effectiveness!$D$65)) -> 0 | J19: =IF(Inputs!$F$71=1,0,$D$12*Effectiveness!$D$110+J18*(1-Effectiveness!$D$66)) -> 0 | K19: =D19*Effectiveness!$D$111+K18*(1-Effectiveness!$D$67) -> 27.1 | L19: 27.1 | N19: 189.7
C20: 8 | D20: =Inputs!$D$16 -> 1200 | E20: =IF(Inputs!$F$71=1,0,$D$12*Effectiveness!$D$105+E19*(1-Effectiveness!$D$61)) -> 0 | F20: =IF(Inputs!$F$71=1,0,$D$12*Effectiveness!$D$106+F19*(1-Effectiveness!$D$62)) -> 0 | G20: =IF(Inputs!$F$71=1,0,$D$12*Effectiveness!$D$107+G19*(1-Effectiveness!$D$63)) -> 0 | H20: =IF(Inputs!$F$71=1,0,$D$12*Effectiveness!$D$108+H19*(1-Effectiveness!$D$64)) -> 0 | I20: =IF(Inputs!$F$71=1,0,$D$12*Effectiveness!$D$109+I19*(1-Effectiveness!$D$65)) -> 0 | J20: =IF(Inputs!$F$71=1,0,$D$12*Effectiveness!$D$110+J19*(1-Effectiveness!$D$66)) -> 0 | K20: =D20*Effectiveness!$D$111+K19*(1-Effectiveness!$D$67) -> 27.1 | L20: 27.1 | N20: 216.8
C21: 9 | D21: =Inputs!$D$16 -> 1200 | E21: =IF(Inputs!$F$71=1,0,$D$12*Effectiveness!$D$105+E20*(1-Effectiveness!$D$61)) -> 0 | F21: =IF(Inputs!$F$71=1,0,$D$12*Effectiveness!$D$106+F20*(1-Effectiveness!$D$62)) -> 0 | G21: =IF(Inputs!$F$71=1,0,$D$12*Effectiveness!$D$107+G20*(1-Effectiveness!$D$63)) -> 0 | H21: =IF(Inputs!$F$71=1,0,$D$12*Effectiveness!$D$108+H20*(1-Effectiveness!$D$64)) -> 0 | I21: =IF(Inputs!$F$71=1,0,$D$12*Effectiveness!$D$109+I20*(1-Effectiveness!$D$65)) -> 0 | J21: =IF(Inputs!$F$71=1,0,$D$12*Effectiveness!$D$110+J20*(1-Effectiveness!$D$66)) -> 0 | K21: =D21*Effectiveness!$D$111+K20*(1-Effectiveness!$D$67) -> 27.1 | L21: 27.1 | N21: 243.9
B22: =SUM(E13:E22) -> 0 | C22: 10 | D22: =Inputs!$D$16 -> 1200 | E22: =IF(Inputs!$F$71=1,0,$D$12*Effectiveness!$D$105+E21*(1-Effectiveness!$D$61)) -> 0 | F22: =IF(Inputs!$F$71=1,0,$D$12*Effectiveness!$D$106+F21*(1-Effectiveness!$D$62)) -> 0 | G22: =IF(Inputs!$F$71=1,0,$D$12*Effectiveness!$D$107+G21*(1-Effectiveness!$D$63)) -> 0 | H22: =IF(Inputs!$F$71=1,0,$D$12*Effectiveness!$D$108+H21*(1-Effectiveness!$D$64)) -> 0 | I22: =IF(Inputs!$F$71=1,0,$D$12*Effectiveness!$D$109+I21*(1-Effectiveness!$D$65)) -> 0 | J22: =IF(Inputs!$F$71=1,0,$D$12*Effectiveness!$D$110+J21*(1-Effectiveness!$D$66)) -> 0 | K22: =D22*Effectiveness!$D$111+K21*(1-Effectiveness!$D$67) -> 27.1 | L22: 27.1 | N22: 271
C23: 11 | D23: =Inputs!$D$16 -> 1200 | E23: =IF(Inputs!$F$71=1,0,$D$12*Effectiveness!$D$105+E22*(1-Effectiveness!$D$61)) -> 0 | F23: =IF(Inputs!$F$71=1,0,$D$12*Effectiveness!$D$106+F22*(1-Effectiveness!$D$62)) -> 0 | G23: =IF(Inputs!$F$71=1,0,$D$12*Effectiveness!$D$107+G22*(1-Effectiveness!$D$63)) -> 0 | H23: =IF(Inputs!$F$71=1,0,$D$12*Effectiveness!$D$108+H22*(1-Effectiveness!$D$64)) -> 0 | I23: =IF(Inputs!$F$71=1,0,$D$12*Effectiveness!$D$109+I22*(1-Effectiveness!$D$65)) -> 0 | J23: =IF(Inputs!$F$71=1,0,$D$12*Effectiveness!$D$110+J22*(1-Effectiveness!$D$66)) -> 0 | K23: =D23*Effectiveness!$D$111+K22*(1-Effectiveness!$D$67) -> 27.1 | L23: 27.1 | N23: 298.1
C24: 12 | D24: =Inputs!$D$16 -> 1200 | E24: =IF(Inputs!$F$71=1,0,$D$12*Effectiveness!$D$105+E23*(1-Effectiveness!$D$61)) -> 0 | F24: =IF(Inputs!$F$71=1,0,$D$12*Effectiveness!$D$106+F23*(1-Effectiveness!$D$62)) -> 0 | G24: =IF(Inputs!$F$71=1,0,$D$12*Effectiveness!$D$107+G23*(1-Effectiveness!$D$63)) -> 0 | H24: =IF(Inputs!$F$71=1,0,$D$12*Effectiveness!$D$108+H23*(1-Effectiveness!$D$64)) -> 0 | I24: =IF(Inputs!$F$71=1,0,$D$12*Effectiveness!$D$109+I23*(1-Effectiveness!$D$65)) -> 0 | J24: =IF(Inputs!$F$71=1,0,$D$12*Effectiveness!$D$110+J23*(1-Effectiveness!$D$66)) -> 0 | K24: =D24*Effectiveness!$D$111+K23*(1-Effectiveness!$D$67) -> 27.1 | L24: 27.1 | N24: 325.2
C25: 13 | D25: =D24*(1+Inputs!$D$17) -> 1200 | E25: =IF(Inputs!$F$71=1,0,$D$12*Effectiveness!$D$105+E24*(1-Effectiveness!$D$61)) -> 0 | F25: =IF(Inputs!$F$71=1,0,$D$12*Effectiveness!$D$106+F24*(1-Effectiveness!$D$62)) -> 0 | G25: =IF(Inputs!$F$71=1,0,$D$12*Effectiveness!$D$107+G24*(1-Effectiveness!$D$63)) -> 0 | H25: =IF(Inputs!$F$71=1,0,$D$12*Effectiveness!$D$108+H24*(1-Effectiveness!$D$64)) -> 0 | I25: =IF(Inputs!$F$71=1,0,$D$12*Effectiveness!$D$109+I24*(1-Effectiveness!$D$65)) -> 0 | J25: =IF(Inputs!$F$71=1,0,$D$12*Effectiveness!$D$110+J24*(1-Effectiveness!$D$66)) -> 0 | K25: =D25*Effectiveness!$D$111+K24*(1-Effectiveness!$D$67) -> 27.1 | L25: 27.1 | N25: 352.3
C26: 14 | D26: =D25 -> 1200 | E26: =IF(Inputs!$F$71=1,0,$D$12*Effectiveness!$D$105+E25*(1-Effectiveness!$D$61)) -> 0 | F26: =IF(Inputs!$F$71=1,0,$D$12*Effectiveness!$D$106+F25*(1-Effectiveness!$D$62)) -> 0 | G26: =IF(Inputs!$F$71=1,0,$D$12*Effectiveness!$D$107+G25*(1-Effectiveness!$D$63)) -> 0 | H26: =IF(Inputs!$F$71=1,0,$D$12*Effectiveness!$D$108+H25*(1-Effectiveness!$D$64)) -> 0 | I26: =IF(Inputs!$F$71=1,0,$D$12*Effectiveness!$D$109+I25*(1-Effectiveness!$D$65)) -> 0 | J26: =IF(Inputs!$F$71=1,0,$D$12*Effectiveness!$D$110+J25*(1-Effectiveness!$D$66)) -> 0 | K26: =D26*Effectiveness!$D$111+K25*(1-Effectiveness!$D$67) -> 27.1 | L26: 27.1 | N26: 379.4
C27: 15 | D27: =D26 -> 1200 | E27: =IF(Inputs!$F$71=1,0,$D$12*Effectiveness!$D$105+E26*(1-Effectiveness!$D$61)) -> 0 | F27: =IF(Inputs!$F$71=1,0,$D$12*Effectiveness!$D$106+F26*(1-Effectiveness!$D$62)) -> 0 | G27: =IF(Inputs!$F$71=1,0,$D$12*Effectiveness!$D$107+G26*(1-Effectiveness!$D$63)) -> 0 | H27: =IF(Inputs!$F$71=1,0,$D$12*Effectiveness!$D$108+H26*(1-Effectiveness!$D$64)) -> 0 | I27: =IF(Inputs!$F$71=1,0,$D$12*Effectiveness!$D$109+I26*(1-Effectiveness!$D$65)) -> 0 | J27: =IF(Inputs!$F$71=1,0,$D$12*Effectiveness!$D$110+J26*(1-Effectiveness!$D$66)) -> 0 | K27: =D27*Effectiveness!$D$111+K26*(1-Effectiveness!$D$67) -> 27.1 | L27: 27.1 | N27: 406.5
C28: 16 | D28: 1200 | E28: =IF(Inputs!$F$71=1,0,$D$12*Effectiveness!$D$105+E27*(1-Effectiveness!$D$61)) -> 0 | F28: =IF(Inputs!$F$71=1,0,$D$12*Effectiveness!$D$106+F27*(1-Effectiveness!$D$62)) -> 0 | G28: =IF(Inputs!$F$71=1,0,$D$12*Effectiveness!$D$107+G27*(1-Effectiveness!$D$63)) -> 0 | H28: =IF(Inputs!$F$71=1,0,$D$12*Effectiveness!$D$108+H27*(1-Effectiveness!$D$64)) -> 0 | I28: =IF(Inputs!$F$71=1,0,$D$12*Effectiveness!$D$109+I27*(1-Effectiveness!$D$65)) -> 0 | J28: =IF(Inputs!$F$71=1,0,$D$12*Effectiveness!$D$110+J27*(1-Effectiveness!$D$66)) -> 0 | K28: =D28*Effectiveness!$D$111+K27*(1-Effectiveness!$D$67) -> 27.1 | L28: 27.1 | N28: 433.6
C29: 17 | D29: 1200 | E29: =IF(Inputs!$F$71=1,0,$D$12*Effectiveness!$D$105+E28*(1-Effectiveness!$D$61)) -> 0 | F29: =IF(Inputs!$F$71=1,0,$D$12*Effectiveness!$D$106+F28*(1-Effectiveness!$D$62)) -> 0 | G29: =IF(Inputs!$F$71=1,0,$D$12*Effectiveness!$D$107+G28*(1-Effectiveness!$D$63)) -> 0 | H29: =IF(Inputs!$F$71=1,0,$D$12*Effectiveness!$D$108+H28*(1-Effectiveness!$D$64)) -> 0 | I29: =IF(Inputs!$F$71=1,0,$D$12*Effectiveness!$D$109+I28*(1-Effectiveness!$D$65)) -> 0 | J29: =IF(Inputs!$F$71=1,0,$D$12*Effectiveness!$D$110+J28*(1-Effectiveness!$D$66)) -> 0 | K29: =D29*Effectiveness!$D$111+K28*(1-Effectiveness!$D$67) -> 27.1 | L29: 27.1 | N29: 460.7
C30: 18 | D30: 1200 | E30: =IF(Inputs!$F$71=1,0,$D$12*Effectiveness!$D$105+E29*(1-Effectiveness!$D$61)) -> 0 | F30: =IF(Inputs!$F$71=1,0,$D$12*Effectiveness!$D$106+F29*(1-Effectiveness!$D$62)) -> 0 | G30: =IF(Inputs!$F$71=1,0,$D$12*Effectiveness!$D$107+G29*(1-Effectiveness!$D$63)) -> 0 | H30: =IF(Inputs!$F$71=1,0,$D$12*Effectiveness!$D$108+H29*(1-Effectiveness!$D$64)) -> 0 | I30: =IF(Inputs!$F$71=1,0,$D$12*Effectiveness!$D$109+I29*(1-Effectiveness!$D$65)) -> 0 | J30: =IF(Inputs!$F$71=1,0,$D$12*Effectiveness!$D$110+J29*(1-Effectiveness!$D$66)) -> 0 | K30: =D30*Effectiveness!$D$111+K29*(1-Effectiveness!$D$67) -> 27.1 | L30: 27.1 | N30: 487.8
C31: 19 | D31: 1200 | E31: =IF(Inputs!$F$71=1,0,$D$12*Effectiveness!$D$105+E30*(1-Effectiveness!$D$61)) -> 0 | F31: =IF(Inputs!$F$71=1,0,$D$12*Effectiveness!$D$106+F30*(1-Effectiveness!$D$62)) -> 0 | G31: =IF(Inputs!$F$71=1,0,$D$12*Effectiveness!$D$107+G30*(1-Effectiveness!$D$63)) -> 0 | H31: =IF(Inputs!$F$71=1,0,$D$12*Effectiveness!$D$108+H30*(1-Effectiveness!$D$64)) -> 0 | I31: =IF(Inputs!$F$71=1,0,$D$12*Effectiveness!$D$109+I30*(1-Effectiveness!$D$65)) -> 0 | J31: =IF(Inputs!$F$71=1,0,$D$12*Effectiveness!$D$110+J30*(1-Effectiveness!$D$66)) -> 0 | K31: =D31*Effectiveness!$D$111+K30*(1-Effectiveness!$D$67) -> 27.1 | L31: 27.1 | N31: 514.9
C32: 20 | D32: 1200 | E32: =IF(Inputs!$F$71=1,0,$D$12*Effectiveness!$D$105+E31*(1-Effectiveness!$D$61)) -> 0 | F32: =IF(Inputs!$F$71=1,0,$D$12*Effectiveness!$D$106+F31*(1-Effectiveness!$D$62)) -> 0 | G32: =IF(Inputs!$F$71=1,0,$D$12*Effectiveness!$D$107+G31*(1-Effectiveness!$D$63)) -> 0 | H32: =IF(Inputs!$F$71=1,0,$D$12*Effectiveness!$D$108+H31*(1-Effectiveness!$D$64)) -> 0 | I32: =IF(Inputs!$F$71=1,0,$D$12*Effectiveness!$D$109+I31*(1-Effectiveness!$D$65)) -> 0 | J32: =IF(Inputs!$F$71=1,0,$D$12*Effectiveness!$D$110+J31*(1-Effectiveness!$D$66)) -> 0 | K32: =D32*Effectiveness!$D$111+K31*(1-Effectiveness!$D$67) -> 27.1 | L32: 27.1 | N32: 542
C33: 21 | D33: 1200 | E33: =IF(Inputs!$F$71=1,0,$D$12*Effectiveness!$D$105+E32*(1-Effectiveness!$D$61)) -> 0 | F33: =IF(Inputs!$F$71=1,0,$D$12*Effectiveness!$D$106+F32*(1-Effectiveness!$D$62)) -> 0 | G33: =IF(Inputs!$F$71=1,0,$D$12*Effectiveness!$D$107+G32*(1-Effectiveness!$D$63)) -> 0 | H33: =IF(Inputs!$F$71=1,0,$D$12*Effectiveness!$D$108+H32*(1-Effectiveness!$D$64)) -> 0 | I33: =IF(Inputs!$F$71=1,0,$D$12*Effectiveness!$D$109+I32*(1-Effectiveness!$D$65)) -> 0 | J33: =IF(Inputs!$F$71=1,0,$D$12*Effectiveness!$D$110+J32*(1-Effectiveness!$D$66)) -> 0 | K33: =D33*Effectiveness!$D$111+K32*(1-Effectiveness!$D$67) -> 27.1 | L33: 27.1 | N33: 569.1
C34: 22 | D34: 1200 | E34: =IF(Inputs!$F$71=1,0,$D$12*Effectiveness!$D$105+E33*(1-Effectiveness!$D$61)) -> 0 | F34: =IF(Inputs!$F$71=1,0,$D$12*Effectiveness!$D$106+F33*(1-Effectiveness!$D$62)) -> 0 | G34: =IF(Inputs!$F$71=1,0,$D$12*Effectiveness!$D$107+G33*(1-Effectiveness!$D$63)) -> 0 | H34: =IF(Inputs!$F$71=1,0,$D$12*Effectiveness!$D$108+H33*(1-Effectiveness!$D$64)) -> 0 | I34: =IF(Inputs!$F$71=1,0,$D$12*Effectiveness!$D$109+I33*(1-Effectiveness!$D$65)) -> 0 | J34: =IF(Inputs!$F$71=1,0,$D$12*Effectiveness!$D$110+J33*(1-Effectiveness!$D$66)) -> 0 | K34: =D34*Effectiveness!$D$111+K33*(1-Effectiveness!$D$67) -> 27.1 | L34: 27.1 | N34: 596.2
C35: 23 | D35: 1200 | E35: =IF(Inputs!$F$71=1,0,$D$12*Effectiveness!$D$105+E34*(1-Effectiveness!$D$61)) -> 0 | F35: =IF(Inputs!$F$71=1,0,$D$12*Effectiveness!$D$106+F34*(1-Effectiveness!$D$62)) -> 0 | G35: =IF(Inputs!$F$71=1,0,$D$12*Effectiveness!$D$107+G34*(1-Effectiveness!$D$63)) -> 0 | H35: =IF(Inputs!$F$71=1,0,$D$12*Effectiveness!$D$108+H34*(1-Effectiveness!$D$64)) -> 0 | I35: =IF(Inputs!$F$71=1,0,$D$12*Effectiveness!$D$109+I34*(1-Effectiveness!$D$65)) -> 0 | J35: =IF(Inputs!$F$71=1,0,$D$12*Effectiveness!$D$110+J34*(1-Effectiveness!$D$66)) -> 0 | K35: =D35*Effectiveness!$D$111+K34*(1-Effectiveness!$D$67) -> 27.1 | L35: 27.1 | N35: 623.3
C36: 24 | D36: 1200 | E36: =IF(Inputs!$F$71=1,0,$D$12*Effectiveness!$D$105+E35*(1-Effectiveness!$D$61)) -> 0 | F36: =IF(Inputs!$F$71=1,0,$D$12*Effectiveness!$D$106+F35*(1-Effectiveness!$D$62)) -> 0 | G36: =IF(Inputs!$F$71=1,0,$D$12*Effectiveness!$D$107+G35*(1-Effectiveness!$D$63)) -> 0 | H36: =IF(Inputs!$F$71=1,0,$D$12*Effectiveness!$D$108+H35*(1-Effectiveness!$D$64)) -> 0 | I36: =IF(Inputs!$F$71=1,0,$D$12*Effectiveness!$D$109+I35*(1-Effectiveness!$D$65)) -> 0 | J36: =IF(Inputs!$F$71=1,0,$D$12*Effectiveness!$D$110+J35*(1-Effectiveness!$D$66)) -> 0 | K36: =D36*Effectiveness!$D$111+K35*(1-Effectiveness!$D$67) -> 27.1 | L36: 27.1 | N36: 650.4
C37: 25 | D37: =D36*(1+Inputs!$D$17) -> 1200 | E37: =IF(Inputs!$F$71=1,0,$D$12*Effectiveness!$D$105+E36*(1-Effectiveness!$D$61)) -> 0 | F37: =IF(Inputs!$F$71=1,0,$D$12*Effectiveness!$D$106+F36*(1-Effectiveness!$D$62)) -> 0 | G37: =IF(Inputs!$F$71=1,0,$D$12*Effectiveness!$D$107+G36*(1-Effectiveness!$D$63)) -> 0 | H37: =IF(Inputs!$F$71=1,0,$D$12*Effectiveness!$D$108+H36*(1-Effectiveness!$D$64)) -> 0 | I37: =IF(Inputs!$F$71=1,0,$D$12*Effectiveness!$D$109+I36*(1-Effectiveness!$D$65)) -> 0 | J37: =IF(Inputs!$F$71=1,0,$D$12*Effectiveness!$D$110+J36*(1-Effectiveness!$D$66)) -> 0 | K37: =D37*Effectiveness!$D$111+K36*(1-Effectiveness!$D$67) -> 27.1 | L37: 27.1 | N37: 677.5
C38: 26 | D38: =D37 -> 1200 | E38: =IF(Inputs!$F$71=1,0,$D$12*Effectiveness!$D$105+E37*(1-Effectiveness!$D$61)) -> 0 | F38: =IF(Inputs!$F$71=1,0,$D$12*Effectiveness!$D$106+F37*(1-Effectiveness!$D$62)) -> 0 | G38: =IF(Inputs!$F$71=1,0,$D$12*Effectiveness!$D$107+G37*(1-Effectiveness!$D$63)) -> 0 | H38: =IF(Inputs!$F$71=1,0,$D$12*Effectiveness!$D$108+H37*(1-Effectiveness!$D$64)) -> 0 | I38: =IF(Inputs!$F$71=1,0,$D$12*Effectiveness!$D$109+I37*(1-Effectiveness!$D$65)) -> 0 | J38: =IF(Inputs!$F$71=1,0,$D$12*Effectiveness!$D$110+J37*(1-Effectiveness!$D$66)) -> 0 | K38: =D38*Effectiveness!$D$111+K37*(1-Effectiveness!$D$67) -> 27.1 | L38: 27.1 | N38: 704.6
C39: 27 | D39: =D38 -> 1200 | E39: =IF(Inputs!$F$71=1,0,$D$12*Effectiveness!$D$105+E38*(1-Effectiveness!$D$61)) -> 0 | F39: =IF(Inputs!$F$71=1,0,$D$12*Effectiveness!$D$106+F38*(1-Effectiveness!$D$62)) -> 0 | G39: =IF(Inputs!$F$71=1,0,$D$12*Effectiveness!$D$107+G38*(1-Effectiveness!$D$63)) -> 0 | H39: =IF(Inputs!$F$71=1,0,$D$12*Effectiveness!$D$108+H38*(1-Effectiveness!$D$64)) -> 0 | I39: =IF(Inputs!$F$71=1,0,$D$12*Effectiveness!$D$109+I38*(1-Effectiveness!$D$65)) -> 0 | J39: =IF(Inputs!$F$71=1,0,$D$12*Effectiveness!$D$110+J38*(1-Effectiveness!$D$66)) -> 0 | K39: =D39*Effectiveness!$D$111+K38*(1-Effectiveness!$D$67) -> 27.1 | L39: 27.1 | N39: 731.7
C40: 28 | D40: 1200 | E40: =IF(Inputs!$F$71=1,0,$D$12*Effectiveness!$D$105+E39*(1-Effectiveness!$D$61)) -> 0 | F40: =IF(Inputs!$F$71=1,0,$D$12*Effectiveness!$D$106+F39*(1-Effectiveness!$D$62)) -> 0 | G40: =IF(Inputs!$F$71=1,0,$D$12*Effectiveness!$D$107+G39*(1-Effectiveness!$D$63)) -> 0 | H40: =IF(Inputs!$F$71=1,0,$D$12*Effectiveness!$D$108+H39*(1-Effectiveness!$D$64)) -> 0 | I40: =IF(Inputs!$F$71=1,0,$D$12*Effectiveness!$D$109+I39*(1-Effectiveness!$D$65)) -> 0 | J40: =IF(Inputs!$F$71=1,0,$D$12*Effectiveness!$D$110+J39*(1-Effectiveness!$D$66)) -> 0 | K40: =D40*Effectiveness!$D$111+K39*(1-Effectiveness!$D$67) -> 27.1 | L40: 27.1 | N40: 758.8
C41: 29 | D41: 1200 | E41: =IF(Inputs!$F$71=1,0,$D$12*Effectiveness!$D$105+E40*(1-Effectiveness!$D$61)) -> 0 | F41: =IF(Inputs!$F$71=1,0,$D$12*Effectiveness!$D$106+F40*(1-Effectiveness!$D$62)) -> 0 | G41: =IF(Inputs!$F$71=1,0,$D$12*Effectiveness!$D$107+G40*(1-Effectiveness!$D$63)) -> 0 | H41: =IF(Inputs!$F$71=1,0,$D$12*Effectiveness!$D$108+H40*(1-Effectiveness!$D$64)) -> 0 | I41: =IF(Inputs!$F$71=1,0,$D$12*Effectiveness!$D$109+I40*(1-Effectiveness!$D$65)) -> 0 | J41: =IF(Inputs!$F$71=1,0,$D$12*Effectiveness!$D$110+J40*(1-Effectiveness!$D$66)) -> 0 | K41: =D41*Effectiveness!$D$111+K40*(1-Effectiveness!$D$67) -> 27.1 | L41: 27.1 | N41: 785.9
C42: 30 | D42: 1200 | E42: =IF(Inputs!$F$71=1,0,$D$12*Effectiveness!$D$105+E41*(1-Effectiveness!$D$61)) -> 0 | F42: =IF(Inputs!$F$71=1,0,$D$12*Effectiveness!$D$106+F41*(1-Effectiveness!$D$62)) -> 0 | G42: =IF(Inputs!$F$71=1,0,$D$12*Effectiveness!$D$107+G41*(1-Effectiveness!$D$63)) -> 0 | H42: =IF(Inputs!$F$71=1,0,$D$12*Effectiveness!$D$108+H41*(1-Effectiveness!$D$64)) -> 0 | I42: =IF(Inputs!$F$71=1,0,$D$12*Effectiveness!$D$109+I41*(1-Effectiveness!$D$65)) -> 0 | J42: =IF(Inputs!$F$71=1,0,$D$12*Effectiveness!$D$110+J41*(1-Effectiveness!$D$66)) -> 0 | K42: =D42*Effectiveness!$D$111+K41*(1-Effectiveness!$D$67) -> 27.1 | L42: 27.1 | N42: 813
C43: 31 | D43: 1200 | E43: =IF(Inputs!$F$71=1,0,$D$12*Effectiveness!$D$105+E42*(1-Effectiveness!$D$61)) -> 0 | F43: =IF(Inputs!$F$71=1,0,$D$12*Effectiveness!$D$106+F42*(1-Effectiveness!$D$62)) -> 0 | G43: =IF(Inputs!$F$71=1,0,$D$12*Effectiveness!$D$107+G42*(1-Effectiveness!$D$63)) -> 0 | H43: =IF(Inputs!$F$71=1,0,$D$12*Effectiveness!$D$108+H42*(1-Effectiveness!$D$64)) -> 0 | I43: =IF(Inputs!$F$71=1,0,$D$12*Effectiveness!$D$109+I42*(1-Effectiveness!$D$65)) -> 0 | J43: =IF(Inputs!$F$71=1,0,$D$12*Effectiveness!$D$110+J42*(1-Effectiveness!$D$66)) -> 0 | K43: =D43*Effectiveness!$D$111+K42*(1-Effectiveness!$D$67) -> 27.1 | L43: 27.1 | N43: 840.1
C44: 32 | D44: 1200 | E44: =IF(Inputs!$F$71=1,0,$D$12*Effectiveness!$D$105+E43*(1-Effectiveness!$D$61)) -> 0 | F44: =IF(Inputs!$F$71=1,0,$D$12*Effectiveness!$D$106+F43*(1-Effectiveness!$D$62)) -> 0 | G44: =IF(Inputs!$F$71=1,0,$D$12*Effectiveness!$D$107+G43*(1-Effectiveness!$D$63)) -> 0 | H44: =IF(Inputs!$F$71=1,0,$D$12*Effectiveness!$D$108+H43*(1-Effectiveness!$D$64)) -> 0 | I44: =IF(Inputs!$F$71=1,0,$D$12*Effectiveness!$D$109+I43*(1-Effectiveness!$D$65)) -> 0 | J44: =IF(Inputs!$F$71=1,0,$D$12*Effectiveness!$D$110+J43*(1-Effectiveness!$D$66)) -> 0 | K44: =D44*Effectiveness!$D$111+K43*(1-Effectiveness!$D$67) -> 27.1 | L44: 27.1 | N44: 867.2
C45: 33 | D45: 1200 | E45: =IF(Inputs!$F$71=1,0,$D$12*Effectiveness!$D$105+E44*(1-Effectiveness!$D$61)) -> 0 | F45: =IF(Inputs!$F$71=1,0,$D$12*Effectiveness!$D$106+F44*(1-Effectiveness!$D$62)) -> 0 | G45: =IF(Inputs!$F$71=1,0,$D$12*Effectiveness!$D$107+G44*(1-Effectiveness!$D$63)) -> 0 | H45: =IF(Inputs!$F$71=1,0,$D$12*Effectiveness!$D$108+H44*(1-Effectiveness!$D$64)) -> 0 | I45: =IF(Inputs!$F$71=1,0,$D$12*Effectiveness!$D$109+I44*(1-Effectiveness!$D$65)) -> 0 | J45: =IF(Inputs!$F$71=1,0,$D$12*Effectiveness!$D$110+J44*(1-Effectiveness!$D$66)) -> 0 | K45: =D45*Effectiveness!$D$111+K44*(1-Effectiveness!$D$67) -> 27.1 | L45: 27.1 | N45: 894.3
C46: 34 | D46: 1200 | E46: =IF(Inputs!$F$71=1,0,$D$12*Effectiveness!$D$105+E45*(1-Effectiveness!$D$61)) -> 0 | F46: =IF(Inputs!$F$71=1,0,$D$12*Effectiveness!$D$106+F45*(1-Effectiveness!$D$62)) -> 0 | G46: =IF(Inputs!$F$71=1,0,$D$12*Effectiveness!$D$107+G45*(1-Effectiveness!$D$63)) -> 0 | H46: =IF(Inputs!$F$71=1,0,$D$12*Effectiveness!$D$108+H45*(1-Effectiveness!$D$64)) -> 0 | I46: =IF(Inputs!$F$71=1,0,$D$12*Effectiveness!$D$109+I45*(1-Effectiveness!$D$65)) -> 0 | J46: =IF(Inputs!$F$71=1,0,$D$12*Effectiveness!$D$110+J45*(1-Effectiveness!$D$66)) -> 0 | K46: =D46*Effectiveness!$D$111+K45*(1-Effectiveness!$D$67) -> 27.1 | L46: 27.1 | N46: 921.4
C47: 35 | D47: 1200 | E47: =IF(Inputs!$F$71=1,0,$D$12*Effectiveness!$D$105+E46*(1-Effectiveness!$D$61)) -> 0 | F47: =IF(Inputs!$F$71=1,0,$D$12*Effectiveness!$D$106+F46*(1-Effectiveness!$D$62)) -> 0 | G47: =IF(Inputs!$F$71=1,0,$D$12*Effectiveness!$D$107+G46*(1-Effectiveness!$D$63)) -> 0 | H47: =IF(Inputs!$F$71=1,0,$D$12*Effectiveness!$D$108+H46*(1-Effectiveness!$D$64)) -> 0 | I47: =IF(Inputs!$F$71=1,0,$D$12*Effectiveness!$D$109+I46*(1-Effectiveness!$D$65)) -> 0 | J47: =IF(Inputs!$F$71=1,0,$D$12*Effectiveness!$D$110+J46*(1-Effectiveness!$D$66)) -> 0 | K47: =D47*Effectiveness!$D$111+K46*(1-Effectiveness!$D$67) -> 27.1 | L47: 27.1 | N47: 948.5
C48: 36 | D48: 1200 | E48: =IF(Inputs!$F$71=1,0,$D$12*Effectiveness!$D$105+E47*(1-Effectiveness!$D$61)) -> 0 | F48: =IF(Inputs!$F$71=1,0,$D$12*Effectiveness!$D$106+F47*(1-Effectiveness!$D$62)) -> 0 | G48: =IF(Inputs!$F$71=1,0,$D$12*Effectiveness!$D$107+G47*(1-Effectiveness!$D$63)) -> 0 | H48: =IF(Inputs!$F$71=1,0,$D$12*Effectiveness!$D$108+H47*(1-Effectiveness!$D$64)) -> 0 | I48: =IF(Inputs!$F$71=1,0,$D$12*Effectiveness!$D$109+I47*(1-Effectiveness!$D$65)) -> 0 | J48: =IF(Inputs!$F$71=1,0,$D$12*Effectiveness!$D$110+J47*(1-Effectiveness!$D$66)) -> 0 | K48: =D48*Effectiveness!$D$111+K47*(1-Effectiveness!$D$67) -> 27.1 | L48: 27.1 | N48: 975.6
C49: 37 | D49: =D48*(1+Inputs!$D$17) -> 1200 | E49: =IF(Inputs!$F$71=1,0,$D$12*Effectiveness!$D$105+E48*(1-Effectiveness!$D$61)) -> 0 | F49: =IF(Inputs!$F$71=1,0,$D$12*Effectiveness!$D$106+F48*(1-Effectiveness!$D$62)) -> 0 | G49: =IF(Inputs!$F$71=1,0,$D$12*Effectiveness!$D$107+G48*(1-Effectiveness!$D$63)) -> 0 | H49: =IF(Inputs!$F$71=1,0,$D$12*Effectiveness!$D$108+H48*(1-Effectiveness!$D$64)) -> 0 | I49: =IF(Inputs!$F$71=1,0,$D$12*Effectiveness!$D$109+I48*(1-Effectiveness!$D$65)) -> 0 | J49: =IF(Inputs!$F$71=1,0,$D$12*Effectiveness!$D$110+J48*(1-Effectiveness!$D$66)) -> 0 | K49: =D49*Effectiveness!$D$111+K48*(1-Effectiveness!$D$67) -> 27.1 | L49: 27.1 | N49: 1002.7
C50: 38 | D50: =D49 -> 1200 | E50: =IF(Inputs!$F$71=1,0,$D$12*Effectiveness!$D$105+E49*(1-Effectiveness!$D$61)) -> 0 | F50: =IF(Inputs!$F$71=1,0,$D$12*Effectiveness!$D$106+F49*(1-Effectiveness!$D$62)) -> 0 | G50: =IF(Inputs!$F$71=1,0,$D$12*Effectiveness!$D$107+G49*(1-Effectiveness!$D$63)) -> 0 | H50: =IF(Inputs!$F$71=1,0,$D$12*Effectiveness!$D$108+H49*(1-Effectiveness!$D$64)) -> 0 | I50: =IF(Inputs!$F$71=1,0,$D$12*Effectiveness!$D$109+I49*(1-Effectiveness!$D$65)) -> 0 | J50: =IF(Inputs!$F$71=1,0,$D$12*Effectiveness!$D$110+J49*(1-Effectiveness!$D$66)) -> 0 | K50: =D50*Effectiveness!$D$111+K49*(1-Effectiveness!$D$67) -> 27.1 | L50: 27.1 | N50: 1029.8
C51: 39 | D51: =D50 -> 1200 | E51: =IF(Inputs!$F$71=1,0,$D$12*Effectiveness!$D$105+E50*(1-Effectiveness!$D$61)) -> 0 | F51: =IF(Inputs!$F$71=1,0,$D$12*Effectiveness!$D$106+F50*(1-Effectiveness!$D$62)) -> 0 | G51: =IF(Inputs!$F$71=1,0,$D$12*Effectiveness!$D$107+G50*(1-Effectiveness!$D$63)) -> 0 | H51: =IF(Inputs!$F$71=1,0,$D$12*Effectiveness!$D$108+H50*(1-Effectiveness!$D$64)) -> 0 | I51: =IF(Inputs!$F$71=1,0,$D$12*Effectiveness!$D$109+I50*(1-Effectiveness!$D$65)) -> 0 | J51: =IF(Inputs!$F$71=1,0,$D$12*Effectiveness!$D$110+J50*(1-Effectiveness!$D$66)) -> 0 | K51: =D51*Effectiveness!$D$111+K50*(1-Effectiveness!$D$67) -> 27.1 | L51: 27.1 | N51: 1056.9
C52: 40 | D52: 1200 | E52: =IF(Inputs!$F$71=1,0,$D$12*Effectiveness!$D$105+E51*(1-Effectiveness!$D$61)) -> 0 | F52: =IF(Inputs!$F$71=1,0,$D$12*Effectiveness!$D$106+F51*(1-Effectiveness!$D$62)) -> 0 | G52: =IF(Inputs!$F$71=1,0,$D$12*Effectiveness!$D$107+G51*(1-Effectiveness!$D$63)) -> 0 | H52: =IF(Inputs!$F$71=1,0,$D$12*Effectiveness!$D$108+H51*(1-Effectiveness!$D$64)) -> 0 | I52: =IF(Inputs!$F$71=1,0,$D$12*Effectiveness!$D$109+I51*(1-Effectiveness!$D$65)) -> 0 | J52: =IF(Inputs!$F$71=1,0,$D$12*Effectiveness!$D$110+J51*(1-Effectiveness!$D$66)) -> 0 | K52: =D52*Effectiveness!$D$111+K51*(1-Effectiveness!$D$67) -> 27.1 | L52: 27.1 | N52: 1084
C53: 41 | D53: 1200 | E53: =IF(Inputs!$F$71=1,0,$D$12*Effectiveness!$D$105+E52*(1-Effectiveness!$D$61)) -> 0 | F53: =IF(Inputs!$F$71=1,0,$D$12*Effectiveness!$D$106+F52*(1-Effectiveness!$D$62)) -> 0 | G53: =IF(Inputs!$F$71=1,0,$D$12*Effectiveness!$D$107+G52*(1-Effectiveness!$D$63)) -> 0 | H53: =IF(Inputs!$F$71=1,0,$D$12*Effectiveness!$D$108+H52*(1-Effectiveness!$D$64)) -> 0 | I53: =IF(Inputs!$F$71=1,0,$D$12*Effectiveness!$D$109+I52*(1-Effectiveness!$D$65)) -> 0 | J53: =IF(Inputs!$F$71=1,0,$D$12*Effectiveness!$D$110+J52*(1-Effectiveness!$D$66)) -> 0 | K53: =D53*Effectiveness!$D$111+K52*(1-Effectiveness!$D$67) -> 27.1 | L53: 27.1 | N53: 1111.1
C54: 42 | D54: 1200 | E54: =IF(Inputs!$F$71=1,0,$D$12*Effectiveness!$D$105+E53*(1-Effectiveness!$D$61)) -> 0 | F54: =IF(Inputs!$F$71=1,0,$D$12*Effectiveness!$D$106+F53*(1-Effectiveness!$D$62)) -> 0 | G54: =IF(Inputs!$F$71=1,0,$D$12*Effectiveness!$D$107+G53*(1-Effectiveness!$D$63)) -> 0 | H54: =IF(Inputs!$F$71=1,0,$D$12*Effectiveness!$D$108+H53*(1-Effectiveness!$D$64)) -> 0 | I54: =IF(Inputs!$F$71=1,0,$D$12*Effectiveness!$D$109+I53*(1-Effectiveness!$D$65)) -> 0 | J54: =IF(Inputs!$F$71=1,0,$D$12*Effectiveness!$D$110+J53*(1-Effectiveness!$D$66)) -> 0 | K54: =D54*Effectiveness!$D$111+K53*(1-Effectiveness!$D$67) -> 27.1 | L54: 27.1 | N54: 1138.2
C55: 43 | D55: 1200 | E55: =IF(Inputs!$F$71=1,0,$D$12*Effectiveness!$D$105+E54*(1-Effectiveness!$D$61)) -> 0 | F55: =IF(Inputs!$F$71=1,0,$D$12*Effectiveness!$D$106+F54*(1-Effectiveness!$D$62)) -> 0 | G55: =IF(Inputs!$F$71=1,0,$D$12*Effectiveness!$D$107+G54*(1-Effectiveness!$D$63)) -> 0 | H55: =IF(Inputs!$F$71=1,0,$D$12*Effectiveness!$D$108+H54*(1-Effectiveness!$D$64)) -> 0 | I55: =IF(Inputs!$F$71=1,0,$D$12*Effectiveness!$D$109+I54*(1-Effectiveness!$D$65)) -> 0 | J55: =IF(Inputs!$F$71=1,0,$D$12*Effectiveness!$D$110+J54*(1-Effectiveness!$D$66)) -> 0 | K55: =D55*Effectiveness!$D$111+K54*(1-Effectiveness!$D$67) -> 27.1 | L55: 27.1 | N55: 1165.3
C56: 44 | D56: 1200 | E56: =IF(Inputs!$F$71=1,0,$D$12*Effectiveness!$D$105+E55*(1-Effectiveness!$D$61)) -> 0 | F56: =IF(Inputs!$F$71=1,0,$D$12*Effectiveness!$D$106+F55*(1-Effectiveness!$D$62)) -> 0 | G56: =IF(Inputs!$F$71=1,0,$D$12*Effectiveness!$D$107+G55*(1-Effectiveness!$D$63)) -> 0 | H56: =IF(Inputs!$F$71=1,0,$D$12*Effectiveness!$D$108+H55*(1-Effectiveness!$D$64)) -> 0 | I56: =IF(Inputs!$F$71=1,0,$D$12*Effectiveness!$D$109+I55*(1-Effectiveness!$D$65)) -> 0 | J56: =IF(Inputs!$F$71=1,0,$D$12*Effectiveness!$D$110+J55*(1-Effectiveness!$D$66)) -> 0 | K56: =D56*Effectiveness!$D$111+K55*(1-Effectiveness!$D$67) -> 27.1 | L56: 27.1 | N56: 1192.4
C57: 45 | D57: 1200 | E57: =IF(Inputs!$F$71=1,0,$D$12*Effectiveness!$D$105+E56*(1-Effectiveness!$D$61)) -> 0 | F57: =IF(Inputs!$F$71=1,0,$D$12*Effectiveness!$D$106+F56*(1-Effectiveness!$D$62)) -> 0 | G57: =IF(Inputs!$F$71=1,0,$D$12*Effectiveness!$D$107+G56*(1-Effectiveness!$D$63)) -> 0 | H57: =IF(Inputs!$F$71=1,0,$D$12*Effectiveness!$D$108+H56*(1-Effectiveness!$D$64)) -> 0 | I57: =IF(Inputs!$F$71=1,0,$D$12*Effectiveness!$D$109+I56*(1-Effectiveness!$D$65)) -> 0 | J57: =IF(Inputs!$F$71=1,0,$D$12*Effectiveness!$D$110+J56*(1-Effectiveness!$D$66)) -> 0 | K57: =D57*Effectiveness!$D$111+K56*(1-Effectiveness!$D$67) -> 27.1 | L57: 27.1 | N57: 1219.5
C58: 46 | D58: 1200 | E58: =IF(Inputs!$F$71=1,0,$D$12*Effectiveness!$D$105+E57*(1-Effectiveness!$D$61)) -> 0 | F58: =IF(Inputs!$F$71=1,0,$D$12*Effectiveness!$D$106+F57*(1-Effectiveness!$D$62)) -> 0 | G58: =IF(Inputs!$F$71=1,0,$D$12*Effectiveness!$D$107+G57*(1-Effectiveness!$D$63)) -> 0 | H58: =IF(Inputs!$F$71=1,0,$D$12*Effectiveness!$D$108+H57*(1-Effectiveness!$D$64)) -> 0 | I58: =IF(Inputs!$F$71=1,0,$D$12*Effectiveness!$D$109+I57*(1-Effectiveness!$D$65)) -> 0 | J58: =IF(Inputs!$F$71=1,0,$D$12*Effectiveness!$D$110+J57*(1-Effectiveness!$D$66)) -> 0 | K58: =D58*Effectiveness!$D$111+K57*(1-Effectiveness!$D$67) -> 27.1 | L58: 27.1 | N58: 1246.6
C59: 47 | D59: 1200 | E59: =IF(Inputs!$F$71=1,0,$D$12*Effectiveness!$D$105+E58*(1-Effectiveness!$D$61)) -> 0 | F59: =IF(Inputs!$F$71=1,0,$D$12*Effectiveness!$D$106+F58*(1-Effectiveness!$D$62)) -> 0 | G59: =IF(Inputs!$F$71=1,0,$D$12*Effectiveness!$D$107+G58*(1-Effectiveness!$D$63)) -> 0 | H59: =IF(Inputs!$F$71=1,0,$D$12*Effectiveness!$D$108+H58*(1-Effectiveness!$D$64)) -> 0 | I59: =IF(Inputs!$F$71=1,0,$D$12*Effectiveness!$D$109+I58*(1-Effectiveness!$D$65)) -> 0 | J59: =IF(Inputs!$F$71=1,0,$D$12*Effectiveness!$D$110+J58*(1-Effectiveness!$D$66)) -> 0 | K59: =D59*Effectiveness!$D$111+K58*(1-Effectiveness!$D$67) -> 27.1 | L59: 27.1 | N59: 1273.7
C60: 48 | D60: 1200 | E60: =IF(Inputs!$F$71=1,0,$D$12*Effectiveness!$D$105+E59*(1-Effectiveness!$D$61)) -> 0 | F60: =IF(Inputs!$F$71=1,0,$D$12*Effectiveness!$D$106+F59*(1-Effectiveness!$D$62)) -> 0 | G60: =IF(Inputs!$F$71=1,0,$D$12*Effectiveness!$D$107+G59*(1-Effectiveness!$D$63)) -> 0 | H60: =IF(Inputs!$F$71=1,0,$D$12*Effectiveness!$D$108+H59*(1-Effectiveness!$D$64)) -> 0 | I60: =IF(Inputs!$F$71=1,0,$D$12*Effectiveness!$D$109+I59*(1-Effectiveness!$D$65)) -> 0 | J60: =IF(Inputs!$F$71=1,0,$D$12*Effectiveness!$D$110+J59*(1-Effectiveness!$D$66)) -> 0 | K60: =D60*Effectiveness!$D$111+K59*(1-Effectiveness!$D$67) -> 27.1 | L60: 27.1 | N60: 1300.8
C61: 49 | D61: =D60*(1+Inputs!$D$17) -> 1200 | E61: =IF(Inputs!$F$71=1,0,$D$12*Effectiveness!$D$105+E60*(1-Effectiveness!$D$61)) -> 0 | F61: =IF(Inputs!$F$71=1,0,$D$12*Effectiveness!$D$106+F60*(1-Effectiveness!$D$62)) -> 0 | G61: =IF(Inputs!$F$71=1,0,$D$12*Effectiveness!$D$107+G60*(1-Effectiveness!$D$63)) -> 0 | H61: =IF(Inputs!$F$71=1,0,$D$12*Effectiveness!$D$108+H60*(1-Effectiveness!$D$64)) -> 0 | I61: =IF(Inputs!$F$71=1,0,$D$12*Effectiveness!$D$109+I60*(1-Effectiveness!$D$65)) -> 0 | J61: =IF(Inputs!$F$71=1,0,$D$12*Effectiveness!$D$110+J60*(1-Effectiveness!$D$66)) -> 0 | K61: =D61*Effectiveness!$D$111+K60*(1-Effectiveness!$D$67) -> 27.1 | L61: 27.1 | N61: 1327.9
C62: 50 | D62: =D61 -> 1200 | E62: =IF(Inputs!$F$71=1,0,$D$12*Effectiveness!$D$105+E61*(1-Effectiveness!$D$61)) -> 0 | F62: =IF(Inputs!$F$71=1,0,$D$12*Effectiveness!$D$106+F61*(1-Effectiveness!$D$62)) -> 0 | G62: =IF(Inputs!$F$71=1,0,$D$12*Effectiveness!$D$107+G61*(1-Effectiveness!$D$63)) -> 0 | H62: =IF(Inputs!$F$71=1,0,$D$12*Effectiveness!$D$108+H61*(1-Effectiveness!$D$64)) -> 0 | I62: =IF(Inputs!$F$71=1,0,$D$12*Effectiveness!$D$109+I61*(1-Effectiveness!$D$65)) -> 0 | J62: =IF(Inputs!$F$71=1,0,$D$12*Effectiveness!$D$110+J61*(1-Effectiveness!$D$66)) -> 0 | K62: =D62*Effectiveness!$D$111+K61*(1-Effectiveness!$D$67) -> 27.1 | L62: 27.1 | N62: 1355
C63: 51 | D63: =D62 -> 1200 | E63: =IF(Inputs!$F$71=1,0,$D$12*Effectiveness!$D$105+E62*(1-Effectiveness!$D$61)) -> 0 | F63: =IF(Inputs!$F$71=1,0,$D$12*Effectiveness!$D$106+F62*(1-Effectiveness!$D$62)) -> 0 | G63: =IF(Inputs!$F$71=1,0,$D$12*Effectiveness!$D$107+G62*(1-Effectiveness!$D$63)) -> 0 | H63: =IF(Inputs!$F$71=1,0,$D$12*Effectiveness!$D$108+H62*(1-Effectiveness!$D$64)) -> 0 | I63: =IF(Inputs!$F$71=1,0,$D$12*Effectiveness!$D$109+I62*(1-Effectiveness!$D$65)) -> 0 | J63: =IF(Inputs!$F$71=1,0,$D$12*Effectiveness!$D$110+J62*(1-Effectiveness!$D$66)) -> 0 | K63: =D63*Effectiveness!$D$111+K62*(1-Effectiveness!$D$67) -> 27.1 | L63: 27.1 | N63: 1382.1
C64: 52 | D64: 1200 | E64: =IF(Inputs!$F$71=1,0,$D$12*Effectiveness!$D$105+E63*(1-Effectiveness!$D$61)) -> 0 | F64: =IF(Inputs!$F$71=1,0,$D$12*Effectiveness!$D$106+F63*(1-Effectiveness!$D$62)) -> 0 | G64: =IF(Inputs!$F$71=1,0,$D$12*Effectiveness!$D$107+G63*(1-Effectiveness!$D$63)) -> 0 | H64: =IF(Inputs!$F$71=1,0,$D$12*Effectiveness!$D$108+H63*(1-Effectiveness!$D$64)) -> 0 | I64: =IF(Inputs!$F$71=1,0,$D$12*Effectiveness!$D$109+I63*(1-Effectiveness!$D$65)) -> 0 | J64: =IF(Inputs!$F$71=1,0,$D$12*Effectiveness!$D$110+J63*(1-Effectiveness!$D$66)) -> 0 | K64: =D64*Effectiveness!$D$111+K63*(1-Effectiveness!$D$67) -> 27.1 | L64: 27.1 | N64: 1409.2
C65: 53 | D65: 1200 | E65: =IF(Inputs!$F$71=1,0,$D$12*Effectiveness!$D$105+E64*(1-Effectiveness!$D$61)) -> 0 | F65: =IF(Inputs!$F$71=1,0,$D$12*Effectiveness!$D$106+F64*(1-Effectiveness!$D$62)) -> 0 | G65: =IF(Inputs!$F$71=1,0,$D$12*Effectiveness!$D$107+G64*(1-Effectiveness!$D$63)) -> 0 | H65: =IF(Inputs!$F$71=1,0,$D$12*Effectiveness!$D$108+H64*(1-Effectiveness!$D$64)) -> 0 | I65: =IF(Inputs!$F$71=1,0,$D$12*Effectiveness!$D$109+I64*(1-Effectiveness!$D$65)) -> 0 | J65: =IF(Inputs!$F$71=1,0,$D$12*Effectiveness!$D$110+J64*(1-Effectiveness!$D$66)) -> 0 | K65: =D65*Effectiveness!$D$111+K64*(1-Effectiveness!$D$67) -> 27.1 | L65: 27.1 | N65: 1436.3
C66: 54 | D66: 1200 | E66: =IF(Inputs!$F$71=1,0,$D$12*Effectiveness!$D$105+E65*(1-Effectiveness!$D$61)) -> 0 | F66: =IF(Inputs!$F$71=1,0,$D$12*Effectiveness!$D$106+F65*(1-Effectiveness!$D$62)) -> 0 | G66: =IF(Inputs!$F$71=1,0,$D$12*Effectiveness!$D$107+G65*(1-Effectiveness!$D$63)) -> 0 | H66: =IF(Inputs!$F$71=1,0,$D$12*Effectiveness!$D$108+H65*(1-Effectiveness!$D$64)) -> 0 | I66: =IF(Inputs!$F$71=1,0,$D$12*Effectiveness!$D$109+I65*(1-Effectiveness!$D$65)) -> 0 | J66: =IF(Inputs!$F$71=1,0,$D$12*Effectiveness!$D$110+J65*(1-Effectiveness!$D$66)) -> 0 | K66: =D66*Effectiveness!$D$111+K65*(1-Effectiveness!$D$67) -> 27.1 | L66: 27.1 | N66: 1463.4
C67: 55 | D67: 1200 | E67: =IF(Inputs!$F$71=1,0,$D$12*Effectiveness!$D$105+E66*(1-Effectiveness!$D$61)) -> 0 | F67: =IF(Inputs!$F$71=1,0,$D$12*Effectiveness!$D$106+F66*(1-Effectiveness!$D$62)) -> 0 | G67: =IF(Inputs!$F$71=1,0,$D$12*Effectiveness!$D$107+G66*(1-Effectiveness!$D$63)) -> 0 | H67: =IF(Inputs!$F$71=1,0,$D$12*Effectiveness!$D$108+H66*(1-Effectiveness!$D$64)) -> 0 | I67: =IF(Inputs!$F$71=1,0,$D$12*Effectiveness!$D$109+I66*(1-Effectiveness!$D$65)) -> 0 | J67: =IF(Inputs!$F$71=1,0,$D$12*Effectiveness!$D$110+J66*(1-Effectiveness!$D$66)) -> 0 | K67: =D67*Effectiveness!$D$111+K66*(1-Effectiveness!$D$67) -> 27.1 | L67: 27.1 | N67: 1490.5
C68: 56 | D68: 1200 | E68: =IF(Inputs!$F$71=1,0,$D$12*Effectiveness!$D$105+E67*(1-Effectiveness!$D$61)) -> 0 | F68: =IF(Inputs!$F$71=1,0,$D$12*Effectiveness!$D$106+F67*(1-Effectiveness!$D$62)) -> 0 | G68: =IF(Inputs!$F$71=1,0,$D$12*Effectiveness!$D$107+G67*(1-Effectiveness!$D$63)) -> 0 | H68: =IF(Inputs!$F$71=1,0,$D$12*Effectiveness!$D$108+H67*(1-Effectiveness!$D$64)) -> 0 | I68: =IF(Inputs!$F$71=1,0,$D$12*Effectiveness!$D$109+I67*(1-Effectiveness!$D$65)) -> 0 | J68: =IF(Inputs!$F$71=1,0,$D$12*Effectiveness!$D$110+J67*(1-Effectiveness!$D$66)) -> 0 | K68: =D68*Effectiveness!$D$111+K67*(1-Effectiveness!$D$67) -> 27.1 | L68: 27.1 | N68: 1517.6
C69: 57 | D69: 1200 | E69: =IF(Inputs!$F$71=1,0,$D$12*Effectiveness!$D$105+E68*(1-Effectiveness!$D$61)) -> 0 | F69: =IF(Inputs!$F$71=1,0,$D$12*Effectiveness!$D$106+F68*(1-Effectiveness!$D$62)) -> 0 | G69: =IF(Inputs!$F$71=1,0,$D$12*Effectiveness!$D$107+G68*(1-Effectiveness!$D$63)) -> 0 | H69: =IF(Inputs!$F$71=1,0,$D$12*Effectiveness!$D$108+H68*(1-Effectiveness!$D$64)) -> 0 | I69: =IF(Inputs!$F$71=1,0,$D$12*Effectiveness!$D$109+I68*(1-Effectiveness!$D$65)) -> 0 | J69: =IF(Inputs!$F$71=1,0,$D$12*Effectiveness!$D$110+J68*(1-Effectiveness!$D$66)) -> 0 | K69: =D69*Effectiveness!$D$111+K68*(1-Effectiveness!$D$67) -> 27.1 | L69: 27.1 | N69: 1544.7
C70: 58 | D70: 1200 | E70: =IF(Inputs!$F$71=1,0,$D$12*Effectiveness!$D$105+E69*(1-Effectiveness!$D$61)) -> 0 | F70: =IF(Inputs!$F$71=1,0,$D$12*Effectiveness!$D$106+F69*(1-Effectiveness!$D$62)) -> 0 | G70: =IF(Inputs!$F$71=1,0,$D$12*Effectiveness!$D$107+G69*(1-Effectiveness!$D$63)) -> 0 | H70: =IF(Inputs!$F$71=1,0,$D$12*Effectiveness!$D$108+H69*(1-Effectiveness!$D$64)) -> 0 | I70: =IF(Inputs!$F$71=1,0,$D$12*Effectiveness!$D$109+I69*(1-Effectiveness!$D$65)) -> 0 | J70: =IF(Inputs!$F$71=1,0,$D$12*Effectiveness!$D$110+J69*(1-Effectiveness!$D$66)) -> 0 | K70: =D70*Effectiveness!$D$111+K69*(1-Effectiveness!$D$67) -> 27.1 | L70: 27.1 | N70: 1571.8
C71: 59 | D71: 1200 | E71: =IF(Inputs!$F$71=1,0,$D$12*Effectiveness!$D$105+E70*(1-Effectiveness!$D$61)) -> 0 | F71: =IF(Inputs!$F$71=1,0,$D$12*Effectiveness!$D$106+F70*(1-Effectiveness!$D$62)) -> 0 | G71: =IF(Inputs!$F$71=1,0,$D$12*Effectiveness!$D$107+G70*(1-Effectiveness!$D$63)) -> 0 | H71: =IF(Inputs!$F$71=1,0,$D$12*Effectiveness!$D$108+H70*(1-Effectiveness!$D$64)) -> 0 | I71: =IF(Inputs!$F$71=1,0,$D$12*Effectiveness!$D$109+I70*(1-Effectiveness!$D$65)) -> 0 | J71: =IF(Inputs!$F$71=1,0,$D$12*Effectiveness!$D$110+J70*(1-Effectiveness!$D$66)) -> 0 | K71: =D71*Effectiveness!$D$111+K70*(1-Effectiveness!$D$67) -> 27.1 | L71: 27.1 | N71: 1598.9
C72: 60 | D72: 1200 | E72: =IF(Inputs!$F$71=1,0,$D$12*Effectiveness!$D$105+E71*(1-Effectiveness!$D$61)) -> 0 | F72: =IF(Inputs!$F$71=1,0,$D$12*Effectiveness!$D$106+F71*(1-Effectiveness!$D$62)) -> 0 | G72: =IF(Inputs!$F$71=1,0,$D$12*Effectiveness!$D$107+G71*(1-Effectiveness!$D$63)) -> 0 | H72: =IF(Inputs!$F$71=1,0,$D$12*Effectiveness!$D$108+H71*(1-Effectiveness!$D$64)) -> 0 | I72: =IF(Inputs!$F$71=1,0,$D$12*Effectiveness!$D$109+I71*(1-Effectiveness!$D$65)) -> 0 | J72: =IF(Inputs!$F$71=1,0,$D$12*Effectiveness!$D$110+J71*(1-Effectiveness!$D$66)) -> 0 | K72: =D72*Effectiveness!$D$111+K71*(1-Effectiveness!$D$67) -> 27.1 | L72: 27.1 | N72: 1626
C73: 61 | D73: =D72*(1+Inputs!$D$17) -> 1200 | E73: =IF(Inputs!$F$71=1,0,$D$12*Effectiveness!$D$105+E72*(1-Effectiveness!$D$61)) -> 0 | F73: =IF(Inputs!$F$71=1,0,$D$12*Effectiveness!$D$106+F72*(1-Effectiveness!$D$62)) -> 0 | G73: =IF(Inputs!$F$71=1,0,$D$12*Effectiveness!$D$107+G72*(1-Effectiveness!$D$63)) -> 0 | H73: =IF(Inputs!$F$71=1,0,$D$12*Effectiveness!$D$108+H72*(1-Effectiveness!$D$64)) -> 0 | I73: =IF(Inputs!$F$71=1,0,$D$12*Effectiveness!$D$109+I72*(1-Effectiveness!$D$65)) -> 0 | J73: =IF(Inputs!$F$71=1,0,$D$12*Effectiveness!$D$110+J72*(1-Effectiveness!$D$66)) -> 0 | K73: =D73*Effectiveness!$D$111+K72*(1-Effectiveness!$D$67) -> 27.1 | L73: 27.1 | N73: 1653.1
C74: 62 | D74: =D73 -> 1200 | E74: =IF(Inputs!$F$71=1,0,$D$12*Effectiveness!$D$105+E73*(1-Effectiveness!$D$61)) -> 0 | F74: =IF(Inputs!$F$71=1,0,$D$12*Effectiveness!$D$106+F73*(1-Effectiveness!$D$62)) -> 0 | G74: =IF(Inputs!$F$71=1,0,$D$12*Effectiveness!$D$107+G73*(1-Effectiveness!$D$63)) -> 0 | H74: =IF(Inputs!$F$71=1,0,$D$12*Effectiveness!$D$108+H73*(1-Effectiveness!$D$64)) -> 0 | I74: =IF(Inputs!$F$71=1,0,$D$12*Effectiveness!$D$109+I73*(1-Effectiveness!$D$65)) -> 0 | J74: =IF(Inputs!$F$71=1,0,$D$12*Effectiveness!$D$110+J73*(1-Effectiveness!$D$66)) -> 0 | K74: =D74*Effectiveness!$D$111+K73*(1-Effectiveness!$D$67) -> 27.1 | L74: 27.1 | N74: 1680.2
C75: 63 | D75: =D74 -> 1200 | E75: =IF(Inputs!$F$71=1,0,$D$12*Effectiveness!$D$105+E74*(1-Effectiveness!$D$61)) -> 0 | F75: =IF(Inputs!$F$71=1,0,$D$12*Effectiveness!$D$106+F74*(1-Effectiveness!$D$62)) -> 0 | G75: =IF(Inputs!$F$71=1,0,$D$12*Effectiveness!$D$107+G74*(1-Effectiveness!$D$63)) -> 0 | H75: =IF(Inputs!$F$71=1,0,$D$12*Effectiveness!$D$108+H74*(1-Effectiveness!$D$64)) -> 0 | I75: =IF(Inputs!$F$71=1,0,$D$12*Effectiveness!$D$109+I74*(1-Effectiveness!$D$65)) -> 0 | J75: =IF(Inputs!$F$71=1,0,$D$12*Effectiveness!$D$110+J74*(1-Effectiveness!$D$66)) -> 0 | K75: =D75*Effectiveness!$D$111+K74*(1-Effectiveness!$D$67) -> 27.1 | L75: 27.1 | N75: 1707.3
C76: 64 | D76: 1200 | E76: =IF(Inputs!$F$71=1,0,$D$12*Effectiveness!$D$105+E75*(1-Effectiveness!$D$61)) -> 0 | F76: =IF(Inputs!$F$71=1,0,$D$12*Effectiveness!$D$106+F75*(1-Effectiveness!$D$62)) -> 0 | G76: =IF(Inputs!$F$71=1,0,$D$12*Effectiveness!$D$107+G75*(1-Effectiveness!$D$63)) -> 0 | H76: =IF(Inputs!$F$71=1,0,$D$12*Effectiveness!$D$108+H75*(1-Effectiveness!$D$64)) -> 0 | I76: =IF(Inputs!$F$71=1,0,$D$12*Effectiveness!$D$109+I75*(1-Effectiveness!$D$65)) -> 0 | J76: =IF(Inputs!$F$71=1,0,$D$12*Effectiveness!$D$110+J75*(1-Effectiveness!$D$66)) -> 0 | K76: =D76*Effectiveness!$D$111+K75*(1-Effectiveness!$D$67) -> 27.1 | L76: 27.1 | N76: 1734.4
C77: 65 | D77: 1200 | E77: =IF(Inputs!$F$71=1,0,$D$12*Effectiveness!$D$105+E76*(1-Effectiveness!$D$61)) -> 0 | F77: =IF(Inputs!$F$71=1,0,$D$12*Effectiveness!$D$106+F76*(1-Effectiveness!$D$62)) -> 0 | G77: =IF(Inputs!$F$71=1,0,$D$12*Effectiveness!$D$107+G76*(1-Effectiveness!$D$63)) -> 0 | H77: =IF(Inputs!$F$71=1,0,$D$12*Effectiveness!$D$108+H76*(1-Effectiveness!$D$64)) -> 0 | I77: =IF(Inputs!$F$71=1,0,$D$12*Effectiveness!$D$109+I76*(1-Effectiveness!$D$65)) -> 0 | J77: =IF(Inputs!$F$71=1,0,$D$12*Effectiveness!$D$110+J76*(1-Effectiveness!$D$66)) -> 0 | K77: =D77*Effectiveness!$D$111+K76*(1-Effectiveness!$D$67) -> 27.1 | L77: =SUM(E77:K77) -> 27.1 | N77: 1761.5
C78: 66 | D78: 1200 | E78: =IF(Inputs!$F$71=1,0,$D$12*Effectiveness!$D$105+E77*(1-Effectiveness!$D$61)) -> 0 | F78: =IF(Inputs!$F$71=1,0,$D$12*Effectiveness!$D$106+F77*(1-Effectiveness!$D$62)) -> 0 | G78: =IF(Inputs!$F$71=1,0,$D$12*Effectiveness!$D$107+G77*(1-Effectiveness!$D$63)) -> 0 | H78: =IF(Inputs!$F$71=1,0,$D$12*Effectiveness!$D$108+H77*(1-Effectiveness!$D$64)) -> 0 | I78: =IF(Inputs!$F$71=1,0,$D$12*Effectiveness!$D$109+I77*(1-Effectiveness!$D$65)) -> 0 | J78: =IF(Inputs!$F$71=1,0,$D$12*Effectiveness!$D$110+J77*(1-Effectiveness!$D$66)) -> 0 | K78: =D78*Effectiveness!$D$111+K77*(1-Effectiveness!$D$67) -> 27.1 | L78: 27.1 | N78: =L78+N77 -> 1788.6
C79: 67 | D79: 1200 | E79: =IF(Inputs!$F$71=1,0,$D$12*Effectiveness!$D$105+E78*(1-Effectiveness!$D$61)) -> 0 | F79: =IF(Inputs!$F$71=1,0,$D$12*Effectiveness!$D$106+F78*(1-Effectiveness!$D$62)) -> 0 | G79: =IF(Inputs!$F$71=1,0,$D$12*Effectiveness!$D$107+G78*(1-Effectiveness!$D$63)) -> 0 | H79: =IF(Inputs!$F$71=1,0,$D$12*Effectiveness!$D$108+H78*(1-Effectiveness!$D$64)) -> 0 | I79: =IF(Inputs!$F$71=1,0,$D$12*Effectiveness!$D$109+I78*(1-Effectiveness!$D$65)) -> 0 | J79: =IF(Inputs!$F$71=1,0,$D$12*Effectiveness!$D$110+J78*(1-Effectiveness!$D$66)) -> 0 | K79: =D79*Effectiveness!$D$111+K78*(1-Effectiveness!$D$67) -> 27.1 | L79: 27.1 | N79: 1815.7
C80: 68 | D80: 1200 | E80: =IF(Inputs!$F$71=1,0,$D$12*Effectiveness!$D$105+E79*(1-Effectiveness!$D$61)) -> 0 | F80: =IF(Inputs!$F$71=1,0,$D$12*Effectiveness!$D$106+F79*(1-Effectiveness!$D$62)) -> 0 | G80: =IF(Inputs!$F$71=1,0,$D$12*Effectiveness!$D$107+G79*(1-Effectiveness!$D$63)) -> 0 | H80: =IF(Inputs!$F$71=1,0,$D$12*Effectiveness!$D$108+H79*(1-Effectiveness!$D$64)) -> 0 | I80: =IF(Inputs!$F$71=1,0,$D$12*Effectiveness!$D$109+I79*(1-Effectiveness!$D$65)) -> 0 | J80: =IF(Inputs!$F$71=1,0,$D$12*Effectiveness!$D$110+J79*(1-Effectiveness!$D$66)) -> 0 | K80: =D80*Effectiveness!$D$111+K79*(1-Effectiveness!$D$67) -> 27.1 | L80: 27.1 | N80: 1842.8
C81: 69 | D81: 1200 | E81: =IF(Inputs!$F$71=1,0,$D$12*Effectiveness!$D$105+E80*(1-Effectiveness!$D$61)) -> 0 | F81: =IF(Inputs!$F$71=1,0,$D$12*Effectiveness!$D$106+F80*(1-Effectiveness!$D$62)) -> 0 | G81: =IF(Inputs!$F$71=1,0,$D$12*Effectiveness!$D$107+G80*(1-Effectiveness!$D$63)) -> 0 | H81: =IF(Inputs!$F$71=1,0,$D$12*Effectiveness!$D$108+H80*(1-Effectiveness!$D$64)) -> 0 | I81: =IF(Inputs!$F$71=1,0,$D$12*Effectiveness!$D$109+I80*(1-Effectiveness!$D$65)) -> 0 | J81: =IF(Inputs!$F$71=1,0,$D$12*Effectiveness!$D$110+J80*(1-Effectiveness!$D$66)) -> 0 | K81: =D81*Effectiveness!$D$111+K80*(1-Effectiveness!$D$67) -> 27.1 | L81: 27.1 | N81: 1869.9
C82: 70 | D82: 1200 | E82: =IF(Inputs!$F$71=1,0,$D$12*Effectiveness!$D$105+E81*(1-Effectiveness!$D$61)) -> 0 | F82: =IF(Inputs!$F$71=1,0,$D$12*Effectiveness!$D$106+F81*(1-Effectiveness!$D$62)) -> 0 | G82: =IF(Inputs!$F$71=1,0,$D$12*Effectiveness!$D$107+G81*(1-Effectiveness!$D$63)) -> 0 | H82: =IF(Inputs!$F$71=1,0,$D$12*Effectiveness!$D$108+H81*(1-Effectiveness!$D$64)) -> 0 | I82: =IF(Inputs!$F$71=1,0,$D$12*Effectiveness!$D$109+I81*(1-Effectiveness!$D$65)) -> 0 | J82: =IF(Inputs!$F$71=1,0,$D$12*Effectiveness!$D$110+J81*(1-Effectiveness!$D$66)) -> 0 | K82: =D82*Effectiveness!$D$111+K81*(1-Effectiveness!$D$67) -> 27.1 | L82: 27.1 | N82: 1897
C83: 71 | D83: 1200 | E83: =IF(Inputs!$F$71=1,0,$D$12*Effectiveness!$D$105+E82*(1-Effectiveness!$D$61)) -> 0 | F83: =IF(Inputs!$F$71=1,0,$D$12*Effectiveness!$D$106+F82*(1-Effectiveness!$D$62)) -> 0 | G83: =IF(Inputs!$F$71=1,0,$D$12*Effectiveness!$D$107+G82*(1-Effectiveness!$D$63)) -> 0 | H83: =IF(Inputs!$F$71=1,0,$D$12*Effectiveness!$D$108+H82*(1-Effectiveness!$D$64)) -> 0 | I83: =IF(Inputs!$F$71=1,0,$D$12*Effectiveness!$D$109+I82*(1-Effectiveness!$D$65)) -> 0 | J83: =IF(Inputs!$F$71=1,0,$D$12*Effectiveness!$D$110+J82*(1-Effectiveness!$D$66)) -> 0 | K83: =D83*Effectiveness!$D$111+K82*(1-Effectiveness!$D$67) -> 27.1 | L83: 27.1 | N83: 1924.1
C84: 72 | D84: 1200 | E84: =IF(Inputs!$F$71=1,0,$D$12*Effectiveness!$D$105+E83*(1-Effectiveness!$D$61)) -> 0 | F84: =IF(Inputs!$F$71=1,0,$D$12*Effectiveness!$D$106+F83*(1-Effectiveness!$D$62)) -> 0 | G84: =IF(Inputs!$F$71=1,0,$D$12*Effectiveness!$D$107+G83*(1-Effectiveness!$D$63)) -> 0 | H84: =IF(Inputs!$F$71=1,0,$D$12*Effectiveness!$D$108+H83*(1-Effectiveness!$D$64)) -> 0 | I84: =IF(Inputs!$F$71=1,0,$D$12*Effectiveness!$D$109+I83*(1-Effectiveness!$D$65)) -> 0 | J84: =IF(Inputs!$F$71=1,0,$D$12*Effectiveness!$D$110+J83*(1-Effectiveness!$D$66)) -> 0 | K84: =D84*Effectiveness!$D$111+K83*(1-Effectiveness!$D$67) -> 27.1 | L84: 27.1 | N84: 1951.2
C85: 73 | D85: =D84*(1+Inputs!$D$17) -> 1200 | E85: =IF(Inputs!$F$71=1,0,$D$12*Effectiveness!$D$105+E84*(1-Effectiveness!$D$61)) -> 0 | F85: =IF(Inputs!$F$71=1,0,$D$12*Effectiveness!$D$106+F84*(1-Effectiveness!$D$62)) -> 0 | G85: =IF(Inputs!$F$71=1,0,$D$12*Effectiveness!$D$107+G84*(1-Effectiveness!$D$63)) -> 0 | H85: =IF(Inputs!$F$71=1,0,$D$12*Effectiveness!$D$108+H84*(1-Effectiveness!$D$64)) -> 0 | I85: =IF(Inputs!$F$71=1,0,$D$12*Effectiveness!$D$109+I84*(1-Effectiveness!$D$65)) -> 0 | J85: =IF(Inputs!$F$71=1,0,$D$12*Effectiveness!$D$110+J84*(1-Effectiveness!$D$66)) -> 0 | K85: =D85*Effectiveness!$D$111+K84*(1-Effectiveness!$D$67) -> 27.1 | L85: 27.1 | N85: 1978.3
C86: 74 | D86: =D85 -> 1200 | E86: =IF(Inputs!$F$71=1,0,$D$12*Effectiveness!$D$105+E85*(1-Effectiveness!$D$61)) -> 0 | F86: =IF(Inputs!$F$71=1,0,$D$12*Effectiveness!$D$106+F85*(1-Effectiveness!$D$62)) -> 0 | G86: =IF(Inputs!$F$71=1,0,$D$12*Effectiveness!$D$107+G85*(1-Effectiveness!$D$63)) -> 0 | H86: =IF(Inputs!$F$71=1,0,$D$12*Effectiveness!$D$108+H85*(1-Effectiveness!$D$64)) -> 0 | I86: =IF(Inputs!$F$71=1,0,$D$12*Effectiveness!$D$109+I85*(1-Effectiveness!$D$65)) -> 0 | J86: =IF(Inputs!$F$71=1,0,$D$12*Effectiveness!$D$110+J85*(1-Effectiveness!$D$66)) -> 0 | K86: =D86*Effectiveness!$D$111+K85*(1-Effectiveness!$D$67) -> 27.1 | L86: 27.1 | N86: 2005.4
C87: 75 | D87: =D86 -> 1200 | E87: =IF(Inputs!$F$71=1,0,$D$12*Effectiveness!$D$105+E86*(1-Effectiveness!$D$61)) -> 0 | F87: =IF(Inputs!$F$71=1,0,$D$12*Effectiveness!$D$106+F86*(1-Effectiveness!$D$62)) -> 0 | G87: =IF(Inputs!$F$71=1,0,$D$12*Effectiveness!$D$107+G86*(1-Effectiveness!$D$63)) -> 0 | H87: =IF(Inputs!$F$71=1,0,$D$12*Effectiveness!$D$108+H86*(1-Effectiveness!$D$64)) -> 0 | I87: =IF(Inputs!$F$71=1,0,$D$12*Effectiveness!$D$109+I86*(1-Effectiveness!$D$65)) -> 0 | J87: =IF(Inputs!$F$71=1,0,$D$12*Effectiveness!$D$110+J86*(1-Effectiveness!$D$66)) -> 0 | K87: =D87*Effectiveness!$D$111+K86*(1-Effectiveness!$D$67) -> 27.1 | L87: 27.1 | N87: 2032.5
C88: 76 | D88: 1200 | E88: =IF(Inputs!$F$71=1,0,$D$12*Effectiveness!$D$105+E87*(1-Effectiveness!$D$61)) -> 0 | F88: =IF(Inputs!$F$71=1,0,$D$12*Effectiveness!$D$106+F87*(1-Effectiveness!$D$62)) -> 0 | G88: =IF(Inputs!$F$71=1,0,$D$12*Effectiveness!$D$107+G87*(1-Effectiveness!$D$63)) -> 0 | H88: =IF(Inputs!$F$71=1,0,$D$12*Effectiveness!$D$108+H87*(1-Effectiveness!$D$64)) -> 0 | I88: =IF(Inputs!$F$71=1,0,$D$12*Effectiveness!$D$109+I87*(1-Effectiveness!$D$65)) -> 0 | J88: =IF(Inputs!$F$71=1,0,$D$12*Effectiveness!$D$110+J87*(1-Effectiveness!$D$66)) -> 0 | K88: =D88*Effectiveness!$D$111+K87*(1-Effectiveness!$D$67) -> 27.1 | L88: 27.1 | N88: 2059.6
C89: 77 | D89: 1200 | E89: =IF(Inputs!$F$71=1,0,$D$12*Effectiveness!$D$105+E88*(1-Effectiveness!$D$61)) -> 0 | F89: =IF(Inputs!$F$71=1,0,$D$12*Effectiveness!$D$106+F88*(1-Effectiveness!$D$62)) -> 0 | G89: =IF(Inputs!$F$71=1,0,$D$12*Effectiveness!$D$107+G88*(1-Effectiveness!$D$63)) -> 0 | H89: =IF(Inputs!$F$71=1,0,$D$12*Effectiveness!$D$108+H88*(1-Effectiveness!$D$64)) -> 0 | I89: =IF(Inputs!$F$71=1,0,$D$12*Effectiveness!$D$109+I88*(1-Effectiveness!$D$65)) -> 0 | J89: =IF(Inputs!$F$71=1,0,$D$12*Effectiveness!$D$110+J88*(1-Effectiveness!$D$66)) -> 0 | K89: =D89*Effectiveness!$D$111+K88*(1-Effectiveness!$D$67) -> 27.1 | L89: 27.1 | N89: 2086.7
C90: 78 | D90: 1200 | E90: =IF(Inputs!$F$71=1,0,$D$12*Effectiveness!$D$105+E89*(1-Effectiveness!$D$61)) -> 0 | F90: =IF(Inputs!$F$71=1,0,$D$12*Effectiveness!$D$106+F89*(1-Effectiveness!$D$62)) -> 0 | G90: =IF(Inputs!$F$71=1,0,$D$12*Effectiveness!$D$107+G89*(1-Effectiveness!$D$63)) -> 0 | H90: =IF(Inputs!$F$71=1,0,$D$12*Effectiveness!$D$108+H89*(1-Effectiveness!$D$64)) -> 0 | I90: =IF(Inputs!$F$71=1,0,$D$12*Effectiveness!$D$109+I89*(1-Effectiveness!$D$65)) -> 0 | J90: =IF(Inputs!$F$71=1,0,$D$12*Effectiveness!$D$110+J89*(1-Effectiveness!$D$66)) -> 0 | K90: =D90*Effectiveness!$D$111+K89*(1-Effectiveness!$D$67) -> 27.1 | L90: 27.1 | N90: 2113.8
C91: 79 | D91: 1200 | E91: =IF(Inputs!$F$71=1,0,$D$12*Effectiveness!$D$105+E90*(1-Effectiveness!$D$61)) -> 0 | F91: =IF(Inputs!$F$71=1,0,$D$12*Effectiveness!$D$106+F90*(1-Effectiveness!$D$62)) -> 0 | G91: =IF(Inputs!$F$71=1,0,$D$12*Effectiveness!$D$107+G90*(1-Effectiveness!$D$63)) -> 0 | H91: =IF(Inputs!$F$71=1,0,$D$12*Effectiveness!$D$108+H90*(1-Effectiveness!$D$64)) -> 0 | I91: =IF(Inputs!$F$71=1,0,$D$12*Effectiveness!$D$109+I90*(1-Effectiveness!$D$65)) -> 0 | J91: =IF(Inputs!$F$71=1,0,$D$12*Effectiveness!$D$110+J90*(1-Effectiveness!$D$66)) -> 0 | K91: =D91*Effectiveness!$D$111+K90*(1-Effectiveness!$D$67) -> 27.1 | L91: 27.1 | N91: 2140.9
C92: 80 | D92: 1200 | E92: =IF(Inputs!$F$71=1,0,$D$12*Effectiveness!$D$105+E91*(1-Effectiveness!$D$61)) -> 0 | F92: =IF(Inputs!$F$71=1,0,$D$12*Effectiveness!$D$106+F91*(1-Effectiveness!$D$62)) -> 0 | G92: =IF(Inputs!$F$71=1,0,$D$12*Effectiveness!$D$107+G91*(1-Effectiveness!$D$63)) -> 0 | H92: =IF(Inputs!$F$71=1,0,$D$12*Effectiveness!$D$108+H91*(1-Effectiveness!$D$64)) -> 0 | I92: =IF(Inputs!$F$71=1,0,$D$12*Effectiveness!$D$109+I91*(1-Effectiveness!$D$65)) -> 0 | J92: =IF(Inputs!$F$71=1,0,$D$12*Effectiveness!$D$110+J91*(1-Effectiveness!$D$66)) -> 0 | K92: =D92*Effectiveness!$D$111+K91*(1-Effectiveness!$D$67) -> 27.1 | L92: 27.1 | N92: 2168
C93: 81 | D93: 1200 | E93: =IF(Inputs!$F$71=1,0,$D$12*Effectiveness!$D$105+E92*(1-Effectiveness!$D$61)) -> 0 | F93: =IF(Inputs!$F$71=1,0,$D$12*Effectiveness!$D$106+F92*(1-Effectiveness!$D$62)) -> 0 | G93: =IF(Inputs!$F$71=1,0,$D$12*Effectiveness!$D$107+G92*(1-Effectiveness!$D$63)) -> 0 | H93: =IF(Inputs!$F$71=1,0,$D$12*Effectiveness!$D$108+H92*(1-Effectiveness!$D$64)) -> 0 | I93: =IF(Inputs!$F$71=1,0,$D$12*Effectiveness!$D$109+I92*(1-Effectiveness!$D$65)) -> 0 | J93: =IF(Inputs!$F$71=1,0,$D$12*Effectiveness!$D$110+J92*(1-Effectiveness!$D$66)) -> 0 | K93: =D93*Effectiveness!$D$111+K92*(1-Effectiveness!$D$67) -> 27.1 | L93: 27.1 | N93: 2195.1
C94: 82 | D94: 1200 | E94: =IF(Inputs!$F$71=1,0,$D$12*Effectiveness!$D$105+E93*(1-Effectiveness!$D$61)) -> 0 | F94: =IF(Inputs!$F$71=1,0,$D$12*Effectiveness!$D$106+F93*(1-Effectiveness!$D$62)) -> 0 | G94: =IF(Inputs!$F$71=1,0,$D$12*Effectiveness!$D$107+G93*(1-Effectiveness!$D$63)) -> 0 | H94: =IF(Inputs!$F$71=1,0,$D$12*Effectiveness!$D$108+H93*(1-Effectiveness!$D$64)) -> 0 | I94: =IF(Inputs!$F$71=1,0,$D$12*Effectiveness!$D$109+I93*(1-Effectiveness!$D$65)) -> 0 | J94: =IF(Inputs!$F$71=1,0,$D$12*Effectiveness!$D$110+J93*(1-Effectiveness!$D$66)) -> 0 | K94: =D94*Effectiveness!$D$111+K93*(1-Effectiveness!$D$67) -> 27.1 | L94: 27.1 | N94: 2222.2
C95: 83 | D95: 1200 | E95: =IF(Inputs!$F$71=1,0,$D$12*Effectiveness!$D$105+E94*(1-Effectiveness!$D$61)) -> 0 | F95: =IF(Inputs!$F$71=1,0,$D$12*Effectiveness!$D$106+F94*(1-Effectiveness!$D$62)) -> 0 | G95: =IF(Inputs!$F$71=1,0,$D$12*Effectiveness!$D$107+G94*(1-Effectiveness!$D$63)) -> 0 | H95: =IF(Inputs!$F$71=1,0,$D$12*Effectiveness!$D$108+H94*(1-Effectiveness!$D$64)) -> 0 | I95: =IF(Inputs!$F$71=1,0,$D$12*Effectiveness!$D$109+I94*(1-Effectiveness!$D$65)) -> 0 | J95: =IF(Inputs!$F$71=1,0,$D$12*Effectiveness!$D$110+J94*(1-Effectiveness!$D$66)) -> 0 | K95: =D95*Effectiveness!$D$111+K94*(1-Effectiveness!$D$67) -> 27.1 | L95: 27.1 | N95: 2249.3
C96: 84 | D96: 1200 | E96: =IF(Inputs!$F$71=1,0,$D$12*Effectiveness!$D$105+E95*(1-Effectiveness!$D$61)) -> 0 | F96: =IF(Inputs!$F$71=1,0,$D$12*Effectiveness!$D$106+F95*(1-Effectiveness!$D$62)) -> 0 | G96: =IF(Inputs!$F$71=1,0,$D$12*Effectiveness!$D$107+G95*(1-Effectiveness!$D$63)) -> 0 | H96: =IF(Inputs!$F$71=1,0,$D$12*Effectiveness!$D$108+H95*(1-Effectiveness!$D$64)) -> 0 | I96: =IF(Inputs!$F$71=1,0,$D$12*Effectiveness!$D$109+I95*(1-Effectiveness!$D$65)) -> 0 | J96: =IF(Inputs!$F$71=1,0,$D$12*Effectiveness!$D$110+J95*(1-Effectiveness!$D$66)) -> 0 | K96: =D96*Effectiveness!$D$111+K95*(1-Effectiveness!$D$67) -> 27.1 | L96: 27.1 | N96: 2276.4
C97: 85 | D97: =D96*(1+Inputs!$D$17) -> 1200 | E97: =IF(Inputs!$F$71=1,0,$D$12*Effectiveness!$D$105+E96*(1-Effectiveness!$D$61)) -> 0 | F97: =IF(Inputs!$F$71=1,0,$D$12*Effectiveness!$D$106+F96*(1-Effectiveness!$D$62)) -> 0 | G97: =IF(Inputs!$F$71=1,0,$D$12*Effectiveness!$D$107+G96*(1-Effectiveness!$D$63)) -> 0 | H97: =IF(Inputs!$F$71=1,0,$D$12*Effectiveness!$D$108+H96*(1-Effectiveness!$D$64)) -> 0 | I97: =IF(Inputs!$F$71=1,0,$D$12*Effectiveness!$D$109+I96*(1-Effectiveness!$D$65)) -> 0 | J97: =IF(Inputs!$F$71=1,0,$D$12*Effectiveness!$D$110+J96*(1-Effectiveness!$D$66)) -> 0 | K97: =D97*Effectiveness!$D$111+K96*(1-Effectiveness!$D$67) -> 27.1 | L97: 27.1 | N97: 2303.5
C98: 86 | D98: =D97 -> 1200 | E98: =IF(Inputs!$F$71=1,0,$D$12*Effectiveness!$D$105+E97*(1-Effectiveness!$D$61)) -> 0 | F98: =IF(Inputs!$F$71=1,0,$D$12*Effectiveness!$D$106+F97*(1-Effectiveness!$D$62)) -> 0 | G98: =IF(Inputs!$F$71=1,0,$D$12*Effectiveness!$D$107+G97*(1-Effectiveness!$D$63)) -> 0 | H98: =IF(Inputs!$F$71=1,0,$D$12*Effectiveness!$D$108+H97*(1-Effectiveness!$D$64)) -> 0 | I98: =IF(Inputs!$F$71=1,0,$D$12*Effectiveness!$D$109+I97*(1-Effectiveness!$D$65)) -> 0 | J98: =IF(Inputs!$F$71=1,0,$D$12*Effectiveness!$D$110+J97*(1-Effectiveness!$D$66)) -> 0 | K98: =D98*Effectiveness!$D$111+K97*(1-Effectiveness!$D$67) -> 27.1 | L98: 27.1 | N98: 2330.6
C99: 87 | D99: =D98 -> 1200 | E99: =IF(Inputs!$F$71=1,0,$D$12*Effectiveness!$D$105+E98*(1-Effectiveness!$D$61)) -> 0 | F99: =IF(Inputs!$F$71=1,0,$D$12*Effectiveness!$D$106+F98*(1-Effectiveness!$D$62)) -> 0 | G99: =IF(Inputs!$F$71=1,0,$D$12*Effectiveness!$D$107+G98*(1-Effectiveness!$D$63)) -> 0 | H99: =IF(Inputs!$F$71=1,0,$D$12*Effectiveness!$D$108+H98*(1-Effectiveness!$D$64)) -> 0 | I99: =IF(Inputs!$F$71=1,0,$D$12*Effectiveness!$D$109+I98*(1-Effectiveness!$D$65)) -> 0 | J99: =IF(Inputs!$F$71=1,0,$D$12*Effectiveness!$D$110+J98*(1-Effectiveness!$D$66)) -> 0 | K99: =D99*Effectiveness!$D$111+K98*(1-Effectiveness!$D$67) -> 27.1 | L99: 27.1 | N99: 2357.7
C100: 88 | D100: 1200 | E100: =IF(Inputs!$F$71=1,0,$D$12*Effectiveness!$D$105+E99*(1-Effectiveness!$D$61)) -> 0 | F100: =IF(Inputs!$F$71=1,0,$D$12*Effectiveness!$D$106+F99*(1-Effectiveness!$D$62)) -> 0 | G100: =IF(Inputs!$F$71=1,0,$D$12*Effectiveness!$D$107+G99*(1-Effectiveness!$D$63)) -> 0 | H100: =IF(Inputs!$F$71=1,0,$D$12*Effectiveness!$D$108+H99*(1-Effectiveness!$D$64)) -> 0 | I100: =IF(Inputs!$F$71=1,0,$D$12*Effectiveness!$D$109+I99*(1-Effectiveness!$D$65)) -> 0 | J100: =IF(Inputs!$F$71=1,0,$D$12*Effectiveness!$D$110+J99*(1-Effectiveness!$D$66)) -> 0 | K100: =D100*Effectiveness!$D$111+K99*(1-Effectiveness!$D$67) -> 27.1 | L100: 27.1 | N100: 2384.8
C101: 89 | D101: 1200 | E101: =IF(Inputs!$F$71=1,0,$D$12*Effectiveness!$D$105+E100*(1-Effectiveness!$D$61)) -> 0 | F101: =IF(Inputs!$F$71=1,0,$D$12*Effectiveness!$D$106+F100*(1-Effectiveness!$D$62)) -> 0 | G101: =IF(Inputs!$F$71=1,0,$D$12*Effectiveness!$D$107+G100*(1-Effectiveness!$D$63)) -> 0 | H101: =IF(Inputs!$F$71=1,0,$D$12*Effectiveness!$D$108+H100*(1-Effectiveness!$D$64)) -> 0 | I101: =IF(Inputs!$F$71=1,0,$D$12*Effectiveness!$D$109+I100*(1-Effectiveness!$D$65)) -> 0 | J101: =IF(Inputs!$F$71=1,0,$D$12*Effectiveness!$D$110+J100*(1-Effectiveness!$D$66)) -> 0 | K101: =D101*Effectiveness!$D$111+K100*(1-Effectiveness!$D$67) -> 27.1 | L101: 27.1 | N101: 2411.9
C102: 90 | D102: 1200 | E102: =IF(Inputs!$F$71=1,0,$D$12*Effectiveness!$D$105+E101*(1-Effectiveness!$D$61)) -> 0 | F102: =IF(Inputs!$F$71=1,0,$D$12*Effectiveness!$D$106+F101*(1-Effectiveness!$D$62)) -> 0 | G102: =IF(Inputs!$F$71=1,0,$D$12*Effectiveness!$D$107+G101*(1-Effectiveness!$D$63)) -> 0 | H102: =IF(Inputs!$F$71=1,0,$D$12*Effectiveness!$D$108+H101*(1-Effectiveness!$D$64)) -> 0 | I102: =IF(Inputs!$F$71=1,0,$D$12*Effectiveness!$D$109+I101*(1-Effectiveness!$D$65)) -> 0 | J102: =IF(Inputs!$F$71=1,0,$D$12*Effectiveness!$D$110+J101*(1-Effectiveness!$D$66)) -> 0 | K102: =D102*Effectiveness!$D$111+K101*(1-Effectiveness!$D$67) -> 27.1 | L102: 27.1 | N102: 2439
C103: 91 | D103: 1200 | E103: =IF(Inputs!$F$71=1,0,$D$12*Effectiveness!$D$105+E102*(1-Effectiveness!$D$61)) -> 0 | F103: =IF(Inputs!$F$71=1,0,$D$12*Effectiveness!$D$106+F102*(1-Effectiveness!$D$62)) -> 0 | G103: =IF(Inputs!$F$71=1,0,$D$12*Effectiveness!$D$107+G102*(1-Effectiveness!$D$63)) -> 0 | H103: =IF(Inputs!$F$71=1,0,$D$12*Effectiveness!$D$108+H102*(1-Effectiveness!$D$64)) -> 0 | I103: =IF(Inputs!$F$71=1,0,$D$12*Effectiveness!$D$109+I102*(1-Effectiveness!$D$65)) -> 0 | J103: =IF(Inputs!$F$71=1,0,$D$12*Effectiveness!$D$110+J102*(1-Effectiveness!$D$66)) -> 0 | K103: =D103*Effectiveness!$D$111+K102*(1-Effectiveness!$D$67) -> 27.1 | L103: 27.1 | N103: 2466.1
C104: 92 | D104: 1200 | E104: =IF(Inputs!$F$71=1,0,$D$12*Effectiveness!$D$105+E103*(1-Effectiveness!$D$61)) -> 0 | F104: =IF(Inputs!$F$71=1,0,$D$12*Effectiveness!$D$106+F103*(1-Effectiveness!$D$62)) -> 0 | G104: =IF(Inputs!$F$71=1,0,$D$12*Effectiveness!$D$107+G103*(1-Effectiveness!$D$63)) -> 0 | H104: =IF(Inputs!$F$71=1,0,$D$12*Effectiveness!$D$108+H103*(1-Effectiveness!$D$64)) -> 0 | I104: =IF(Inputs!$F$71=1,0,$D$12*Effectiveness!$D$109+I103*(1-Effectiveness!$D$65)) -> 0 | J104: =IF(Inputs!$F$71=1,0,$D$12*Effectiveness!$D$110+J103*(1-Effectiveness!$D$66)) -> 0 | K104: =D104*Effectiveness!$D$111+K103*(1-Effectiveness!$D$67) -> 27.1 | L104: 27.1 | N104: 2493.2
C105: 93 | D105: 1200 | E105: =IF(Inputs!$F$71=1,0,$D$12*Effectiveness!$D$105+E104*(1-Effectiveness!$D$61)) -> 0 | F105: =IF(Inputs!$F$71=1,0,$D$12*Effectiveness!$D$106+F104*(1-Effectiveness!$D$62)) -> 0 | G105: =IF(Inputs!$F$71=1,0,$D$12*Effectiveness!$D$107+G104*(1-Effectiveness!$D$63)) -> 0 | H105: =IF(Inputs!$F$71=1,0,$D$12*Effectiveness!$D$108+H104*(1-Effectiveness!$D$64)) -> 0 | I105: =IF(Inputs!$F$71=1,0,$D$12*Effectiveness!$D$109+I104*(1-Effectiveness!$D$65)) -> 0 | J105: =IF(Inputs!$F$71=1,0,$D$12*Effectiveness!$D$110+J104*(1-Effectiveness!$D$66)) -> 0 | K105: =D105*Effectiveness!$D$111+K104*(1-Effectiveness!$D$67) -> 27.1 | L105: 27.1 | N105: 2520.3
C106: 94 | D106: 1200 | E106: =IF(Inputs!$F$71=1,0,$D$12*Effectiveness!$D$105+E105*(1-Effectiveness!$D$61)) -> 0 | F106: =IF(Inputs!$F$71=1,0,$D$12*Effectiveness!$D$106+F105*(1-Effectiveness!$D$62)) -> 0 | G106: =IF(Inputs!$F$71=1,0,$D$12*Effectiveness!$D$107+G105*(1-Effectiveness!$D$63)) -> 0 | H106: =IF(Inputs!$F$71=1,0,$D$12*Effectiveness!$D$108+H105*(1-Effectiveness!$D$64)) -> 0 | I106: =IF(Inputs!$F$71=1,0,$D$12*Effectiveness!$D$109+I105*(1-Effectiveness!$D$65)) -> 0 | J106: =IF(Inputs!$F$71=1,0,$D$12*Effectiveness!$D$110+J105*(1-Effectiveness!$D$66)) -> 0 | K106: =D106*Effectiveness!$D$111+K105*(1-Effectiveness!$D$67) -> 27.1 | L106: 27.1 | N106: 2547.4
C107: 95 | D107: 1200 | E107: =IF(Inputs!$F$71=1,0,$D$12*Effectiveness!$D$105+E106*(1-Effectiveness!$D$61)) -> 0 | F107: =IF(Inputs!$F$71=1,0,$D$12*Effectiveness!$D$106+F106*(1-Effectiveness!$D$62)) -> 0 | G107: =IF(Inputs!$F$71=1,0,$D$12*Effectiveness!$D$107+G106*(1-Effectiveness!$D$63)) -> 0 | H107: =IF(Inputs!$F$71=1,0,$D$12*Effectiveness!$D$108+H106*(1-Effectiveness!$D$64)) -> 0 | I107: =IF(Inputs!$F$71=1,0,$D$12*Effectiveness!$D$109+I106*(1-Effectiveness!$D$65)) -> 0 | J107: =IF(Inputs!$F$71=1,0,$D$12*Effectiveness!$D$110+J106*(1-Effectiveness!$D$66)) -> 0 | K107: =D107*Effectiveness!$D$111+K106*(1-Effectiveness!$D$67) -> 27.1 | L107: 27.1 | N107: 2574.5
C108: 96 | D108: 1200 | E108: =IF(Inputs!$F$71=1,0,$D$12*Effectiveness!$D$105+E107*(1-Effectiveness!$D$61)) -> 0 | F108: =IF(Inputs!$F$71=1,0,$D$12*Effectiveness!$D$106+F107*(1-Effectiveness!$D$62)) -> 0 | G108: =IF(Inputs!$F$71=1,0,$D$12*Effectiveness!$D$107+G107*(1-Effectiveness!$D$63)) -> 0 | H108: =IF(Inputs!$F$71=1,0,$D$12*Effectiveness!$D$108+H107*(1-Effectiveness!$D$64)) -> 0 | I108: =IF(Inputs!$F$71=1,0,$D$12*Effectiveness!$D$109+I107*(1-Effectiveness!$D$65)) -> 0 | J108: =IF(Inputs!$F$71=1,0,$D$12*Effectiveness!$D$110+J107*(1-Effectiveness!$D$66)) -> 0 | K108: =D108*Effectiveness!$D$111+K107*(1-Effectiveness!$D$67) -> 27.1 | L108: 27.1 | N108: 2601.6
C109: 97 | D109: =D108*(1+Inputs!$D$17) -> 1200 | E109: =IF(Inputs!$F$71=1,0,$D$12*Effectiveness!$D$105+E108*(1-Effectiveness!$D$61)) -> 0 | F109: =IF(Inputs!$F$71=1,0,$D$12*Effectiveness!$D$106+F108*(1-Effectiveness!$D$62)) -> 0 | G109: =IF(Inputs!$F$71=1,0,$D$12*Effectiveness!$D$107+G108*(1-Effectiveness!$D$63)) -> 0 | H109: =IF(Inputs!$F$71=1,0,$D$12*Effectiveness!$D$108+H108*(1-Effectiveness!$D$64)) -> 0 | I109: =IF(Inputs!$F$71=1,0,$D$12*Effectiveness!$D$109+I108*(1-Effectiveness!$D$65)) -> 0 | J109: =IF(Inputs!$F$71=1,0,$D$12*Effectiveness!$D$110+J108*(1-Effectiveness!$D$66)) -> 0 | K109: =D109*Effectiveness!$D$111+K108*(1-Effectiveness!$D$67) -> 27.1 | L109: 27.1 | N109: 2628.7
C110: 98 | D110: =D109 -> 1200 | E110: =IF(Inputs!$F$71=1,0,$D$12*Effectiveness!$D$105+E109*(1-Effectiveness!$D$61)) -> 0 | F110: =IF(Inputs!$F$71=1,0,$D$12*Effectiveness!$D$106+F109*(1-Effectiveness!$D$62)) -> 0 | G110: =IF(Inputs!$F$71=1,0,$D$12*Effectiveness!$D$107+G109*(1-Effectiveness!$D$63)) -> 0 | H110: =IF(Inputs!$F$71=1,0,$D$12*Effectiveness!$D$108+H109*(1-Effectiveness!$D$64)) -> 0 | I110: =IF(Inputs!$F$71=1,0,$D$12*Effectiveness!$D$109+I109*(1-Effectiveness!$D$65)) -> 0 | J110: =IF(Inputs!$F$71=1,0,$D$12*Effectiveness!$D$110+J109*(1-Effectiveness!$D$66)) -> 0 | K110: =D110*Effectiveness!$D$111+K109*(1-Effectiveness!$D$67) -> 27.1 | L110: 27.1 | N110: 2655.8
C111: 99 | D111: =D110 -> 1200 | E111: =IF(Inputs!$F$71=1,0,$D$12*Effectiveness!$D$105+E110*(1-Effectiveness!$D$61)) -> 0 | F111: =IF(Inputs!$F$71=1,0,$D$12*Effectiveness!$D$106+F110*(1-Effectiveness!$D$62)) -> 0 | G111: =IF(Inputs!$F$71=1,0,$D$12*Effectiveness!$D$107+G110*(1-Effectiveness!$D$63)) -> 0 | H111: =IF(Inputs!$F$71=1,0,$D$12*Effectiveness!$D$108+H110*(1-Effectiveness!$D$64)) -> 0 | I111: =IF(Inputs!$F$71=1,0,$D$12*Effectiveness!$D$109+I110*(1-Effectiveness!$D$65)) -> 0 | J111: =IF(Inputs!$F$71=1,0,$D$12*Effectiveness!$D$110+J110*(1-Effectiveness!$D$66)) -> 0 | K111: =D111*Effectiveness!$D$111+K110*(1-Effectiveness!$D$67) -> 27.1 | L111: 27.1 | N111: 2682.9
C112: 100 | D112: 1200 | E112: =IF(Inputs!$F$71=1,0,$D$12*Effectiveness!$D$105+E111*(1-Effectiveness!$D$61)) -> 0 | F112: =IF(Inputs!$F$71=1,0,$D$12*Effectiveness!$D$106+F111*(1-Effectiveness!$D$62)) -> 0 | G112: =IF(Inputs!$F$71=1,0,$D$12*Effectiveness!$D$107+G111*(1-Effectiveness!$D$63)) -> 0 | H112: =IF(Inputs!$F$71=1,0,$D$12*Effectiveness!$D$108+H111*(1-Effectiveness!$D$64)) -> 0 | I112: =IF(Inputs!$F$71=1,0,$D$12*Effectiveness!$D$109+I111*(1-Effectiveness!$D$65)) -> 0 | J112: =IF(Inputs!$F$71=1,0,$D$12*Effectiveness!$D$110+J111*(1-Effectiveness!$D$66)) -> 0 | K112: =D112*Effectiveness!$D$111+K111*(1-Effectiveness!$D$67) -> 27.1 | L112: 27.1 | N112: 2710
C113: 101 | D113: 1200 | E113: =IF(Inputs!$F$71=1,0,$D$12*Effectiveness!$D$105+E112*(1-Effectiveness!$D$61)) -> 0 | F113: =IF(Inputs!$F$71=1,0,$D$12*Effectiveness!$D$106+F112*(1-Effectiveness!$D$62)) -> 0 | G113: =IF(Inputs!$F$71=1,0,$D$12*Effectiveness!$D$107+G112*(1-Effectiveness!$D$63)) -> 0 | H113: =IF(Inputs!$F$71=1,0,$D$12*Effectiveness!$D$108+H112*(1-Effectiveness!$D$64)) -> 0 | I113: =IF(Inputs!$F$71=1,0,$D$12*Effectiveness!$D$109+I112*(1-Effectiveness!$D$65)) -> 0 | J113: =IF(Inputs!$F$71=1,0,$D$12*Effectiveness!$D$110+J112*(1-Effectiveness!$D$66)) -> 0 | K113: =D113*Effectiveness!$D$111+K112*(1-Effectiveness!$D$67) -> 27.1 | L113: 27.1 | N113: 2737.1
C114: 102 | D114: 1200 | E114: =IF(Inputs!$F$71=1,0,$D$12*Effectiveness!$D$105+E113*(1-Effectiveness!$D$61)) -> 0 | F114: =IF(Inputs!$F$71=1,0,$D$12*Effectiveness!$D$106+F113*(1-Effectiveness!$D$62)) -> 0 | G114: =IF(Inputs!$F$71=1,0,$D$12*Effectiveness!$D$107+G113*(1-Effectiveness!$D$63)) -> 0 | H114: =IF(Inputs!$F$71=1,0,$D$12*Effectiveness!$D$108+H113*(1-Effectiveness!$D$64)) -> 0 | I114: =IF(Inputs!$F$71=1,0,$D$12*Effectiveness!$D$109+I113*(1-Effectiveness!$D$65)) -> 0 | J114: =IF(Inputs!$F$71=1,0,$D$12*Effectiveness!$D$110+J113*(1-Effectiveness!$D$66)) -> 0 | K114: =D114*Effectiveness!$D$111+K113*(1-Effectiveness!$D$67) -> 27.1 | L114: 27.1 | N114: 2764.2
C115: 103 | D115: 1200 | E115: =IF(Inputs!$F$71=1,0,$D$12*Effectiveness!$D$105+E114*(1-Effectiveness!$D$61)) -> 0 | F115: =IF(Inputs!$F$71=1,0,$D$12*Effectiveness!$D$106+F114*(1-Effectiveness!$D$62)) -> 0 | G115: =IF(Inputs!$F$71=1,0,$D$12*Effectiveness!$D$107+G114*(1-Effectiveness!$D$63)) -> 0 | H115: =IF(Inputs!$F$71=1,0,$D$12*Effectiveness!$D$108+H114*(1-Effectiveness!$D$64)) -> 0 | I115: =IF(Inputs!$F$71=1,0,$D$12*Effectiveness!$D$109+I114*(1-Effectiveness!$D$65)) -> 0 | J115: =IF(Inputs!$F$71=1,0,$D$12*Effectiveness!$D$110+J114*(1-Effectiveness!$D$66)) -> 0 | K115: =D115*Effectiveness!$D$111+K114*(1-Effectiveness!$D$67) -> 27.1 | L115: 27.1 | N115: 2791.3
C116: 104 | D116: 1200 | E116: =IF(Inputs!$F$71=1,0,$D$12*Effectiveness!$D$105+E115*(1-Effectiveness!$D$61)) -> 0 | F116: =IF(Inputs!$F$71=1,0,$D$12*Effectiveness!$D$106+F115*(1-Effectiveness!$D$62)) -> 0 | G116: =IF(Inputs!$F$71=1,0,$D$12*Effectiveness!$D$107+G115*(1-Effectiveness!$D$63)) -> 0 | H116: =IF(Inputs!$F$71=1,0,$D$12*Effectiveness!$D$108+H115*(1-Effectiveness!$D$64)) -> 0 | I116: =IF(Inputs!$F$71=1,0,$D$12*Effectiveness!$D$109+I115*(1-Effectiveness!$D$65)) -> 0 | J116: =IF(Inputs!$F$71=1,0,$D$12*Effectiveness!$D$110+J115*(1-Effectiveness!$D$66)) -> 0 | K116: =D116*Effectiveness!$D$111+K115*(1-Effectiveness!$D$67) -> 27.1 | L116: 27.1 | N116: 2818.4
C117: 105 | D117: 1200 | E117: =IF(Inputs!$F$71=1,0,$D$12*Effectiveness!$D$105+E116*(1-Effectiveness!$D$61)) -> 0 | F117: =IF(Inputs!$F$71=1,0,$D$12*Effectiveness!$D$106+F116*(1-Effectiveness!$D$62)) -> 0 | G117: =IF(Inputs!$F$71=1,0,$D$12*Effectiveness!$D$107+G116*(1-Effectiveness!$D$63)) -> 0 | H117: =IF(Inputs!$F$71=1,0,$D$12*Effectiveness!$D$108+H116*(1-Effectiveness!$D$64)) -> 0 | I117: =IF(Inputs!$F$71=1,0,$D$12*Effectiveness!$D$109+I116*(1-Effectiveness!$D$65)) -> 0 | J117: =IF(Inputs!$F$71=1,0,$D$12*Effectiveness!$D$110+J116*(1-Effectiveness!$D$66)) -> 0 | K117: =D117*Effectiveness!$D$111+K116*(1-Effectiveness!$D$67) -> 27.1 | L117: 27.1 | N117: 2845.5
C118: 106 | D118: 1200 | E118: =IF(Inputs!$F$71=1,0,$D$12*Effectiveness!$D$105+E117*(1-Effectiveness!$D$61)) -> 0 | F118: =IF(Inputs!$F$71=1,0,$D$12*Effectiveness!$D$106+F117*(1-Effectiveness!$D$62)) -> 0 | G118: =IF(Inputs!$F$71=1,0,$D$12*Effectiveness!$D$107+G117*(1-Effectiveness!$D$63)) -> 0 | H118: =IF(Inputs!$F$71=1,0,$D$12*Effectiveness!$D$108+H117*(1-Effectiveness!$D$64)) -> 0 | I118: =IF(Inputs!$F$71=1,0,$D$12*Effectiveness!$D$109+I117*(1-Effectiveness!$D$65)) -> 0 | J118: =IF(Inputs!$F$71=1,0,$D$12*Effectiveness!$D$110+J117*(1-Effectiveness!$D$66)) -> 0 | K118: =D118*Effectiveness!$D$111+K117*(1-Effectiveness!$D$67) -> 27.1 | L118: 27.1 | N118: 2872.6
C119: 107 | D119: 1200 | E119: =IF(Inputs!$F$71=1,0,$D$12*Effectiveness!$D$105+E118*(1-Effectiveness!$D$61)) -> 0 | F119: =IF(Inputs!$F$71=1,0,$D$12*Effectiveness!$D$106+F118*(1-Effectiveness!$D$62)) -> 0 | G119: =IF(Inputs!$F$71=1,0,$D$12*Effectiveness!$D$107+G118*(1-Effectiveness!$D$63)) -> 0 | H119: =IF(Inputs!$F$71=1,0,$D$12*Effectiveness!$D$108+H118*(1-Effectiveness!$D$64)) -> 0 | I119: =IF(Inputs!$F$71=1,0,$D$12*Effectiveness!$D$109+I118*(1-Effectiveness!$D$65)) -> 0 | J119: =IF(Inputs!$F$71=1,0,$D$12*Effectiveness!$D$110+J118*(1-Effectiveness!$D$66)) -> 0 | K119: =D119*Effectiveness!$D$111+K118*(1-Effectiveness!$D$67) -> 27.1 | L119: 27.1 | N119: 2899.7
C120: 108 | D120: 1200 | E120: =IF(Inputs!$F$71=1,0,$D$12*Effectiveness!$D$105+E119*(1-Effectiveness!$D$61)) -> 0 | F120: =IF(Inputs!$F$71=1,0,$D$12*Effectiveness!$D$106+F119*(1-Effectiveness!$D$62)) -> 0 | G120: =IF(Inputs!$F$71=1,0,$D$12*Effectiveness!$D$107+G119*(1-Effectiveness!$D$63)) -> 0 | H120: =IF(Inputs!$F$71=1,0,$D$12*Effectiveness!$D$108+H119*(1-Effectiveness!$D$64)) -> 0 | I120: =IF(Inputs!$F$71=1,0,$D$12*Effectiveness!$D$109+I119*(1-Effectiveness!$D$65)) -> 0 | J120: =IF(Inputs!$F$71=1,0,$D$12*Effectiveness!$D$110+J119*(1-Effectiveness!$D$66)) -> 0 | K120: =D120*Effectiveness!$D$111+K119*(1-Effectiveness!$D$67) -> 27.1 | L120: 27.1 | N120: 2926.8
C121: 109 | D121: =D120*(1+Inputs!$D$17) -> 1200 | E121: =IF(Inputs!$F$71=1,0,$D$12*Effectiveness!$D$105+E120*(1-Effectiveness!$D$61)) -> 0 | F121: =IF(Inputs!$F$71=1,0,$D$12*Effectiveness!$D$106+F120*(1-Effectiveness!$D$62)) -> 0 | G121: =IF(Inputs!$F$71=1,0,$D$12*Effectiveness!$D$107+G120*(1-Effectiveness!$D$63)) -> 0 | H121: =IF(Inputs!$F$71=1,0,$D$12*Effectiveness!$D$108+H120*(1-Effectiveness!$D$64)) -> 0 | I121: =IF(Inputs!$F$71=1,0,$D$12*Effectiveness!$D$109+I120*(1-Effectiveness!$D$65)) -> 0 | J121: =IF(Inputs!$F$71=1,0,$D$12*Effectiveness!$D$110+J120*(1-Effectiveness!$D$66)) -> 0 | K121: =D121*Effectiveness!$D$111+K120*(1-Effectiveness!$D$67) -> 27.1 | L121: 27.1 | N121: 2953.9
C122: 110 | D122: =D121 -> 1200 | E122: =IF(Inputs!$F$71=1,0,$D$12*Effectiveness!$D$105+E121*(1-Effectiveness!$D$61)) -> 0 | F122: =IF(Inputs!$F$71=1,0,$D$12*Effectiveness!$D$106+F121*(1-Effectiveness!$D$62)) -> 0 | G122: =IF(Inputs!$F$71=1,0,$D$12*Effectiveness!$D$107+G121*(1-Effectiveness!$D$63)) -> 0 | H122: =IF(Inputs!$F$71=1,0,$D$12*Effectiveness!$D$108+H121*(1-Effectiveness!$D$64)) -> 0 | I122: =IF(Inputs!$F$71=1,0,$D$12*Effectiveness!$D$109+I121*(1-Effectiveness!$D$65)) -> 0 | J122: =IF(Inputs!$F$71=1,0,$D$12*Effectiveness!$D$110+J121*(1-Effectiveness!$D$66)) -> 0 | K122: =D122*Effectiveness!$D$111+K121*(1-Effectiveness!$D$67) -> 27.1 | L122: 27.1 | N122: 2981
C123: 111 | D123: =D122 -> 1200 | E123: =IF(Inputs!$F$71=1,0,$D$12*Effectiveness!$D$105+E122*(1-Effectiveness!$D$61)) -> 0 | F123: =IF(Inputs!$F$71=1,0,$D$12*Effectiveness!$D$106+F122*(1-Effectiveness!$D$62)) -> 0 | G123: =IF(Inputs!$F$71=1,0,$D$12*Effectiveness!$D$107+G122*(1-Effectiveness!$D$63)) -> 0 | H123: =IF(Inputs!$F$71=1,0,$D$12*Effectiveness!$D$108+H122*(1-Effectiveness!$D$64)) -> 0 | I123: =IF(Inputs!$F$71=1,0,$D$12*Effectiveness!$D$109+I122*(1-Effectiveness!$D$65)) -> 0 | J123: =IF(Inputs!$F$71=1,0,$D$12*Effectiveness!$D$110+J122*(1-Effectiveness!$D$66)) -> 0 | K123: =D123*Effectiveness!$D$111+K122*(1-Effectiveness!$D$67) -> 27.1 | L123: 27.1 | N123: 3008.1
C124: 112 | D124: 1200 | E124: =IF(Inputs!$F$71=1,0,$D$12*Effectiveness!$D$105+E123*(1-Effectiveness!$D$61)) -> 0 | F124: =IF(Inputs!$F$71=1,0,$D$12*Effectiveness!$D$106+F123*(1-Effectiveness!$D$62)) -> 0 | G124: =IF(Inputs!$F$71=1,0,$D$12*Effectiveness!$D$107+G123*(1-Effectiveness!$D$63)) -> 0 | H124: =IF(Inputs!$F$71=1,0,$D$12*Effectiveness!$D$108+H123*(1-Effectiveness!$D$64)) -> 0 | I124: =IF(Inputs!$F$71=1,0,$D$12*Effectiveness!$D$109+I123*(1-Effectiveness!$D$65)) -> 0 | J124: =IF(Inputs!$F$71=1,0,$D$12*Effectiveness!$D$110+J123*(1-Effectiveness!$D$66)) -> 0 | K124: =D124*Effectiveness!$D$111+K123*(1-Effectiveness!$D$67) -> 27.1 | L124: 27.1 | N124: 3035.2
C125: 113 | D125: 1200 | E125: =IF(Inputs!$F$71=1,0,$D$12*Effectiveness!$D$105+E124*(1-Effectiveness!$D$61)) -> 0 | F125: =IF(Inputs!$F$71=1,0,$D$12*Effectiveness!$D$106+F124*(1-Effectiveness!$D$62)) -> 0 | G125: =IF(Inputs!$F$71=1,0,$D$12*Effectiveness!$D$107+G124*(1-Effectiveness!$D$63)) -> 0 | H125: =IF(Inputs!$F$71=1,0,$D$12*Effectiveness!$D$108+H124*(1-Effectiveness!$D$64)) -> 0 | I125: =IF(Inputs!$F$71=1,0,$D$12*Effectiveness!$D$109+I124*(1-Effectiveness!$D$65)) -> 0 | J125: =IF(Inputs!$F$71=1,0,$D$12*Effectiveness!$D$110+J124*(1-Effectiveness!$D$66)) -> 0 | K125: =D125*Effectiveness!$D$111+K124*(1-Effectiveness!$D$67) -> 27.1 | L125: 27.1 | N125: 3062.3
C126: 114 | D126: 1200 | E126: =IF(Inputs!$F$71=1,0,$D$12*Effectiveness!$D$105+E125*(1-Effectiveness!$D$61)) -> 0 | F126: =IF(Inputs!$F$71=1,0,$D$12*Effectiveness!$D$106+F125*(1-Effectiveness!$D$62)) -> 0 | G126: =IF(Inputs!$F$71=1,0,$D$12*Effectiveness!$D$107+G125*(1-Effectiveness!$D$63)) -> 0 | H126: =IF(Inputs!$F$71=1,0,$D$12*Effectiveness!$D$108+H125*(1-Effectiveness!$D$64)) -> 0 | I126: =IF(Inputs!$F$71=1,0,$D$12*Effectiveness!$D$109+I125*(1-Effectiveness!$D$65)) -> 0 | J126: =IF(Inputs!$F$71=1,0,$D$12*Effectiveness!$D$110+J125*(1-Effectiveness!$D$66)) -> 0 | K126: =D126*Effectiveness!$D$111+K125*(1-Effectiveness!$D$67) -> 27.1 | L126: 27.1 | N126: 3089.4
C127: 115 | D127: 1200 | E127: =IF(Inputs!$F$71=1,0,$D$12*Effectiveness!$D$105+E126*(1-Effectiveness!$D$61)) -> 0 | F127: =IF(Inputs!$F$71=1,0,$D$12*Effectiveness!$D$106+F126*(1-Effectiveness!$D$62)) -> 0 | G127: =IF(Inputs!$F$71=1,0,$D$12*Effectiveness!$D$107+G126*(1-Effectiveness!$D$63)) -> 0 | H127: =IF(Inputs!$F$71=1,0,$D$12*Effectiveness!$D$108+H126*(1-Effectiveness!$D$64)) -> 0 | I127: =IF(Inputs!$F$71=1,0,$D$12*Effectiveness!$D$109+I126*(1-Effectiveness!$D$65)) -> 0 | J127: =IF(Inputs!$F$71=1,0,$D$12*Effectiveness!$D$110+J126*(1-Effectiveness!$D$66)) -> 0 | K127: =D127*Effectiveness!$D$111+K126*(1-Effectiveness!$D$67) -> 27.1 | L127: 27.1 | N127: 3116.5
C128: 116 | D128: 1200 | E128: =IF(Inputs!$F$71=1,0,$D$12*Effectiveness!$D$105+E127*(1-Effectiveness!$D$61)) -> 0 | F128: =IF(Inputs!$F$71=1,0,$D$12*Effectiveness!$D$106+F127*(1-Effectiveness!$D$62)) -> 0 | G128: =IF(Inputs!$F$71=1,0,$D$12*Effectiveness!$D$107+G127*(1-Effectiveness!$D$63)) -> 0 | H128: =IF(Inputs!$F$71=1,0,$D$12*Effectiveness!$D$108+H127*(1-Effectiveness!$D$64)) -> 0 | I128: =IF(Inputs!$F$71=1,0,$D$12*Effectiveness!$D$109+I127*(1-Effectiveness!$D$65)) -> 0 | J128: =IF(Inputs!$F$71=1,0,$D$12*Effectiveness!$D$110+J127*(1-Effectiveness!$D$66)) -> 0 | K128: =D128*Effectiveness!$D$111+K127*(1-Effectiveness!$D$67) -> 27.1 | L128: 27.1 | N128: 3143.6
C129: 117 | D129: 1200 | E129: =IF(Inputs!$F$71=1,0,$D$12*Effectiveness!$D$105+E128*(1-Effectiveness!$D$61)) -> 0 | F129: =IF(Inputs!$F$71=1,0,$D$12*Effectiveness!$D$106+F128*(1-Effectiveness!$D$62)) -> 0 | G129: =IF(Inputs!$F$71=1,0,$D$12*Effectiveness!$D$107+G128*(1-Effectiveness!$D$63)) -> 0 | H129: =IF(Inputs!$F$71=1,0,$D$12*Effectiveness!$D$108+H128*(1-Effectiveness!$D$64)) -> 0 | I129: =IF(Inputs!$F$71=1,0,$D$12*Effectiveness!$D$109+I128*(1-Effectiveness!$D$65)) -> 0 | J129: =IF(Inputs!$F$71=1,0,$D$12*Effectiveness!$D$110+J128*(1-Effectiveness!$D$66)) -> 0 | K129: =D129*Effectiveness!$D$111+K128*(1-Effectiveness!$D$67) -> 27.1 | L129: 27.1 | N129: 3170.7
C130: 118 | D130: 1200 | E130: =IF(Inputs!$F$71=1,0,$D$12*Effectiveness!$D$105+E129*(1-Effectiveness!$D$61)) -> 0 | F130: =IF(Inputs!$F$71=1,0,$D$12*Effectiveness!$D$106+F129*(1-Effectiveness!$D$62)) -> 0 | G130: =IF(Inputs!$F$71=1,0,$D$12*Effectiveness!$D$107+G129*(1-Effectiveness!$D$63)) -> 0 | H130: =IF(Inputs!$F$71=1,0,$D$12*Effectiveness!$D$108+H129*(1-Effectiveness!$D$64)) -> 0 | I130: =IF(Inputs!$F$71=1,0,$D$12*Effectiveness!$D$109+I129*(1-Effectiveness!$D$65)) -> 0 | J130: =IF(Inputs!$F$71=1,0,$D$12*Effectiveness!$D$110+J129*(1-Effectiveness!$D$66)) -> 0 | K130: =D130*Effectiveness!$D$111+K129*(1-Effectiveness!$D$67) -> 27.1 | L130: 27.1 | N130: 3197.8
C131: 119 | D131: 1200 | E131: =IF(Inputs!$F$71=1,0,$D$12*Effectiveness!$D$105+E130*(1-Effectiveness!$D$61)) -> 0 | F131: =IF(Inputs!$F$71=1,0,$D$12*Effectiveness!$D$106+F130*(1-Effectiveness!$D$62)) -> 0 | G131: =IF(Inputs!$F$71=1,0,$D$12*Effectiveness!$D$107+G130*(1-Effectiveness!$D$63)) -> 0 | H131: =IF(Inputs!$F$71=1,0,$D$12*Effectiveness!$D$108+H130*(1-Effectiveness!$D$64)) -> 0 | I131: =IF(Inputs!$F$71=1,0,$D$12*Effectiveness!$D$109+I130*(1-Effectiveness!$D$65)) -> 0 | J131: =IF(Inputs!$F$71=1,0,$D$12*Effectiveness!$D$110+J130*(1-Effectiveness!$D$66)) -> 0 | K131: =D131*Effectiveness!$D$111+K130*(1-Effectiveness!$D$67) -> 27.1 | L131: 27.1 | N131: 3224.9
C132: 120 | D132: 1200 | E132: =IF(Inputs!$F$71=1,0,$D$12*Effectiveness!$D$105+E131*(1-Effectiveness!$D$61)) -> 0 | F132: =IF(Inputs!$F$71=1,0,$D$12*Effectiveness!$D$106+F131*(1-Effectiveness!$D$62)) -> 0 | G132: =IF(Inputs!$F$71=1,0,$D$12*Effectiveness!$D$107+G131*(1-Effectiveness!$D$63)) -> 0 | H132: =IF(Inputs!$F$71=1,0,$D$12*Effectiveness!$D$108+H131*(1-Effectiveness!$D$64)) -> 0 | I132: =IF(Inputs!$F$71=1,0,$D$12*Effectiveness!$D$109+I131*(1-Effectiveness!$D$65)) -> 0 | J132: =IF(Inputs!$F$71=1,0,$D$12*Effectiveness!$D$110+J131*(1-Effectiveness!$D$66)) -> 0 | K132: =D132*Effectiveness!$D$111+K131*(1-Effectiveness!$D$67) -> 27.1 | L132: 27.1 | N132: 3252
C133: 121 | D133: =D132*(1+Inputs!$D$17) -> 1200 | E133: =IF(Inputs!$F$71=1,0,$D$12*Effectiveness!$D$105+E132*(1-Effectiveness!$D$61)) -> 0 | F133: =IF(Inputs!$F$71=1,0,$D$12*Effectiveness!$D$106+F132*(1-Effectiveness!$D$62)) -> 0 | G133: =IF(Inputs!$F$71=1,0,$D$12*Effectiveness!$D$107+G132*(1-Effectiveness!$D$63)) -> 0 | H133: =IF(Inputs!$F$71=1,0,$D$12*Effectiveness!$D$108+H132*(1-Effectiveness!$D$64)) -> 0 | I133: =IF(Inputs!$F$71=1,0,$D$12*Effectiveness!$D$109+I132*(1-Effectiveness!$D$65)) -> 0 | J133: =IF(Inputs!$F$71=1,0,$D$12*Effectiveness!$D$110+J132*(1-Effectiveness!$D$66)) -> 0 | K133: =D133*Effectiveness!$D$111+K132*(1-Effectiveness!$D$67) -> 27.1 | L133: 27.1 | N133: 3279.1
C134: 122 | D134: =D133 -> 1200 | E134: =IF(Inputs!$F$71=1,0,$D$12*Effectiveness!$D$105+E133*(1-Effectiveness!$D$61)) -> 0 | F134: =IF(Inputs!$F$71=1,0,$D$12*Effectiveness!$D$106+F133*(1-Effectiveness!$D$62)) -> 0 | G134: =IF(Inputs!$F$71=1,0,$D$12*Effectiveness!$D$107+G133*(1-Effectiveness!$D$63)) -> 0 | H134: =IF(Inputs!$F$71=1,0,$D$12*Effectiveness!$D$108+H133*(1-Effectiveness!$D$64)) -> 0 | I134: =IF(Inputs!$F$71=1,0,$D$12*Effectiveness!$D$109+I133*(1-Effectiveness!$D$65)) -> 0 | J134: =IF(Inputs!$F$71=1,0,$D$12*Effectiveness!$D$110+J133*(1-Effectiveness!$D$66)) -> 0 | K134: =D134*Effectiveness!$D$111+K133*(1-Effectiveness!$D$67) -> 27.1 | L134: 27.1 | N134: 3306.2
C135: 123 | D135: =D134 -> 1200 | E135: =IF(Inputs!$F$71=1,0,$D$12*Effectiveness!$D$105+E134*(1-Effectiveness!$D$61)) -> 0 | F135: =IF(Inputs!$F$71=1,0,$D$12*Effectiveness!$D$106+F134*(1-Effectiveness!$D$62)) -> 0 | G135: =IF(Inputs!$F$71=1,0,$D$12*Effectiveness!$D$107+G134*(1-Effectiveness!$D$63)) -> 0 | H135: =IF(Inputs!$F$71=1,0,$D$12*Effectiveness!$D$108+H134*(1-Effectiveness!$D$64)) -> 0 | I135: =IF(Inputs!$F$71=1,0,$D$12*Effectiveness!$D$109+I134*(1-Effectiveness!$D$65)) -> 0 | J135: =IF(Inputs!$F$71=1,0,$D$12*Effectiveness!$D$110+J134*(1-Effectiveness!$D$66)) -> 0 | K135: =D135*Effectiveness!$D$111+K134*(1-Effectiveness!$D$67) -> 27.1 | L135: 27.1 | N135: 3333.3
C136: 124 | D136: 1200 | E136: =IF(Inputs!$F$71=1,0,$D$12*Effectiveness!$D$105+E135*(1-Effectiveness!$D$61)) -> 0 | F136: =IF(Inputs!$F$71=1,0,$D$12*Effectiveness!$D$106+F135*(1-Effectiveness!$D$62)) -> 0 | G136: =IF(Inputs!$F$71=1,0,$D$12*Effectiveness!$D$107+G135*(1-Effectiveness!$D$63)) -> 0 | H136: =IF(Inputs!$F$71=1,0,$D$12*Effectiveness!$D$108+H135*(1-Effectiveness!$D$64)) -> 0 | I136: =IF(Inputs!$F$71=1,0,$D$12*Effectiveness!$D$109+I135*(1-Effectiveness!$D$65)) -> 0 | J136: =IF(Inputs!$F$71=1,0,$D$12*Effectiveness!$D$110+J135*(1-Effectiveness!$D$66)) -> 0 | K136: =D136*Effectiveness!$D$111+K135*(1-Effectiveness!$D$67) -> 27.1 | L136: 27.1 | N136: 3360.4
C137: 125 | D137: 1200 | E137: =IF(Inputs!$F$71=1,0,$D$12*Effectiveness!$D$105+E136*(1-Effectiveness!$D$61)) -> 0 | F137: =IF(Inputs!$F$71=1,0,$D$12*Effectiveness!$D$106+F136*(1-Effectiveness!$D$62)) -> 0 | G137: =IF(Inputs!$F$71=1,0,$D$12*Effectiveness!$D$107+G136*(1-Effectiveness!$D$63)) -> 0 | H137: =IF(Inputs!$F$71=1,0,$D$12*Effectiveness!$D$108+H136*(1-Effectiveness!$D$64)) -> 0 | I137: =IF(Inputs!$F$71=1,0,$D$12*Effectiveness!$D$109+I136*(1-Effectiveness!$D$65)) -> 0 | J137: =IF(Inputs!$F$71=1,0,$D$12*Effectiveness!$D$110+J136*(1-Effectiveness!$D$66)) -> 0 | K137: =D137*Effectiveness!$D$111+K136*(1-Effectiveness!$D$67) -> 27.1 | L137: 27.1 | N137: 3387.5
C138: 126 | D138: 1200 | E138: =IF(Inputs!$F$71=1,0,$D$12*Effectiveness!$D$105+E137*(1-Effectiveness!$D$61)) -> 0 | F138: =IF(Inputs!$F$71=1,0,$D$12*Effectiveness!$D$106+F137*(1-Effectiveness!$D$62)) -> 0 | G138: =IF(Inputs!$F$71=1,0,$D$12*Effectiveness!$D$107+G137*(1-Effectiveness!$D$63)) -> 0 | H138: =IF(Inputs!$F$71=1,0,$D$12*Effectiveness!$D$108+H137*(1-Effectiveness!$D$64)) -> 0 | I138: =IF(Inputs!$F$71=1,0,$D$12*Effectiveness!$D$109+I137*(1-Effectiveness!$D$65)) -> 0 | J138: =IF(Inputs!$F$71=1,0,$D$12*Effectiveness!$D$110+J137*(1-Effectiveness!$D$66)) -> 0 | K138: =D138*Effectiveness!$D$111+K137*(1-Effectiveness!$D$67) -> 27.1 | L138: 27.1 | N138: 3414.6
C139: 127 | D139: 1200 | E139: =IF(Inputs!$F$71=1,0,$D$12*Effectiveness!$D$105+E138*(1-Effectiveness!$D$61)) -> 0 | F139: =IF(Inputs!$F$71=1,0,$D$12*Effectiveness!$D$106+F138*(1-Effectiveness!$D$62)) -> 0 | G139: =IF(Inputs!$F$71=1,0,$D$12*Effectiveness!$D$107+G138*(1-Effectiveness!$D$63)) -> 0 | H139: =IF(Inputs!$F$71=1,0,$D$12*Effectiveness!$D$108+H138*(1-Effectiveness!$D$64)) -> 0 | I139: =IF(Inputs!$F$71=1,0,$D$12*Effectiveness!$D$109+I138*(1-Effectiveness!$D$65)) -> 0 | J139: =IF(Inputs!$F$71=1,0,$D$12*Effectiveness!$D$110+J138*(1-Effectiveness!$D$66)) -> 0 | K139: =D139*Effectiveness!$D$111+K138*(1-Effectiveness!$D$67) -> 27.1 | L139: 27.1 | N139: 3441.7
C140: 128 | D140: 1200 | E140: =IF(Inputs!$F$71=1,0,$D$12*Effectiveness!$D$105+E139*(1-Effectiveness!$D$61)) -> 0 | F140: =IF(Inputs!$F$71=1,0,$D$12*Effectiveness!$D$106+F139*(1-Effectiveness!$D$62)) -> 0 | G140: =IF(Inputs!$F$71=1,0,$D$12*Effectiveness!$D$107+G139*(1-Effectiveness!$D$63)) -> 0 | H140: =IF(Inputs!$F$71=1,0,$D$12*Effectiveness!$D$108+H139*(1-Effectiveness!$D$64)) -> 0 | I140: =IF(Inputs!$F$71=1,0,$D$12*Effectiveness!$D$109+I139*(1-Effectiveness!$D$65)) -> 0 | J140: =IF(Inputs!$F$71=1,0,$D$12*Effectiveness!$D$110+J139*(1-Effectiveness!$D$66)) -> 0 | K140: =D140*Effectiveness!$D$111+K139*(1-Effectiveness!$D$67) -> 27.1 | L140: 27.1 | N140: 3468.8
C141: 129 | D141: 1200 | E141: =IF(Inputs!$F$71=1,0,$D$12*Effectiveness!$D$105+E140*(1-Effectiveness!$D$61)) -> 0 | F141: =IF(Inputs!$F$71=1,0,$D$12*Effectiveness!$D$106+F140*(1-Effectiveness!$D$62)) -> 0 | G141: =IF(Inputs!$F$71=1,0,$D$12*Effectiveness!$D$107+G140*(1-Effectiveness!$D$63)) -> 0 | H141: =IF(Inputs!$F$71=1,0,$D$12*Effectiveness!$D$108+H140*(1-Effectiveness!$D$64)) -> 0 | I141: =IF(Inputs!$F$71=1,0,$D$12*Effectiveness!$D$109+I140*(1-Effectiveness!$D$65)) -> 0 | J141: =IF(Inputs!$F$71=1,0,$D$12*Effectiveness!$D$110+J140*(1-Effectiveness!$D$66)) -> 0 | K141: =D141*Effectiveness!$D$111+K140*(1-Effectiveness!$D$67) -> 27.1 | L141: =SUM(E141:K141) -> 27.1 | N141: 3495.9
C142: 130 | D142: 1200 | E142: =IF(Inputs!$F$71=1,0,$D$12*Effectiveness!$D$105+E141*(1-Effectiveness!$D$61)) -> 0 | F142: =IF(Inputs!$F$71=1,0,$D$12*Effectiveness!$D$106+F141*(1-Effectiveness!$D$62)) -> 0 | G142: =IF(Inputs!$F$71=1,0,$D$12*Effectiveness!$D$107+G141*(1-Effectiveness!$D$63)) -> 0 | H142: =IF(Inputs!$F$71=1,0,$D$12*Effectiveness!$D$108+H141*(1-Effectiveness!$D$64)) -> 0 | I142: =IF(Inputs!$F$71=1,0,$D$12*Effectiveness!$D$109+I141*(1-Effectiveness!$D$65)) -> 0 | J142: =IF(Inputs!$F$71=1,0,$D$12*Effectiveness!$D$110+J141*(1-Effectiveness!$D$66)) -> 0 | K142: =D142*Effectiveness!$D$111+K141*(1-Effectiveness!$D$67) -> 27.1 | L142: 27.1 | N142: =L142+N141 -> 3523
C143: 131 | D143: 1200 | E143: =IF(Inputs!$F$71=1,0,$D$12*Effectiveness!$D$105+E142*(1-Effectiveness!$D$61)) -> 0 | F143: =IF(Inputs!$F$71=1,0,$D$12*Effectiveness!$D$106+F142*(1-Effectiveness!$D$62)) -> 0 | G143: =IF(Inputs!$F$71=1,0,$D$12*Effectiveness!$D$107+G142*(1-Effectiveness!$D$63)) -> 0 | H143: =IF(Inputs!$F$71=1,0,$D$12*Effectiveness!$D$108+H142*(1-Effectiveness!$D$64)) -> 0 | I143: =IF(Inputs!$F$71=1,0,$D$12*Effectiveness!$D$109+I142*(1-Effectiveness!$D$65)) -> 0 | J143: =IF(Inputs!$F$71=1,0,$D$12*Effectiveness!$D$110+J142*(1-Effectiveness!$D$66)) -> 0 | K143: =D143*Effectiveness!$D$111+K142*(1-Effectiveness!$D$67) -> 27.1 | L143: 27.1 | N143: 3550.1
C144: 132 | D144: 1200 | E144: =IF(Inputs!$F$71=1,0,$D$12*Effectiveness!$D$105+E143*(1-Effectiveness!$D$61)) -> 0 | F144: =IF(Inputs!$F$71=1,0,$D$12*Effectiveness!$D$106+F143*(1-Effectiveness!$D$62)) -> 0 | G144: =IF(Inputs!$F$71=1,0,$D$12*Effectiveness!$D$107+G143*(1-Effectiveness!$D$63)) -> 0 | H144: =IF(Inputs!$F$71=1,0,$D$12*Effectiveness!$D$108+H143*(1-Effectiveness!$D$64)) -> 0 | I144: =IF(Inputs!$F$71=1,0,$D$12*Effectiveness!$D$109+I143*(1-Effectiveness!$D$65)) -> 0 | J144: =IF(Inputs!$F$71=1,0,$D$12*Effectiveness!$D$110+J143*(1-Effectiveness!$D$66)) -> 0 | K144: =D144*Effectiveness!$D$111+K143*(1-Effectiveness!$D$67) -> 27.1 | L144: 27.1 | N144: 3577.2
C145: 133 | D145: =D144*(1+Inputs!$D$17) -> 1200 | E145: =IF(Inputs!$F$71=1,0,$D$12*Effectiveness!$D$105+E144*(1-Effectiveness!$D$61)) -> 0 | F145: =IF(Inputs!$F$71=1,0,$D$12*Effectiveness!$D$106+F144*(1-Effectiveness!$D$62)) -> 0 | G145: =IF(Inputs!$F$71=1,0,$D$12*Effectiveness!$D$107+G144*(1-Effectiveness!$D$63)) -> 0 | H145: =IF(Inputs!$F$71=1,0,$D$12*Effectiveness!$D$108+H144*(1-Effectiveness!$D$64)) -> 0 | I145: =IF(Inputs!$F$71=1,0,$D$12*Effectiveness!$D$109+I144*(1-Effectiveness!$D$65)) -> 0 | J145: =IF(Inputs!$F$71=1,0,$D$12*Effectiveness!$D$110+J144*(1-Effectiveness!$D$66)) -> 0 | K145: =D145*Effectiveness!$D$111+K144*(1-Effectiveness!$D$67) -> 27.1 | L145: 27.1 | N145: 3604.3
C146: 134 | D146: =D145 -> 1200 | E146: =IF(Inputs!$F$71=1,0,$D$12*Effectiveness!$D$105+E145*(1-Effectiveness!$D$61)) -> 0 | F146: =IF(Inputs!$F$71=1,0,$D$12*Effectiveness!$D$106+F145*(1-Effectiveness!$D$62)) -> 0 | G146: =IF(Inputs!$F$71=1,0,$D$12*Effectiveness!$D$107+G145*(1-Effectiveness!$D$63)) -> 0 | H146: =IF(Inputs!$F$71=1,0,$D$12*Effectiveness!$D$108+H145*(1-Effectiveness!$D$64)) -> 0 | I146: =IF(Inputs!$F$71=1,0,$D$12*Effectiveness!$D$109+I145*(1-Effectiveness!$D$65)) -> 0 | J146: =IF(Inputs!$F$71=1,0,$D$12*Effectiveness!$D$110+J145*(1-Effectiveness!$D$66)) -> 0 | K146: =D146*Effectiveness!$D$111+K145*(1-Effectiveness!$D$67) -> 27.1 | L146: 27.1 | N146: 3631.4
C147: 135 | D147: =D146 -> 1200 | E147: =IF(Inputs!$F$71=1,0,$D$12*Effectiveness!$D$105+E146*(1-Effectiveness!$D$61)) -> 0 | F147: =IF(Inputs!$F$71=1,0,$D$12*Effectiveness!$D$106+F146*(1-Effectiveness!$D$62)) -> 0 | G147: =IF(Inputs!$F$71=1,0,$D$12*Effectiveness!$D$107+G146*(1-Effectiveness!$D$63)) -> 0 | H147: =IF(Inputs!$F$71=1,0,$D$12*Effectiveness!$D$108+H146*(1-Effectiveness!$D$64)) -> 0 | I147: =IF(Inputs!$F$71=1,0,$D$12*Effectiveness!$D$109+I146*(1-Effectiveness!$D$65)) -> 0 | J147: =IF(Inputs!$F$71=1,0,$D$12*Effectiveness!$D$110+J146*(1-Effectiveness!$D$66)) -> 0 | K147: =D147*Effectiveness!$D$111+K146*(1-Effectiveness!$D$67) -> 27.1 | L147: 27.1 | N147: 3658.5
C148: 136 | D148: 1200 | E148: =IF(Inputs!$F$71=1,0,$D$12*Effectiveness!$D$105+E147*(1-Effectiveness!$D$61)) -> 0 | F148: =IF(Inputs!$F$71=1,0,$D$12*Effectiveness!$D$106+F147*(1-Effectiveness!$D$62)) -> 0 | G148: =IF(Inputs!$F$71=1,0,$D$12*Effectiveness!$D$107+G147*(1-Effectiveness!$D$63)) -> 0 | H148: =IF(Inputs!$F$71=1,0,$D$12*Effectiveness!$D$108+H147*(1-Effectiveness!$D$64)) -> 0 | I148: =IF(Inputs!$F$71=1,0,$D$12*Effectiveness!$D$109+I147*(1-Effectiveness!$D$65)) -> 0 | J148: =IF(Inputs!$F$71=1,0,$D$12*Effectiveness!$D$110+J147*(1-Effectiveness!$D$66)) -> 0 | K148: =D148*Effectiveness!$D$111+K147*(1-Effectiveness!$D$67) -> 27.1 | L148: 27.1 | N148: 3685.6
C149: 137 | D149: 1200 | E149: =IF(Inputs!$F$71=1,0,$D$12*Effectiveness!$D$105+E148*(1-Effectiveness!$D$61)) -> 0 | F149: =IF(Inputs!$F$71=1,0,$D$12*Effectiveness!$D$106+F148*(1-Effectiveness!$D$62)) -> 0 | G149: =IF(Inputs!$F$71=1,0,$D$12*Effectiveness!$D$107+G148*(1-Effectiveness!$D$63)) -> 0 | H149: =IF(Inputs!$F$71=1,0,$D$12*Effectiveness!$D$108+H148*(1-Effectiveness!$D$64)) -> 0 | I149: =IF(Inputs!$F$71=1,0,$D$12*Effectiveness!$D$109+I148*(1-Effectiveness!$D$65)) -> 0 | J149: =IF(Inputs!$F$71=1,0,$D$12*Effectiveness!$D$110+J148*(1-Effectiveness!$D$66)) -> 0 | K149: =D149*Effectiveness!$D$111+K148*(1-Effectiveness!$D$67) -> 27.1 | L149: 27.1 | N149: 3712.7
C150: 138 | D150: 1200 | E150: =IF(Inputs!$F$71=1,0,$D$12*Effectiveness!$D$105+E149*(1-Effectiveness!$D$61)) -> 0 | F150: =IF(Inputs!$F$71=1,0,$D$12*Effectiveness!$D$106+F149*(1-Effectiveness!$D$62)) -> 0 | G150: =IF(Inputs!$F$71=1,0,$D$12*Effectiveness!$D$107+G149*(1-Effectiveness!$D$63)) -> 0 | H150: =IF(Inputs!$F$71=1,0,$D$12*Effectiveness!$D$108+H149*(1-Effectiveness!$D$64)) -> 0 | I150: =IF(Inputs!$F$71=1,0,$D$12*Effectiveness!$D$109+I149*(1-Effectiveness!$D$65)) -> 0 | J150: =IF(Inputs!$F$71=1,0,$D$12*Effectiveness!$D$110+J149*(1-Effectiveness!$D$66)) -> 0 | K150: =D150*Effectiveness!$D$111+K149*(1-Effectiveness!$D$67) -> 27.1 | L150: 27.1 | N150: 3739.8
C151: 139 | D151: 1200 | E151: =IF(Inputs!$F$71=1,0,$D$12*Effectiveness!$D$105+E150*(1-Effectiveness!$D$61)) -> 0 | F151: =IF(Inputs!$F$71=1,0,$D$12*Effectiveness!$D$106+F150*(1-Effectiveness!$D$62)) -> 0 | G151: =IF(Inputs!$F$71=1,0,$D$12*Effectiveness!$D$107+G150*(1-Effectiveness!$D$63)) -> 0 | H151: =IF(Inputs!$F$71=1,0,$D$12*Effectiveness!$D$108+H150*(1-Effectiveness!$D$64)) -> 0 | I151: =IF(Inputs!$F$71=1,0,$D$12*Effectiveness!$D$109+I150*(1-Effectiveness!$D$65)) -> 0 | J151: =IF(Inputs!$F$71=1,0,$D$12*Effectiveness!$D$110+J150*(1-Effectiveness!$D$66)) -> 0 | K151: =D151*Effectiveness!$D$111+K150*(1-Effectiveness!$D$67) -> 27.1 | L151: 27.1 | N151: 3766.9
C152: 140 | D152: 1200 | E152: =IF(Inputs!$F$71=1,0,$D$12*Effectiveness!$D$105+E151*(1-Effectiveness!$D$61)) -> 0 | F152: =IF(Inputs!$F$71=1,0,$D$12*Effectiveness!$D$106+F151*(1-Effectiveness!$D$62)) -> 0 | G152: =IF(Inputs!$F$71=1,0,$D$12*Effectiveness!$D$107+G151*(1-Effectiveness!$D$63)) -> 0 | H152: =IF(Inputs!$F$71=1,0,$D$12*Effectiveness!$D$108+H151*(1-Effectiveness!$D$64)) -> 0 | I152: =IF(Inputs!$F$71=1,0,$D$12*Effectiveness!$D$109+I151*(1-Effectiveness!$D$65)) -> 0 | J152: =IF(Inputs!$F$71=1,0,$D$12*Effectiveness!$D$110+J151*(1-Effectiveness!$D$66)) -> 0 | K152: =D152*Effectiveness!$D$111+K151*(1-Effectiveness!$D$67) -> 27.1 | L152: 27.1 | N152: 3794
C153: 141 | D153: 1200 | E153: =IF(Inputs!$F$71=1,0,$D$12*Effectiveness!$D$105+E152*(1-Effectiveness!$D$61)) -> 0 | F153: =IF(Inputs!$F$71=1,0,$D$12*Effectiveness!$D$106+F152*(1-Effectiveness!$D$62)) -> 0 | G153: =IF(Inputs!$F$71=1,0,$D$12*Effectiveness!$D$107+G152*(1-Effectiveness!$D$63)) -> 0 | H153: =IF(Inputs!$F$71=1,0,$D$12*Effectiveness!$D$108+H152*(1-Effectiveness!$D$64)) -> 0 | I153: =IF(Inputs!$F$71=1,0,$D$12*Effectiveness!$D$109+I152*(1-Effectiveness!$D$65)) -> 0 | J153: =IF(Inputs!$F$71=1,0,$D$12*Effectiveness!$D$110+J152*(1-Effectiveness!$D$66)) -> 0 | K153: =D153*Effectiveness!$D$111+K152*(1-Effectiveness!$D$67) -> 27.1 | L153: 27.1 | N153: 3821.1
C154: 142 | D154: 1200 | E154: =IF(Inputs!$F$71=1,0,$D$12*Effectiveness!$D$105+E153*(1-Effectiveness!$D$61)) -> 0 | F154: =IF(Inputs!$F$71=1,0,$D$12*Effectiveness!$D$106+F153*(1-Effectiveness!$D$62)) -> 0 | G154: =IF(Inputs!$F$71=1,0,$D$12*Effectiveness!$D$107+G153*(1-Effectiveness!$D$63)) -> 0 | H154: =IF(Inputs!$F$71=1,0,$D$12*Effectiveness!$D$108+H153*(1-Effectiveness!$D$64)) -> 0 | I154: =IF(Inputs!$F$71=1,0,$D$12*Effectiveness!$D$109+I153*(1-Effectiveness!$D$65)) -> 0 | J154: =IF(Inputs!$F$71=1,0,$D$12*Effectiveness!$D$110+J153*(1-Effectiveness!$D$66)) -> 0 | K154: =D154*Effectiveness!$D$111+K153*(1-Effectiveness!$D$67) -> 27.1 | L154: 27.1 | N154: 3848.2
C155: 143 | D155: 1200 | E155: =IF(Inputs!$F$71=1,0,$D$12*Effectiveness!$D$105+E154*(1-Effectiveness!$D$61)) -> 0 | F155: =IF(Inputs!$F$71=1,0,$D$12*Effectiveness!$D$106+F154*(1-Effectiveness!$D$62)) -> 0 | G155: =IF(Inputs!$F$71=1,0,$D$12*Effectiveness!$D$107+G154*(1-Effectiveness!$D$63)) -> 0 | H155: =IF(Inputs!$F$71=1,0,$D$12*Effectiveness!$D$108+H154*(1-Effectiveness!$D$64)) -> 0 | I155: =IF(Inputs!$F$71=1,0,$D$12*Effectiveness!$D$109+I154*(1-Effectiveness!$D$65)) -> 0 | J155: =IF(Inputs!$F$71=1,0,$D$12*Effectiveness!$D$110+J154*(1-Effectiveness!$D$66)) -> 0 | K155: =D155*Effectiveness!$D$111+K154*(1-Effectiveness!$D$67) -> 27.1 | L155: 27.1 | N155: 3875.3
C156: 144 | D156: 1200 | E156: =IF(Inputs!$F$71=1,0,$D$12*Effectiveness!$D$105+E155*(1-Effectiveness!$D$61)) -> 0 | F156: =IF(Inputs!$F$71=1,0,$D$12*Effectiveness!$D$106+F155*(1-Effectiveness!$D$62)) -> 0 | G156: =IF(Inputs!$F$71=1,0,$D$12*Effectiveness!$D$107+G155*(1-Effectiveness!$D$63)) -> 0 | H156: =IF(Inputs!$F$71=1,0,$D$12*Effectiveness!$D$108+H155*(1-Effectiveness!$D$64)) -> 0 | I156: =IF(Inputs!$F$71=1,0,$D$12*Effectiveness!$D$109+I155*(1-Effectiveness!$D$65)) -> 0 | J156: =IF(Inputs!$F$71=1,0,$D$12*Effectiveness!$D$110+J155*(1-Effectiveness!$D$66)) -> 0 | K156: =D156*Effectiveness!$D$111+K155*(1-Effectiveness!$D$67) -> 27.1 | L156: 27.1 | N156: 3902.4
C157: 145 | D157: =D156*(1+Inputs!$D$17) -> 1200 | E157: =IF(Inputs!$F$71=1,0,$D$12*Effectiveness!$D$105+E156*(1-Effectiveness!$D$61)) -> 0 | F157: =IF(Inputs!$F$71=1,0,$D$12*Effectiveness!$D$106+F156*(1-Effectiveness!$D$62)) -> 0 | G157: =IF(Inputs!$F$71=1,0,$D$12*Effectiveness!$D$107+G156*(1-Effectiveness!$D$63)) -> 0 | H157: =IF(Inputs!$F$71=1,0,$D$12*Effectiveness!$D$108+H156*(1-Effectiveness!$D$64)) -> 0 | I157: =IF(Inputs!$F$71=1,0,$D$12*Effectiveness!$D$109+I156*(1-Effectiveness!$D$65)) -> 0 | J157: =IF(Inputs!$F$71=1,0,$D$12*Effectiveness!$D$110+J156*(1-Effectiveness!$D$66)) -> 0 | K157: =D157*Effectiveness!$D$111+K156*(1-Effectiveness!$D$67) -> 27.1 | L157: 27.1 | N157: 3929.5
C158: 146 | D158: =D157 -> 1200 | E158: =IF(Inputs!$F$71=1,0,$D$12*Effectiveness!$D$105+E157*(1-Effectiveness!$D$61)) -> 0 | F158: =IF(Inputs!$F$71=1,0,$D$12*Effectiveness!$D$106+F157*(1-Effectiveness!$D$62)) -> 0 | G158: =IF(Inputs!$F$71=1,0,$D$12*Effectiveness!$D$107+G157*(1-Effectiveness!$D$63)) -> 0 | H158: =IF(Inputs!$F$71=1,0,$D$12*Effectiveness!$D$108+H157*(1-Effectiveness!$D$64)) -> 0 | I158: =IF(Inputs!$F$71=1,0,$D$12*Effectiveness!$D$109+I157*(1-Effectiveness!$D$65)) -> 0 | J158: =IF(Inputs!$F$71=1,0,$D$12*Effectiveness!$D$110+J157*(1-Effectiveness!$D$66)) -> 0 | K158: =D158*Effectiveness!$D$111+K157*(1-Effectiveness!$D$67) -> 27.1 | L158: 27.1 | N158: 3956.6
C159: 147 | D159: =D158 -> 1200 | E159: =IF(Inputs!$F$71=1,0,$D$12*Effectiveness!$D$105+E158*(1-Effectiveness!$D$61)) -> 0 | F159: =IF(Inputs!$F$71=1,0,$D$12*Effectiveness!$D$106+F158*(1-Effectiveness!$D$62)) -> 0 | G159: =IF(Inputs!$F$71=1,0,$D$12*Effectiveness!$D$107+G158*(1-Effectiveness!$D$63)) -> 0 | H159: =IF(Inputs!$F$71=1,0,$D$12*Effectiveness!$D$108+H158*(1-Effectiveness!$D$64)) -> 0 | I159: =IF(Inputs!$F$71=1,0,$D$12*Effectiveness!$D$109+I158*(1-Effectiveness!$D$65)) -> 0 | J159: =IF(Inputs!$F$71=1,0,$D$12*Effectiveness!$D$110+J158*(1-Effectiveness!$D$66)) -> 0 | K159: =D159*Effectiveness!$D$111+K158*(1-Effectiveness!$D$67) -> 27.1 | L159: 27.1 | N159: 3983.7
C160: 148 | D160: 1200 | E160: =IF(Inputs!$F$71=1,0,$D$12*Effectiveness!$D$105+E159*(1-Effectiveness!$D$61)) -> 0 | F160: =IF(Inputs!$F$71=1,0,$D$12*Effectiveness!$D$106+F159*(1-Effectiveness!$D$62)) -> 0 | G160: =IF(Inputs!$F$71=1,0,$D$12*Effectiveness!$D$107+G159*(1-Effectiveness!$D$63)) -> 0 | H160: =IF(Inputs!$F$71=1,0,$D$12*Effectiveness!$D$108+H159*(1-Effectiveness!$D$64)) -> 0 | I160: =IF(Inputs!$F$71=1,0,$D$12*Effectiveness!$D$109+I159*(1-Effectiveness!$D$65)) -> 0 | J160: =IF(Inputs!$F$71=1,0,$D$12*Effectiveness!$D$110+J159*(1-Effectiveness!$D$66)) -> 0 | K160: =D160*Effectiveness!$D$111+K159*(1-Effectiveness!$D$67) -> 27.1 | L160: 27.1 | N160: 4010.8
C161: 149 | D161: 1200 | E161: =IF(Inputs!$F$71=1,0,$D$12*Effectiveness!$D$105+E160*(1-Effectiveness!$D$61)) -> 0 | F161: =IF(Inputs!$F$71=1,0,$D$12*Effectiveness!$D$106+F160*(1-Effectiveness!$D$62)) -> 0 | G161: =IF(Inputs!$F$71=1,0,$D$12*Effectiveness!$D$107+G160*(1-Effectiveness!$D$63)) -> 0 | H161: =IF(Inputs!$F$71=1,0,$D$12*Effectiveness!$D$108+H160*(1-Effectiveness!$D$64)) -> 0 | I161: =IF(Inputs!$F$71=1,0,$D$12*Effectiveness!$D$109+I160*(1-Effectiveness!$D$65)) -> 0 | J161: =IF(Inputs!$F$71=1,0,$D$12*Effectiveness!$D$110+J160*(1-Effectiveness!$D$66)) -> 0 | K161: =D161*Effectiveness!$D$111+K160*(1-Effectiveness!$D$67) -> 27.1 | L161: 27.1 | N161: 4037.9
C162: 150 | D162: 1200 | E162: =IF(Inputs!$F$71=1,0,$D$12*Effectiveness!$D$105+E161*(1-Effectiveness!$D$61)) -> 0 | F162: =IF(Inputs!$F$71=1,0,$D$12*Effectiveness!$D$106+F161*(1-Effectiveness!$D$62)) -> 0 | G162: =IF(Inputs!$F$71=1,0,$D$12*Effectiveness!$D$107+G161*(1-Effectiveness!$D$63)) -> 0 | H162: =IF(Inputs!$F$71=1,0,$D$12*Effectiveness!$D$108+H161*(1-Effectiveness!$D$64)) -> 0 | I162: =IF(Inputs!$F$71=1,0,$D$12*Effectiveness!$D$109+I161*(1-Effectiveness!$D$65)) -> 0 | J162: =IF(Inputs!$F$71=1,0,$D$12*Effectiveness!$D$110+J161*(1-Effectiveness!$D$66)) -> 0 | K162: =D162*Effectiveness!$D$111+K161*(1-Effectiveness!$D$67) -> 27.1 | L162: 27.1 | N162: 4065
C163: 151 | D163: 1200 | E163: =IF(Inputs!$F$71=1,0,$D$12*Effectiveness!$D$105+E162*(1-Effectiveness!$D$61)) -> 0 | F163: =IF(Inputs!$F$71=1,0,$D$12*Effectiveness!$D$106+F162*(1-Effectiveness!$D$62)) -> 0 | G163: =IF(Inputs!$F$71=1,0,$D$12*Effectiveness!$D$107+G162*(1-Effectiveness!$D$63)) -> 0 | H163: =IF(Inputs!$F$71=1,0,$D$12*Effectiveness!$D$108+H162*(1-Effectiveness!$D$64)) -> 0 | I163: =IF(Inputs!$F$71=1,0,$D$12*Effectiveness!$D$109+I162*(1-Effectiveness!$D$65)) -> 0 | J163: =IF(Inputs!$F$71=1,0,$D$12*Effectiveness!$D$110+J162*(1-Effectiveness!$D$66)) -> 0 | K163: =D163*Effectiveness!$D$111+K162*(1-Effectiveness!$D$67) -> 27.1 | L163: 27.1 | N163: 4092.1
C164: 152 | D164: 1200 | E164: =IF(Inputs!$F$71=1,0,$D$12*Effectiveness!$D$105+E163*(1-Effectiveness!$D$61)) -> 0 | F164: =IF(Inputs!$F$71=1,0,$D$12*Effectiveness!$D$106+F163*(1-Effectiveness!$D$62)) -> 0 | G164: =IF(Inputs!$F$71=1,0,$D$12*Effectiveness!$D$107+G163*(1-Effectiveness!$D$63)) -> 0 | H164: =IF(Inputs!$F$71=1,0,$D$12*Effectiveness!$D$108+H163*(1-Effectiveness!$D$64)) -> 0 | I164: =IF(Inputs!$F$71=1,0,$D$12*Effectiveness!$D$109+I163*(1-Effectiveness!$D$65)) -> 0 | J164: =IF(Inputs!$F$71=1,0,$D$12*Effectiveness!$D$110+J163*(1-Effectiveness!$D$66)) -> 0 | K164: =D164*Effectiveness!$D$111+K163*(1-Effectiveness!$D$67) -> 27.1 | L164: 27.1 | N164: 4119.2
C165: 153 | D165: 1200 | E165: =IF(Inputs!$F$71=1,0,$D$12*Effectiveness!$D$105+E164*(1-Effectiveness!$D$61)) -> 0 | F165: =IF(Inputs!$F$71=1,0,$D$12*Effectiveness!$D$106+F164*(1-Effectiveness!$D$62)) -> 0 | G165: =IF(Inputs!$F$71=1,0,$D$12*Effectiveness!$D$107+G164*(1-Effectiveness!$D$63)) -> 0 | H165: =IF(Inputs!$F$71=1,0,$D$12*Effectiveness!$D$108+H164*(1-Effectiveness!$D$64)) -> 0 | I165: =IF(Inputs!$F$71=1,0,$D$12*Effectiveness!$D$109+I164*(1-Effectiveness!$D$65)) -> 0 | J165: =IF(Inputs!$F$71=1,0,$D$12*Effectiveness!$D$110+J164*(1-Effectiveness!$D$66)) -> 0 | K165: =D165*Effectiveness!$D$111+K164*(1-Effectiveness!$D$67) -> 27.1 | L165: 27.1 | N165: 4146.3
C166: 154 | D166: 1200 | E166: =IF(Inputs!$F$71=1,0,$D$12*Effectiveness!$D$105+E165*(1-Effectiveness!$D$61)) -> 0 | F166: =IF(Inputs!$F$71=1,0,$D$12*Effectiveness!$D$106+F165*(1-Effectiveness!$D$62)) -> 0 | G166: =IF(Inputs!$F$71=1,0,$D$12*Effectiveness!$D$107+G165*(1-Effectiveness!$D$63)) -> 0 | H166: =IF(Inputs!$F$71=1,0,$D$12*Effectiveness!$D$108+H165*(1-Effectiveness!$D$64)) -> 0 | I166: =IF(Inputs!$F$71=1,0,$D$12*Effectiveness!$D$109+I165*(1-Effectiveness!$D$65)) -> 0 | J166: =IF(Inputs!$F$71=1,0,$D$12*Effectiveness!$D$110+J165*(1-Effectiveness!$D$66)) -> 0 | K166: =D166*Effectiveness!$D$111+K165*(1-Effectiveness!$D$67) -> 27.1 | L166: 27.1 | N166: 4173.4
C167: 155 | D167: 1200 | E167: =IF(Inputs!$F$71=1,0,$D$12*Effectiveness!$D$105+E166*(1-Effectiveness!$D$61)) -> 0 | F167: =IF(Inputs!$F$71=1,0,$D$12*Effectiveness!$D$106+F166*(1-Effectiveness!$D$62)) -> 0 | G167: =IF(Inputs!$F$71=1,0,$D$12*Effectiveness!$D$107+G166*(1-Effectiveness!$D$63)) -> 0 | H167: =IF(Inputs!$F$71=1,0,$D$12*Effectiveness!$D$108+H166*(1-Effectiveness!$D$64)) -> 0 | I167: =IF(Inputs!$F$71=1,0,$D$12*Effectiveness!$D$109+I166*(1-Effectiveness!$D$65)) -> 0 | J167: =IF(Inputs!$F$71=1,0,$D$12*Effectiveness!$D$110+J166*(1-Effectiveness!$D$66)) -> 0 | K167: =D167*Effectiveness!$D$111+K166*(1-Effectiveness!$D$67) -> 27.1 | L167: 27.1 | N167: 4200.5
C168: 156 | D168: 1200 | E168: =IF(Inputs!$F$71=1,0,$D$12*Effectiveness!$D$105+E167*(1-Effectiveness!$D$61)) -> 0 | F168: =IF(Inputs!$F$71=1,0,$D$12*Effectiveness!$D$106+F167*(1-Effectiveness!$D$62)) -> 0 | G168: =IF(Inputs!$F$71=1,0,$D$12*Effectiveness!$D$107+G167*(1-Effectiveness!$D$63)) -> 0 | H168: =IF(Inputs!$F$71=1,0,$D$12*Effectiveness!$D$108+H167*(1-Effectiveness!$D$64)) -> 0 | I168: =IF(Inputs!$F$71=1,0,$D$12*Effectiveness!$D$109+I167*(1-Effectiveness!$D$65)) -> 0 | J168: =IF(Inputs!$F$71=1,0,$D$12*Effectiveness!$D$110+J167*(1-Effectiveness!$D$66)) -> 0 | K168: =D168*Effectiveness!$D$111+K167*(1-Effectiveness!$D$67) -> 27.1 | L168: 27.1 | N168: 4227.6
C169: 157 | D169: =D168*(1+Inputs!$D$17) -> 1200 | E169: =IF(Inputs!$F$71=1,0,$D$12*Effectiveness!$D$105+E168*(1-Effectiveness!$D$61)) -> 0 | F169: =IF(Inputs!$F$71=1,0,$D$12*Effectiveness!$D$106+F168*(1-Effectiveness!$D$62)) -> 0 | G169: =IF(Inputs!$F$71=1,0,$D$12*Effectiveness!$D$107+G168*(1-Effectiveness!$D$63)) -> 0 | H169: =IF(Inputs!$F$71=1,0,$D$12*Effectiveness!$D$108+H168*(1-Effectiveness!$D$64)) -> 0 | I169: =IF(Inputs!$F$71=1,0,$D$12*Effectiveness!$D$109+I168*(1-Effectiveness!$D$65)) -> 0 | J169: =IF(Inputs!$F$71=1,0,$D$12*Effectiveness!$D$110+J168*(1-Effectiveness!$D$66)) -> 0 | K169: =D169*Effectiveness!$D$111+K168*(1-Effectiveness!$D$67) -> 27.1 | L169: 27.1 | N169: 4254.7
C170: 158 | D170: =D169 -> 1200 | E170: =IF(Inputs!$F$71=1,0,$D$12*Effectiveness!$D$105+E169*(1-Effectiveness!$D$61)) -> 0 | F170: =IF(Inputs!$F$71=1,0,$D$12*Effectiveness!$D$106+F169*(1-Effectiveness!$D$62)) -> 0 | G170: =IF(Inputs!$F$71=1,0,$D$12*Effectiveness!$D$107+G169*(1-Effectiveness!$D$63)) -> 0 | H170: =IF(Inputs!$F$71=1,0,$D$12*Effectiveness!$D$108+H169*(1-Effectiveness!$D$64)) -> 0 | I170: =IF(Inputs!$F$71=1,0,$D$12*Effectiveness!$D$109+I169*(1-Effectiveness!$D$65)) -> 0 | J170: =IF(Inputs!$F$71=1,0,$D$12*Effectiveness!$D$110+J169*(1-Effectiveness!$D$66)) -> 0 | K170: =D170*Effectiveness!$D$111+K169*(1-Effectiveness!$D$67) -> 27.1 | L170: 27.1 | N170: 4281.8
C171: 159 | D171: =D170 -> 1200 | E171: =IF(Inputs!$F$71=1,0,$D$12*Effectiveness!$D$105+E170*(1-Effectiveness!$D$61)) -> 0 | F171: =IF(Inputs!$F$71=1,0,$D$12*Effectiveness!$D$106+F170*(1-Effectiveness!$D$62)) -> 0 | G171: =IF(Inputs!$F$71=1,0,$D$12*Effectiveness!$D$107+G170*(1-Effectiveness!$D$63)) -> 0 | H171: =IF(Inputs!$F$71=1,0,$D$12*Effectiveness!$D$108+H170*(1-Effectiveness!$D$64)) -> 0 | I171: =IF(Inputs!$F$71=1,0,$D$12*Effectiveness!$D$109+I170*(1-Effectiveness!$D$65)) -> 0 | J171: =IF(Inputs!$F$71=1,0,$D$12*Effectiveness!$D$110+J170*(1-Effectiveness!$D$66)) -> 0 | K171: =D171*Effectiveness!$D$111+K170*(1-Effectiveness!$D$67) -> 27.1 | L171: 27.1 | N171: 4308.9
C172: 160 | D172: 1200 | E172: =IF(Inputs!$F$71=1,0,$D$12*Effectiveness!$D$105+E171*(1-Effectiveness!$D$61)) -> 0 | F172: =IF(Inputs!$F$71=1,0,$D$12*Effectiveness!$D$106+F171*(1-Effectiveness!$D$62)) -> 0 | G172: =IF(Inputs!$F$71=1,0,$D$12*Effectiveness!$D$107+G171*(1-Effectiveness!$D$63)) -> 0 | H172: =IF(Inputs!$F$71=1,0,$D$12*Effectiveness!$D$108+H171*(1-Effectiveness!$D$64)) -> 0 | I172: =IF(Inputs!$F$71=1,0,$D$12*Effectiveness!$D$109+I171*(1-Effectiveness!$D$65)) -> 0 | J172: =IF(Inputs!$F$71=1,0,$D$12*Effectiveness!$D$110+J171*(1-Effectiveness!$D$66)) -> 0 | K172: =D172*Effectiveness!$D$111+K171*(1-Effectiveness!$D$67) -> 27.1 | L172: 27.1 | N172: 4336
C173: 161 | D173: 1200 | E173: =IF(Inputs!$F$71=1,0,$D$12*Effectiveness!$D$105+E172*(1-Effectiveness!$D$61)) -> 0 | F173: =IF(Inputs!$F$71=1,0,$D$12*Effectiveness!$D$106+F172*(1-Effectiveness!$D$62)) -> 0 | G173: =IF(Inputs!$F$71=1,0,$D$12*Effectiveness!$D$107+G172*(1-Effectiveness!$D$63)) -> 0 | H173: =IF(Inputs!$F$71=1,0,$D$12*Effectiveness!$D$108+H172*(1-Effectiveness!$D$64)) -> 0 | I173: =IF(Inputs!$F$71=1,0,$D$12*Effectiveness!$D$109+I172*(1-Effectiveness!$D$65)) -> 0 | J173: =IF(Inputs!$F$71=1,0,$D$12*Effectiveness!$D$110+J172*(1-Effectiveness!$D$66)) -> 0 | K173: =D173*Effectiveness!$D$111+K172*(1-Effectiveness!$D$67) -> 27.1 | L173: 27.1 | N173: 4363.1
C174: 162 | D174: 1200 | E174: =IF(Inputs!$F$71=1,0,$D$12*Effectiveness!$D$105+E173*(1-Effectiveness!$D$61)) -> 0 | F174: =IF(Inputs!$F$71=1,0,$D$12*Effectiveness!$D$106+F173*(1-Effectiveness!$D$62)) -> 0 | G174: =IF(Inputs!$F$71=1,0,$D$12*Effectiveness!$D$107+G173*(1-Effectiveness!$D$63)) -> 0 | H174: =IF(Inputs!$F$71=1,0,$D$12*Effectiveness!$D$108+H173*(1-Effectiveness!$D$64)) -> 0 | I174: =IF(Inputs!$F$71=1,0,$D$12*Effectiveness!$D$109+I173*(1-Effectiveness!$D$65)) -> 0 | J174: =IF(Inputs!$F$71=1,0,$D$12*Effectiveness!$D$110+J173*(1-Effectiveness!$D$66)) -> 0 | K174: =D174*Effectiveness!$D$111+K173*(1-Effectiveness!$D$67) -> 27.1 | L174: 27.1 | N174: 4390.2
C175: 163 | D175: 1200 | E175: =IF(Inputs!$F$71=1,0,$D$12*Effectiveness!$D$105+E174*(1-Effectiveness!$D$61)) -> 0 | F175: =IF(Inputs!$F$71=1,0,$D$12*Effectiveness!$D$106+F174*(1-Effectiveness!$D$62)) -> 0 | G175: =IF(Inputs!$F$71=1,0,$D$12*Effectiveness!$D$107+G174*(1-Effectiveness!$D$63)) -> 0 | H175: =IF(Inputs!$F$71=1,0,$D$12*Effectiveness!$D$108+H174*(1-Effectiveness!$D$64)) -> 0 | I175: =IF(Inputs!$F$71=1,0,$D$12*Effectiveness!$D$109+I174*(1-Effectiveness!$D$65)) -> 0 | J175: =IF(Inputs!$F$71=1,0,$D$12*Effectiveness!$D$110+J174*(1-Effectiveness!$D$66)) -> 0 | K175: =D175*Effectiveness!$D$111+K174*(1-Effectiveness!$D$67) -> 27.1 | L175: 27.1 | N175: 4417.3
C176: 164 | D176: 1200 | E176: =IF(Inputs!$F$71=1,0,$D$12*Effectiveness!$D$105+E175*(1-Effectiveness!$D$61)) -> 0 | F176: =IF(Inputs!$F$71=1,0,$D$12*Effectiveness!$D$106+F175*(1-Effectiveness!$D$62)) -> 0 | G176: =IF(Inputs!$F$71=1,0,$D$12*Effectiveness!$D$107+G175*(1-Effectiveness!$D$63)) -> 0 | H176: =IF(Inputs!$F$71=1,0,$D$12*Effectiveness!$D$108+H175*(1-Effectiveness!$D$64)) -> 0 | I176: =IF(Inputs!$F$71=1,0,$D$12*Effectiveness!$D$109+I175*(1-Effectiveness!$D$65)) -> 0 | J176: =IF(Inputs!$F$71=1,0,$D$12*Effectiveness!$D$110+J175*(1-Effectiveness!$D$66)) -> 0 | K176: =D176*Effectiveness!$D$111+K175*(1-Effectiveness!$D$67) -> 27.1 | L176: 27.1 | N176: 4444.4
C177: 165 | D177: 1200 | E177: =IF(Inputs!$F$71=1,0,$D$12*Effectiveness!$D$105+E176*(1-Effectiveness!$D$61)) -> 0 | F177: =IF(Inputs!$F$71=1,0,$D$12*Effectiveness!$D$106+F176*(1-Effectiveness!$D$62)) -> 0 | G177: =IF(Inputs!$F$71=1,0,$D$12*Effectiveness!$D$107+G176*(1-Effectiveness!$D$63)) -> 0 | H177: =IF(Inputs!$F$71=1,0,$D$12*Effectiveness!$D$108+H176*(1-Effectiveness!$D$64)) -> 0 | I177: =IF(Inputs!$F$71=1,0,$D$12*Effectiveness!$D$109+I176*(1-Effectiveness!$D$65)) -> 0 | J177: =IF(Inputs!$F$71=1,0,$D$12*Effectiveness!$D$110+J176*(1-Effectiveness!$D$66)) -> 0 | K177: =D177*Effectiveness!$D$111+K176*(1-Effectiveness!$D$67) -> 27.1 | L177: 27.1 | N177: 4471.5
C178: 166 | D178: 1200 | E178: =IF(Inputs!$F$71=1,0,$D$12*Effectiveness!$D$105+E177*(1-Effectiveness!$D$61)) -> 0 | F178: =IF(Inputs!$F$71=1,0,$D$12*Effectiveness!$D$106+F177*(1-Effectiveness!$D$62)) -> 0 | G178: =IF(Inputs!$F$71=1,0,$D$12*Effectiveness!$D$107+G177*(1-Effectiveness!$D$63)) -> 0 | H178: =IF(Inputs!$F$71=1,0,$D$12*Effectiveness!$D$108+H177*(1-Effectiveness!$D$64)) -> 0 | I178: =IF(Inputs!$F$71=1,0,$D$12*Effectiveness!$D$109+I177*(1-Effectiveness!$D$65)) -> 0 | J178: =IF(Inputs!$F$71=1,0,$D$12*Effectiveness!$D$110+J177*(1-Effectiveness!$D$66)) -> 0 | K178: =D178*Effectiveness!$D$111+K177*(1-Effectiveness!$D$67) -> 27.1 | L178: 27.1 | N178: 4498.6
C179: 167 | D179: 1200 | E179: =IF(Inputs!$F$71=1,0,$D$12*Effectiveness!$D$105+E178*(1-Effectiveness!$D$61)) -> 0 | F179: =IF(Inputs!$F$71=1,0,$D$12*Effectiveness!$D$106+F178*(1-Effectiveness!$D$62)) -> 0 | G179: =IF(Inputs!$F$71=1,0,$D$12*Effectiveness!$D$107+G178*(1-Effectiveness!$D$63)) -> 0 | H179: =IF(Inputs!$F$71=1,0,$D$12*Effectiveness!$D$108+H178*(1-Effectiveness!$D$64)) -> 0 | I179: =IF(Inputs!$F$71=1,0,$D$12*Effectiveness!$D$109+I178*(1-Effectiveness!$D$65)) -> 0 | J179: =IF(Inputs!$F$71=1,0,$D$12*Effectiveness!$D$110+J178*(1-Effectiveness!$D$66)) -> 0 | K179: =D179*Effectiveness!$D$111+K178*(1-Effectiveness!$D$67) -> 27.1 | L179: 27.1 | N179: 4525.7
C180: 168 | D180: 1200 | E180: =IF(Inputs!$F$71=1,0,$D$12*Effectiveness!$D$105+E179*(1-Effectiveness!$D$61)) -> 0 | F180: =IF(Inputs!$F$71=1,0,$D$12*Effectiveness!$D$106+F179*(1-Effectiveness!$D$62)) -> 0 | G180: =IF(Inputs!$F$71=1,0,$D$12*Effectiveness!$D$107+G179*(1-Effectiveness!$D$63)) -> 0 | H180: =IF(Inputs!$F$71=1,0,$D$12*Effectiveness!$D$108+H179*(1-Effectiveness!$D$64)) -> 0 | I180: =IF(Inputs!$F$71=1,0,$D$12*Effectiveness!$D$109+I179*(1-Effectiveness!$D$65)) -> 0 | J180: =IF(Inputs!$F$71=1,0,$D$12*Effectiveness!$D$110+J179*(1-Effectiveness!$D$66)) -> 0 | K180: =D180*Effectiveness!$D$111+K179*(1-Effectiveness!$D$67) -> 27.1 | L180: 27.1 | N180: 4552.8
C181: 169 | D181: =D180*(1+Inputs!$D$17) -> 1200 | E181: =IF(Inputs!$F$71=1,0,$D$12*Effectiveness!$D$105+E180*(1-Effectiveness!$D$61)) -> 0 | F181: =IF(Inputs!$F$71=1,0,$D$12*Effectiveness!$D$106+F180*(1-Effectiveness!$D$62)) -> 0 | G181: =IF(Inputs!$F$71=1,0,$D$12*Effectiveness!$D$107+G180*(1-Effectiveness!$D$63)) -> 0 | H181: =IF(Inputs!$F$71=1,0,$D$12*Effectiveness!$D$108+H180*(1-Effectiveness!$D$64)) -> 0 | I181: =IF(Inputs!$F$71=1,0,$D$12*Effectiveness!$D$109+I180*(1-Effectiveness!$D$65)) -> 0 | J181: =IF(Inputs!$F$71=1,0,$D$12*Effectiveness!$D$110+J180*(1-Effectiveness!$D$66)) -> 0 | K181: =D181*Effectiveness!$D$111+K180*(1-Effectiveness!$D$67) -> 27.1 | L181: 27.1 | N181: 4579.9
C182: 170 | D182: =D181 -> 1200 | E182: =IF(Inputs!$F$71=1,0,$D$12*Effectiveness!$D$105+E181*(1-Effectiveness!$D$61)) -> 0 | F182: =IF(Inputs!$F$71=1,0,$D$12*Effectiveness!$D$106+F181*(1-Effectiveness!$D$62)) -> 0 | G182: =IF(Inputs!$F$71=1,0,$D$12*Effectiveness!$D$107+G181*(1-Effectiveness!$D$63)) -> 0 | H182: =IF(Inputs!$F$71=1,0,$D$12*Effectiveness!$D$108+H181*(1-Effectiveness!$D$64)) -> 0 | I182: =IF(Inputs!$F$71=1,0,$D$12*Effectiveness!$D$109+I181*(1-Effectiveness!$D$65)) -> 0 | J182: =IF(Inputs!$F$71=1,0,$D$12*Effectiveness!$D$110+J181*(1-Effectiveness!$D$66)) -> 0 | K182: =D182*Effectiveness!$D$111+K181*(1-Effectiveness!$D$67) -> 27.1 | L182: 27.1 | N182: 4607
C183: 171 | D183: =D182 -> 1200 | E183: =IF(Inputs!$F$71=1,0,$D$12*Effectiveness!$D$105+E182*(1-Effectiveness!$D$61)) -> 0 | F183: =IF(Inputs!$F$71=1,0,$D$12*Effectiveness!$D$106+F182*(1-Effectiveness!$D$62)) -> 0 | G183: =IF(Inputs!$F$71=1,0,$D$12*Effectiveness!$D$107+G182*(1-Effectiveness!$D$63)) -> 0 | H183: =IF(Inputs!$F$71=1,0,$D$12*Effectiveness!$D$108+H182*(1-Effectiveness!$D$64)) -> 0 | I183: =IF(Inputs!$F$71=1,0,$D$12*Effectiveness!$D$109+I182*(1-Effectiveness!$D$65)) -> 0 | J183: =IF(Inputs!$F$71=1,0,$D$12*Effectiveness!$D$110+J182*(1-Effectiveness!$D$66)) -> 0 | K183: =D183*Effectiveness!$D$111+K182*(1-Effectiveness!$D$67) -> 27.1 | L183: 27.1 | N183: 4634.1
C184: 172 | D184: 1200 | E184: =IF(Inputs!$F$71=1,0,$D$12*Effectiveness!$D$105+E183*(1-Effectiveness!$D$61)) -> 0 | F184: =IF(Inputs!$F$71=1,0,$D$12*Effectiveness!$D$106+F183*(1-Effectiveness!$D$62)) -> 0 | G184: =IF(Inputs!$F$71=1,0,$D$12*Effectiveness!$D$107+G183*(1-Effectiveness!$D$63)) -> 0 | H184: =IF(Inputs!$F$71=1,0,$D$12*Effectiveness!$D$108+H183*(1-Effectiveness!$D$64)) -> 0 | I184: =IF(Inputs!$F$71=1,0,$D$12*Effectiveness!$D$109+I183*(1-Effectiveness!$D$65)) -> 0 | J184: =IF(Inputs!$F$71=1,0,$D$12*Effectiveness!$D$110+J183*(1-Effectiveness!$D$66)) -> 0 | K184: =D184*Effectiveness!$D$111+K183*(1-Effectiveness!$D$67) -> 27.1 | L184: 27.1 | N184: 4661.2
C185: 173 | D185: 1200 | E185: =IF(Inputs!$F$71=1,0,$D$12*Effectiveness!$D$105+E184*(1-Effectiveness!$D$61)) -> 0 | F185: =IF(Inputs!$F$71=1,0,$D$12*Effectiveness!$D$106+F184*(1-Effectiveness!$D$62)) -> 0 | G185: =IF(Inputs!$F$71=1,0,$D$12*Effectiveness!$D$107+G184*(1-Effectiveness!$D$63)) -> 0 | H185: =IF(Inputs!$F$71=1,0,$D$12*Effectiveness!$D$108+H184*(1-Effectiveness!$D$64)) -> 0 | I185: =IF(Inputs!$F$71=1,0,$D$12*Effectiveness!$D$109+I184*(1-Effectiveness!$D$65)) -> 0 | J185: =IF(Inputs!$F$71=1,0,$D$12*Effectiveness!$D$110+J184*(1-Effectiveness!$D$66)) -> 0 | K185: =D185*Effectiveness!$D$111+K184*(1-Effectiveness!$D$67) -> 27.1 | L185: 27.1 | N185: 4688.3
C186: 174 | D186: 1200 | E186: =IF(Inputs!$F$71=1,0,$D$12*Effectiveness!$D$105+E185*(1-Effectiveness!$D$61)) -> 0 | F186: =IF(Inputs!$F$71=1,0,$D$12*Effectiveness!$D$106+F185*(1-Effectiveness!$D$62)) -> 0 | G186: =IF(Inputs!$F$71=1,0,$D$12*Effectiveness!$D$107+G185*(1-Effectiveness!$D$63)) -> 0 | H186: =IF(Inputs!$F$71=1,0,$D$12*Effectiveness!$D$108+H185*(1-Effectiveness!$D$64)) -> 0 | I186: =IF(Inputs!$F$71=1,0,$D$12*Effectiveness!$D$109+I185*(1-Effectiveness!$D$65)) -> 0 | J186: =IF(Inputs!$F$71=1,0,$D$12*Effectiveness!$D$110+J185*(1-Effectiveness!$D$66)) -> 0 | K186: =D186*Effectiveness!$D$111+K185*(1-Effectiveness!$D$67) -> 27.1 | L186: 27.1 | N186: 4715.4
C187: 175 | D187: 1200 | E187: =IF(Inputs!$F$71=1,0,$D$12*Effectiveness!$D$105+E186*(1-Effectiveness!$D$61)) -> 0 | F187: =IF(Inputs!$F$71=1,0,$D$12*Effectiveness!$D$106+F186*(1-Effectiveness!$D$62)) -> 0 | G187: =IF(Inputs!$F$71=1,0,$D$12*Effectiveness!$D$107+G186*(1-Effectiveness!$D$63)) -> 0 | H187: =IF(Inputs!$F$71=1,0,$D$12*Effectiveness!$D$108+H186*(1-Effectiveness!$D$64)) -> 0 | I187: =IF(Inputs!$F$71=1,0,$D$12*Effectiveness!$D$109+I186*(1-Effectiveness!$D$65)) -> 0 | J187: =IF(Inputs!$F$71=1,0,$D$12*Effectiveness!$D$110+J186*(1-Effectiveness!$D$66)) -> 0 | K187: =D187*Effectiveness!$D$111+K186*(1-Effectiveness!$D$67) -> 27.1 | L187: 27.1 | N187: 4742.5
C188: 176 | D188: 1200 | E188: =IF(Inputs!$F$71=1,0,$D$12*Effectiveness!$D$105+E187*(1-Effectiveness!$D$61)) -> 0 | F188: =IF(Inputs!$F$71=1,0,$D$12*Effectiveness!$D$106+F187*(1-Effectiveness!$D$62)) -> 0 | G188: =IF(Inputs!$F$71=1,0,$D$12*Effectiveness!$D$107+G187*(1-Effectiveness!$D$63)) -> 0 | H188: =IF(Inputs!$F$71=1,0,$D$12*Effectiveness!$D$108+H187*(1-Effectiveness!$D$64)) -> 0 | I188: =IF(Inputs!$F$71=1,0,$D$12*Effectiveness!$D$109+I187*(1-Effectiveness!$D$65)) -> 0 | J188: =IF(Inputs!$F$71=1,0,$D$12*Effectiveness!$D$110+J187*(1-Effectiveness!$D$66)) -> 0 | K188: =D188*Effectiveness!$D$111+K187*(1-Effectiveness!$D$67) -> 27.1 | L188: 27.1 | N188: 4769.6
C189: 177 | D189: 1200 | E189: =IF(Inputs!$F$71=1,0,$D$12*Effectiveness!$D$105+E188*(1-Effectiveness!$D$61)) -> 0 | F189: =IF(Inputs!$F$71=1,0,$D$12*Effectiveness!$D$106+F188*(1-Effectiveness!$D$62)) -> 0 | G189: =IF(Inputs!$F$71=1,0,$D$12*Effectiveness!$D$107+G188*(1-Effectiveness!$D$63)) -> 0 | H189: =IF(Inputs!$F$71=1,0,$D$12*Effectiveness!$D$108+H188*(1-Effectiveness!$D$64)) -> 0 | I189: =IF(Inputs!$F$71=1,0,$D$12*Effectiveness!$D$109+I188*(1-Effectiveness!$D$65)) -> 0 | J189: =IF(Inputs!$F$71=1,0,$D$12*Effectiveness!$D$110+J188*(1-Effectiveness!$D$66)) -> 0 | K189: =D189*Effectiveness!$D$111+K188*(1-Effectiveness!$D$67) -> 27.1 | L189: 27.1 | N189: 4796.7
C190: 178 | D190: 1200 | E190: =IF(Inputs!$F$71=1,0,$D$12*Effectiveness!$D$105+E189*(1-Effectiveness!$D$61)) -> 0 | F190: =IF(Inputs!$F$71=1,0,$D$12*Effectiveness!$D$106+F189*(1-Effectiveness!$D$62)) -> 0 | G190: =IF(Inputs!$F$71=1,0,$D$12*Effectiveness!$D$107+G189*(1-Effectiveness!$D$63)) -> 0 | H190: =IF(Inputs!$F$71=1,0,$D$12*Effectiveness!$D$108+H189*(1-Effectiveness!$D$64)) -> 0 | I190: =IF(Inputs!$F$71=1,0,$D$12*Effectiveness!$D$109+I189*(1-Effectiveness!$D$65)) -> 0 | J190: =IF(Inputs!$F$71=1,0,$D$12*Effectiveness!$D$110+J189*(1-Effectiveness!$D$66)) -> 0 | K190: =D190*Effectiveness!$D$111+K189*(1-Effectiveness!$D$67) -> 27.1 | L190: 27.1 | N190: 4823.8
C191: 179 | D191: 1200 | E191: =IF(Inputs!$F$71=1,0,$D$12*Effectiveness!$D$105+E190*(1-Effectiveness!$D$61)) -> 0 | F191: =IF(Inputs!$F$71=1,0,$D$12*Effectiveness!$D$106+F190*(1-Effectiveness!$D$62)) -> 0 | G191: =IF(Inputs!$F$71=1,0,$D$12*Effectiveness!$D$107+G190*(1-Effectiveness!$D$63)) -> 0 | H191: =IF(Inputs!$F$71=1,0,$D$12*Effectiveness!$D$108+H190*(1-Effectiveness!$D$64)) -> 0 | I191: =IF(Inputs!$F$71=1,0,$D$12*Effectiveness!$D$109+I190*(1-Effectiveness!$D$65)) -> 0 | J191: =IF(Inputs!$F$71=1,0,$D$12*Effectiveness!$D$110+J190*(1-Effectiveness!$D$66)) -> 0 | K191: =D191*Effectiveness!$D$111+K190*(1-Effectiveness!$D$67) -> 27.1 | L191: 27.1 | N191: 4850.9
C192: 180 | D192: 1200 | E192: =IF(Inputs!$F$71=1,0,$D$12*Effectiveness!$D$105+E191*(1-Effectiveness!$D$61)) -> 0 | F192: =IF(Inputs!$F$71=1,0,$D$12*Effectiveness!$D$106+F191*(1-Effectiveness!$D$62)) -> 0 | G192: =IF(Inputs!$F$71=1,0,$D$12*Effectiveness!$D$107+G191*(1-Effectiveness!$D$63)) -> 0 | H192: =IF(Inputs!$F$71=1,0,$D$12*Effectiveness!$D$108+H191*(1-Effectiveness!$D$64)) -> 0 | I192: =IF(Inputs!$F$71=1,0,$D$12*Effectiveness!$D$109+I191*(1-Effectiveness!$D$65)) -> 0 | J192: =IF(Inputs!$F$71=1,0,$D$12*Effectiveness!$D$110+J191*(1-Effectiveness!$D$66)) -> 0 | K192: =D192*Effectiveness!$D$111+K191*(1-Effectiveness!$D$67) -> 27.1 | L192: 27.1 | N192: 4878

Sheet Tx Costs
C4: Calculations
C11: Month | D11: Bed rails | E11: Overbed tray table | F11: Chair | G11: Call button | H11: Data device | I11: IV pole | J11: Other items | K11: E. Coli | L11: Enterobacter aerogenes | M11: Methicillin-resistant Staphylococcus aureus (MRSA) | N11: Pseudomonas aeruginosa | O11: Staphilococus aureus | P11: Vancomycin-resistant enterococcus faecalis (VRE) | R11: =Inputs!D22 -> All Healthcare Associated Infections | S11: Total (month) | T11: Total (cumulative) | V11: The calculations pages show the number of infections each month and a cumulative figure. These pages are purely for transparency of the model and are for information only. | AI11: month
C12: 0 | D12: ='Cost Inputs'!$G$22 -> 80000 | E12: ='Cost Inputs'!$G$23 -> 6000 | F12: ='Cost Inputs'!G24 -> 7000 | G12: ='Cost Inputs'!G25 -> 1000 | H12: ='Cost Inputs'!G26 -> 5000 | I12: ='Cost Inputs'!G27 -> 6000 | J12: =SUM('Cost Inputs'!G29:G39) -> 0 | K12: =Calculations!E12*'Cost Inputs'!$U$15 -> 0 | L12: =Calculations!F12*'Cost Inputs'!$U$16 -> 0 | M12: =Calculations!G12*'Cost Inputs'!$U$17 -> 0 | N12: =Calculations!H12*'Cost Inputs'!$U$18 -> 0 | O12: =Calculations!I12*'Cost Inputs'!$U$19 -> 0 | P12: =Calculations!J12*'Cost Inputs'!$U$20 -> 0 | R12: =Calculations!K12*'Cost Inputs'!$U$21 -> 0 | S12: =SUM(D12:R12) -> 105000 | T12: =S12 -> 105000 | AH12: =IF(T12>'Comp Costs'!T12,1,0) -> 1 | AI12: =C12 -> 0
C13: 1 | D13: 0 | E13: 0 | F13: 0 | G13: 0 | H13: 0 | I13: 0 | J13: 0 | K13: =Calculations!E13*'Cost Inputs'!$U$15 -> 0 | L13: =Calculations!F13*'Cost Inputs'!$U$16 -> 0 | M13: =Calculations!G13*'Cost Inputs'!$U$17 -> 0 | N13: =Calculations!H13*'Cost Inputs'!$U$18 -> 0 | O13: =Calculations!I13*'Cost Inputs'!$U$19 -> 0 | P13: =Calculations!J13*'Cost Inputs'!$U$20 -> 0 | R13: =Calculations!K13*'Cost Inputs'!$U$21 -> 130080 | S13: =SUM(D13:R13) -> 130080 | T13: =S13+T12 -> 235080 | AH13: =IF(T13>'Comp Costs'!T13,1,0) -> 0 | AI13: 1
C14: 2 | D14: 0 | E14: 0 | F14: 0 | G14: 0 | H14: 0 | I14: 0 | J14: 0 | K14: =Calculations!E14*'Cost Inputs'!$U$15 -> 0 | L14: =Calculations!F14*'Cost Inputs'!$U$16 -> 0 | M14: =Calculations!G14*'Cost Inputs'!$U$17 -> 0 | N14: =Calculations!H14*'Cost Inputs'!$U$18 -> 0 | O14: =Calculations!I14*'Cost Inputs'!$U$19 -> 0 | P14: =Calculations!J14*'Cost Inputs'!$U$20 -> 0 | R14: =Calculations!K14*'Cost Inputs'!$U$21 -> 130080 | S14: 130080 | T14: =S14+T13 -> 365160 | AH14: =IF(T14>'Comp Costs'!T14,1,0) -> 0 | AI14: 2
C15: 3 | D15: 0 | E15: 0 | F15: 0 | G15: 0 | H15: 0 | I15: 0 | J15: 0 | K15: =Calculations!E15*'Cost Inputs'!$U$15 -> 0 | L15: =Calculations!F15*'Cost Inputs'!$U$16 -> 0 | M15: =Calculations!G15*'Cost Inputs'!$U$17 -> 0 | N15: =Calculations!H15*'Cost Inputs'!$U$18 -> 0 | O15: =Calculations!I15*'Cost Inputs'!$U$19 -> 0 | P15: =Calculations!J15*'Cost Inputs'!$U$20 -> 0 | R15: =Calculations!K15*'Cost Inputs'!$U$21 -> 130080 | S15: 130080 | T15: 495240 | AH15: =IF(T15>'Comp Costs'!T15,1,0) -> 0 | AI15: 3
C16: 4 | D16: 0 | E16: 0 | F16: 0 | G16: 0 | H16: 0 | I16: 0 | J16: 0 | K16: =Calculations!E16*'Cost Inputs'!$U$15 -> 0 | L16: =Calculations!F16*'Cost Inputs'!$U$16 -> 0 | M16: =Calculations!G16*'Cost Inputs'!$U$17 -> 0 | N16: =Calculations!H16*'Cost Inputs'!$U$18 -> 0 | O16: =Calculations!I16*'Cost Inputs'!$U$19 -> 0 | P16: =Calculations!J16*'Cost Inputs'!$U$20 -> 0 | R16: =Calculations!K16*'Cost Inputs'!$U$21 -> 130080 | S16: 130080 | T16: 625320 | AH16: =IF(T16>'Comp Costs'!T16,1,0) -> 0 | AI16: 4
C17: 5 | D17: 0 | E17: 0 | F17: 0 | G17: 0 | H17: 0 | I17: 0 | J17: 0 | K17: =Calculations!E17*'Cost Inputs'!$U$15 -> 0 | L17: =Calculations!F17*'Cost Inputs'!$U$16 -> 0 | M17: =Calculations!G17*'Cost Inputs'!$U$17 -> 0 | N17: =Calculations!H17*'Cost Inputs'!$U$18 -> 0 | O17: =Calculations!I17*'Cost Inputs'!$U$19 -> 0 | P17: =Calculations!J17*'Cost Inputs'!$U$20 -> 0 | R17: =Calculations!K17*'Cost Inputs'!$U$21 -> 130080 | S17: 130080 | T17: 755400 | AH17: =IF(T17>'Comp Costs'!T17,1,0) -> 0 | AI17: 5
C18: 6 | D18: 0 | E18: 0 | F18: 0 | G18: 0 | H18: 0 | I18: 0 | J18: 0 | K18: =Calculations!E18*'Cost Inputs'!$U$15 -> 0 | L18: =Calculations!F18*'Cost Inputs'!$U$16 -> 0 | M18: =Calculations!G18*'Cost Inputs'!$U$17 -> 0 | N18: =Calculations!H18*'Cost Inputs'!$U$18 -> 0 | O18: =Calculations!I18*'Cost Inputs'!$U$19 -> 0 | P18: =Calculations!J18*'Cost Inputs'!$U$20 -> 0 | R18: =Calculations!K18*'Cost Inputs'!$U$21 -> 130080 | S18: 130080 | T18: 885480 | AH18: =IF(T18>'Comp Costs'!T18,1,0) -> 0 | AI18: 6
C19: 7 | D19: 0 | E19: 0 | F19: 0 | G19: 0 | H19: 0 | I19: 0 | J19: 0 | K19: =Calculations!E19*'Cost Inputs'!$U$15 -> 0 | L19: =Calculations!F19*'Cost Inputs'!$U$16 -> 0 | M19: =Calculations!G19*'Cost Inputs'!$U$17 -> 0 | N19: =Calculations!H19*'Cost Inputs'!$U$18 -> 0 | O19: =Calculations!I19*'Cost Inputs'!$U$19 -> 0 | P19: =Calculations!J19*'Cost Inputs'!$U$20 -> 0 | R19: =Calculations!K19*'Cost Inputs'!$U$21 -> 130080 | S19: 130080 | T19: 1015560 | AH19: =IF(T19>'Comp Costs'!T19,1,0) -> 0 | AI19: 7
C20: 8 | D20: 0 | E20: 0 | F20: 0 | G20: 0 | H20: 0 | I20: 0 | J20: 0 | K20: =Calculations!E20*'Cost Inputs'!$U$15 -> 0 | L20: =Calculations!F20*'Cost Inputs'!$U$16 -> 0 | M20: =Calculations!G20*'Cost Inputs'!$U$17 -> 0 | N20: =Calculations!H20*'Cost Inputs'!$U$18 -> 0 | O20: =Calculations!I20*'Cost Inputs'!$U$19 -> 0 | P20: =Calculations!J20*'Cost Inputs'!$U$20 -> 0 | R20: =Calculations!K20*'Cost Inputs'!$U$21 -> 130080 | S20: 130080 | T20: 1145640 | AH20: =IF(T20>'Comp Costs'!T20,1,0) -> 0 | AI20: 8
C21: 9 | D21: 0 | E21: 0 | F21: 0 | G21: 0 | H21: 0 | I21: 0 | J21: 0 | K21: =Calculations!E21*'Cost Inputs'!$U$15 -> 0 | L21: =Calculations!F21*'Cost Inputs'!$U$16 -> 0 | M21: =Calculations!G21*'Cost Inputs'!$U$17 -> 0 | N21: =Calculations!H21*'Cost Inputs'!$U$18 -> 0 | O21: =Calculations!I21*'Cost Inputs'!$U$19 -> 0 | P21: =Calculations!J21*'Cost Inputs'!$U$20 -> 0 | R21: =Calculations!K21*'Cost Inputs'!$U$21 -> 130080 | S21: 130080 | T21: 1275720 | AH21: =IF(T21>'Comp Costs'!T21,1,0) -> 0 | AI21: 9
C22: 10 | D22: 0 | E22: 0 | F22: 0 | G22: 0 | H22: 0 | I22: 0 | J22: 0 | K22: =Calculations!E22*'Cost Inputs'!$U$15 -> 0 | L22: =Calculations!F22*'Cost Inputs'!$U$16 -> 0 | M22: =Calculations!G22*'Cost Inputs'!$U$17 -> 0 | N22: =Calculations!H22*'Cost Inputs'!$U$18 -> 0 | O22: =Calculations!I22*'Cost Inputs'!$U$19 -> 0 | P22: =Calculations!J22*'Cost Inputs'!$U$20 -> 0 | R22: =Calculations!K22*'Cost Inputs'!$U$21 -> 130080 | S22: 130080 | T22: 1405800 | AH22: =IF(T22>'Comp Costs'!T22,1,0) -> 0 | AI22: 10
C23: 11 | D23: 0 | E23: 0 | F23: 0 | G23: 0 | H23: 0 | I23: 0 | J23: 0 | K23: =Calculations!E23*'Cost Inputs'!$U$15 -> 0 | L23: =Calculations!F23*'Cost Inputs'!$U$16 -> 0 | M23: =Calculations!G23*'Cost Inputs'!$U$17 -> 0 | N23: =Calculations!H23*'Cost Inputs'!$U$18 -> 0 | O23: =Calculations!I23*'Cost Inputs'!$U$19 -> 0 | P23: =Calculations!J23*'Cost Inputs'!$U$20 -> 0 | R23: =Calculations!K23*'Cost Inputs'!$U$21 -> 130080 | S23: 130080 | T23: 1535880 | AH23: =IF(T23>'Comp Costs'!T23,1,0) -> 0 | AI23: 11
C24: 12 | D24: 0 | E24: 0 | F24: 0 | G24: 0 | H24: 0 | I24: 0 | J24: 0 | K24: =Calculations!E24*'Cost Inputs'!$U$15 -> 0 | L24: =Calculations!F24*'Cost Inputs'!$U$16 -> 0 | M24: =Calculations!G24*'Cost Inputs'!$U$17 -> 0 | N24: =Calculations!H24*'Cost Inputs'!$U$18 -> 0 | O24: =Calculations!I24*'Cost Inputs'!$U$19 -> 0 | P24: =Calculations!J24*'Cost Inputs'!$U$20 -> 0 | R24: =Calculations!K24*'Cost Inputs'!$U$21 -> 130080 | S24: 130080 | T24: 1665960 | AH24: =IF(T24>'Comp Costs'!T24,1,0) -> 0 | AI24: 12
C25: 13 | D25: 0 | E25: 0 | F25: 0 | G25: 0 | H25: 0 | I25: 0 | J25: 0 | K25: =Calculations!E25*'Cost Inputs'!$U$15 -> 0 | L25: =Calculations!F25*'Cost Inputs'!$U$16 -> 0 | M25: =Calculations!G25*'Cost Inputs'!$U$17 -> 0 | N25: =Calculations!H25*'Cost Inputs'!$U$18 -> 0 | O25: =Calculations!I25*'Cost Inputs'!$U$19 -> 0 | P25: =Calculations!J25*'Cost Inputs'!$U$20 -> 0 | R25: =Calculations!K25*'Cost Inputs'!$U$21 -> 130080 | S25: 130080 | T25: 1796040 | AH25: =IF(T25>'Comp Costs'!T25,1,0) -> 0 | AI25: 13
C26: 14 | D26: 0 | E26: 0 | F26: 0 | G26: 0 | H26: 0 | I26: 0 | J26: 0 | K26: =Calculations!E26*'Cost Inputs'!$U$15 -> 0 | L26: =Calculations!F26*'Cost Inputs'!$U$16 -> 0 | M26: =Calculations!G26*'Cost Inputs'!$U$17 -> 0 | N26: =Calculations!H26*'Cost Inputs'!$U$18 -> 0 | O26: =Calculations!I26*'Cost Inputs'!$U$19 -> 0 | P26: =Calculations!J26*'Cost Inputs'!$U$20 -> 0 | R26: =Calculations!K26*'Cost Inputs'!$U$21 -> 130080 | S26: 130080 | T26: 1926120 | AH26: =IF(T26>'Comp Costs'!T26,1,0) -> 0 | AI26: 14
C27: 15 | D27: 0 | E27: 0 | F27: 0 | G27: 0 | H27: 0 | I27: 0 | J27: 0 | K27: =Calculations!E27*'Cost Inputs'!$U$15 -> 0 | L27: =Calculations!F27*'Cost Inputs'!$U$16 -> 0 | M27: =Calculations!G27*'Cost Inputs'!$U$17 -> 0 | N27: =Calculations!H27*'Cost Inputs'!$U$18 -> 0 | O27: =Calculations!I27*'Cost Inputs'!$U$19 -> 0 | P27: =Calculations!J27*'Cost Inputs'!$U$20 -> 0 | R27: =Calculations!K27*'Cost Inputs'!$U$21 -> 130080 | S27: 130080 | T27: 2056200 | AH27: =IF(T27>'Comp Costs'!T27,1,0) -> 0 | AI27: 15
C28: 16 | D28: 0 | E28: 0 | F28: 0 | G28: 0 | H28: 0 | I28: 0 | J28: 0 | K28: =Calculations!E28*'Cost Inputs'!$U$15 -> 0 | L28: =Calculations!F28*'Cost Inputs'!$U$16 -> 0 | M28: =Calculations!G28*'Cost Inputs'!$U$17 -> 0 | N28: =Calculations!H28*'Cost Inputs'!$U$18 -> 0 | O28: =Calculations!I28*'Cost Inputs'!$U$19 -> 0 | P28: =Calculations!J28*'Cost Inputs'!$U$20 -> 0 | R28: =Calculations!K28*'Cost Inputs'!$U$21 -> 130080 | S28: 130080 | T28: 2186280 | AH28: =IF(T28>'Comp Costs'!T28,1,0) -> 0 | AI28: 16
C29: 17 | D29: 0 | E29: 0 | F29: 0 | G29: 0 | H29: 0 | I29: 0 | J29: 0 | K29: =Calculations!E29*'Cost Inputs'!$U$15 -> 0 | L29: =Calculations!F29*'Cost Inputs'!$U$16 -> 0 | M29: =Calculations!G29*'Cost Inputs'!$U$17 -> 0 | N29: =Calculations!H29*'Cost Inputs'!$U$18 -> 0 | O29: =Calculations!I29*'Cost Inputs'!$U$19 -> 0 | P29: =Calculations!J29*'Cost Inputs'!$U$20 -> 0 | R29: =Calculations!K29*'Cost Inputs'!$U$21 -> 130080 | S29: 130080 | T29: 2316360 | AH29: =IF(T29>'Comp Costs'!T29,1,0) -> 0 | AI29: 17
C30: 18 | D30: 0 | E30: 0 | F30: 0 | G30: 0 | H30: 0 | I30: 0 | J30: 0 | K30: =Calculations!E30*'Cost Inputs'!$U$15 -> 0 | L30: =Calculations!F30*'Cost Inputs'!$U$16 -> 0 | M30: =Calculations!G30*'Cost Inputs'!$U$17 -> 0 | N30: =Calculations!H30*'Cost Inputs'!$U$18 -> 0 | O30: =Calculations!I30*'Cost Inputs'!$U$19 -> 0 | P30: =Calculations!J30*'Cost Inputs'!$U$20 -> 0 | R30: =Calculations!K30*'Cost Inputs'!$U$21 -> 130080 | S30: 130080 | T30: 2446440 | AH30: =IF(T30>'Comp Costs'!T30,1,0) -> 0 | AI30: 18
C31: 19 | D31: 0 | E31: 0 | F31: 0 | G31: 0 | H31: 0 | I31: 0 | J31: 0 | K31: =Calculations!E31*'Cost Inputs'!$U$15 -> 0 | L31: =Calculations!F31*'Cost Inputs'!$U$16 -> 0 | M31: =Calculations!G31*'Cost Inputs'!$U$17 -> 0 | N31: =Calculations!H31*'Cost Inputs'!$U$18 -> 0 | O31: =Calculations!I31*'Cost Inputs'!$U$19 -> 0 | P31: =Calculations!J31*'Cost Inputs'!$U$20 -> 0 | R31: =Calculations!K31*'Cost Inputs'!$U$21 -> 130080 | S31: 130080 | T31: 2576520 | AH31: =IF(T31>'Comp Costs'!T31,1,0) -> 0 | AI31: 19
C32: 20 | D32: 0 | E32: 0 | F32: 0 | G32: 0 | H32: 0 | I32: 0 | J32: 0 | K32: =Calculations!E32*'Cost Inputs'!$U$15 -> 0 | L32: =Calculations!F32*'Cost Inputs'!$U$16 -> 0 | M32: =Calculations!G32*'Cost Inputs'!$U$17 -> 0 | N32: =Calculations!H32*'Cost Inputs'!$U$18 -> 0 | O32: =Calculations!I32*'Cost Inputs'!$U$19 -> 0 | P32: =Calculations!J32*'Cost Inputs'!$U$20 -> 0 | R32: =Calculations!K32*'Cost Inputs'!$U$21 -> 130080 | S32: 130080 | T32: 2706600 | AH32: =IF(T32>'Comp Costs'!T32,1,0) -> 0 | AI32: 20
C33: 21 | D33: 0 | E33: 0 | F33: 0 | G33: 0 | H33: 0 | I33: 0 | J33: 0 | K33: =Calculations!E33*'Cost Inputs'!$U$15 -> 0 | L33: =Calculations!F33*'Cost Inputs'!$U$16 -> 0 | M33: =Calculations!G33*'Cost Inputs'!$U$17 -> 0 | N33: =Calculations!H33*'Cost Inputs'!$U$18 -> 0 | O33: =Calculations!I33*'Cost Inputs'!$U$19 -> 0 | P33: =Calculations!J33*'Cost Inputs'!$U$20 -> 0 | R33: =Calculations!K33*'Cost Inputs'!$U$21 -> 130080 | S33: 130080 | T33: 2836680 | AH33: =IF(T33>'Comp Costs'!T33,1,0) -> 0 | AI33: 21
C34: 22 | D34: 0 | E34: 0 | F34: 0 | G34: 0 | H34: 0 | I34: 0 | J34: 0 | K34: =Calculations!E34*'Cost Inputs'!$U$15 -> 0 | L34: =Calculations!F34*'Cost Inputs'!$U$16 -> 0 | M34: =Calculations!G34*'Cost Inputs'!$U$17 -> 0 | N34: =Calculations!H34*'Cost Inputs'!$U$18 -> 0 | O34: =Calculations!I34*'Cost Inputs'!$U$19 -> 0 | P34: =Calculations!J34*'Cost Inputs'!$U$20 -> 0 | R34: =Calculations!K34*'Cost Inputs'!$U$21 -> 130080 | S34: 130080 | T34: 2966760 | AH34: =IF(T34>'Comp Costs'!T34,1,0) -> 0 | AI34: 22
C35: 23 | D35: 0 | E35: 0 | F35: 0 | G35: 0 | H35: 0 | I35: 0 | J35: 0 | K35: =Calculations!E35*'Cost Inputs'!$U$15 -> 0 | L35: =Calculations!F35*'Cost Inputs'!$U$16 -> 0 | M35: =Calculations!G35*'Cost Inputs'!$U$17 -> 0 | N35: =Calculations!H35*'Cost Inputs'!$U$18 -> 0 | O35: =Calculations!I35*'Cost Inputs'!$U$19 -> 0 | P35: =Calculations!J35*'Cost Inputs'!$U$20 -> 0 | R35: =Calculations!K35*'Cost Inputs'!$U$21 -> 130080 | S35: 130080 | T35: 3096840 | AH35: =IF(T35>'Comp Costs'!T35,1,0) -> 0 | AI35: 23
C36: 24 | D36: 0 | E36: 0 | F36: 0 | G36: 0 | H36: 0 | I36: 0 | J36: 0 | K36: =Calculations!E36*'Cost Inputs'!$U$15 -> 0 | L36: =Calculations!F36*'Cost Inputs'!$U$16 -> 0 | M36: =Calculations!G36*'Cost Inputs'!$U$17 -> 0 | N36: =Calculations!H36*'Cost Inputs'!$U$18 -> 0 | O36: =Calculations!I36*'Cost Inputs'!$U$19 -> 0 | P36: =Calculations!J36*'Cost Inputs'!$U$20 -> 0 | R36: =Calculations!K36*'Cost Inputs'!$U$21 -> 130080 | S36: 130080 | T36: 3226920 | AH36: =IF(T36>'Comp Costs'!T36,1,0) -> 0 | AI36: 24
C37: 25 | D37: 0 | E37: 0 | F37: 0 | G37: 0 | H37: 0 | I37: 0 | J37: 0 | K37: =Calculations!E37*'Cost Inputs'!$U$15 -> 0 | L37: =Calculations!F37*'Cost Inputs'!$U$16 -> 0 | M37: =Calculations!G37*'Cost Inputs'!$U$17 -> 0 | N37: =Calculations!H37*'Cost Inputs'!$U$18 -> 0 | O37: =Calculations!I37*'Cost Inputs'!$U$19 -> 0 | P37: =Calculations!J37*'Cost Inputs'!$U$20 -> 0 | R37: =Calculations!K37*'Cost Inputs'!$U$21 -> 130080 | S37: 130080 | T37: 3357000 | AH37: =IF(T37>'Comp Costs'!T37,1,0) -> 0 | AI37: 25
C38: 26 | D38: 0 | E38: 0 | F38: 0 | G38: 0 | H38: 0 | I38: 0 | J38: 0 | K38: =Calculations!E38*'Cost Inputs'!$U$15 -> 0 | L38: =Calculations!F38*'Cost Inputs'!$U$16 -> 0 | M38: =Calculations!G38*'Cost Inputs'!$U$17 -> 0 | N38: =Calculations!H38*'Cost Inputs'!$U$18 -> 0 | O38: =Calculations!I38*'Cost Inputs'!$U$19 -> 0 | P38: =Calculations!J38*'Cost Inputs'!$U$20 -> 0 | R38: =Calculations!K38*'Cost Inputs'!$U$21 -> 130080 | S38: 130080 | T38: 3487080 | AH38: =IF(T38>'Comp Costs'!T38,1,0) -> 0 | AI38: 26
C39: 27 | D39: 0 | E39: 0 | F39: 0 | G39: 0 | H39: 0 | I39: 0 | J39: 0 | K39: =Calculations!E39*'Cost Inputs'!$U$15 -> 0 | L39: =Calculations!F39*'Cost Inputs'!$U$16 -> 0 | M39: =Calculations!G39*'Cost Inputs'!$U$17 -> 0 | N39: =Calculations!H39*'Cost Inputs'!$U$18 -> 0 | O39: =Calculations!I39*'Cost Inputs'!$U$19 -> 0 | P39: =Calculations!J39*'Cost Inputs'!$U$20 -> 0 | R39: =Calculations!K39*'Cost Inputs'!$U$21 -> 130080 | S39: 130080 | T39: 3617160 | AH39: =IF(T39>'Comp Costs'!T39,1,0) -> 0 | AI39: 27
C40: 28 | D40: 0 | E40: 0 | F40: 0 | G40: 0 | H40: 0 | I40: 0 | J40: 0 | K40: =Calculations!E40*'Cost Inputs'!$U$15 -> 0 | L40: =Calculations!F40*'Cost Inputs'!$U$16 -> 0 | M40: =Calculations!G40*'Cost Inputs'!$U$17 -> 0 | N40: =Calculations!H40*'Cost Inputs'!$U$18 -> 0 | O40: =Calculations!I40*'Cost Inputs'!$U$19 -> 0 | P40: =Calculations!J40*'Cost Inputs'!$U$20 -> 0 | R40: =Calculations!K40*'Cost Inputs'!$U$21 -> 130080 | S40: 130080 | T40: 3747240 | AH40: =IF(T40>'Comp Costs'!T40,1,0) -> 0 | AI40: 28
C41: 29 | D41: 0 | E41: 0 | F41: 0 | G41: 0 | H41: 0 | I41: 0 | J41: 0 | K41: =Calculations!E41*'Cost Inputs'!$U$15 -> 0 | L41: =Calculations!F41*'Cost Inputs'!$U$16 -> 0 | M41: =Calculations!G41*'Cost Inputs'!$U$17 -> 0 | N41: =Calculations!H41*'Cost Inputs'!$U$18 -> 0 | O41: =Calculations!I41*'Cost Inputs'!$U$19 -> 0 | P41: =Calculations!J41*'Cost Inputs'!$U$20 -> 0 | R41: =Calculations!K41*'Cost Inputs'!$U$21 -> 130080 | S41: 130080 | T41: 3877320 | AH41: =IF(T41>'Comp Costs'!T41,1,0) -> 0 | AI41: 29
C42: 30 | D42: 0 | E42: 0 | F42: 0 | G42: 0 | H42: 0 | I42: 0 | J42: 0 | K42: =Calculations!E42*'Cost Inputs'!$U$15 -> 0 | L42: =Calculations!F42*'Cost Inputs'!$U$16 -> 0 | M42: =Calculations!G42*'Cost Inputs'!$U$17 -> 0 | N42: =Calculations!H42*'Cost Inputs'!$U$18 -> 0 | O42: =Calculations!I42*'Cost Inputs'!$U$19 -> 0 | P42: =Calculations!J42*'Cost Inputs'!$U$20 -> 0 | R42: =Calculations!K42*'Cost Inputs'!$U$21 -> 130080 | S42: 130080 | T42: 4007400 | AH42: =IF(T42>'Comp Costs'!T42,1,0) -> 0 | AI42: 30
C43: 31 | D43: 0 | E43: 0 | F43: 0 | G43: 0 | H43: 0 | I43: 0 | J43: 0 | K43: =Calculations!E43*'Cost Inputs'!$U$15 -> 0 | L43: =Calculations!F43*'Cost Inputs'!$U$16 -> 0 | M43: =Calculations!G43*'Cost Inputs'!$U$17 -> 0 | N43: =Calculations!H43*'Cost Inputs'!$U$18 -> 0 | O43: =Calculations!I43*'Cost Inputs'!$U$19 -> 0 | P43: =Calculations!J43*'Cost Inputs'!$U$20 -> 0 | R43: =Calculations!K43*'Cost Inputs'!$U$21 -> 130080 | S43: 130080 | T43: 4137480 | AH43: =IF(T43>'Comp Costs'!T43,1,0) -> 0 | AI43: 31
C44: 32 | D44: 0 | E44: 0 | F44: 0 | G44: 0 | H44: 0 | I44: 0 | J44: 0 | K44: =Calculations!E44*'Cost Inputs'!$U$15 -> 0 | L44: =Calculations!F44*'Cost Inputs'!$U$16 -> 0 | M44: =Calculations!G44*'Cost Inputs'!$U$17 -> 0 | N44: =Calculations!H44*'Cost Inputs'!$U$18 -> 0 | O44: =Calculations!I44*'Cost Inputs'!$U$19 -> 0 | P44: =Calculations!J44*'Cost Inputs'!$U$20 -> 0 | R44: =Calculations!K44*'Cost Inputs'!$U$21 -> 130080 | S44: 130080 | T44: 4267560 | AH44: =IF(T44>'Comp Costs'!T44,1,0) -> 0 | AI44: =C44 -> 32
C45: 33 | D45: 0 | E45: 0 | F45: 0 | G45: 0 | H45: 0 | I45: 0 | J45: 0 | K45: =Calculations!E45*'Cost Inputs'!$U$15 -> 0 | L45: =Calculations!F45*'Cost Inputs'!$U$16 -> 0 | M45: =Calculations!G45*'Cost Inputs'!$U$17 -> 0 | N45: =Calculations!H45*'Cost Inputs'!$U$18 -> 0 | O45: =Calculations!I45*'Cost Inputs'!$U$19 -> 0 | P45: =Calculations!J45*'Cost Inputs'!$U$20 -> 0 | R45: =Calculations!K45*'Cost Inputs'!$U$21 -> 130080 | S45: 130080 | T45: 4397640 | AH45: =IF(T45>'Comp Costs'!T45,1,0) -> 0 | AI45: 33
C46: 34 | D46: 0 | E46: 0 | F46: 0 | G46: 0 | H46: 0 | I46: 0 | J46: 0 | K46: =Calculations!E46*'Cost Inputs'!$U$15 -> 0 | L46: =Calculations!F46*'Cost Inputs'!$U$16 -> 0 | M46: =Calculations!G46*'Cost Inputs'!$U$17 -> 0 | N46: =Calculations!H46*'Cost Inputs'!$U$18 -> 0 | O46: =Calculations!I46*'Cost Inputs'!$U$19 -> 0 | P46: =Calculations!J46*'Cost Inputs'!$U$20 -> 0 | R46: =Calculations!K46*'Cost Inputs'!$U$21 -> 130080 | S46: 130080 | T46: 4527720 | AH46: =IF(T46>'Comp Costs'!T46,1,0) -> 0 | AI46: 34
C47: 35 | D47: 0 | E47: 0 | F47: 0 | G47: 0 | H47: 0 | I47: 0 | J47: 0 | K47: =Calculations!E47*'Cost Inputs'!$U$15 -> 0 | L47: =Calculations!F47*'Cost Inputs'!$U$16 -> 0 | M47: =Calculations!G47*'Cost Inputs'!$U$17 -> 0 | N47: =Calculations!H47*'Cost Inputs'!$U$18 -> 0 | O47: =Calculations!I47*'Cost Inputs'!$U$19 -> 0 | P47: =Calculations!J47*'Cost Inputs'!$U$20 -> 0 | R47: =Calculations!K47*'Cost Inputs'!$U$21 -> 130080 | S47: 130080 | T47: 4657800 | AH47: =IF(T47>'Comp Costs'!T47,1,0) -> 0 | AI47: 35
C48: 36 | D48: 0 | E48: 0 | F48: 0 | G48: 0 | H48: 0 | I48: 0 | J48: 0 | K48: =Calculations!E48*'Cost Inputs'!$U$15 -> 0 | L48: =Calculations!F48*'Cost Inputs'!$U$16 -> 0 | M48: =Calculations!G48*'Cost Inputs'!$U$17 -> 0 | N48: =Calculations!H48*'Cost Inputs'!$U$18 -> 0 | O48: =Calculations!I48*'Cost Inputs'!$U$19 -> 0 | P48: =Calculations!J48*'Cost Inputs'!$U$20 -> 0 | R48: =Calculations!K48*'Cost Inputs'!$U$21 -> 130080 | S48: 130080 | T48: 4787880 | AH48: =IF(T48>'Comp Costs'!T48,1,0) -> 0 | AI48: 36
C49: 37 | D49: 0 | E49: 0 | F49: 0 | G49: 0 | H49: 0 | I49: 0 | J49: 0 | K49: =Calculations!E49*'Cost Inputs'!$U$15 -> 0 | L49: =Calculations!F49*'Cost Inputs'!$U$16 -> 0 | M49: =Calculations!G49*'Cost Inputs'!$U$17 -> 0 | N49: =Calculations!H49*'Cost Inputs'!$U$18 -> 0 | O49: =Calculations!I49*'Cost Inputs'!$U$19 -> 0 | P49: =Calculations!J49*'Cost Inputs'!$U$20 -> 0 | R49: =Calculations!K49*'Cost Inputs'!$U$21 -> 130080 | S49: 130080 | T49: 4917960 | AH49: =IF(T49>'Comp Costs'!T49,1,0) -> 0 | AI49: 37
C50: 38 | D50: 0 | E50: 0 | F50: 0 | G50: 0 | H50: 0 | I50: 0 | J50: 0 | K50: =Calculations!E50*'Cost Inputs'!$U$15 -> 0 | L50: =Calculations!F50*'Cost Inputs'!$U$16 -> 0 | M50: =Calculations!G50*'Cost Inputs'!$U$17 -> 0 | N50: =Calculations!H50*'Cost Inputs'!$U$18 -> 0 | O50: =Calculations!I50*'Cost Inputs'!$U$19 -> 0 | P50: =Calculations!J50*'Cost Inputs'!$U$20 -> 0 | R50: =Calculations!K50*'Cost Inputs'!$U$21 -> 130080 | S50: 130080 | T50: 5048040 | AH50: =IF(T50>'Comp Costs'!T50,1,0) -> 0 | AI50: 38
C51: 39 | D51: 0 | E51: 0 | F51: 0 | G51: 0 | H51: 0 | I51: 0 | J51: 0 | K51: =Calculations!E51*'Cost Inputs'!$U$15 -> 0 | L51: =Calculations!F51*'Cost Inputs'!$U$16 -> 0 | M51: =Calculations!G51*'Cost Inputs'!$U$17 -> 0 | N51: =Calculations!H51*'Cost Inputs'!$U$18 -> 0 | O51: =Calculations!I51*'Cost Inputs'!$U$19 -> 0 | P51: =Calculations!J51*'Cost Inputs'!$U$20 -> 0 | R51: =Calculations!K51*'Cost Inputs'!$U$21 -> 130080 | S51: 130080 | T51: 5178120 | AH51: =IF(T51>'Comp Costs'!T51,1,0) -> 0 | AI51: 39
C52: 40 | D52: 0 | E52: 0 | F52: 0 | G52: 0 | H52: 0 | I52: 0 | J52: 0 | K52: =Calculations!E52*'Cost Inputs'!$U$15 -> 0 | L52: =Calculations!F52*'Cost Inputs'!$U$16 -> 0 | M52: =Calculations!G52*'Cost Inputs'!$U$17 -> 0 | N52: =Calculations!H52*'Cost Inputs'!$U$18 -> 0 | O52: =Calculations!I52*'Cost Inputs'!$U$19 -> 0 | P52: =Calculations!J52*'Cost Inputs'!$U$20 -> 0 | R52: =Calculations!K52*'Cost Inputs'!$U$21 -> 130080 | S52: 130080 | T52: 5308200 | AH52: =IF(T52>'Comp Costs'!T52,1,0) -> 0 | AI52: 40
C53: 41 | D53: 0 | E53: 0 | F53: 0 | G53: 0 | H53: 0 | I53: 0 | J53: 0 | K53: =Calculations!E53*'Cost Inputs'!$U$15 -> 0 | L53: =Calculations!F53*'Cost Inputs'!$U$16 -> 0 | M53: =Calculations!G53*'Cost Inputs'!$U$17 -> 0 | N53: =Calculations!H53*'Cost Inputs'!$U$18 -> 0 | O53: =Calculations!I53*'Cost Inputs'!$U$19 -> 0 | P53: =Calculations!J53*'Cost Inputs'!$U$20 -> 0 | R53: =Calculations!K53*'Cost Inputs'!$U$21 -> 130080 | S53: 130080 | T53: 5438280 | AH53: =IF(T53>'Comp Costs'!T53,1,0) -> 0 | AI53: 41
C54: 42 | D54: 0 | E54: 0 | F54: 0 | G54: 0 | H54: 0 | I54: 0 | J54: 0 | K54: =Calculations!E54*'Cost Inputs'!$U$15 -> 0 | L54: =Calculations!F54*'Cost Inputs'!$U$16 -> 0 | M54: =Calculations!G54*'Cost Inputs'!$U$17 -> 0 | N54: =Calculations!H54*'Cost Inputs'!$U$18 -> 0 | O54: =Calculations!I54*'Cost Inputs'!$U$19 -> 0 | P54: =Calculations!J54*'Cost Inputs'!$U$20 -> 0 | R54: =Calculations!K54*'Cost Inputs'!$U$21 -> 130080 | S54: 130080 | T54: 5568360 | AH54: =IF(T54>'Comp Costs'!T54,1,0) -> 0 | AI54: 42
C55: 43 | D55: 0 | E55: 0 | F55: 0 | G55: 0 | H55: 0 | I55: 0 | J55: 0 | K55: =Calculations!E55*'Cost Inputs'!$U$15 -> 0 | L55: =Calculations!F55*'Cost Inputs'!$U$16 -> 0 | M55: =Calculations!G55*'Cost Inputs'!$U$17 -> 0 | N55: =Calculations!H55*'Cost Inputs'!$U$18 -> 0 | O55: =Calculations!I55*'Cost Inputs'!$U$19 -> 0 | P55: =Calculations!J55*'Cost Inputs'!$U$20 -> 0 | R55: =Calculations!K55*'Cost Inputs'!$U$21 -> 130080 | S55: 130080 | T55: 5698440 | AH55: =IF(T55>'Comp Costs'!T55,1,0) -> 0 | AI55: 43
C56: 44 | D56: 0 | E56: 0 | F56: 0 | G56: 0 | H56: 0 | I56: 0 | J56: 0 | K56: =Calculations!E56*'Cost Inputs'!$U$15 -> 0 | L56: =Calculations!F56*'Cost Inputs'!$U$16 -> 0 | M56: =Calculations!G56*'Cost Inputs'!$U$17 -> 0 | N56: =Calculations!H56*'Cost Inputs'!$U$18 -> 0 | O56: =Calculations!I56*'Cost Inputs'!$U$19 -> 0 | P56: =Calculations!J56*'Cost Inputs'!$U$20 -> 0 | R56: =Calculations!K56*'Cost Inputs'!$U$21 -> 130080 | S56: 130080 | T56: 5828520 | AH56: =IF(T56>'Comp Costs'!T56,1,0) -> 0 | AI56: 44
C57: 45 | D57: 0 | E57: 0 | F57: 0 | G57: 0 | H57: 0 | I57: 0 | J57: 0 | K57: =Calculations!E57*'Cost Inputs'!$U$15 -> 0 | L57: =Calculations!F57*'Cost Inputs'!$U$16 -> 0 | M57: =Calculations!G57*'Cost Inputs'!$U$17 -> 0 | N57: =Calculations!H57*'Cost Inputs'!$U$18 -> 0 | O57: =Calculations!I57*'Cost Inputs'!$U$19 -> 0 | P57: =Calculations!J57*'Cost Inputs'!$U$20 -> 0 | R57: =Calculations!K57*'Cost Inputs'!$U$21 -> 130080 | S57: 130080 | T57: 5958600 | AH57: =IF(T57>'Comp Costs'!T57,1,0) -> 0 | AI57: 45
C58: 46 | D58: 0 | E58: 0 | F58: 0 | G58: 0 | H58: 0 | I58: 0 | J58: 0 | K58: =Calculations!E58*'Cost Inputs'!$U$15 -> 0 | L58: =Calculations!F58*'Cost Inputs'!$U$16 -> 0 | M58: =Calculations!G58*'Cost Inputs'!$U$17 -> 0 | N58: =Calculations!H58*'Cost Inputs'!$U$18 -> 0 | O58: =Calculations!I58*'Cost Inputs'!$U$19 -> 0 | P58: =Calculations!J58*'Cost Inputs'!$U$20 -> 0 | R58: =Calculations!K58*'Cost Inputs'!$U$21 -> 130080 | S58: 130080 | T58: 6088680 | AH58: =IF(T58>'Comp Costs'!T58,1,0) -> 0 | AI58: 46
C59: 47 | D59: 0 | E59: 0 | F59: 0 | G59: 0 | H59: 0 | I59: 0 | J59: 0 | K59: =Calculations!E59*'Cost Inputs'!$U$15 -> 0 | L59: =Calculations!F59*'Cost Inputs'!$U$16 -> 0 | M59: =Calculations!G59*'Cost Inputs'!$U$17 -> 0 | N59: =Calculations!H59*'Cost Inputs'!$U$18 -> 0 | O59: =Calculations!I59*'Cost Inputs'!$U$19 -> 0 | P59: =Calculations!J59*'Cost Inputs'!$U$20 -> 0 | R59: =Calculations!K59*'Cost Inputs'!$U$21 -> 130080 | S59: 130080 | T59: 6218760 | AH59: =IF(T59>'Comp Costs'!T59,1,0) -> 0 | AI59: 47
C60: 48 | D60: 0 | E60: 0 | F60: 0 | G60: 0 | H60: 0 | I60: 0 | J60: 0 | K60: =Calculations!E60*'Cost Inputs'!$U$15 -> 0 | L60: =Calculations!F60*'Cost Inputs'!$U$16 -> 0 | M60: =Calculations!G60*'Cost Inputs'!$U$17 -> 0 | N60: =Calculations!H60*'Cost Inputs'!$U$18 -> 0 | O60: =Calculations!I60*'Cost Inputs'!$U$19 -> 0 | P60: =Calculations!J60*'Cost Inputs'!$U$20 -> 0 | R60: =Calculations!K60*'Cost Inputs'!$U$21 -> 130080 | S60: 130080 | T60: 6348840 | AH60: =IF(T60>'Comp Costs'!T60,1,0) -> 0 | AI60: 48
C61: 49 | D61: 0 | E61: 0 | F61: 0 | G61: 0 | H61: 0 | I61: 0 | J61: 0 | K61: =Calculations!E61*'Cost Inputs'!$U$15 -> 0 | L61: =Calculations!F61*'Cost Inputs'!$U$16 -> 0 | M61: =Calculations!G61*'Cost Inputs'!$U$17 -> 0 | N61: =Calculations!H61*'Cost Inputs'!$U$18 -> 0 | O61: =Calculations!I61*'Cost Inputs'!$U$19 -> 0 | P61: =Calculations!J61*'Cost Inputs'!$U$20 -> 0 | R61: =Calculations!K61*'Cost Inputs'!$U$21 -> 130080 | S61: 130080 | T61: 6478920 | AH61: =IF(T61>'Comp Costs'!T61,1,0) -> 0 | AI61: 49
C62: 50 | D62: 0 | E62: 0 | F62: 0 | G62: 0 | H62: 0 | I62: 0 | J62: 0 | K62: =Calculations!E62*'Cost Inputs'!$U$15 -> 0 | L62: =Calculations!F62*'Cost Inputs'!$U$16 -> 0 | M62: =Calculations!G62*'Cost Inputs'!$U$17 -> 0 | N62: =Calculations!H62*'Cost Inputs'!$U$18 -> 0 | O62: =Calculations!I62*'Cost Inputs'!$U$19 -> 0 | P62: =Calculations!J62*'Cost Inputs'!$U$20 -> 0 | R62: =Calculations!K62*'Cost Inputs'!$U$21 -> 130080 | S62: 130080 | T62: 6609000 | AH62: =IF(T62>'Comp Costs'!T62,1,0) -> 0 | AI62: 50
C63: 51 | D63: 0 | E63: 0 | F63: 0 | G63: 0 | H63: 0 | I63: 0 | J63: 0 | K63: =Calculations!E63*'Cost Inputs'!$U$15 -> 0 | L63: =Calculations!F63*'Cost Inputs'!$U$16 -> 0 | M63: =Calculations!G63*'Cost Inputs'!$U$17 -> 0 | N63: =Calculations!H63*'Cost Inputs'!$U$18 -> 0 | O63: =Calculations!I63*'Cost Inputs'!$U$19 -> 0 | P63: =Calculations!J63*'Cost Inputs'!$U$20 -> 0 | R63: =Calculations!K63*'Cost Inputs'!$U$21 -> 130080 | S63: 130080 | T63: 6739080 | AH63: =IF(T63>'Comp Costs'!T63,1,0) -> 0 | AI63: 51
C64: 52 | D64: 0 | E64: 0 | F64: 0 | G64: 0 | H64: 0 | I64: 0 | J64: 0 | K64: =Calculations!E64*'Cost Inputs'!$U$15 -> 0 | L64: =Calculations!F64*'Cost Inputs'!$U$16 -> 0 | M64: =Calculations!G64*'Cost Inputs'!$U$17 -> 0 | N64: =Calculations!H64*'Cost Inputs'!$U$18 -> 0 | O64: =Calculations!I64*'Cost Inputs'!$U$19 -> 0 | P64: =Calculations!J64*'Cost Inputs'!$U$20 -> 0 | R64: =Calculations!K64*'Cost Inputs'!$U$21 -> 130080 | S64: 130080 | T64: 6869160 | AH64: =IF(T64>'Comp Costs'!T64,1,0) -> 0 | AI64: 52
C65: 53 | D65: 0 | E65: 0 | F65: 0 | G65: 0 | H65: 0 | I65: 0 | J65: 0 | K65: =Calculations!E65*'Cost Inputs'!$U$15 -> 0 | L65: =Calculations!F65*'Cost Inputs'!$U$16 -> 0 | M65: =Calculations!G65*'Cost Inputs'!$U$17 -> 0 | N65: =Calculations!H65*'Cost Inputs'!$U$18 -> 0 | O65: =Calculations!I65*'Cost Inputs'!$U$19 -> 0 | P65: =Calculations!J65*'Cost Inputs'!$U$20 -> 0 | R65: =Calculations!K65*'Cost Inputs'!$U$21 -> 130080 | S65: 130080 | T65: 6999240 | AH65: =IF(T65>'Comp Costs'!T65,1,0) -> 0 | AI65: 53
C66: 54 | D66: 0 | E66: 0 | F66: 0 | G66: 0 | H66: 0 | I66: 0 | J66: 0 | K66: =Calculations!E66*'Cost Inputs'!$U$15 -> 0 | L66: =Calculations!F66*'Cost Inputs'!$U$16 -> 0 | M66: =Calculations!G66*'Cost Inputs'!$U$17 -> 0 | N66: =Calculations!H66*'Cost Inputs'!$U$18 -> 0 | O66: =Calculations!I66*'Cost Inputs'!$U$19 -> 0 | P66: =Calculations!J66*'Cost Inputs'!$U$20 -> 0 | R66: =Calculations!K66*'Cost Inputs'!$U$21 -> 130080 | S66: 130080 | T66: 7129320 | AH66: =IF(T66>'Comp Costs'!T66,1,0) -> 0 | AI66: 54
C67: 55 | D67: 0 | E67: 0 | F67: 0 | G67: 0 | H67: 0 | I67: 0 | J67: 0 | K67: =Calculations!E67*'Cost Inputs'!$U$15 -> 0 | L67: =Calculations!F67*'Cost Inputs'!$U$16 -> 0 | M67: =Calculations!G67*'Cost Inputs'!$U$17 -> 0 | N67: =Calculations!H67*'Cost Inputs'!$U$18 -> 0 | O67: =Calculations!I67*'Cost Inputs'!$U$19 -> 0 | P67: =Calculations!J67*'Cost Inputs'!$U$20 -> 0 | R67: =Calculations!K67*'Cost Inputs'!$U$21 -> 130080 | S67: 130080 | T67: 7259400 | AH67: =IF(T67>'Comp Costs'!T67,1,0) -> 0 | AI67: 55
C68: 56 | D68: 0 | E68: 0 | F68: 0 | G68: 0 | H68: 0 | I68: 0 | J68: 0 | K68: =Calculations!E68*'Cost Inputs'!$U$15 -> 0 | L68: =Calculations!F68*'Cost Inputs'!$U$16 -> 0 | M68: =Calculations!G68*'Cost Inputs'!$U$17 -> 0 | N68: =Calculations!H68*'Cost Inputs'!$U$18 -> 0 | O68: =Calculations!I68*'Cost Inputs'!$U$19 -> 0 | P68: =Calculations!J68*'Cost Inputs'!$U$20 -> 0 | R68: =Calculations!K68*'Cost Inputs'!$U$21 -> 130080 | S68: 130080 | T68: 7389480 | AH68: =IF(T68>'Comp Costs'!T68,1,0) -> 0 | AI68: 56
C69: 57 | D69: 0 | E69: 0 | F69: 0 | G69: 0 | H69: 0 | I69: 0 | J69: 0 | K69: =Calculations!E69*'Cost Inputs'!$U$15 -> 0 | L69: =Calculations!F69*'Cost Inputs'!$U$16 -> 0 | M69: =Calculations!G69*'Cost Inputs'!$U$17 -> 0 | N69: =Calculations!H69*'Cost Inputs'!$U$18 -> 0 | O69: =Calculations!I69*'Cost Inputs'!$U$19 -> 0 | P69: =Calculations!J69*'Cost Inputs'!$U$20 -> 0 | R69: =Calculations!K69*'Cost Inputs'!$U$21 -> 130080 | S69: 130080 | T69: 7519560 | AH69: =IF(T69>'Comp Costs'!T69,1,0) -> 0 | AI69: 57
C70: 58 | D70: 0 | E70: 0 | F70: 0 | G70: 0 | H70: 0 | I70: 0 | J70: 0 | K70: =Calculations!E70*'Cost Inputs'!$U$15 -> 0 | L70: =Calculations!F70*'Cost Inputs'!$U$16 -> 0 | M70: =Calculations!G70*'Cost Inputs'!$U$17 -> 0 | N70: =Calculations!H70*'Cost Inputs'!$U$18 -> 0 | O70: =Calculations!I70*'Cost Inputs'!$U$19 -> 0 | P70: =Calculations!J70*'Cost Inputs'!$U$20 -> 0 | R70: =Calculations!K70*'Cost Inputs'!$U$21 -> 130080 | S70: 130080 | T70: 7649640 | AH70: =IF(T70>'Comp Costs'!T70,1,0) -> 0 | AI70: 58
C71: 59 | D71: 0 | E71: 0 | F71: 0 | G71: 0 | H71: 0 | I71: 0 | J71: 0 | K71: =Calculations!E71*'Cost Inputs'!$U$15 -> 0 | L71: =Calculations!F71*'Cost Inputs'!$U$16 -> 0 | M71: =Calculations!G71*'Cost Inputs'!$U$17 -> 0 | N71: =Calculations!H71*'Cost Inputs'!$U$18 -> 0 | O71: =Calculations!I71*'Cost Inputs'!$U$19 -> 0 | P71: =Calculations!J71*'Cost Inputs'!$U$20 -> 0 | R71: =Calculations!K71*'Cost Inputs'!$U$21 -> 130080 | S71: 130080 | T71: 7779720 | AH71: =IF(T71>'Comp Costs'!T71,1,0) -> 0 | AI71: 59
C72: 60 | D72: 0 | E72: 0 | F72: 0 | G72: 0 | H72: 0 | I72: 0 | J72: 0 | K72: =Calculations!E72*'Cost Inputs'!$U$15 -> 0 | L72: =Calculations!F72*'Cost Inputs'!$U$16 -> 0 | M72: =Calculations!G72*'Cost Inputs'!$U$17 -> 0 | N72: =Calculations!H72*'Cost Inputs'!$U$18 -> 0 | O72: =Calculations!I72*'Cost Inputs'!$U$19 -> 0 | P72: =Calculations!J72*'Cost Inputs'!$U$20 -> 0 | R72: =Calculations!K72*'Cost Inputs'!$U$21 -> 130080 | S72: 130080 | T72: 7909800 | U72: 5 Year | AH72: =IF(T72>'Comp Costs'!T72,1,0) -> 0 | AI72: 60
C73: 61 | D73: 0 | E73: 0 | F73: 0 | G73: 0 | H73: 0 | I73: 0 | J73: 0 | K73: =Calculations!E73*'Cost Inputs'!$U$15 -> 0 | L73: =Calculations!F73*'Cost Inputs'!$U$16 -> 0 | M73: =Calculations!G73*'Cost Inputs'!$U$17 -> 0 | N73: =Calculations!H73*'Cost Inputs'!$U$18 -> 0 | O73: =Calculations!I73*'Cost Inputs'!$U$19 -> 0 | P73: =Calculations!J73*'Cost Inputs'!$U$20 -> 0 | R73: =Calculations!K73*'Cost Inputs'!$U$21 -> 130080 | S73: 130080 | T73: 8039880 | AH73: =IF(T73>'Comp Costs'!T73,1,0) -> 0 | AI73: 61
C74: 62 | D74: 0 | E74: 0 | F74: 0 | G74: 0 | H74: 0 | I74: 0 | J74: 0 | K74: =Calculations!E74*'Cost Inputs'!$U$15 -> 0 | L74: =Calculations!F74*'Cost Inputs'!$U$16 -> 0 | M74: =Calculations!G74*'Cost Inputs'!$U$17 -> 0 | N74: =Calculations!H74*'Cost Inputs'!$U$18 -> 0 | O74: =Calculations!I74*'Cost Inputs'!$U$19 -> 0 | P74: =Calculations!J74*'Cost Inputs'!$U$20 -> 0 | R74: =Calculations!K74*'Cost Inputs'!$U$21 -> 130080 | S74: 130080 | T74: 8169960 | AH74: =IF(T74>'Comp Costs'!T74,1,0) -> 0 | AI74: 62
C75: 63 | D75: 0 | E75: 0 | F75: 0 | G75: 0 | H75: 0 | I75: 0 | J75: 0 | K75: =Calculations!E75*'Cost Inputs'!$U$15 -> 0 | L75: =Calculations!F75*'Cost Inputs'!$U$16 -> 0 | M75: =Calculations!G75*'Cost Inputs'!$U$17 -> 0 | N75: =Calculations!H75*'Cost Inputs'!$U$18 -> 0 | O75: =Calculations!I75*'Cost Inputs'!$U$19 -> 0 | P75: =Calculations!J75*'Cost Inputs'!$U$20 -> 0 | R75: =Calculations!K75*'Cost Inputs'!$U$21 -> 130080 | S75: 130080 | T75: 8300040 | AH75: =IF(T75>'Comp Costs'!T75,1,0) -> 0 | AI75: 63
C76: 64 | D76: 0 | E76: 0 | F76: 0 | G76: 0 | H76: 0 | I76: 0 | J76: 0 | K76: =Calculations!E76*'Cost Inputs'!$U$15 -> 0 | L76: =Calculations!F76*'Cost Inputs'!$U$16 -> 0 | M76: =Calculations!G76*'Cost Inputs'!$U$17 -> 0 | N76: =Calculations!H76*'Cost Inputs'!$U$18 -> 0 | O76: =Calculations!I76*'Cost Inputs'!$U$19 -> 0 | P76: =Calculations!J76*'Cost Inputs'!$U$20 -> 0 | R76: =Calculations!K76*'Cost Inputs'!$U$21 -> 130080 | S76: 130080 | T76: 8430120 | AH76: =IF(T76>'Comp Costs'!T76,1,0) -> 0 | AI76: =C76 -> 64
C77: 65 | D77: 0 | E77: 0 | F77: 0 | G77: 0 | H77: 0 | I77: 0 | J77: 0 | K77: =Calculations!E77*'Cost Inputs'!$U$15 -> 0 | L77: =Calculations!F77*'Cost Inputs'!$U$16 -> 0 | M77: =Calculations!G77*'Cost Inputs'!$U$17 -> 0 | N77: =Calculations!H77*'Cost Inputs'!$U$18 -> 0 | O77: =Calculations!I77*'Cost Inputs'!$U$19 -> 0 | P77: =Calculations!J77*'Cost Inputs'!$U$20 -> 0 | R77: =Calculations!K77*'Cost Inputs'!$U$21 -> 130080 | S77: =SUM(D77:R77) -> 130080 | T77: 8560200 | AH77: =IF(T77>'Comp Costs'!T77,1,0) -> 0 | AI77: 65
C78: 66 | D78: 0 | E78: 0 | F78: 0 | G78: 0 | H78: 0 | I78: 0 | J78: 0 | K78: =Calculations!E78*'Cost Inputs'!$U$15 -> 0 | L78: =Calculations!F78*'Cost Inputs'!$U$16 -> 0 | M78: =Calculations!G78*'Cost Inputs'!$U$17 -> 0 | N78: =Calculations!H78*'Cost Inputs'!$U$18 -> 0 | O78: =Calculations!I78*'Cost Inputs'!$U$19 -> 0 | P78: =Calculations!J78*'Cost Inputs'!$U$20 -> 0 | R78: =Calculations!K78*'Cost Inputs'!$U$21 -> 130080 | S78: 130080 | T78: =S78+T77 -> 8690280 | AH78: =IF(T78>'Comp Costs'!T78,1,0) -> 0 | AI78: 66
C79: 67 | D79: 0 | E79: 0 | F79: 0 | G79: 0 | H79: 0 | I79: 0 | J79: 0 | K79: =Calculations!E79*'Cost Inputs'!$U$15 -> 0 | L79: =Calculations!F79*'Cost Inputs'!$U$16 -> 0 | M79: =Calculations!G79*'Cost Inputs'!$U$17 -> 0 | N79: =Calculations!H79*'Cost Inputs'!$U$18 -> 0 | O79: =Calculations!I79*'Cost Inputs'!$U$19 -> 0 | P79: =Calculations!J79*'Cost Inputs'!$U$20 -> 0 | R79: =Calculations!K79*'Cost Inputs'!$U$21 -> 130080 | S79: 130080 | T79: 8820360 | AH79: =IF(T79>'Comp Costs'!T79,1,0) -> 0 | AI79: 67
C80: 68 | D80: 0 | E80: 0 | F80: 0 | G80: 0 | H80: 0 | I80: 0 | J80: 0 | K80: =Calculations!E80*'Cost Inputs'!$U$15 -> 0 | L80: =Calculations!F80*'Cost Inputs'!$U$16 -> 0 | M80: =Calculations!G80*'Cost Inputs'!$U$17 -> 0 | N80: =Calculations!H80*'Cost Inputs'!$U$18 -> 0 | O80: =Calculations!I80*'Cost Inputs'!$U$19 -> 0 | P80: =Calculations!J80*'Cost Inputs'!$U$20 -> 0 | R80: =Calculations!K80*'Cost Inputs'!$U$21 -> 130080 | S80: 130080 | T80: 8950440 | AH80: =IF(T80>'Comp Costs'!T80,1,0) -> 0 | AI80: 68
C81: 69 | D81: 0 | E81: 0 | F81: 0 | G81: 0 | H81: 0 | I81: 0 | J81: 0 | K81: =Calculations!E81*'Cost Inputs'!$U$15 -> 0 | L81: =Calculations!F81*'Cost Inputs'!$U$16 -> 0 | M81: =Calculations!G81*'Cost Inputs'!$U$17 -> 0 | N81: =Calculations!H81*'Cost Inputs'!$U$18 -> 0 | O81: =Calculations!I81*'Cost Inputs'!$U$19 -> 0 | P81: =Calculations!J81*'Cost Inputs'!$U$20 -> 0 | R81: =Calculations!K81*'Cost Inputs'!$U$21 -> 130080 | S81: 130080 | T81: 9080520 | AH81: =IF(T81>'Comp Costs'!T81,1,0) -> 0 | AI81: 69
C82: 70 | D82: 0 | E82: 0 | F82: 0 | G82: 0 | H82: 0 | I82: 0 | J82: 0 | K82: =Calculations!E82*'Cost Inputs'!$U$15 -> 0 | L82: =Calculations!F82*'Cost Inputs'!$U$16 -> 0 | M82: =Calculations!G82*'Cost Inputs'!$U$17 -> 0 | N82: =Calculations!H82*'Cost Inputs'!$U$18 -> 0 | O82: =Calculations!I82*'Cost Inputs'!$U$19 -> 0 | P82: =Calculations!J82*'Cost Inputs'!$U$20 -> 0 | R82: =Calculations!K82*'Cost Inputs'!$U$21 -> 130080 | S82: 130080 | T82: 9210600 | AH82: =IF(T82>'Comp Costs'!T82,1,0) -> 0 | AI82: 70
C83: 71 | D83: 0 | E83: 0 | F83: 0 | G83: 0 | H83: 0 | I83: 0 | J83: 0 | K83: =Calculations!E83*'Cost Inputs'!$U$15 -> 0 | L83: =Calculations!F83*'Cost Inputs'!$U$16 -> 0 | M83: =Calculations!G83*'Cost Inputs'!$U$17 -> 0 | N83: =Calculations!H83*'Cost Inputs'!$U$18 -> 0 | O83: =Calculations!I83*'Cost Inputs'!$U$19 -> 0 | P83: =Calculations!J83*'Cost Inputs'!$U$20 -> 0 | R83: =Calculations!K83*'Cost Inputs'!$U$21 -> 130080 | S83: 130080 | T83: 9340680 | AH83: =IF(T83>'Comp Costs'!T83,1,0) -> 0 | AI83: 71
C84: 72 | D84: 0 | E84: 0 | F84: 0 | G84: 0 | H84: 0 | I84: 0 | J84: 0 | K84: =Calculations!E84*'Cost Inputs'!$U$15 -> 0 | L84: =Calculations!F84*'Cost Inputs'!$U$16 -> 0 | M84: =Calculations!G84*'Cost Inputs'!$U$17 -> 0 | N84: =Calculations!H84*'Cost Inputs'!$U$18 -> 0 | O84: =Calculations!I84*'Cost Inputs'!$U$19 -> 0 | P84: =Calculations!J84*'Cost Inputs'!$U$20 -> 0 | R84: =Calculations!K84*'Cost Inputs'!$U$21 -> 130080 | S84: 130080 | T84: 9470760 | AH84: =IF(T84>'Comp Costs'!T84,1,0) -> 0 | AI84: 72
C85: 73 | D85: 0 | E85: 0 | F85: 0 | G85: 0 | H85: 0 | I85: 0 | J85: 0 | K85: =Calculations!E85*'Cost Inputs'!$U$15 -> 0 | L85: =Calculations!F85*'Cost Inputs'!$U$16 -> 0 | M85: =Calculations!G85*'Cost Inputs'!$U$17 -> 0 | N85: =Calculations!H85*'Cost Inputs'!$U$18 -> 0 | O85: =Calculations!I85*'Cost Inputs'!$U$19 -> 0 | P85: =Calculations!J85*'Cost Inputs'!$U$20 -> 0 | R85: =Calculations!K85*'Cost Inputs'!$U$21 -> 130080 | S85: 130080 | T85: 9600840 | AH85: =IF(T85>'Comp Costs'!T85,1,0) -> 0 | AI85: 73
C86: 74 | D86: 0 | E86: 0 | F86: 0 | G86: 0 | H86: 0 | I86: 0 | J86: 0 | K86: =Calculations!E86*'Cost Inputs'!$U$15 -> 0 | L86: =Calculations!F86*'Cost Inputs'!$U$16 -> 0 | M86: =Calculations!G86*'Cost Inputs'!$U$17 -> 0 | N86: =Calculations!H86*'Cost Inputs'!$U$18 -> 0 | O86: =Calculations!I86*'Cost Inputs'!$U$19 -> 0 | P86: =Calculations!J86*'Cost Inputs'!$U$20 -> 0 | R86: =Calculations!K86*'Cost Inputs'!$U$21 -> 130080 | S86: 130080 | T86: 9730920 | AH86: =IF(T86>'Comp Costs'!T86,1,0) -> 0 | AI86: 74
C87: 75 | D87: 0 | E87: 0 | F87: 0 | G87: 0 | H87: 0 | I87: 0 | J87: 0 | K87: =Calculations!E87*'Cost Inputs'!$U$15 -> 0 | L87: =Calculations!F87*'Cost Inputs'!$U$16 -> 0 | M87: =Calculations!G87*'Cost Inputs'!$U$17 -> 0 | N87: =Calculations!H87*'Cost Inputs'!$U$18 -> 0 | O87: =Calculations!I87*'Cost Inputs'!$U$19 -> 0 | P87: =Calculations!J87*'Cost Inputs'!$U$20 -> 0 | R87: =Calculations!K87*'Cost Inputs'!$U$21 -> 130080 | S87: 130080 | T87: 9861000 | AH87: =IF(T87>'Comp Costs'!T87,1,0) -> 0 | AI87: 75
C88: 76 | D88: 0 | E88: 0 | F88: 0 | G88: 0 | H88: 0 | I88: 0 | J88: 0 | K88: =Calculations!E88*'Cost Inputs'!$U$15 -> 0 | L88: =Calculations!F88*'Cost Inputs'!$U$16 -> 0 | M88: =Calculations!G88*'Cost Inputs'!$U$17 -> 0 | N88: =Calculations!H88*'Cost Inputs'!$U$18 -> 0 | O88: =Calculations!I88*'Cost Inputs'!$U$19 -> 0 | P88: =Calculations!J88*'Cost Inputs'!$U$20 -> 0 | R88: =Calculations!K88*'Cost Inputs'!$U$21 -> 130080 | S88: 130080 | T88: 9991080 | AH88: =IF(T88>'Comp Costs'!T88,1,0) -> 0 | AI88: 76
C89: 77 | D89: 0 | E89: 0 | F89: 0 | G89: 0 | H89: 0 | I89: 0 | J89: 0 | K89: =Calculations!E89*'Cost Inputs'!$U$15 -> 0 | L89: =Calculations!F89*'Cost Inputs'!$U$16 -> 0 | M89: =Calculations!G89*'Cost Inputs'!$U$17 -> 0 | N89: =Calculations!H89*'Cost Inputs'!$U$18 -> 0 | O89: =Calculations!I89*'Cost Inputs'!$U$19 -> 0 | P89: =Calculations!J89*'Cost Inputs'!$U$20 -> 0 | R89: =Calculations!K89*'Cost Inputs'!$U$21 -> 130080 | S89: 130080 | T89: 10121160 | AH89: =IF(T89>'Comp Costs'!T89,1,0) -> 0 | AI89: 77
C90: 78 | D90: 0 | E90: 0 | F90: 0 | G90: 0 | H90: 0 | I90: 0 | J90: 0 | K90: =Calculations!E90*'Cost Inputs'!$U$15 -> 0 | L90: =Calculations!F90*'Cost Inputs'!$U$16 -> 0 | M90: =Calculations!G90*'Cost Inputs'!$U$17 -> 0 | N90: =Calculations!H90*'Cost Inputs'!$U$18 -> 0 | O90: =Calculations!I90*'Cost Inputs'!$U$19 -> 0 | P90: =Calculations!J90*'Cost Inputs'!$U$20 -> 0 | R90: =Calculations!K90*'Cost Inputs'!$U$21 -> 130080 | S90: 130080 | T90: 10251240 | AH90: =IF(T90>'Comp Costs'!T90,1,0) -> 0 | AI90: 78
C91: 79 | D91: 0 | E91: 0 | F91: 0 | G91: 0 | H91: 0 | I91: 0 | J91: 0 | K91: =Calculations!E91*'Cost Inputs'!$U$15 -> 0 | L91: =Calculations!F91*'Cost Inputs'!$U$16 -> 0 | M91: =Calculations!G91*'Cost Inputs'!$U$17 -> 0 | N91: =Calculations!H91*'Cost Inputs'!$U$18 -> 0 | O91: =Calculations!I91*'Cost Inputs'!$U$19 -> 0 | P91: =Calculations!J91*'Cost Inputs'!$U$20 -> 0 | R91: =Calculations!K91*'Cost Inputs'!$U$21 -> 130080 | S91: 130080 | T91: 10381320 | AH91: =IF(T91>'Comp Costs'!T91,1,0) -> 0 | AI91: 79
C92: 80 | D92: 0 | E92: 0 | F92: 0 | G92: 0 | H92: 0 | I92: 0 | J92: 0 | K92: =Calculations!E92*'Cost Inputs'!$U$15 -> 0 | L92: =Calculations!F92*'Cost Inputs'!$U$16 -> 0 | M92: =Calculations!G92*'Cost Inputs'!$U$17 -> 0 | N92: =Calculations!H92*'Cost Inputs'!$U$18 -> 0 | O92: =Calculations!I92*'Cost Inputs'!$U$19 -> 0 | P92: =Calculations!J92*'Cost Inputs'!$U$20 -> 0 | R92: =Calculations!K92*'Cost Inputs'!$U$21 -> 130080 | S92: 130080 | T92: 10511400 | AH92: =IF(T92>'Comp Costs'!T92,1,0) -> 0 | AI92: 80
C93: 81 | D93: 0 | E93: 0 | F93: 0 | G93: 0 | H93: 0 | I93: 0 | J93: 0 | K93: =Calculations!E93*'Cost Inputs'!$U$15 -> 0 | L93: =Calculations!F93*'Cost Inputs'!$U$16 -> 0 | M93: =Calculations!G93*'Cost Inputs'!$U$17 -> 0 | N93: =Calculations!H93*'Cost Inputs'!$U$18 -> 0 | O93: =Calculations!I93*'Cost Inputs'!$U$19 -> 0 | P93: =Calculations!J93*'Cost Inputs'!$U$20 -> 0 | R93: =Calculations!K93*'Cost Inputs'!$U$21 -> 130080 | S93: 130080 | T93: 10641480 | AH93: =IF(T93>'Comp Costs'!T93,1,0) -> 0 | AI93: 81
